Workbook

Sheet 1º SEM 2018 (hidden)
D1: Sisbr 2.0 - Plataforma Contábill
H2: Data de Emissão:
D3: Relatório Balancete Analítico
H4: 2019-08-29T20:09:37
A6: 0300 - SICOOB CONFEDERAÇÃO | H6: Hora de Emissão:
H7: 43706.84001
A8: Instituição resp.: | C8: 1003 - SICOOB CENTRAL CREDIMINAS | E8: Período: | G8: 01/01/2018 a 30/06/2018
A9: Instituição: | C9: 3175 - SICOOB CREDISETE | E9: Tipo de Saldo: | G9: Somente Saldos Diferentes de Zero
A10: PA: | C10: TODOS... | E10: Apresentação do Saldo: | G10: Saldo Contábil - Desconsiderar Apuração de Resultado
A11: Grupo Contábil: | C11: Ativo, Compensação, Passivo, Patrimônio Líquido, Resultado
A12: N | B12: Conta | C12: Cód.Reduzido | D12: Descrição da Conta | E12: Saldo Anterior | G12: Débito | H12: Crédito | I12: Saldo Atual
A13: 1 | B13: 1.0.0.00.00-7 | D13: CIRCULANTE E REALIZAVEL A LONGO PRAZO | E13: 181056907.7 | G13: 5009902422 | H13: 4991163391 | I13: 199795938.3
A14: 2 | B14: 1.1.0.00.00-6 | D14: DISPONIBILIDADES | E14: 2424986.23 | G14: 2258083276 | H14: 2257707053 | I14: 2801209.73
A15: 3 | B15: 1.1.1.00.00-9 | D15: CAIXA | E15: 2424986.23 | G15: 933463320 | H15: 933087096.5 | I15: 2801209.73
A16: 4 | B16: 1.1.1.10.00-6 | D16: CAIXA | E16: 2424986.23 | G16: 933463320 | H16: 933087096.5 | I16: 2801209.73
A17: 6 | B17: 1.1.1.10.00.0001-9 | C17: 11 | D17: CAIXA | E17: 2424986.23 | G17: 916902788 | H17: 916771334.5 | I17: 2556439.73
A18: 6 | B18: 1.1.1.10.00.0002-6 | C18: 12 | D18: NUMERÁRIO EM TRÂNSITO | E18: 0 | G18: 16560532 | H18: 16315762 | I18: 244770
A19: 2 | B19: 1.4.0.00.00-3 | D19: RELACOES INTERFINANCEIRAS | E19: 103711902.1 | G19: 99406535.59 | H19: 75629333.32 | I19: 127489104.3
A20: 3 | B20: 1.4.5.00.00-8 | D20: CENTRALIZAÇÃO FINANCEIRA - COOPERATIVAS | E20: 103711902.1 | G20: 99406535.59 | H20: 75629333.32 | I20: 127489104.3
A21: 4 | B21: 1.4.5.10.00-5 | D21: DEPÓSITOS NAS COOPERATIVAS CENTRAIS | E21: 103711902.1 | G21: 99406535.59 | H21: 75629333.32 | I21: 127489104.3
A22: 6 | B22: 1.4.5.10.00.0001-6 | C22: 1620 | D22: CENTRALIZAÇÃO FINANCEIRA - COOPERATIVAS | E22: 103711902.1 | G22: 99406535.59 | H22: 75629333.32 | I22: 127489104.3
A23: 2 | B23: 1.6.0.00.00-1 | D23: OPERACOES DE CREDITO | E23: 66598628.27 | G23: 218313252.5 | H23: 224592823.8 | I23: 60319057
A24: 3 | B24: 1.6.1.00.00-4 | D24: EMPRÉSTIMOS E DIREITOS CREDITÓRIOS DESCONTADOS | E24: 64119454.12 | G24: 129692783.7 | H24: 130912845 | I24: 62899392.89
A25: 4 | B25: 1.6.1.10.00-1 | D25: ADIANTAMENTOS A DEPOSITANTES | E25: 445518.26 | G25: 18509507.09 | H25: 18606819.52 | I25: 348205.83
A26: 6 | B26: 1.6.1.10.00.0001-4 | C26: 1626 | D26: ADIANTAMENTOS A DEPOSITANTES | E26: 544135.38 | G26: 18322777.52 | H26: 18446564.5 | I26: 420348.4
A27: 6 | B27: 1.6.1.10.00.0002-1 | C27: 1627 | D27: (-) RENDAS APROPRIAR ADIANTAMENTOS A DEPOSITANTES | E27: -98617.12 | G27: 186729.57 | H27: 160255.02 | I27: -72142.57
A28: 4 | B28: 1.6.1.20.00-8 | D28: EMPRESTIMOS | E28: 58175367.5 | G28: 94408542.95 | H28: 94666101.31 | I28: 57917809.14
A29: 6 | B29: 1.6.1.20.00.0001-7 | C29: 1628 | D29: EMPRÉSTIMOS | E29: 69130812.5 | G29: 27554536 | H29: 34030809.67 | I29: 62654538.83
A30: 6 | B30: 1.6.1.20.00.0002-4 | C30: 1629 | D30: (-) RENDAS APROPRIAR - EMPRÉSTIMOS | E30: -14796336.37 | G30: 7074387.55 | H30: 4849499.57 | I30: -12571448.39
A31: 6 | B31: 1.6.1.20.00.0003-1 | C31: 1630 | D31: CHEQUE ESPECIAL | E31: 1156400.16 | G31: 13543286.37 | H31: 13425341.12 | I31: 1274345.41
A32: 6 | B32: 1.6.1.20.00.0005-5 | C32: 1632 | D32: (-) JUROS MORA APROPRIAR | E32: -268714.21 | G32: 546462.7 | H32: 760061.7 | I32: -482313.21
A33: 6 | B33: 1.6.1.20.00.0006-2 | C33: 1633 | D33: CONTA GARANTIDA | E33: 3333050.3 | G33: 41063062.4 | H33: 40397694.87 | I33: 3998417.83
A34: 6 | B34: 1.6.1.20.00.0009-3 | C34: 1636 | D34: (-) RDS EFET VENC + 60 - EMPRÉSTIMOS | E34: -391597.14 | G34: 505995.48 | H34: 862262.6 | I34: -747864.26
A35: 6 | B35: 1.6.1.20.00.0031-6 | C35: 11328 | D35: OPERAÇÕES RENEGOCIADAS | E35: 15396.81 | G35: 4063097.86 | H35: 50250.82 | I35: 4028243.85
A36: 6 | B36: 1.6.1.20.00.0032-3 | C36: 11329 | D36: (-) RENDAS A APROPRIAR - OPERAÇÕES RENEGOCIADAS | E36: -3644.55 | G36: 54719.74 | H36: 261550.53 | I36: -210475.34
A37: 6 | B37: 1.6.1.20.00.0033-0 | C37: 11330 | D37: (-) JUROS DE MORA A APROPRIAR | E37: 0 | G37: 0 | H37: 5099.95 | I37: -5099.95
A38: 6 | B38: 1.6.1.20.00.0034-7 | C38: 11331 | D38: (-) RENDAS A EFET. EMPRÉSTIMOS VENC. MAIS 60 DIAS | E38: 0 | G38: 21.5 | H38: 13552.12 | I38: -13530.62
A39: 6 | B39: 1.6.1.20.00.0036-1 | C39: 11892 | D39: (-) GANHOS A AUFERIR | E39: 0 | G39: 2973.35 | H39: 9978.36 | I39: -7005.01
A40: 4 | B40: 1.6.1.30.00-5 | D40: DIREITOS CREDITÓRIOS DESCONTADOS | E40: 5498568.36 | G40: 16774733.7 | H40: 17639924.14 | I40: 4633377.92
A41: 5 | B41: 1.6.1.30.10-8 | D41: TÍTULOS DE CRÉDITO | E41: 5498568.36 | G41: 16774733.7 | H41: 17639924.14 | I41: 4633377.92
A42: 6 | B42: 1.6.1.30.10.0001-9 | C42: 11407 | D42: TÍTULOS DESCONTADOS | E42: 881363.86 | G42: 3558880.93 | H42: 3656322.56 | I42: 783922.23
A43: 6 | B43: 1.6.1.30.10.0002-6 | C43: 11408 | D43: (-) RENDAS A APROPRIAR - TÍTULOS DESCONTADOS RPL | E43: -28923.71 | G43: 135496.25 | H43: 128507.25 | I43: -21934.71
A44: 6 | B44: 1.6.1.30.10.0003-3 | C44: 11409 | D44: (-) JUROS DE MORA A APROPRIAR | E44: 0 | G44: 0 | H44: 182.4 | I44: -182.4
A45: 6 | B45: 1.6.1.30.10.0009-5 | C45: 11415 | D45: CHEQUES DESCONTADOS | E45: 4806255.39 | G45: 12458201.32 | H45: 13245945.84 | I45: 4018510.87
A46: 6 | B46: 1.6.1.30.10.0010-5 | C46: 11416 | D46: (-) RENDAS A APROPRIAR - CHEQUES DESCONTADOS | E46: -143935.98 | G46: 597866.11 | H46: 591251 | I46: -137320.87
A47: 6 | B47: 1.6.1.30.10.0011-2 | C47: 11417 | D47: (-) JUROS DE MORA A APROPRIAR | E47: -16191.2 | G47: 24289.09 | H47: 17715.09 | I47: -9617.2
A48: 3 | B48: 1.6.2.00.00-7 | D48: FINANCIAMENTOS | E48: 6291212.85 | G48: 5485140.23 | H48: 4815214.57 | I48: 6961138.51
A49: 4 | B49: 1.6.2.10.00-4 | D49: FINANCIAMENTOS | E49: 6291212.85 | G49: 5485140.23 | H49: 4815214.57 | I49: 6961138.51
A50: 6 | B50: 1.6.2.10.00.0008-2 | C50: 1681 | D50: FINANCIAMENTOS | E50: 7501109.31 | G50: 4756293.79 | H50: 3666452.21 | I50: 8590950.89
A51: 6 | B51: 1.6.2.10.00.0009-9 | C51: 1682 | D51: (-) RENDAS A APROPRIAR - FINANCIAMENTOS | E51: -1206638.77 | G51: 715992.42 | H51: 1125861.97 | I51: -1616508.32
A52: 6 | B52: 1.6.2.10.00.0010-9 | C52: 1683 | D52: (-) JUROS DE MORA A APROPRIAR - FINANCIAMENTOS | E52: -1796.67 | G52: 7401.52 | H52: 13509.69 | I52: -7904.84
A53: 6 | B53: 1.6.2.10.00.0011-6 | C53: 1684 | D53: (-) RDAS A EFET. FIN VENC + 60 DIAS - FINANCIAMENT | E53: -1461.02 | G53: 5452.5 | H53: 9390.7 | I53: -5399.22
A54: 3 | B54: 1.6.3.00.00-0 | D54: FINANCIAMENTOS RURAIS E AGROINDUSTRIAIS | E54: 8120314.91 | G54: 3301554.69 | H54: 5848503.16 | I54: 5573366.44
A55: 4 | B55: 1.6.3.05.00-5 | D55: FINANCIAMENTOS RURAIS - APLICAÇÕES COM RECURSOS LIVRES | E55: 2922524.47 | G55: 667282.01 | H55: 1932803.18 | I55: 1657003.3
A56: 5 | B56: 1.6.3.05.10-8 | D56: CUSTEIO - PECUÁRIA | E56: 150287.36 | G56: 198123.3 | H56: 217565.51 | I56: 130845.15
A57: 6 | B57: 1.6.3.05.10.0001-3 | C57: 11707 | D57: CUSTEIO - PECUÁRIA - APLIC. REC. LIVRES | E57: 158495.08 | G57: 181652.18 | H57: 203436.11 | I57: 136711.15
A58: 6 | B58: 1.6.3.05.10.0002-0 | C58: 11708 | D58: (-) RDAS APROP - CP - APLIC. REC. LIVRES | E58: -8207.72 | G58: 16471.12 | H58: 14129.4 | I58: -5866
A59: 5 | B59: 1.6.3.05.20-1 | D59: INVESTIMENTO - PECUÁRIA | E59: 2772237.11 | G59: 469158.71 | H59: 1715237.67 | I59: 1526158.15
A60: 6 | B60: 1.6.3.05.20.0001-2 | C60: 11715 | D60: INVESTIMENTO - PECUÁRIA - APLIC. REC. LIVRES | E60: 3146166.97 | G60: 263246.2 | H60: 1656180.59 | I60: 1753232.58
A61: 6 | B61: 1.6.3.05.20.0002-9 | C61: 11716 | D61: (-) RDAS APROP - IP - APLIC. REC. LIVRES | E61: -363020.48 | G61: 186467.17 | H61: 47209.92 | I61: -223763.23
A62: 6 | B62: 1.6.3.05.20.0003-6 | C62: 11717 | D62: (-) JUROS MORA APROP - IP - APLIC. REC. LIVRES | E62: -9150 | G62: 17190.88 | H62: 10109.95 | I62: -2069.07
A63: 6 | B63: 1.6.3.05.20.0004-3 | C63: 11718 | D63: (-) RDAS EFET - VENC + 60 D - IP - APLIC REC LIVRE | E63: -1759.38 | G63: 2254.46 | H63: 1737.21 | I63: -1242.13
A64: 4 | B64: 1.6.3.15.00-2 | D64: FINANCIAMENTOS RURAIS - APLICAÇÕES COM RECURSOS DIRECIONADOS À VISTA | E64: 4601566.09 | G64: 748745.8 | H64: 2545425.03 | I64: 2804886.86
A65: 5 | B65: 1.6.3.15.10-5 | D65: CUSTEIO - PECUÁRIA | E65: 966318.82 | G65: 581552.37 | H65: 1382159.78 | I65: 165711.41
A66: 6 | B66: 1.6.3.15.10.0001-6 | C66: 11739 | D66: CUSTEIO - PECUÁRIA - REC. DIREC. À VISTA | E66: 993281.01 | G66: 525596.48 | H66: 1347489.25 | I66: 171388.24
A67: 6 | B67: 1.6.3.15.10.0002-3 | C67: 11740 | D67: (-) RDAS APROP - CP - REC. DIREC. À VISTA | E67: -26962.19 | G67: 55955.89 | H67: 34670.53 | I67: -5676.83
A68: 5 | B68: 1.6.3.15.20-8 | D68: INVESTIMENTO - PECUÁRIA | E68: 3635247.27 | G68: 167193.43 | H68: 1163265.25 | I68: 2639175.45
A69: 6 | B69: 1.6.3.15.20.0001-5 | C69: 11747 | D69: INVESTIMENTO - PECUÁRIA - REC. DIREC. À VISTA | E69: 3916422.85 | G69: 13872.43 | H69: 1159607.87 | I69: 2770687.41
A70: 6 | B70: 1.6.3.15.20.0002-2 | C70: 11748 | D70: (-) RDAS APROP - IP - REC. DIREC. À VISTA | E70: -280161.88 | G70: 151868.61 | H70: 0 | I70: -128293.27
A71: 6 | B71: 1.6.3.15.20.0003-9 | C71: 11749 | D71: (-) JUROS MORA APROP - IP - REC. DIREC. À VISTA | E71: -1013.7 | G71: 1452.39 | H71: 3657.38 | I71: -3218.69
A72: 4 | B72: 1.6.3.25.00-9 | D72: FINANCIAMENTOS RURAIS - APLICAÇÕES COM RECURSOS DIRECIONADOS DA POUPANÇA | E72: 596224.35 | G72: 1885526.88 | H72: 1370274.95 | I72: 1111476.28
A73: 5 | B73: 1.6.3.25.10-2 | D73: CUSTEIO - PECUÁRIA | E73: 321039.95 | G73: 421842.04 | H73: 359815.83 | I73: 383066.16
A74: 6 | B74: 1.6.3.25.10.0001-9 | C74: 11771 | D74: CUSTEIO - PECUÁRIA - POUPANÇA RURAL | E74: 326066.81 | G74: 402537.57 | H74: 332415.85 | I74: 396188.53
A75: 6 | B75: 1.6.3.25.10.0002-6 | C75: 11772 | D75: (-) RDAS APROP - CP - POUPANÇA RURAL | E75: -5026.86 | G75: 16243.79 | H75: 24339.3 | I75: -13122.37
A76: 5 | B76: 1.6.3.25.20-5 | D76: INVESTIMENTO - PECUÁRIA | E76: 275184.4 | G76: 1463684.84 | H76: 1010459.12 | I76: 728410.12
A77: 6 | B77: 1.6.3.25.20.0001-8 | C77: 11779 | D77: INVESTIMENTO - PECUÁRIA - POUPANÇA RURAL | E77: 322941.45 | G77: 1318922.15 | H77: 820931.8 | I77: 820931.8
A78: 6 | B78: 1.6.3.25.20.0002-5 | C78: 11780 | D78: (-) RDAS APROP - IP - POUPANÇA RURAL | E78: -47757.05 | G78: 144762.69 | H78: 189527.32 | I78: -92521.68
A79: 3 | B79: 1.6.9.00.00-8 | D79: (-) PROVISOES PARA OPERACOES DE CREDITO | E79: -11932353.61 | G79: 79833773.86 | H79: 83016261.09 | I79: -15114840.84
A80: 4 | B80: 1.6.9.20.00-2 | D80: (-) PROVISÃO PARA EMPRÉSTIMOS E DIREITOS CREDITÓRIOS DESCONTADOS | E80: -11328461.49 | G80: 76364037.3 | H80: 79767741.99 | I80: -14732166.18
A81: 6 | B81: 1.6.9.20.00.0001-9 | C81: 1945 | D81: (-) ADIANTAMENTOS A DEPOSITANTES | E81: -154541.2 | G81: 911250.83 | H81: 861534.35 | I81: -104824.72
A82: 6 | B82: 1.6.9.20.00.0002-6 | C82: 1946 | D82: (-) EMPRÉSTIMOS | E82: -10773304.74 | G82: 72922242.88 | H82: 76409815.54 | I82: -14260877.4
A83: 6 | B83: 1.6.9.20.00.0003-3 | C83: 1947 | D83: (-) CHEQUE ESPECIAL | E83: -87380.15 | G83: 535008.73 | H83: 515527.98 | I83: -67899.4
A84: 6 | B84: 1.6.9.20.00.0005-7 | C84: 1949 | D84: (-) TÍTULOS DESCONTADOS | E84: -95538.16 | G84: 515589.7 | H84: 492032.6 | I84: -71981.06
A85: 6 | B85: 1.6.9.20.00.0007-1 | C85: 1951 | D85: (-) CONTA GARANTIDA | E85: -217697.24 | G85: 1479945.16 | H85: 1488831.52 | I85: -226583.6
A86: 4 | B86: 1.6.9.30.00-9 | D86: (-) PROVISAO PARA FINANCIAMENTOS | E86: -181706.86 | G86: 1054277.15 | H86: 1055572.99 | I86: -183002.7
A87: 6 | B87: 1.6.9.30.00.0003-6 | C87: 1977 | D87: (-) FINANCIAMENTOS | E87: -181706.86 | G87: 1054277.15 | H87: 1055572.99 | I87: -183002.7
A88: 4 | B88: 1.6.9.40.00-6 | D88: (-) PROVISAO PARA FINANC. RURAIS E AGROINDUSTRIAIS | E88: -422185.26 | G88: 2415459.41 | H88: 2192946.11 | I88: -199671.96
A89: 6 | B89: 1.6.9.40.00.0026-6 | C89: 11868 | D89: (-) RECURSOS APLICAÇÕES LIVRES | E89: -167697.38 | G89: 825005.53 | H89: 699397.15 | I89: -42089
A90: 6 | B90: 1.6.9.40.00.0027-3 | C90: 11869 | D90: (-) RECURSOS DIRECIONADOS À VISTA | E90: -193938.23 | G90: 1157853.34 | H90: 1110174.89 | I90: -146259.78
A91: 6 | B91: 1.6.9.40.00.0028-0 | C91: 11870 | D91: (-) RECURSOS DIRECIONADOS DA POUPANÇA RURAL | E91: -60549.65 | G91: 432600.54 | H91: 383374.07 | I91: -11323.18
A92: 2 | B92: 1.8.0.00.00-9 | D92: OUTROS CREDITOS | E92: 3553939.9 | G92: 2432316252 | H92: 2432653547 | I92: 3216644.73
A93: 3 | B93: 1.8.1.00.00-2 | D93: AVAIS E FIANCAS HONRADOS | E93: 41290.04 | G93: 361957.93 | H93: 306109.63 | I93: 97138.34
A94: 4 | B94: 1.8.1.10.00-9 | D94: CREDITOS POR AVAIS E FIANCAS HONRADOS | E94: 41290.04 | G94: 361957.93 | H94: 306109.63 | I94: 97138.34
A95: 6 | B95: 1.8.1.10.00.0001-8 | C95: 11024 | D95: CRÉDITO POR AVAIS E FIANÇAS HONRADOS | E95: 41290.04 | G95: 361957.93 | H95: 306109.63 | I95: 97138.34
A96: 3 | B96: 1.8.3.00.00-8 | D96: RENDAS A RECEBER | E96: 598541.08 | G96: 2523556.44 | H96: 2423395.54 | I96: 698701.98
A97: 4 | B97: 1.8.3.70.00-7 | D97: SERVICOS PRESTADOS A RECEBER | E97: 20532.35 | G97: 893081.91 | H97: 876448.13 | I97: 37166.13
A98: 6 | B98: 1.8.3.70.00.0004-5 | C98: 11031 | D98: RENDAS CONVÊNIOS A RECEBER - TRIBUTOS FEDERAIS | E98: 1585 | G98: 10705.1 | H98: 10534.28 | I98: 1755.82
A99: 6 | B99: 1.8.3.70.00.0005-2 | C99: 11032 | D99: RENDAS CONVÊNIOS A RECEBER - TRIBUTOS ESTADUAIS | E99: 12854.99 | G99: 17793.73 | H99: 65 | I99: 30583.72
A100: 6 | B100: 1.8.3.70.00.0006-9 | C100: 11033 | D100: RENDAS CONVÊNIOS A RECEBER - TRIBUTOS MUNICIPAIS | E100: 128.15 | G100: 3688.68 | H100: 3659.47 | I100: 157.36
A101: 6 | B101: 1.8.3.70.00.0013-1 | C101: 11040 | D101: RENDAS CONVÊNIOS A RECEBER - FGTS | E101: 4984.92 | G101: 18444.57 | H101: 20472.21 | I101: 2957.28
A102: 6 | B102: 1.8.3.70.00.0015-5 | C102: 11042 | D102: RENDAS CONVÊNIOS A RECEBER - MULTAS DE TRÂNSITO | E102: 979.29 | G102: 751.26 | H102: 18.6 | I102: 1711.95
A103: 4 | B103: 1.8.3.90.00-1 | D103: OUTRAS RENDAS A RECEBER | E103: 578008.73 | G103: 1630474.53 | H103: 1546947.41 | I103: 661535.85
A104: 6 | B104: 1.8.3.90.00.0001-0 | C104: 11044 | D104: CENTRALIZAÇÃO FINANCEIRA | E104: 575602.88 | G104: 1046480 | H104: 962382.59 | I104: 659700.29
A105: 6 | B105: 1.8.3.90.00.0007-2 | C105: 11050 | D105: RENDAS CONVÊNIOS A RECEBER - INSS | E105: 2405.85 | G105: 6747.79 | H105: 7318.08 | I105: 1835.56
A106: 3 | B106: 1.8.8.00.00-3 | D106: DIVERSOS | E106: 2948744.79 | G106: 2429126812 | H106: 2429587307 | I106: 2488250.2
A107: 4 | B107: 1.8.8.03.00-0 | D107: ADIANTAMENTOS E ANTECIPACOES SALARIAIS | E107: 20463.27 | G107: 1227965.49 | H107: 1239223.5 | I107: 9205.26
A108: 6 | B108: 1.8.8.03.00.0004-0 | C108: 11073 | D108: ADIANTAMENTO DE FÉRIAS | E108: 20463.27 | G108: 248672.02 | H108: 259930.03 | I108: 9205.26
A109: 4 | B109: 1.8.8.05.00-8 | D109: ADIANTAMENTOS PARA PAGAMENTOS DE NOSSA CONTA | E109: 1020 | G109: 284150.7 | H109: 283510.7 | I109: 1660
A110: 6 | B110: 1.8.8.05.00.0001-3 | C110: 11078 | D110: ADIANTAMENTOS PARA DESPESAS DE VIAGEM | E110: 1020 | G110: 30084.48 | H110: 29444.48 | I110: 1660
A111: 4 | B111: 1.8.8.10.00-0 | D111: ADIANTAMENTOS POR CONTA DE IMOBILIZACOES | E111: 171700 | G111: 54760.14 | H111: 0 | I111: 226460.14
A112: 6 | B112: 1.8.8.10.00.0001-1 | C112: 11085 | D112: ADIANTAMENTOS POR CONTA DE IMOBILIZAÇÕES | E112: 171700 | G112: 54760.14 | H112: 0 | I112: 226460.14
A113: 4 | B113: 1.8.8.40.00-1 | D113: DEVEDORES POR DEPOSITOS EM GARANTIA | E113: 1952867.43 | G113: 33562.05 | H113: 0 | I113: 1986429.48
A114: 5 | B114: 1.8.8.40.05-6 | D114: PARA INTERPOSICAO DE RECURSOS FISCAIS LEI 9.703/98 | E114: 1952867.43 | G114: 23989.73 | H114: 0 | I114: 1976857.16
A115: 6 | B115: 1.8.8.40.05.0002-2 | C115: 11107 | D115: PIS - DEPÓSITO JUDICIAL | E115: 424014.67 | G115: 4844.62 | H115: 0 | I115: 428859.29
A116: 6 | B116: 1.8.8.40.05.0003-9 | C116: 11108 | D116: COFINS - DEPÓSITO JUDICIAL | E116: 1528852.76 | G116: 19145.11 | H116: 0 | I116: 1547997.87
A117: 5 | B117: 1.8.8.40.20-7 | D117: PARA INTERPOSICAO DE RECURSOS TRABALHISTAS | E117: 0 | G117: 9572.32 | H117: 0 | I117: 9572.32
A118: 6 | B118: 1.8.8.40.20.0001-8 | C118: 11122 | D118: PARA INTERPOSIÇÃO DE RECURSOS TRABALHISTAS | E118: 0 | G118: 9572.32 | H118: 0 | I118: 9572.32
A119: 4 | B119: 1.8.8.80.00-9 | D119: TÍTULOS E CRÉDITOS A RECEBER | E119: 778791.47 | G119: 1995378.03 | H119: 2531965.92 | I119: 242203.58
A120: 5 | B120: 1.8.8.80.20-5 | D120: SEM CARACTERÍSTICA DE CONCESSÃO DE CRÉDITO | E120: 778791.47 | G120: 1995378.03 | H120: 2531965.92 | I120: 242203.58
A121: 6 | B121: 1.8.8.80.20.0011-3 | C121: 11199 | D121: VALORES A RECEBER - TARIFAS | E121: 226791.47 | G121: 1905378.03 | H121: 1889965.92 | I121: 242203.58
A122: 4 | B122: 1.8.8.92.00-4 | D122: DEVEDORES DIVERSOS - PAIS | E122: 23902.62 | G122: 2425519786 | H122: 2425521397 | I122: 22291.74
A123: 6 | B123: 1.8.8.92.00.0005-7 | C123: 11205 | D123: DIFERENÇA DE CAIXA | E123: 288.08 | G123: 62221.07 | H123: 61820.18 | I123: 688.97
A124: 6 | B124: 1.8.8.92.00.0006-4 | C124: 11206 | D124: PENDÊNCIAS A REGULARIZAR | E124: 4356.89 | G124: 2795795 | H124: 2790683.68 | I124: 9468.21
A125: 6 | B125: 1.8.8.92.00.0016-7 | C125: 11216 | D125: PENDÊNCIAS A REGULARIZAR - BANCOOB | E125: 19223.23 | G125: 959148.13 | H125: 966236.8 | I125: 12134.56
A126: 3 | B126: 1.8.9.00.00-6 | D126: (-) PROVISOES PARA OUTROS CREDITOS | E126: -34636.01 | G126: 303925.11 | H126: 336734.89 | I126: -67445.79
A127: 4 | B127: 1.8.9.99.00-0 | D127: (-) PROVISÃO P/OUTROS CRÉDITOS LIQUIDAÇÃO DUVIDOSA | E127: -34636.01 | G127: 303925.11 | H127: 336734.89 | I127: -67445.79
A128: 5 | B128: 1.8.9.99.10-3 | D128: COM CARACTERÍSTICAS DE CONCESSÃO DE CRÉDITO | E128: -34636.01 | G128: 303925.11 | H128: 336734.89 | I128: -67445.79
A129: 6 | B129: 1.8.9.99.10.0002-3 | C129: 11302 | D129: (-) AVAIS E FIANÇAS HONRADOS | E129: -34636.01 | G129: 303925.11 | H129: 336734.89 | I129: -67445.79
A130: 2 | B130: 1.9.0.00.00-8 | D130: OUTROS VALORES E BENS | E130: 4767451.22 | G130: 1783105.8 | H130: 580634.54 | I130: 5969922.48
A131: 3 | B131: 1.9.8.00.00-2 | D131: OUTROS VALORES E BENS | E131: 4725213.84 | G131: 1297622.59 | H131: 240402.75 | I131: 5782433.68
A132: 4 | B132: 1.9.8.10.00-9 | D132: BENS NAO DE USO PROPRIO | E132: 4725213.84 | G132: 1297622.59 | H132: 240402.75 | I132: 5782433.68
A133: 5 | B133: 1.9.8.10.10-2 | D133: IMOVEIS | E133: 4027663.57 | G133: 1161678.18 | H133: 41902.75 | I133: 5147439
A134: 6 | B134: 1.9.8.10.10.0001-7 | C134: 11305 | D134: IMÓVEIS | E134: 4096663.57 | G134: 1161678.18 | H134: 41902.75 | I134: 5216439
A135: 6 | B135: 1.9.8.10.10.0002-4 | C135: 11336 | D135: (-) IMÓVEIS | E135: -69000 | G135: 0 | H135: 0 | I135: -69000
A136: 5 | B136: 1.9.8.10.30-8 | D136: VEICULOS E AFINS | E136: 92550.27 | G136: 65944.41 | H136: 38500 | I136: 119994.68
A137: 6 | B137: 1.9.8.10.30.0001-5 | C137: 11306 | D137: VEÍCULOS E AFINS | E137: 92550.27 | G137: 65944.41 | H137: 38500 | I137: 119994.68
A138: 5 | B138: 1.9.8.10.50-4 | D138: BENS EM REGIME ESPECIAL | E138: 515000 | G138: 0 | H138: 0 | I138: 515000
A139: 6 | B139: 1.9.8.10.50.0001-3 | C139: 11308 | D139: BENS EM REGIME ESPECIAL | E139: 584000 | G139: 0 | H139: 0 | I139: 584000
A140: 6 | B140: 1.9.8.10.50.0003-7 | C140: 11370 | D140: (-) BENS EM REGIME ESPECIAL | E140: -69000 | G140: 0 | H140: 0 | I140: -69000
A141: 3 | B141: 1.9.9.00.00-5 | D141: DESPESAS ANTECIPADAS | E141: 42237.38 | G141: 485483.21 | H141: 340231.79 | I141: 187488.8
A142: 4 | B142: 1.9.9.10.00-2 | D142: DESPESAS ANTECIPADAS | E142: 42237.38 | G142: 485483.21 | H142: 340231.79 | I142: 187488.8
A143: 6 | B143: 1.9.9.10.00.0001-7 | C143: 11315 | D143: PRÊMIOS DE SEGUROS | E143: 23979 | G143: 128207.53 | H143: 56962.22 | I143: 95224.31
A144: 6 | B144: 1.9.9.10.00.0006-2 | C144: 11320 | D144: CONTRIBUIÇÃO SINDICAL PATRONAL | E144: 0 | G144: 21801.72 | H144: 10900.86 | I144: 10900.86
A145: 6 | B145: 1.9.9.10.00.9999-4 | C145: 11326 | D145: OUTROS | E145: 18258.38 | G145: 127788.96 | H145: 64683.71 | I145: 81363.63
A146: 1 | B146: 2.0.0.00.00-4 | D146: PERMANENTE | E146: 11137040.4 | G146: 2515000.67 | H146: 268892.49 | I146: 13383148.58
A147: 2 | B147: 2.1.0.00.00-3 | D147: INVESTIMENTOS | E147: 3824654.05 | G147: 250453.87 | H147: 0 | I147: 4075107.92
A148: 3 | B148: 2.1.5.00.00-8 | D148: ACOES E COTAS | E148: 3824654.05 | G148: 250453.87 | H148: 0 | I148: 4075107.92
A149: 4 | B149: 2.1.5.30.00-9 | D149: PARTICIPAÇÕES DE COOPERATIVAS | E149: 3824654.05 | G149: 250453.87 | H149: 0 | I149: 4075107.92
A150: 5 | B150: 2.1.5.30.05-4 | D150: PARTICIPAÇÃO EM COOPERATIVA CENTRAL DE CRÉDITO | E150: 3750587.5 | G150: 250453.87 | H150: 0 | I150: 4001041.37
A151: 6 | B151: 2.1.5.30.05.0001-9 | C151: 235 | D151: PARTICIPAÇÕES EM COOPERATIVA CENTRAL DE CRÉDITO | E151: 3750587.5 | G151: 250453.87 | H151: 0 | I151: 4001041.37
A152: 5 | B152: 2.1.5.30.10-2 | D152: PARTIC.EM INST.FINAC.CONTROLADA POR COOP. CRÉDITO | E152: 74066.55 | G152: 0 | H152: 0 | I152: 74066.55
A153: 6 | B153: 2.1.5.30.10.0001-3 | C153: 236 | D153: PARTICIPAÇÕES INST FINANC CONTROLADA COOP CRÉDITO | E153: 74066.55 | G153: 0 | H153: 0 | I153: 74066.55
A154: 2 | B154: 2.2.0.00.00-2 | D154: IMOBILIZADO DE USO | E154: 7312386.35 | G154: 2264546.8 | H154: 268892.49 | I154: 9308040.66
A155: 3 | B155: 2.2.2.00.00-8 | D155: IMOBILIZACOES EM CURSO | E155: 5535725.57 | G155: 2021682.83 | H155: 0 | I155: 7557408.4
A156: 4 | B156: 2.2.2.10.00-5 | D156: IMOBILIZACOES EM CURSO | E156: 5535725.57 | G156: 2021682.83 | H156: 0 | I156: 7557408.4
A157: 5 | B157: 2.2.2.10.10-8 | D157: IMOVEIS | E157: 5535725.57 | G157: 2021682.83 | H157: 0 | I157: 7557408.4
A158: 6 | B158: 2.2.2.10.10.0001-7 | C158: 281 | D158: IMÓVEIS | E158: 5535725.57 | G158: 2021682.83 | H158: 0 | I158: 7557408.4
A159: 3 | B159: 2.2.3.00.00-1 | D159: IMOVEIS DE USO | E159: 137771.1 | G159: 0 | H159: 350.52 | I159: 137420.58
A160: 4 | B160: 2.2.3.10.00-8 | D160: IMOVEIS DE USO | E160: 1364501.2 | G160: 0 | H160: 0 | I160: 1364501.2
A161: 5 | B161: 2.2.3.10.10-1 | D161: TERRENOS | E161: 130000 | G161: 0 | H161: 0 | I161: 130000
A162: 6 | B162: 2.2.3.10.10.0001-6 | C162: 284 | D162: TERRENOS | E162: 130000 | G162: 0 | H162: 0 | I162: 130000
A163: 5 | B163: 2.2.3.10.20-4 | D163: EDIFICACOES | E163: 1234501.2 | G163: 0 | H163: 0 | I163: 1234501.2
A164: 6 | B164: 2.2.3.10.20.0001-5 | C164: 286 | D164: EDIFICAÇÕES | E164: 1234501.2 | G164: 0 | H164: 0 | I164: 1234501.2
A165: 4 | B165: 2.2.3.99.00-5 | D165: (-) DEPRECIACAO ACUMUL DE IMOV DE USO-EDIFICACOES | E165: -1226730.1 | G165: 0 | H165: 350.52 | I165: -1227080.62
A166: 6 | B166: 2.2.3.99.00.0001-4 | C166: 288 | D166: (-) DEPR. ACUMULADA DE IMÓVEIS DE USO-EDIFICAÇÕES | E166: -1226730.1 | G166: 0 | H166: 350.52 | I166: -1227080.62
A167: 3 | B167: 2.2.4.00.00-4 | D167: INSTALACOES, MOVEIS E EQUIPAMENTOS DE USO | E167: 1053501.54 | G167: 22562.82 | H167: 111188.74 | I167: 964875.62
A168: 4 | B168: 2.2.4.10.00-1 | D168: INSTALACOES | E168: 954105.89 | G168: 0 | H168: 0 | I168: 954105.89
A169: 6 | B169: 2.2.4.10.00.0001-6 | C169: 289 | D169: INSTALAÇÕES | E169: 954105.89 | G169: 0 | H169: 0 | I169: 954105.89
A170: 4 | B170: 2.2.4.20.00-8 | D170: MOVEIS E EQUIPAMENTOS DE USO | E170: 1106755.18 | G170: 22562.82 | H170: 0 | I170: 1129318
A171: 6 | B171: 2.2.4.20.00.0001-9 | C171: 290 | D171: APARELHOS DE REFRIGERAÇÃO | E171: 143157.71 | G171: 0 | H171: 0 | I171: 143157.71
A172: 6 | B172: 2.2.4.20.00.0002-6 | C172: 291 | D172: MÁQUINAS | E172: 135238.68 | G172: 12095.63 | H172: 0 | I172: 147334.31
A173: 6 | B173: 2.2.4.20.00.0003-3 | C173: 292 | D173: MOBILIÁRIOS | E173: 828358.79 | G173: 10467.19 | H173: 0 | I173: 838825.98
A174: 4 | B174: 2.2.4.96.00-1 | D174: (-) DEPRECIACAO ACUMULADA DE INSTALACOES | E174: -549411.44 | G174: 0 | H174: 59032.59 | I174: -608444.03
A175: 6 | B175: 2.2.4.96.00.0001-2 | C175: 294 | D175: (-) DEPRECIAÇÃO ACUMULADA DE INSTALAÇÕES | E175: -549411.44 | G175: 0 | H175: 59032.59 | I175: -608444.03
A176: 4 | B176: 2.2.4.99.00-8 | D176: (-) DEPRECIACAO ACUMUL DE MOVEIS E EQUIPAM DE USO | E176: -457948.09 | G176: 0 | H176: 52156.15 | I176: -510104.24
A177: 6 | B177: 2.2.4.99.00.0001-3 | C177: 295 | D177: (-) DEPREC. ACUMUL.DE APARELHOS REFRIGERAÇÃO | E177: -63826.39 | G177: 0 | H177: 6187.24 | I177: -70013.63
A178: 6 | B178: 2.2.4.99.00.0002-0 | C178: 296 | D178: (-) DEPREC. ACUMULADA DE MÁQUINAS | E178: -68337.57 | G178: 0 | H178: 6147.63 | I178: -74485.2
A179: 6 | B179: 2.2.4.99.00.0003-7 | C179: 297 | D179: (-) DEPREC. ACUMULADA DE MOBILIÁRIOS | E179: -325784.13 | G179: 0 | H179: 39821.28 | I179: -365605.41
A180: 3 | B180: 2.2.9.00.00-9 | D180: OUTROS | E180: 585388.14 | G180: 220301.15 | H180: 157353.23 | I180: 648336.06
A181: 4 | B181: 2.2.9.10.00-6 | D181: SISTEMA DE COMUNICACAO | E181: 25206.7 | G181: 0 | H181: 0 | I181: 25206.7
A182: 5 | B182: 2.2.9.10.10-9 | D182: EQUIPAMENTOS | E182: 25206.7 | G182: 0 | H182: 0 | I182: 25206.7
A183: 6 | B183: 2.2.9.10.10.0001-0 | C183: 299 | D183: EQUIPAMENTOS | E183: 25206.7 | G183: 0 | H183: 0 | I183: 25206.7
A184: 4 | B184: 2.2.9.30.00-0 | D184: SISTEMA DE PROCESSAMENTO DE DADOS | E184: 869220.47 | G184: 42952.28 | H184: 0 | I184: 912172.75
A185: 6 | B185: 2.2.9.30.00.0001-7 | C185: 2101 | D185: EQUIPAMENTOS | E185: 869220.47 | G185: 42952.28 | H185: 0 | I185: 912172.75
A186: 4 | B186: 2.2.9.50.00-4 | D186: SISTEMA DE SEGURANCA | E186: 234199.44 | G186: 172.85 | H186: 0 | I186: 234372.29
A187: 6 | B187: 2.2.9.50.00.0001-3 | C187: 2103 | D187: ALARME | E187: 50841.37 | G187: 0 | H187: 0 | I187: 50841.37
A188: 6 | B188: 2.2.9.50.00.0002-0 | C188: 2104 | D188: CABINES DE SEGURANÇA | E188: 6200 | G188: 0 | H188: 0 | I188: 6200
A189: 6 | B189: 2.2.9.50.00.0003-7 | C189: 2105 | D189: ARMAS E EQUIPAMENTOS | E189: 80999.89 | G189: 0 | H189: 0 | I189: 80999.89
A190: 6 | B190: 2.2.9.50.00.0004-4 | C190: 2106 | D190: SISTEMA DE VIGILANCIA | E190: 66960.18 | G190: 172.85 | H190: 0 | I190: 67133.03
A191: 6 | B191: 2.2.9.50.00.9999-0 | C191: 2107 | D191: OUTROS SISTEMAS DE SEGURANÇA | E191: 29198 | G191: 0 | H191: 0 | I191: 29198
A192: 4 | B192: 2.2.9.70.00-8 | D192: SISTEMA DE TRANSPORTE | E192: 244920.46 | G192: 171358.26 | H192: 75817.76 | I192: 340460.96
A193: 6 | B193: 2.2.9.70.00.0001-9 | C193: 2108 | D193: VEÍCULOS | E193: 244920.46 | G193: 171358.26 | H193: 75817.76 | I193: 340460.96
A194: 4 | B194: 2.2.9.99.00-3 | D194: (-) DEPRECIACAO ACUMUL OUTRAS IMOBILIZACOES DE USO | E194: -788158.93 | G194: 5817.76 | H194: 81535.47 | I194: -863876.64
A195: 5 | B195: 2.2.9.99.10-6 | D195: (-) SISTEMA DE COMUNICACAO - EQUIPAMENTOS | E195: -18100.8 | G195: 0 | H195: 805.5 | I195: -18906.3
A196: 6 | B196: 2.2.9.99.10.0001-7 | C196: 2110 | D196: (-) DEPREC.ACUMUL.SISTEMA COMUNICAÇÃO-EQUIPAMENTOS | E196: -18100.8 | G196: 0 | H196: 805.5 | I196: -18906.3
A197: 5 | B197: 2.2.9.99.30-2 | D197: (-) SISTEMA DE PROCESSAMENTO DE DADOS | E197: -596370.03 | G197: 0 | H197: 43602.1 | I197: -639972.13
A198: 6 | B198: 2.2.9.99.30.0001-5 | C198: 2111 | D198: (-) SISTEMA DE PROCESSAMENTO DE DADOS | E198: -596370.03 | G198: 0 | H198: 43602.1 | I198: -639972.13
A199: 5 | B199: 2.2.9.99.50-8 | D199: (-) SISTEMA DE SEGURANCA | E199: -73919.19 | G199: 0 | H199: 10302.24 | I199: -84221.43
A200: 6 | B200: 2.2.9.99.50.0001-3 | C200: 2114 | D200: (-) DEPRECIAÇÃO ACUMULADA - ALARME | E200: -40762.93 | G200: 0 | H200: 1443.6 | I200: -42206.53
A201: 6 | B201: 2.2.9.99.50.0002-0 | C201: 2115 | D201: (-) DEPRECIAÇÃO ACUMULADA - CABINES DE SEGURANÇA | E201: -6200 | G201: 0 | H201: 0 | I201: -6200
... 714 more rows

Sheet 2º SEM 2018 (hidden)
D1: Sisbr 2.0 - Plataforma Contábill
H2: Data de Emissão:
D3: Relatório Balancete Analítico
H4: 2019-08-29T20:09:14
A6: 0300 - SICOOB CONFEDERAÇÃO | H6: Hora de Emissão:
H7: 43706.83975
A8: Instituição resp.: | C8: 1003 - SICOOB CENTRAL CREDIMINAS | E8: Período: | G8: 01/07/2018 a 31/12/2018
A9: Instituição: | C9: 3175 - SICOOB CREDISETE | E9: Tipo de Saldo: | G9: Somente Saldos Diferentes de Zero
A10: PA: | C10: TODOS... | E10: Apresentação do Saldo: | G10: Saldo Contábil - Desconsiderar Apuração de Resultado
A11: Grupo Contábil: | C11: Ativo, Compensação, Passivo, Patrimônio Líquido, Resultado
A12: N | B12: Conta | C12: Cód.Reduzido | D12: Descrição da Conta | E12: Saldo Anterior | G12: Débito | H12: Crédito | I12: Saldo Atual
A13: 1 | B13: 1.0.0.00.00-7 | D13: CIRCULANTE E REALIZAVEL A LONGO PRAZO | E13: 199795938.3 | G13: 5325738878 | H13: 5307899808 | I13: 217635008.8
A14: 2 | B14: 1.1.0.00.00-6 | D14: DISPONIBILIDADES | E14: 2801209.73 | G14: 2495413272 | H14: 2494430240 | I14: 3784241.86
A15: 3 | B15: 1.1.1.00.00-9 | D15: CAIXA | E15: 2801209.73 | G15: 1040414061 | H15: 1039431029 | I15: 3784241.86
A16: 4 | B16: 1.1.1.10.00-6 | D16: CAIXA | E16: 2801209.73 | G16: 1040414061 | H16: 1039431029 | I16: 3784241.86
A17: 6 | B17: 1.1.1.10.00.0001-9 | C17: 11 | D17: CAIXA | E17: 2556439.73 | G17: 981239421.8 | H17: 981488713.7 | I17: 2307147.86
A18: 6 | B18: 1.1.1.10.00.0002-6 | C18: 12 | D18: NUMERÁRIO EM TRÂNSITO | E18: 244770 | G18: 59174639 | H18: 57942315 | I18: 1477094
A19: 2 | B19: 1.4.0.00.00-3 | D19: RELACOES INTERFINANCEIRAS | E19: 127489104.3 | G19: 120325982.4 | H19: 106719328.6 | I19: 141095758.1
A20: 3 | B20: 1.4.5.00.00-8 | D20: CENTRALIZAÇÃO FINANCEIRA - COOPERATIVAS | E20: 127489104.3 | G20: 120325982.4 | H20: 106719328.6 | I20: 141095758.1
A21: 4 | B21: 1.4.5.10.00-5 | D21: DEPÓSITOS NAS COOPERATIVAS CENTRAIS | E21: 127489104.3 | G21: 120325982.4 | H21: 106719328.6 | I21: 141095758.1
A22: 6 | B22: 1.4.5.10.00.0001-6 | C22: 1620 | D22: CENTRALIZAÇÃO FINANCEIRA - COOPERATIVAS | E22: 127489104.3 | G22: 120325982.4 | H22: 106719328.6 | I22: 141095758.1
A23: 2 | B23: 1.6.0.00.00-1 | D23: OPERACOES DE CREDITO | E23: 60319057 | G23: 192115924.9 | H23: 189147377.6 | I23: 63287604.32
A24: 3 | B24: 1.6.1.00.00-4 | D24: EMPRÉSTIMOS E DIREITOS CREDITÓRIOS DESCONTADOS | E24: 62899392.89 | G24: 132773453.1 | H24: 134002061.6 | I24: 61670784.35
A25: 4 | B25: 1.6.1.10.00-1 | D25: ADIANTAMENTOS A DEPOSITANTES | E25: 348205.83 | G25: 15430889.63 | H25: 15564070.61 | I25: 215024.85
A26: 6 | B26: 1.6.1.10.00.0001-4 | C26: 1626 | D26: ADIANTAMENTOS A DEPOSITANTES | E26: 420348.4 | G26: 15302564.65 | H26: 15489725.21 | I26: 233187.84
A27: 6 | B27: 1.6.1.10.00.0002-1 | C27: 1627 | D27: (-) RENDAS APROPRIAR ADIANTAMENTOS A DEPOSITANTES | E27: -72142.57 | G27: 128324.98 | H27: 74345.4 | I27: -18162.99
A28: 4 | B28: 1.6.1.20.00-8 | D28: EMPRESTIMOS | E28: 57917809.14 | G28: 101382382.2 | H28: 102209858.8 | I28: 57090332.5
A29: 6 | B29: 1.6.1.20.00.0001-7 | C29: 1628 | D29: EMPRÉSTIMOS | E29: 62654538.83 | G29: 26394051.44 | H29: 32701330.19 | I29: 56347260.08
A30: 6 | B30: 1.6.1.20.00.0002-4 | C30: 1629 | D30: (-) RENDAS APROPRIAR - EMPRÉSTIMOS | E30: -12571448.39 | G30: 6943186.86 | H30: 5356965.59 | I30: -10985227.12
A31: 6 | B31: 1.6.1.20.00.0003-1 | C31: 1630 | D31: CHEQUE ESPECIAL | E31: 1274345.41 | G31: 13328424.61 | H31: 13538488.24 | I31: 1064281.78
A32: 6 | B32: 1.6.1.20.00.0004-8 | C32: 1631 | D32: (-) RENDAS APROPRIAR - CHEQUE ESPECIAL | E32: 0 | G32: 7739.63 | H32: 11878.61 | I32: -4138.98
A33: 6 | B33: 1.6.1.20.00.0005-5 | C33: 1632 | D33: (-) JUROS MORA APROPRIAR | E33: -482313.21 | G33: 664477.85 | H33: 638599.66 | I33: -456435.02
A34: 6 | B34: 1.6.1.20.00.0006-2 | C34: 1633 | D34: CONTA GARANTIDA | E34: 3998417.83 | G34: 46763800.61 | H34: 48002176.12 | I34: 2760042.32
A35: 6 | B35: 1.6.1.20.00.0007-9 | C35: 1634 | D35: (-) RENDAS APROPRIAR - CONTA GARANTIDA | E35: 0 | G35: 21812.21 | H35: 33022.61 | I35: -11210.4
A36: 6 | B36: 1.6.1.20.00.0009-3 | C36: 1636 | D36: (-) RDS EFET VENC + 60 - EMPRÉSTIMOS | E36: -747864.26 | G36: 814599.29 | H36: 524036.78 | I36: -457301.75
A37: 6 | B37: 1.6.1.20.00.0018-9 | C37: 1645 | D37: CRÉDITO PESSOAL | E37: 0 | G37: 629270.96 | H37: 99302.43 | I37: 529968.53
A38: 6 | B38: 1.6.1.20.00.0019-6 | C38: 1646 | D38: (-) RENDAS APROPRIAR - CRÉDITO PESSOAL | E38: 0 | G38: 42267.5 | H38: 161162.9 | I38: -118895.4
A39: 6 | B39: 1.6.1.20.00.0031-6 | C39: 11328 | D39: OPERAÇÕES RENEGOCIADAS | E39: 4028243.85 | G39: 5568923.99 | H39: 386872.43 | I39: 9210295.41
A40: 6 | B40: 1.6.1.20.00.0032-3 | C40: 11329 | D40: (-) RENDAS A APROPRIAR - OPERAÇÕES RENEGOCIADAS | E40: -210475.34 | G40: 180699.71 | H40: 614601.97 | I40: -644377.6
A41: 6 | B41: 1.6.1.20.00.0033-0 | C41: 11330 | D41: (-) JUROS DE MORA A APROPRIAR | E41: -5099.95 | G41: 2894.77 | H41: 46519.52 | I41: -48724.7
A42: 6 | B42: 1.6.1.20.00.0034-7 | C42: 11331 | D42: (-) RENDAS A EFET. EMPRÉSTIMOS VENC. MAIS 60 DIAS | E42: -13530.62 | G42: 476.08 | H42: 49939.37 | I42: -62993.91
A43: 6 | B43: 1.6.1.20.00.0036-1 | C43: 11892 | D43: (-) GANHOS A AUFERIR | E43: -7005.01 | G43: 19756.64 | H43: 44962.37 | I43: -32210.74
A44: 4 | B44: 1.6.1.30.00-5 | D44: DIREITOS CREDITÓRIOS DESCONTADOS | E44: 4633377.92 | G44: 15960181.31 | H44: 16228132.23 | I44: 4365427
A45: 5 | B45: 1.6.1.30.10-8 | D45: TÍTULOS DE CRÉDITO | E45: 4633377.92 | G45: 15960181.31 | H45: 16228132.23 | I45: 4365427
A46: 6 | B46: 1.6.1.30.10.0001-9 | C46: 11407 | D46: TÍTULOS DESCONTADOS | E46: 783922.23 | G46: 3029725.46 | H46: 3279366.94 | I46: 534280.75
A47: 6 | B47: 1.6.1.30.10.0002-6 | C47: 11408 | D47: (-) RENDAS A APROPRIAR - TÍTULOS DESCONTADOS RPL | E47: -21934.71 | G47: 110567.36 | H47: 102035.86 | I47: -13403.21
A48: 6 | B48: 1.6.1.30.10.0009-5 | C48: 11415 | D48: CHEQUES DESCONTADOS | E48: 4018510.87 | G48: 12214282.42 | H48: 12230893.45 | I48: 4001899.84
A49: 6 | B49: 1.6.1.30.10.0010-5 | C49: 11416 | D49: (-) RENDAS A APROPRIAR - CHEQUES DESCONTADOS | E49: -137320.87 | G49: 588748.48 | H49: 583130.46 | I49: -131702.85
A50: 6 | B50: 1.6.1.30.10.0011-2 | C50: 11417 | D50: (-) JUROS DE MORA A APROPRIAR | E50: -9617.2 | G50: 12895.84 | H50: 28926.17 | I50: -25647.53
A51: 3 | B51: 1.6.2.00.00-7 | D51: FINANCIAMENTOS | E51: 6961138.51 | G51: 6878888.01 | H51: 4843242.8 | I51: 8996783.72
A52: 4 | B52: 1.6.2.10.00-4 | D52: FINANCIAMENTOS | E52: 6961138.51 | G52: 6878888.01 | H52: 4843242.8 | I52: 8996783.72
A53: 6 | B53: 1.6.2.10.00.0008-2 | C53: 1681 | D53: FINANCIAMENTOS | E53: 8590950.89 | G53: 5996870.74 | H53: 3543142.43 | I53: 11044679.2
A54: 6 | B54: 1.6.2.10.00.0009-9 | C54: 1682 | D54: (-) RENDAS A APROPRIAR - FINANCIAMENTOS | E54: -1616508.32 | G54: 863425.7 | H54: 1289307.54 | I54: -2042390.16
A55: 6 | B55: 1.6.2.10.00.0010-9 | C55: 1683 | D55: (-) JUROS DE MORA A APROPRIAR - FINANCIAMENTOS | E55: -7904.84 | G55: 11360.71 | H55: 7722.56 | I55: -4266.69
A56: 6 | B56: 1.6.2.10.00.0011-6 | C56: 1684 | D56: (-) RDAS A EFET. FIN VENC + 60 DIAS - FINANCIAMENT | E56: -5399.22 | G56: 7230.86 | H56: 3070.27 | I56: -1238.63
A57: 3 | B57: 1.6.3.00.00-0 | D57: FINANCIAMENTOS RURAIS E AGROINDUSTRIAIS | E57: 5573366.44 | G57: 5058479.95 | H57: 3903551.17 | I57: 6728295.22
A58: 4 | B58: 1.6.3.05.00-5 | D58: FINANCIAMENTOS RURAIS - APLICAÇÕES COM RECURSOS LIVRES | E58: 1657003.3 | G58: 631749.84 | H58: 1061887.18 | I58: 1226865.96
A59: 5 | B59: 1.6.3.05.10-8 | D59: CUSTEIO - PECUÁRIA | E59: 130845.15 | G59: 203710.87 | H59: 171173.45 | I59: 163382.57
A60: 6 | B60: 1.6.3.05.10.0001-3 | C60: 11707 | D60: CUSTEIO - PECUÁRIA - APLIC. REC. LIVRES | E60: 136711.15 | G60: 191244.5 | H60: 156069.87 | I60: 171885.78
A61: 6 | B61: 1.6.3.05.10.0002-0 | C61: 11708 | D61: (-) RDAS APROP - CP - APLIC. REC. LIVRES | E61: -5866 | G61: 12466.37 | H61: 15103.58 | I61: -8503.21
A62: 5 | B62: 1.6.3.05.20-1 | D62: INVESTIMENTO - PECUÁRIA | E62: 1526158.15 | G62: 428038.97 | H62: 890713.73 | I62: 1063483.39
A63: 6 | B63: 1.6.3.05.20.0001-2 | C63: 11715 | D63: INVESTIMENTO - PECUÁRIA - APLIC. REC. LIVRES | E63: 1753232.58 | G63: 291455.32 | H63: 829830.05 | I63: 1214857.85
A64: 6 | B64: 1.6.3.05.20.0002-9 | C64: 11716 | D64: (-) RDAS APROP - IP - APLIC. REC. LIVRES | E64: -223763.23 | G64: 129281.95 | H64: 56386.2 | I64: -150867.48
A65: 6 | B65: 1.6.3.05.20.0003-6 | C65: 11717 | D65: (-) JUROS MORA APROP - IP - APLIC. REC. LIVRES | E65: -2069.07 | G65: 5634.5 | H65: 3683.48 | I65: -118.05
A66: 6 | B66: 1.6.3.05.20.0004-3 | C66: 11718 | D66: (-) RDAS EFET - VENC + 60 D - IP - APLIC REC LIVRE | E66: -1242.13 | G66: 1667.2 | H66: 814 | I66: -388.93
A67: 4 | B67: 1.6.3.15.00-2 | D67: FINANCIAMENTOS RURAIS - APLICAÇÕES COM RECURSOS DIRECIONADOS À VISTA | E67: 2804886.86 | G67: 118813.78 | H67: 1866726.53 | I67: 1056974.11
A68: 5 | B68: 1.6.3.15.20-8 | D68: INVESTIMENTO - PECUÁRIA | E68: 2639175.45 | G68: 112643.3 | H68: 1694844.64 | I68: 1056974.11
A69: 6 | B69: 1.6.3.15.20.0001-5 | C69: 11747 | D69: INVESTIMENTO - PECUÁRIA - REC. DIREC. À VISTA | E69: 2770687.41 | G69: 7397.81 | H69: 1693298.03 | I69: 1084787.19
A70: 6 | B70: 1.6.3.15.20.0002-2 | C70: 11748 | D70: (-) RDAS APROP - IP - REC. DIREC. À VISTA | E70: -128293.27 | G70: 100480.19 | H70: 0 | I70: -27813.08
A71: 4 | B71: 1.6.3.25.00-9 | D71: FINANCIAMENTOS RURAIS - APLICAÇÕES COM RECURSOS DIRECIONADOS DA POUPANÇA | E71: 1111476.28 | G71: 3062329.35 | H71: 875301.54 | I71: 3298504.09
A72: 5 | B72: 1.6.3.25.20-5 | D72: INVESTIMENTO - PECUÁRIA | E72: 728410.12 | G72: 3049206.98 | H72: 479113.01 | I72: 3298504.09
A73: 6 | B73: 1.6.3.25.20.0001-8 | C73: 11779 | D73: INVESTIMENTO - PECUÁRIA - POUPANÇA RURAL | E73: 820931.8 | G73: 2979187.62 | H73: 0 | I73: 3800119.42
A74: 6 | B74: 1.6.3.25.20.0002-5 | C74: 11780 | D74: (-) RDAS APROP - IP - POUPANÇA RURAL | E74: -92521.68 | G74: 70019.36 | H74: 479113.01 | I74: -501615.33
A75: 4 | B75: 1.6.3.35.00-6 | D75: FINANCIAMENTOS RURAIS - APLICAÇÕES COM RECURSOS DIRECIONADOS DE LCA | E75: 0 | G75: 1245586.98 | H75: 99635.92 | I75: 1145951.06
A76: 5 | B76: 1.6.3.35.10-9 | D76: CUSTEIO - PECUÁRIA | E76: 0 | G76: 1245586.98 | H76: 99635.92 | I76: 1145951.06
A77: 6 | B77: 1.6.3.35.10.0001-2 | C77: 11803 | D77: CUSTEIO - PECUÁRIA - REC. DIREC. LCA | E77: 0 | G77: 1224643.38 | H77: 0 | I77: 1224643.38
A78: 6 | B78: 1.6.3.35.10.0002-9 | C78: 11804 | D78: (-) RDAS APROP - CP - REC. DIREC. LCA | E78: 0 | G78: 20943.6 | H78: 99635.92 | I78: -78692.32
A79: 3 | B79: 1.6.9.00.00-8 | D79: (-) PROVISOES PARA OPERACOES DE CREDITO | E79: -15114840.84 | G79: 47405103.86 | H79: 46398521.99 | I79: -14108258.97
A80: 4 | B80: 1.6.9.20.00-2 | D80: (-) PROVISÃO PARA EMPRÉSTIMOS E DIREITOS CREDITÓRIOS DESCONTADOS | E80: -14732166.18 | G80: 46235707.24 | H80: 45277464.12 | I80: -13773923.06
A81: 6 | B81: 1.6.9.20.00.0001-9 | C81: 1945 | D81: (-) ADIANTAMENTOS A DEPOSITANTES | E81: -104824.72 | G81: 370066.73 | H81: 305454.2 | I81: -40212.19
A82: 6 | B82: 1.6.9.20.00.0002-6 | C82: 1946 | D82: (-) EMPRÉSTIMOS | E82: -14260877.4 | G82: 44555578.02 | H82: 43625038.29 | I82: -13330337.67
A83: 6 | B83: 1.6.9.20.00.0003-3 | C83: 1947 | D83: (-) CHEQUE ESPECIAL | E83: -67899.4 | G83: 269267.26 | H83: 299952.31 | I83: -98584.45
A84: 6 | B84: 1.6.9.20.00.0005-7 | C84: 1949 | D84: (-) TÍTULOS DESCONTADOS | E84: -71981.06 | G84: 318911.96 | H84: 365054.94 | I84: -118124.04
A85: 6 | B85: 1.6.9.20.00.0007-1 | C85: 1951 | D85: (-) CONTA GARANTIDA | E85: -226583.6 | G85: 717856.27 | H85: 666922.89 | I85: -175650.22
A86: 6 | B86: 1.6.9.20.00.0011-2 | C86: 1955 | D86: (-) CRÉDITO PESSOAL | E86: 0 | G86: 4027 | H86: 15041.49 | I86: -11014.49
A87: 4 | B87: 1.6.9.30.00-9 | D87: (-) PROVISAO PARA FINANCIAMENTOS | E87: -183002.7 | G87: 520411.97 | H87: 513734.31 | I87: -176325.04
A88: 6 | B88: 1.6.9.30.00.0003-6 | C88: 1977 | D88: (-) FINANCIAMENTOS | E88: -183002.7 | G88: 520411.97 | H88: 513734.31 | I88: -176325.04
A89: 4 | B89: 1.6.9.40.00-6 | D89: (-) PROVISAO PARA FINANC. RURAIS E AGROINDUSTRIAIS | E89: -199671.96 | G89: 648984.65 | H89: 607323.56 | I89: -158010.87
A90: 6 | B90: 1.6.9.40.00.0026-6 | C90: 11868 | D90: (-) RECURSOS APLICAÇÕES LIVRES | E90: -42089 | G90: 144830.54 | H90: 131061.77 | I90: -28320.23
A91: 6 | B91: 1.6.9.40.00.0027-3 | C91: 11869 | D91: (-) RECURSOS DIRECIONADOS À VISTA | E91: -146259.78 | G91: 463058.71 | H91: 392217.47 | I91: -75418.54
A92: 6 | B92: 1.6.9.40.00.0028-0 | C92: 11870 | D92: (-) RECURSOS DIRECIONADOS DA POUPANÇA RURAL | E92: -11323.18 | G92: 41095.4 | H92: 69722.54 | I92: -39950.32
A93: 6 | B93: 1.6.9.40.00.0029-7 | C93: 11871 | D93: (-) RECURSOS DIRECIONADOS DE LCA | E93: 0 | G93: 0 | H93: 14321.78 | I93: -14321.78
A94: 2 | B94: 1.8.0.00.00-9 | D94: OUTROS CREDITOS | E94: 3216644.73 | G94: 2516471928 | H94: 2516439888 | I94: 3248685.06
A95: 3 | B95: 1.8.1.00.00-2 | D95: AVAIS E FIANCAS HONRADOS | E95: 97138.34 | G95: 210834.13 | H95: 224314.98 | I95: 83657.49
A96: 4 | B96: 1.8.1.10.00-9 | D96: CREDITOS POR AVAIS E FIANCAS HONRADOS | E96: 97138.34 | G96: 210834.13 | H96: 224314.98 | I96: 83657.49
A97: 6 | B97: 1.8.1.10.00.0001-8 | C97: 11024 | D97: CRÉDITO POR AVAIS E FIANÇAS HONRADOS | E97: 97138.34 | G97: 210834.13 | H97: 224314.98 | I97: 83657.49
A98: 3 | B98: 1.8.3.00.00-8 | D98: RENDAS A RECEBER | E98: 698701.98 | G98: 2618323.71 | H98: 2567271.01 | I98: 749754.68
A99: 4 | B99: 1.8.3.70.00-7 | D99: SERVICOS PRESTADOS A RECEBER | E99: 37166.13 | G99: 946810.07 | H99: 952273.73 | I99: 31702.47
A100: 6 | B100: 1.8.3.70.00.0004-5 | C100: 11031 | D100: RENDAS CONVÊNIOS A RECEBER - TRIBUTOS FEDERAIS | E100: 1755.82 | G100: 11462.35 | H100: 11390.85 | I100: 1827.32
A101: 6 | B101: 1.8.3.70.00.0005-2 | C101: 11032 | D101: RENDAS CONVÊNIOS A RECEBER - TRIBUTOS ESTADUAIS | E101: 30583.72 | G101: 7119.46 | H101: 13375.88 | I101: 24327.3
A102: 6 | B102: 1.8.3.70.00.0006-9 | C102: 11033 | D102: RENDAS CONVÊNIOS A RECEBER - TRIBUTOS MUNICIPAIS | E102: 157.36 | G102: 3132.46 | H102: 3177.11 | I102: 112.71
A103: 6 | B103: 1.8.3.70.00.0013-1 | C103: 11040 | D103: RENDAS CONVÊNIOS A RECEBER - FGTS | E103: 2957.28 | G103: 18005.37 | H103: 18074.91 | I103: 2887.74
A104: 6 | B104: 1.8.3.70.00.0015-5 | C104: 11042 | D104: RENDAS CONVÊNIOS A RECEBER - MULTAS DE TRÂNSITO | E104: 1711.95 | G104: 850.21 | H104: 14.76 | I104: 2547.4
A105: 4 | B105: 1.8.3.90.00-1 | D105: OUTRAS RENDAS A RECEBER | E105: 661535.85 | G105: 1671513.64 | H105: 1614997.28 | I105: 718052.21
A106: 6 | B106: 1.8.3.90.00.0001-0 | C106: 11044 | D106: CENTRALIZAÇÃO FINANCEIRA | E106: 659700.29 | G106: 1055283.85 | H106: 998624.02 | I106: 716360.12
A107: 6 | B107: 1.8.3.90.00.0007-2 | C107: 11050 | D107: RENDAS CONVÊNIOS A RECEBER - INSS | E107: 1835.56 | G107: 7279.25 | H107: 7422.72 | I107: 1692.09
A108: 3 | B108: 1.8.8.00.00-3 | D108: DIVERSOS | E108: 2488250.2 | G108: 2513364730 | H108: 2513376460 | I108: 2476520.42
A109: 4 | B109: 1.8.8.10.00-0 | D109: ADIANTAMENTOS POR CONTA DE IMOBILIZACOES | E109: 226460.14 | G109: 48971.33 | H109: 51221.33 | I109: 224210.14
A110: 6 | B110: 1.8.8.10.00.0001-1 | C110: 11085 | D110: ADIANTAMENTOS POR CONTA DE IMOBILIZAÇÕES | E110: 226460.14 | G110: 48971.33 | H110: 51221.33 | I110: 224210.14
A111: 4 | B111: 1.8.8.40.00-1 | D111: DEVEDORES POR DEPOSITOS EM GARANTIA | E111: 1986429.48 | G111: 25584.17 | H111: 0 | I111: 2012013.65
A112: 5 | B112: 1.8.8.40.05-6 | D112: PARA INTERPOSICAO DE RECURSOS FISCAIS LEI 9.703/98 | E112: 1976857.16 | G112: 22608.04 | H112: 0 | I112: 1999465.2
A113: 6 | B113: 1.8.8.40.05.0002-2 | C113: 11107 | D113: PIS - DEPÓSITO JUDICIAL | E113: 428859.29 | G113: 4593.53 | H113: 0 | I113: 433452.82
A114: 6 | B114: 1.8.8.40.05.0003-9 | C114: 11108 | D114: COFINS - DEPÓSITO JUDICIAL | E114: 1547997.87 | G114: 18014.51 | H114: 0 | I114: 1566012.38
A115: 5 | B115: 1.8.8.40.20-7 | D115: PARA INTERPOSICAO DE RECURSOS TRABALHISTAS | E115: 9572.32 | G115: 2976.13 | H115: 0 | I115: 12548.45
A116: 6 | B116: 1.8.8.40.20.0001-8 | C116: 11122 | D116: PARA INTERPOSIÇÃO DE RECURSOS TRABALHISTAS | E116: 9572.32 | G116: 2976.13 | H116: 0 | I116: 12548.45
A117: 4 | B117: 1.8.8.80.00-9 | D117: TÍTULOS E CRÉDITOS A RECEBER | E117: 242203.58 | G117: 1961955.5 | H117: 1984732.98 | I117: 219426.1
A118: 5 | B118: 1.8.8.80.20-5 | D118: SEM CARACTERÍSTICA DE CONCESSÃO DE CRÉDITO | E118: 242203.58 | G118: 1961955.5 | H118: 1984732.98 | I118: 219426.1
A119: 6 | B119: 1.8.8.80.20.0011-3 | C119: 11199 | D119: VALORES A RECEBER - TARIFAS | E119: 242203.58 | G119: 1961955.5 | H119: 1984732.98 | I119: 219426.1
A120: 4 | B120: 1.8.8.92.00-4 | D120: DEVEDORES DIVERSOS - PAIS | E120: 22291.74 | G120: 2509527583 | H120: 2509529004 | I120: 20870.53
A121: 6 | B121: 1.8.8.92.00.0005-7 | C121: 11205 | D121: DIFERENÇA DE CAIXA | E121: 688.97 | G121: 22364.41 | H121: 22195.83 | I121: 857.55
A122: 6 | B122: 1.8.8.92.00.0016-7 | C122: 11216 | D122: PENDÊNCIAS A REGULARIZAR - BANCOOB | E122: 12134.56 | G122: 1192440.17 | H122: 1184561.75 | I122: 20012.98
A123: 3 | B123: 1.8.9.00.00-6 | D123: (-) PROVISOES PARA OUTROS CREDITOS | E123: -67445.79 | G123: 278040.68 | H123: 271842.42 | I123: -61247.53
A124: 4 | B124: 1.8.9.99.00-0 | D124: (-) PROVISÃO P/OUTROS CRÉDITOS LIQUIDAÇÃO DUVIDOSA | E124: -67445.79 | G124: 278040.68 | H124: 271842.42 | I124: -61247.53
A125: 5 | B125: 1.8.9.99.10-3 | D125: COM CARACTERÍSTICAS DE CONCESSÃO DE CRÉDITO | E125: -67445.79 | G125: 278040.68 | H125: 271842.42 | I125: -61247.53
A126: 6 | B126: 1.8.9.99.10.0002-3 | C126: 11302 | D126: (-) AVAIS E FIANÇAS HONRADOS | E126: -67445.79 | G126: 270860.76 | H126: 264662.5 | I126: -61247.53
A127: 2 | B127: 1.9.0.00.00-8 | D127: OUTROS VALORES E BENS | E127: 5969922.48 | G127: 1411770.59 | H127: 1162973.68 | I127: 6218719.39
A128: 3 | B128: 1.9.8.00.00-2 | D128: OUTROS VALORES E BENS | E128: 5782433.68 | G128: 1117763.85 | H128: 761593.68 | I128: 6138603.85
A129: 4 | B129: 1.9.8.10.00-9 | D129: BENS NAO DE USO PROPRIO | E129: 5782433.68 | G129: 1117749.85 | H129: 761579.68 | I129: 6138603.85
A130: 5 | B130: 1.9.8.10.10-2 | D130: IMOVEIS | E130: 5147439 | G130: 1022603.85 | H130: 581439 | I130: 5588603.85
A131: 6 | B131: 1.9.8.10.10.0001-7 | C131: 11305 | D131: IMÓVEIS | E131: 5216439 | G131: 1022603.85 | H131: 433778.04 | I131: 5805264.81
A132: 6 | B132: 1.9.8.10.10.0002-4 | C132: 11336 | D132: (-) IMÓVEIS | E132: -69000 | G132: 0 | H132: 147660.96 | I132: -216660.96
A133: 5 | B133: 1.9.8.10.30-8 | D133: VEICULOS E AFINS | E133: 119994.68 | G133: 95146 | H133: 180140.68 | I133: 35000
A134: 6 | B134: 1.9.8.10.30.0001-5 | C134: 11306 | D134: VEÍCULOS E AFINS | E134: 119994.68 | G134: 95146 | H134: 179050.27 | I134: 36090.41
A135: 6 | B135: 1.9.8.10.30.0002-2 | C135: 11337 | D135: (-) VEÍCULOS E AFINS | E135: 0 | G135: 0 | H135: 1090.41 | I135: -1090.41
A136: 5 | B136: 1.9.8.10.50-4 | D136: BENS EM REGIME ESPECIAL | E136: 515000 | G136: 0 | H136: 0 | I136: 515000
A137: 6 | B137: 1.9.8.10.50.0001-3 | C137: 11308 | D137: BENS EM REGIME ESPECIAL | E137: 584000 | G137: 0 | H137: 0 | I137: 584000
A138: 6 | B138: 1.9.8.10.50.0003-7 | C138: 11370 | D138: (-) BENS EM REGIME ESPECIAL | E138: -69000 | G138: 0 | H138: 0 | I138: -69000
A139: 3 | B139: 1.9.9.00.00-5 | D139: DESPESAS ANTECIPADAS | E139: 187488.8 | G139: 294006.74 | H139: 401380 | I139: 80115.54
A140: 4 | B140: 1.9.9.10.00-2 | D140: DESPESAS ANTECIPADAS | E140: 187488.8 | G140: 294006.74 | H140: 401380 | I140: 80115.54
A141: 6 | B141: 1.9.9.10.00.0001-7 | C141: 11315 | D141: PRÊMIOS DE SEGUROS | E141: 95224.31 | G141: 34939.79 | H141: 67408.61 | I141: 62755.49
A142: 6 | B142: 1.9.9.10.00.9999-4 | C142: 11326 | D142: OUTROS | E142: 81363.63 | G142: 0 | H142: 64003.58 | I142: 17360.05
A143: 1 | B143: 2.0.0.00.00-4 | D143: PERMANENTE | E143: 13383148.58 | G143: 2746757.26 | H143: 314587.62 | I143: 15815318.22
A144: 2 | B144: 2.1.0.00.00-3 | D144: INVESTIMENTOS | E144: 4075107.92 | G144: 201355.08 | H144: 0 | I144: 4276463
A145: 3 | B145: 2.1.5.00.00-8 | D145: ACOES E COTAS | E145: 4075107.92 | G145: 201355.08 | H145: 0 | I145: 4276463
A146: 4 | B146: 2.1.5.30.00-9 | D146: PARTICIPAÇÕES DE COOPERATIVAS | E146: 4075107.92 | G146: 201355.08 | H146: 0 | I146: 4276463
A147: 5 | B147: 2.1.5.30.05-4 | D147: PARTICIPAÇÃO EM COOPERATIVA CENTRAL DE CRÉDITO | E147: 4001041.37 | G147: 201355.08 | H147: 0 | I147: 4202396.45
A148: 6 | B148: 2.1.5.30.05.0001-9 | C148: 235 | D148: PARTICIPAÇÕES EM COOPERATIVA CENTRAL DE CRÉDITO | E148: 4001041.37 | G148: 201355.08 | H148: 0 | I148: 4202396.45
A149: 5 | B149: 2.1.5.30.10-2 | D149: PARTIC.EM INST.FINAC.CONTROLADA POR COOP. CRÉDITO | E149: 74066.55 | G149: 0 | H149: 0 | I149: 74066.55
A150: 6 | B150: 2.1.5.30.10.0001-3 | C150: 236 | D150: PARTICIPAÇÕES INST FINANC CONTROLADA COOP CRÉDITO | E150: 74066.55 | G150: 0 | H150: 0 | I150: 74066.55
A151: 2 | B151: 2.2.0.00.00-2 | D151: IMOBILIZADO DE USO | E151: 9308040.66 | G151: 2545402.18 | H151: 314587.62 | I151: 11538855.22
A152: 3 | B152: 2.2.2.00.00-8 | D152: IMOBILIZACOES EM CURSO | E152: 7557408.4 | G152: 2220445.23 | H152: 548.9 | I152: 9777304.73
A153: 4 | B153: 2.2.2.10.00-5 | D153: IMOBILIZACOES EM CURSO | E153: 7557408.4 | G153: 2220445.23 | H153: 548.9 | I153: 9777304.73
A154: 5 | B154: 2.2.2.10.10-8 | D154: IMOVEIS | E154: 7557408.4 | G154: 2220445.23 | H154: 548.9 | I154: 9777304.73
A155: 6 | B155: 2.2.2.10.10.0001-7 | C155: 281 | D155: IMÓVEIS | E155: 7557408.4 | G155: 2220445.23 | H155: 548.9 | I155: 9777304.73
A156: 3 | B156: 2.2.3.00.00-1 | D156: IMOVEIS DE USO | E156: 137420.58 | G156: 0 | H156: 350.52 | I156: 137070.06
A157: 4 | B157: 2.2.3.10.00-8 | D157: IMOVEIS DE USO | E157: 1364501.2 | G157: 0 | H157: 0 | I157: 1364501.2
A158: 5 | B158: 2.2.3.10.10-1 | D158: TERRENOS | E158: 130000 | G158: 0 | H158: 0 | I158: 130000
A159: 6 | B159: 2.2.3.10.10.0001-6 | C159: 284 | D159: TERRENOS | E159: 130000 | G159: 0 | H159: 0 | I159: 130000
A160: 5 | B160: 2.2.3.10.20-4 | D160: EDIFICACOES | E160: 1234501.2 | G160: 0 | H160: 0 | I160: 1234501.2
A161: 6 | B161: 2.2.3.10.20.0001-5 | C161: 286 | D161: EDIFICAÇÕES | E161: 1234501.2 | G161: 0 | H161: 0 | I161: 1234501.2
A162: 4 | B162: 2.2.3.99.00-5 | D162: (-) DEPRECIACAO ACUMUL DE IMOV DE USO-EDIFICACOES | E162: -1227080.62 | G162: 0 | H162: 350.52 | I162: -1227431.14
A163: 6 | B163: 2.2.3.99.00.0001-4 | C163: 288 | D163: (-) DEPR. ACUMULADA DE IMÓVEIS DE USO-EDIFICAÇÕES | E163: -1227080.62 | G163: 0 | H163: 350.52 | I163: -1227431.14
A164: 3 | B164: 2.2.4.00.00-4 | D164: INSTALACOES, MOVEIS E EQUIPAMENTOS DE USO | E164: 964875.62 | G164: 57866.25 | H164: 112282.33 | I164: 910459.54
A165: 4 | B165: 2.2.4.10.00-1 | D165: INSTALACOES | E165: 954105.89 | G165: 13320 | H165: 4040.98 | I165: 963384.91
A166: 6 | B166: 2.2.4.10.00.0001-6 | C166: 289 | D166: INSTALAÇÕES | E166: 954105.89 | G166: 13320 | H166: 4040.98 | I166: 963384.91
A167: 4 | B167: 2.2.4.20.00-8 | D167: MOVEIS E EQUIPAMENTOS DE USO | E167: 1129318 | G167: 38360.95 | H167: 2301.82 | I167: 1165377.13
A168: 6 | B168: 2.2.4.20.00.0001-9 | C168: 290 | D168: APARELHOS DE REFRIGERAÇÃO | E168: 143157.71 | G168: 6450.26 | H168: 1644.35 | I168: 147963.62
A169: 6 | B169: 2.2.4.20.00.0002-6 | C169: 291 | D169: MÁQUINAS | E169: 147334.31 | G169: 1779 | H169: 252.29 | I169: 148861.02
A170: 6 | B170: 2.2.4.20.00.0003-3 | C170: 292 | D170: MOBILIÁRIOS | E170: 838825.98 | G170: 30131.69 | H170: 405.18 | I170: 868552.49
A171: 4 | B171: 2.2.4.96.00-1 | D171: (-) DEPRECIACAO ACUMULADA DE INSTALACOES | E171: -608444.03 | G171: 4040.98 | H171: 52319.95 | I171: -656723
A172: 6 | B172: 2.2.4.96.00.0001-2 | C172: 294 | D172: (-) DEPRECIAÇÃO ACUMULADA DE INSTALAÇÕES | E172: -608444.03 | G172: 4040.98 | H172: 52319.95 | I172: -656723
A173: 4 | B173: 2.2.4.99.00-8 | D173: (-) DEPRECIACAO ACUMUL DE MOVEIS E EQUIPAM DE USO | E173: -510104.24 | G173: 2144.32 | H173: 53619.58 | I173: -561579.5
A174: 6 | B174: 2.2.4.99.00.0001-3 | C174: 295 | D174: (-) DEPREC. ACUMUL.DE APARELHOS REFRIGERAÇÃO | E174: -70013.63 | G174: 1486.85 | H174: 6234.4 | I174: -74761.18
A175: 6 | B175: 2.2.4.99.00.0002-0 | C175: 296 | D175: (-) DEPREC. ACUMULADA DE MÁQUINAS | E175: -74485.2 | G175: 252.29 | H175: 6488 | I175: -80720.91
A176: 6 | B176: 2.2.4.99.00.0003-7 | C176: 297 | D176: (-) DEPREC. ACUMULADA DE MOBILIÁRIOS | E176: -365605.41 | G176: 405.18 | H176: 40897.18 | I176: -406097.41
A177: 3 | B177: 2.2.9.00.00-9 | D177: OUTROS | E177: 648336.06 | G177: 267090.7 | H177: 201405.87 | I177: 714020.89
A178: 4 | B178: 2.2.9.10.00-6 | D178: SISTEMA DE COMUNICACAO | E178: 25206.7 | G178: 0 | H178: 0 | I178: 25206.7
A179: 5 | B179: 2.2.9.10.10-9 | D179: EQUIPAMENTOS | E179: 25206.7 | G179: 0 | H179: 0 | I179: 25206.7
A180: 6 | B180: 2.2.9.10.10.0001-0 | C180: 299 | D180: EQUIPAMENTOS | E180: 25206.7 | G180: 0 | H180: 0 | I180: 25206.7
A181: 4 | B181: 2.2.9.30.00-0 | D181: SISTEMA DE PROCESSAMENTO DE DADOS | E181: 912172.75 | G181: 13584.86 | H181: 605 | I181: 925152.61
A182: 6 | B182: 2.2.9.30.00.0001-7 | C182: 2101 | D182: EQUIPAMENTOS | E182: 912172.75 | G182: 13584.86 | H182: 605 | I182: 925152.61
A183: 4 | B183: 2.2.9.50.00-4 | D183: SISTEMA DE SEGURANCA | E183: 234372.29 | G183: 23779.2 | H183: 0 | I183: 258151.49
A184: 6 | B184: 2.2.9.50.00.0001-3 | C184: 2103 | D184: ALARME | E184: 50841.37 | G184: 0 | H184: 0 | I184: 50841.37
A185: 6 | B185: 2.2.9.50.00.0002-0 | C185: 2104 | D185: CABINES DE SEGURANÇA | E185: 6200 | G185: 0 | H185: 0 | I185: 6200
A186: 6 | B186: 2.2.9.50.00.0003-7 | C186: 2105 | D186: ARMAS E EQUIPAMENTOS | E186: 80999.89 | G186: 466.99 | H186: 0 | I186: 81466.88
A187: 6 | B187: 2.2.9.50.00.0004-4 | C187: 2106 | D187: SISTEMA DE VIGILANCIA | E187: 67133.03 | G187: 872.21 | H187: 0 | I187: 68005.24
A188: 6 | B188: 2.2.9.50.00.9999-0 | C188: 2107 | D188: OUTROS SISTEMAS DE SEGURANÇA | E188: 29198 | G188: 22440 | H188: 0 | I188: 51638
A189: 4 | B189: 2.2.9.70.00-8 | D189: SISTEMA DE TRANSPORTE | E189: 340460.96 | G189: 193160.02 | H189: 109789.02 | I189: 423831.96
A190: 6 | B190: 2.2.9.70.00.0001-9 | C190: 2108 | D190: VEÍCULOS | E190: 340460.96 | G190: 193160.02 | H190: 109789.02 | I190: 423831.96
A191: 4 | B191: 2.2.9.99.00-3 | D191: (-) DEPRECIACAO ACUMUL OUTRAS IMOBILIZACOES DE USO | E191: -863876.64 | G191: 36566.62 | H191: 91011.85 | I191: -918321.87
A192: 5 | B192: 2.2.9.99.10-6 | D192: (-) SISTEMA DE COMUNICACAO - EQUIPAMENTOS | E192: -18906.3 | G192: 0 | H192: 805.5 | I192: -19711.8
A193: 6 | B193: 2.2.9.99.10.0001-7 | C193: 2110 | D193: (-) DEPREC.ACUMUL.SISTEMA COMUNICAÇÃO-EQUIPAMENTOS | E193: -18906.3 | G193: 0 | H193: 805.5 | I193: -19711.8
A194: 5 | B194: 2.2.9.99.30-2 | D194: (-) SISTEMA DE PROCESSAMENTO DE DADOS | E194: -639972.13 | G194: 605 | H194: 44368.62 | I194: -683735.75
A195: 6 | B195: 2.2.9.99.30.0001-5 | C195: 2111 | D195: (-) SISTEMA DE PROCESSAMENTO DE DADOS | E195: -639972.13 | G195: 605 | H195: 44368.62 | I195: -683735.75
A196: 5 | B196: 2.2.9.99.50-8 | D196: (-) SISTEMA DE SEGURANCA | E196: -84221.43 | G196: 0 | H196: 10861.14 | I196: -95082.57
A197: 6 | B197: 2.2.9.99.50.0001-3 | C197: 2114 | D197: (-) DEPRECIAÇÃO ACUMULADA - ALARME | E197: -42206.53 | G197: 0 | H197: 1443.6 | I197: -43650.13
A198: 6 | B198: 2.2.9.99.50.0002-0 | C198: 2115 | D198: (-) DEPRECIAÇÃO ACUMULADA - CABINES DE SEGURANÇA | E198: -6200 | G198: 0 | H198: 0 | I198: -6200
A199: 6 | B199: 2.2.9.99.50.0003-7 | C199: 2116 | D199: (-) DEPRECIAÇÃO ACUMULADA - ARMAS EQUIPAMENTOS | E199: -7392.07 | G199: 0 | H199: 4072.65 | I199: -11464.72
A200: 6 | B200: 2.2.9.99.50.0004-4 | C200: 2117 | D200: (-) DEPRECIAÇÃO ACUMULADA - SISTEMA DE VIGILÂNCIA | E200: -24131.88 | G200: 0 | H200: 3378.31 | I200: -27510.19
A201: 6 | B201: 2.2.9.99.50.9999-0 | C201: 2118 | D201: (-) DEPRECIAÇÃO ACUMULADA - OUTROS | E201: -4290.95 | G201: 0 | H201: 1966.58 | I201: -6257.53
... 741 more rows

Sheet 1º SEM 2019 (hidden)
D1: Sisbr 2.0 - Plataforma Contábill
H2: Data de Emissão:
D3: Relatório Balancete Analítico
H4: 2019-08-26T11:26:16
A6: 0300 - SICOOB CONFEDERAÇÃO | H6: Hora de Emissão:
H7: 43703.47657
A8: Instituição resp.: | C8: 1003 - SICOOB CENTRAL CREDIMINAS | E8: Período: | G8: 01/01/2019 a 30/06/2019
A9: Instituição: | C9: 3175 - SICOOB CREDISETE | E9: Tipo de Saldo: | G9: Contas contábeis com movimentação
A10: PA: | C10: TODOS... | E10: Apresentação do Saldo: | G10: Saldo Contábil - Desconsiderar Apuração de Resultado | I10: =I692+I11 -> 3091914.52
A11: Grupo Contábil: | C11: Ativo, Compensação, Passivo, Patrimônio Líquido, Resultado | I11: =I853 -> -22274621.89
A12: N | B12: Conta | C12: Cód.Reduzido | D12: Descrição da Conta | E12: Saldo Anterior | G12: Débito | H12: Crédito | I12: Saldo Atual
A13: 1 | B13: 1.0.0.00.00-7 | D13: CIRCULANTE E REALIZAVEL A LONGO PRAZO | E13: 217635008.8 | G13: 5300501464 | H13: 5287770838 | I13: 230365634.9 | K13: =LEN(B13) -> 13 | L13: =LEFT(B13,1) -> 1 | M13: Ativo circulante
A14: 2 | B14: 1.1.0.00.00-6 | D14: DISPONIBILIDADES | E14: 3784241.86 | G14: 2439233670 | H14: 2440091105 | I14: 2926807.46 | K14: =LEN(B14) -> 13 | L14: =LEFT(B14,1) -> 1 | M14: Ativo circulante
A15: 3 | B15: 1.1.1.00.00-9 | D15: CAIXA | E15: 3784241.86 | G15: 1003445846 | H15: 1004303280 | I15: 2926807.46 | K15: 13 | L15: 1 | M15: Ativo circulante
A16: 4 | B16: 1.1.1.10.00-6 | D16: CAIXA | E16: 3784241.86 | G16: 1003445846 | H16: 1004303280 | I16: 2926807.46 | K16: 13 | L16: 1 | M16: Ativo circulante
A17: 6 | B17: 1.1.1.10.00.0001-9 | C17: 11 | D17: CAIXA | E17: 2307147.86 | G17: 943586986.7 | H17: 943663823.4 | I17: 2230311.15 | K17: 18 | L17: 1 | M17: Ativo circulante | N17: =[1]Ativo!$B$7 -> Disponibilidades
A18: 6 | B18: 1.1.1.10.00.0002-6 | C18: 12 | D18: NUMERÁRIO EM TRÂNSITO | E18: 1477094 | G18: 59858859.31 | H18: 60639457 | I18: 696496.31 | K18: 18 | L18: 1 | M18: Ativo circulante | N18: =[1]Ativo!$B$7 -> Disponibilidades
A19: 3 | B19: 1.1.2.00.00-2 | D19: DEPOSITOS BANCARIOS | E19: 0 | G19: 1435787824 | H19: 1435787824 | I19: 0 | K19: 13 | L19: 1 | M19: Ativo circulante
A20: 4 | B20: 1.1.2.30.00-3 | D20: DEPOSITOS BANC. DE INST. SEM CONTA RESERVA | E20: 0 | G20: 1435787824 | H20: 1435787824 | I20: 0 | K20: 13 | L20: 1 | M20: Ativo circulante
A21: 6 | B21: 1.1.2.30.00.0009-0 | C21: 115 | D21: BANCOOB - ALÍQUOTA ZERO | E21: 0 | G21: 1430500779 | H21: 1430500779 | I21: 0 | K21: 18 | L21: 1 | M21: Ativo circulante | N21: =[1]Ativo!$B$7 -> Disponibilidades
A22: 6 | B22: 1.1.2.30.00.0010-0 | C22: 116 | D22: BANCOOB - ALÍQUOTA DIFERENTE ZERO | E22: 0 | G22: 5287045.63 | H22: 5287045.63 | I22: 0 | K22: 18 | L22: 1 | M22: Ativo circulante | N22: =[1]Ativo!$B$7 -> Disponibilidades
A23: 2 | B23: 1.4.0.00.00-3 | D23: RELACOES INTERFINANCEIRAS | E23: 141095758.1 | G23: 115677756.7 | H23: 109671885.8 | I23: 147101629.1 | K23: 13 | L23: 1 | M23: Ativo circulante
A24: 3 | B24: 1.4.5.00.00-8 | D24: CENTRALIZAÇÃO FINANCEIRA - COOPERATIVAS | E24: 141095758.1 | G24: 115677756.7 | H24: 109671885.8 | I24: 147101629.1 | K24: 13 | L24: 1 | M24: Ativo circulante
A25: 4 | B25: 1.4.5.10.00-5 | D25: DEPÓSITOS NAS COOPERATIVAS CENTRAIS | E25: 141095758.1 | G25: 115677756.7 | H25: 109671885.8 | I25: 147101629.1 | K25: 13 | L25: 1 | M25: Ativo circulante
A26: 6 | B26: 1.4.5.10.00.0001-6 | C26: 1620 | D26: CENTRALIZAÇÃO FINANCEIRA - COOPERATIVAS | E26: 141095758.1 | G26: 115677756.7 | H26: 109671885.8 | I26: 147101629.1 | K26: 18 | L26: 1 | M26: Ativo circulante | N26: =[1]Ativo!$B$26 -> Centralização Financeira - Cooperativas
A27: 2 | B27: 1.6.0.00.00-1 | D27: OPERACOES DE CREDITO | E27: 63287604.32 | G27: 238527531.7 | H27: 231973280.5 | I27: 69841855.55 | K27: 13 | L27: 1 | M27: Ativo circulante
A28: 3 | B28: 1.6.1.00.00-4 | D28: EMPRÉSTIMOS E DIREITOS CREDITÓRIOS DESCONTADOS | E28: 61670784.35 | G28: 215272007.2 | H28: 215099409.4 | I28: 61843382.18 | K28: 13 | L28: 1 | M28: Ativo circulante
A29: 4 | B29: 1.6.1.10.00-1 | D29: ADIANTAMENTOS A DEPOSITANTES | E29: 215024.85 | G29: 16806275.4 | H29: 16702895.79 | I29: 318404.46 | K29: 13 | L29: 1 | M29: Ativo circulante
A30: 6 | B30: 1.6.1.10.00.0001-4 | C30: 1626 | D30: ADIANTAMENTOS A DEPOSITANTES | E30: 233187.84 | G30: 16752380.07 | H30: 16636309.88 | I30: 349258.03 | K30: 18 | L30: 1 | M30: Ativo circulante | N30: Operações de Crédito
A31: 6 | B31: 1.6.1.10.00.0002-1 | C31: 1627 | D31: (-) RENDAS APROPRIAR ADIANTAMENTOS A DEPOSITANTES | E31: -18162.99 | G31: 53895.33 | H31: 66585.91 | I31: -30853.57 | K31: 18 | L31: 1 | M31: Ativo circulante | N31: Operações de Crédito
A32: 4 | B32: 1.6.1.20.00-8 | D32: EMPRESTIMOS | E32: 57090332.5 | G32: 183013651.5 | H32: 182972301.9 | I32: 57131682.15 | K32: 13 | L32: 1 | M32: Ativo circulante
A33: 6 | B33: 1.6.1.20.00.0001-7 | C33: 1628 | D33: EMPRÉSTIMOS | E33: 56347260.08 | G33: 0 | H33: 56347260.08 | I33: 0 | K33: 18 | L33: 1 | M33: Ativo circulante | N33: Operações de Crédito
A34: 6 | B34: 1.6.1.20.00.0002-4 | C34: 1629 | D34: (-) RENDAS APROPRIAR - EMPRÉSTIMOS | E34: -10985227.12 | G34: 10985227.12 | H34: 0 | I34: 0 | K34: 18 | L34: 1 | M34: Ativo circulante | N34: Operações de Crédito
A35: 6 | B35: 1.6.1.20.00.0003-1 | C35: 1630 | D35: CHEQUE ESPECIAL | E35: 1064281.78 | G35: 116619.84 | H35: 1180901.62 | I35: 0 | K35: 18 | L35: 1 | M35: Ativo circulante | N35: Operações de Crédito
A36: 6 | B36: 1.6.1.20.00.0004-8 | C36: 1631 | D36: (-) RENDAS APROPRIAR - CHEQUE ESPECIAL | E36: -4138.98 | G36: 4138.98 | H36: 0 | I36: 0 | K36: 18 | L36: 1 | M36: Ativo circulante | N36: Operações de Crédito
A37: 6 | B37: 1.6.1.20.00.0005-5 | C37: 1632 | D37: (-) JUROS MORA APROPRIAR | E37: -456435.02 | G37: 456435.02 | H37: 0 | I37: 0 | K37: 18 | L37: 1 | M37: Ativo circulante | N37: Operações de Crédito
A38: 6 | B38: 1.6.1.20.00.0006-2 | C38: 1633 | D38: CONTA GARANTIDA | E38: 2760042.32 | G38: 313269.3 | H38: 3073311.62 | I38: 0 | K38: 18 | L38: 1 | M38: Ativo circulante | N38: Operações de Crédito
A39: 6 | B39: 1.6.1.20.00.0007-9 | C39: 1634 | D39: (-) RENDAS APROPRIAR - CONTA GARANTIDA | E39: -11210.4 | G39: 11210.4 | H39: 0 | I39: 0 | K39: 18 | L39: 1 | M39: Ativo circulante | N39: Operações de Crédito
A40: 6 | B40: 1.6.1.20.00.0009-3 | C40: 1636 | D40: (-) RDS EFET VENC + 60 - EMPRÉSTIMOS | E40: -457301.75 | G40: 457301.75 | H40: 0 | I40: 0 | K40: 18 | L40: 1 | M40: Ativo circulante | N40: Operações de Crédito
A41: 6 | B41: 1.6.1.20.00.0018-9 | C41: 1645 | D41: CRÉDITO PESSOAL | E41: 529968.53 | G41: 0 | H41: 529968.53 | I41: 0 | K41: 18 | L41: 1 | M41: Ativo circulante | N41: Operações de Crédito
A42: 6 | B42: 1.6.1.20.00.0019-6 | C42: 1646 | D42: (-) RENDAS APROPRIAR - CRÉDITO PESSOAL | E42: -118895.4 | G42: 118895.4 | H42: 0 | I42: 0 | K42: 18 | L42: 1 | M42: Ativo circulante | N42: Operações de Crédito
A43: 6 | B43: 1.6.1.20.00.0031-6 | C43: 11328 | D43: OPERAÇÕES RENEGOCIADAS | E43: 9210295.41 | G43: 0 | H43: 9210295.41 | I43: 0 | K43: 18 | L43: 1 | M43: Ativo circulante | N43: Operações de Crédito
A44: 6 | B44: 1.6.1.20.00.0032-3 | C44: 11329 | D44: (-) RENDAS A APROPRIAR - OPERAÇÕES RENEGOCIADAS | E44: -644377.6 | G44: 644377.6 | H44: 0 | I44: 0 | K44: 18 | L44: 1 | M44: Ativo circulante | N44: Operações de Crédito
A45: 6 | B45: 1.6.1.20.00.0033-0 | C45: 11330 | D45: (-) JUROS DE MORA A APROPRIAR | E45: -48724.7 | G45: 48724.7 | H45: 0 | I45: 0 | K45: 18 | L45: 1 | M45: Ativo circulante | N45: Operações de Crédito
A46: 6 | B46: 1.6.1.20.00.0034-7 | C46: 11331 | D46: (-) RENDAS A EFET. EMPRÉSTIMOS VENC. MAIS 60 DIAS | E46: -62993.91 | G46: 62993.91 | H46: 0 | I46: 0 | K46: 18 | L46: 1 | M46: Ativo circulante | N46: Operações de Crédito
A47: 6 | B47: 1.6.1.20.00.0036-1 | C47: 11892 | D47: (-) GANHOS A AUFERIR | E47: -32210.74 | G47: 32210.74 | H47: 0 | I47: 0 | K47: 18 | L47: 1 | M47: Ativo circulante | N47: Operações de Crédito
A48: 5 | B48: 1.6.1.20.99-8 | D48: OUTROS | E48: 0 | G48: 169762246.8 | H48: 112630564.6 | I48: 57131682.15 | K48: 13 | L48: 1 | M48: Ativo circulante
A49: 6 | B49: 1.6.1.20.99.0005-3 | C49: 12019 | D49: CRÉDITO PESSOAL | E49: 0 | G49: 23015826.61 | H49: 8246120.79 | I49: 14769705.82 | K49: 18 | L49: 1 | M49: Ativo circulante | N49: Operações de Crédito
A50: 6 | B50: 1.6.1.20.99.0006-0 | C50: 12020 | D50: (-) RENDAS A APROPRIAR - CRÉDITO PESSOAL | E50: 0 | G50: 1635651.13 | H50: 4284886.73 | I50: -2649235.6 | K50: 18 | L50: 1 | M50: Ativo circulante | N50: Operações de Crédito
A51: 6 | B51: 1.6.1.20.99.0007-7 | C51: 12021 | D51: (-) JUROS MORA APROP - CRÉDITO PESSOAL | E51: 0 | G51: 71472.46 | H51: 111512.95 | I51: -40040.49 | K51: 18 | L51: 1 | M51: Ativo circulante | N51: Operações de Crédito
A52: 6 | B52: 1.6.1.20.99.0008-4 | C52: 12022 | D52: (-) RDAS EFET - VENC + 60 D - CRÉDITO PESSOAL | E52: 0 | G52: 109946.94 | H52: 159282.95 | I52: -49336.01 | K52: 18 | L52: 1 | M52: Ativo circulante | N52: Operações de Crédito
A53: 6 | B53: 1.6.1.20.99.0009-1 | C53: 12023 | D53: (-) GANHOS A AUFERIR - CRÉDITO PESSOAL | E53: 0 | G53: 5291.04 | H53: 21444.68 | I53: -16153.64 | K53: 18 | L53: 1 | M53: Ativo circulante | N53: Operações de Crédito
A54: 6 | B54: 1.6.1.20.99.0037-6 | C54: 12124 | D54: CHEQUE ESPECIAL | E54: 0 | G54: 14182030.21 | H54: 13008356.02 | I54: 1173674.19 | K54: 18 | L54: 1 | M54: Ativo circulante | N54: Operações de Crédito
A55: 6 | B55: 1.6.1.20.99.0038-3 | C55: 12125 | D55: (-) RENDAS A APROPRIAR - CHEQUE ESPECIAL | E55: 0 | G55: 11431.04 | H55: 22299.25 | I55: -10868.21 | K55: 18 | L55: 1 | M55: Ativo circulante | N55: Operações de Crédito
A56: 6 | B56: 1.6.1.20.99.0039-0 | C56: 12126 | D56: CAPITAL DE GIRO | E56: 0 | G56: 72139455.65 | H56: 23930403 | I56: 48209052.65 | K56: 18 | L56: 1 | M56: Ativo circulante | N56: Operações de Crédito
A57: 6 | B57: 1.6.1.20.99.0040-0 | C57: 12127 | D57: (-) RENDAS A APROPRIAR - CAPITAL DE GIRO | E57: 0 | G57: 5001665.16 | H57: 13191518.61 | I57: -8189853.45 | K57: 18 | L57: 1 | M57: Ativo circulante | N57: Operações de Crédito
A58: 6 | B58: 1.6.1.20.99.0041-7 | C58: 12128 | D58: (-) JUROS MORA APROP - CAPITAL DE GIRO | E58: 0 | G58: 487016.92 | H58: 601129.31 | I58: -114112.39 | K58: 18 | L58: 1 | M58: Ativo circulante | N58: Operações de Crédito
A59: 6 | B59: 1.6.1.20.99.0042-4 | C59: 12129 | D59: (-) RDAS EFET - VENC + 60 D - CAPITAL DE GIRO | E59: 0 | G59: 506094.98 | H59: 573186 | I59: -67091.02 | K59: 18 | L59: 1 | M59: Ativo circulante | N59: Operações de Crédito
A60: 6 | B60: 1.6.1.20.99.0043-1 | C60: 12130 | D60: (-) GANHOS A AUFERIR - CAPITAL DE GIRO | E60: 0 | G60: 16764.18 | H60: 67580.4 | I60: -50816.22 | K60: 18 | L60: 1 | M60: Ativo circulante | N60: Operações de Crédito
A61: 6 | B61: 1.6.1.20.99.0044-8 | C61: 12131 | D61: CONTA GARANTIDA | E61: 0 | G61: 51882943.33 | H61: 48029905.85 | I61: 3853037.48 | K61: 18 | L61: 1 | M61: Ativo circulante | N61: Operações de Crédito
A62: 6 | B62: 1.6.1.20.99.0045-5 | C62: 12132 | D62: (-) RENDAS A APROPRIAR - CONTA GARANTIDA | E62: 0 | G62: 17695.83 | H62: 46665.93 | I62: -28970.1 | K62: 18 | L62: 1 | M62: Ativo circulante | N62: Operações de Crédito
A63: 6 | B63: 1.6.1.20.99.0046-2 | C63: 12133 | D63: EMPRÉSTIMOS COM GARANTIAS BENS IMÓVEIS | E63: 0 | G63: 634554.89 | H63: 232167.34 | I63: 402387.55 | K63: 18 | L63: 1 | M63: Ativo circulante | N63: Operações de Crédito
A64: 6 | B64: 1.6.1.20.99.0047-9 | C64: 12134 | D64: (-) RDAS A APROP - EMP COM GARANT BENS IMÓVEIS | E64: 0 | G64: 44406.38 | H64: 104104.79 | I64: -59698.41 | K64: 18 | L64: 1 | M64: Ativo circulante | N64: Operações de Crédito
A65: 4 | B65: 1.6.1.30.00-5 | D65: DIREITOS CREDITÓRIOS DESCONTADOS | E65: 4365427 | G65: 15452080.32 | H65: 15424211.75 | I65: 4393295.57 | K65: 13 | L65: 1 | M65: Ativo circulante
A66: 5 | B66: 1.6.1.30.10-8 | D66: TÍTULOS DE CRÉDITO | E66: 4365427 | G66: 15452080.32 | H66: 15424211.75 | I66: 4393295.57 | K66: 13 | L66: 1 | M66: Ativo circulante
A67: 6 | B67: 1.6.1.30.10.0001-9 | C67: 11407 | D67: TÍTULOS DESCONTADOS | E67: 534280.75 | G67: 2605056.59 | H67: 2652391.92 | I67: 486945.42 | K67: 18 | L67: 1 | M67: Ativo circulante | N67: Operações de Crédito
A68: 6 | B68: 1.6.1.30.10.0002-6 | C68: 11408 | D68: (-) RENDAS A APROPRIAR - TÍTULOS DESCONTADOS RPL | E68: -13403.21 | G68: 79909.06 | H68: 78468.83 | I68: -11962.98 | K68: 18 | L68: 1 | M68: Ativo circulante | N68: Operações de Crédito
A69: 6 | B69: 1.6.1.30.10.0009-5 | C69: 11415 | D69: CHEQUES DESCONTADOS | E69: 4001899.84 | G69: 12144334.18 | H69: 12083967.62 | I69: 4062266.4 | K69: 18 | L69: 1 | M69: Ativo circulante | N69: Operações de Crédito
A70: 6 | B70: 1.6.1.30.10.0010-5 | C70: 11416 | D70: (-) RENDAS A APROPRIAR - CHEQUES DESCONTADOS | E70: -131702.85 | G70: 586743.13 | H70: 581198.27 | I70: -126157.99 | K70: 18 | L70: 1 | M70: Ativo circulante | N70: Operações de Crédito
A71: 6 | B71: 1.6.1.30.10.0011-2 | C71: 11417 | D71: (-) JUROS DE MORA A APROPRIAR | E71: -25647.53 | G71: 36037.36 | H71: 28185.11 | I71: -17795.28 | K71: 18 | L71: 1 | M71: Ativo circulante | N71: Operações de Crédito
A72: 3 | B72: 1.6.2.00.00-7 | D72: FINANCIAMENTOS | E72: 8996783.72 | G72: 10390313.11 | H72: 6080716.13 | I72: 13306380.7 | K72: 13 | L72: 1 | M72: Ativo circulante
A73: 4 | B73: 1.6.2.10.00-4 | D73: FINANCIAMENTOS | E73: 8996783.72 | G73: 10390313.11 | H73: 6080716.13 | I73: 13306380.7 | K73: 13 | L73: 1 | M73: Ativo circulante
A74: 6 | B74: 1.6.2.10.00.0008-2 | C74: 1681 | D74: FINANCIAMENTOS | E74: 11044679.2 | G74: 9362325.01 | H74: 4021430.32 | I74: 16385573.89 | K74: 18 | L74: 1 | M74: Ativo circulante | N74: Operações de Crédito
A75: 6 | B75: 1.6.2.10.00.0009-9 | C75: 1682 | D75: (-) RENDAS A APROPRIAR - FINANCIAMENTOS | E75: -2042390.16 | G75: 1019724.26 | H75: 2051652.43 | I75: -3074318.33 | K75: 18 | L75: 1 | M75: Ativo circulante | N75: Operações de Crédito
A76: 6 | B76: 1.6.2.10.00.0010-9 | C76: 1683 | D76: (-) JUROS DE MORA A APROPRIAR - FINANCIAMENTOS | E76: -4266.69 | G76: 5341.09 | H76: 3150.79 | I76: -2076.39 | K76: 18 | L76: 1 | M76: Ativo circulante | N76: Operações de Crédito
A77: 6 | B77: 1.6.2.10.00.0011-6 | C77: 1684 | D77: (-) RDAS A EFET. FIN VENC + 60 DIAS - FINANCIAMENT | E77: -1238.63 | G77: 2922.75 | H77: 4482.59 | I77: -2798.47 | K77: 18 | L77: 1 | M77: Ativo circulante | N77: Operações de Crédito
A78: 3 | B78: 1.6.3.00.00-0 | D78: FINANCIAMENTOS RURAIS E AGROINDUSTRIAIS | E78: 6728295.22 | G78: 3294333.11 | H78: 2308795.32 | I78: 7713833.01 | K78: =LEN(B78) -> 13 | L78: =LEFT(B78,1) -> 1 | M78: Ativo circulante
A79: 4 | B79: 1.6.3.05.00-5 | D79: FINANCIAMENTOS RURAIS - APLICAÇÕES COM RECURSOS LIVRES | E79: 1226865.96 | G79: 2457432.6 | H79: 1184712.34 | I79: 2499586.22 | K79: 13 | L79: 1 | M79: Ativo circulante
A80: 5 | B80: 1.6.3.05.10-8 | D80: CUSTEIO - PECUÁRIA | E80: 163382.57 | G80: 180562.42 | H80: 159423.85 | I80: 184521.14 | K80: 13 | L80: 1 | M80: Ativo circulante
A81: 6 | B81: 1.6.3.05.10.0001-3 | C81: 11707 | D81: CUSTEIO - PECUÁRIA - APLIC. REC. LIVRES | E81: 171885.78 | G81: 168724.51 | H81: 141112.57 | I81: 199497.72 | K81: 18 | L81: 1 | M81: Ativo circulante | N81: Operações de Crédito
A82: 6 | B82: 1.6.3.05.10.0002-0 | C82: 11708 | D82: (-) RDAS APROP - CP - APLIC. REC. LIVRES | E82: -8503.21 | G82: 11837.91 | H82: 18311.28 | I82: -14976.58 | K82: 18 | L82: 1 | M82: Ativo circulante | N82: Operações de Crédito
A83: 5 | B83: 1.6.3.05.20-1 | D83: INVESTIMENTO - PECUÁRIA | E83: 1063483.39 | G83: 2276870.18 | H83: 1025288.49 | I83: 2315065.08 | K83: 13 | L83: 1 | M83: Ativo circulante
A84: 6 | B84: 1.6.3.05.20.0001-2 | C84: 11715 | D84: INVESTIMENTO - PECUÁRIA - APLIC. REC. LIVRES | E84: 1214857.85 | G84: 2162762.14 | H84: 565579.18 | I84: 2812040.81 | K84: 18 | L84: 1 | M84: Ativo circulante | N84: Operações de Crédito
A85: 6 | B85: 1.6.3.05.20.0002-9 | C85: 11716 | D85: (-) RDAS APROP - IP - APLIC. REC. LIVRES | E85: -150867.48 | G85: 111365.33 | H85: 457111.75 | I85: -496613.9 | K85: 18 | L85: 1 | M85: Ativo circulante | N85: Operações de Crédito
A86: 6 | B86: 1.6.3.05.20.0003-6 | C86: 11717 | D86: (-) JUROS MORA APROP - IP - APLIC. REC. LIVRES | E86: -118.05 | G86: 738.61 | H86: 926.66 | I86: -306.1 | K86: 18 | L86: 1 | M86: Ativo circulante | N86: Operações de Crédito
A87: 6 | B87: 1.6.3.05.20.0004-3 | C87: 11718 | D87: (-) RDAS EFET - VENC + 60 D - IP - APLIC REC LIVRE | E87: -388.93 | G87: 2004.1 | H87: 1670.9 | I87: -55.73 | K87: 18 | L87: 1 | M87: Ativo circulante | N87: Operações de Crédito
A88: 4 | B88: 1.6.3.15.00-2 | D88: FINANCIAMENTOS RURAIS - APLICAÇÕES COM RECURSOS DIRECIONADOS À VISTA | E88: 1056974.11 | G88: 34569.8 | H88: 1005227.31 | I88: 86316.6 | K88: 13 | L88: 1 | M88: Ativo circulante
A89: 5 | B89: 1.6.3.15.20-8 | D89: INVESTIMENTO - PECUÁRIA | E89: 1056974.11 | G89: 34569.8 | H89: 1005227.31 | I89: 86316.6 | K89: 13 | L89: 1 | M89: Ativo circulante
A90: 6 | B90: 1.6.3.15.20.0001-5 | C90: 11747 | D90: INVESTIMENTO - PECUÁRIA - REC. DIREC. À VISTA | E90: 1084787.19 | G90: 5343.27 | H90: 1003558.26 | I90: 86572.2 | K90: 18 | L90: 1 | M90: Ativo circulante | N90: Operações de Crédito
A91: 6 | B91: 1.6.3.15.20.0002-2 | C91: 11748 | D91: (-) RDAS APROP - IP - REC. DIREC. À VISTA | E91: -27813.08 | G91: 27813.08 | H91: 0 | I91: 0 | K91: 18 | L91: 1 | M91: Ativo circulante | N91: Operações de Crédito
A92: 6 | B92: 1.6.3.15.20.0003-9 | C92: 11749 | D92: (-) JUROS MORA APROP - IP - REC. DIREC. À VISTA | E92: 0 | G92: 1413.45 | H92: 1669.05 | I92: -255.6 | K92: 18 | L92: 1 | M92: Ativo circulante | N92: Operações de Crédito
A93: 4 | B93: 1.6.3.25.00-9 | D93: FINANCIAMENTOS RURAIS - APLICAÇÕES COM RECURSOS DIRECIONADOS DA POUPANÇA | E93: 3298504.09 | G93: 576694.49 | H93: 34532.52 | I93: 3840666.06 | K93: 13 | L93: 1 | M93: Ativo circulante
A94: 5 | B94: 1.6.3.25.10-2 | D94: CUSTEIO - PECUÁRIA | E94: 0 | G94: 428463.65 | H94: 34532.52 | I94: 393931.13 | K94: 13 | L94: 1 | M94: Ativo circulante
A95: 6 | B95: 1.6.3.25.10.0001-9 | C95: 11771 | D95: CUSTEIO - PECUÁRIA - POUPANÇA RURAL | E95: 0 | G95: 419612.09 | H95: 0 | I95: 419612.09 | K95: 18 | L95: 1 | M95: Ativo circulante | N95: Operações de Crédito
A96: 6 | B96: 1.6.3.25.10.0002-6 | C96: 11772 | D96: (-) RDAS APROP - CP - POUPANÇA RURAL | E96: 0 | G96: 8851.56 | H96: 34532.52 | I96: -25680.96 | K96: 18 | L96: 1 | M96: Ativo circulante | N96: Operações de Crédito
A97: 5 | B97: 1.6.3.25.20-5 | D97: INVESTIMENTO - PECUÁRIA | E97: 3298504.09 | G97: 148230.84 | H97: 0 | I97: 3446734.93 | K97: 13 | L97: 1 | M97: Ativo circulante
A98: 6 | B98: 1.6.3.25.20.0001-8 | C98: 11779 | D98: INVESTIMENTO - PECUÁRIA - POUPANÇA RURAL | E98: 3800119.42 | G98: 0 | H98: 0 | I98: 3800119.42 | K98: 18 | L98: 1 | M98: Ativo circulante | N98: Operações de Crédito
A99: 6 | B99: 1.6.3.25.20.0002-5 | C99: 11780 | D99: (-) RDAS APROP - IP - POUPANÇA RURAL | E99: -501615.33 | G99: 148230.84 | H99: 0 | I99: -353384.49 | K99: 18 | L99: 1 | M99: Ativo circulante | N99: Operações de Crédito
A100: 4 | B100: 1.6.3.35.00-6 | D100: FINANCIAMENTOS RURAIS - APLICAÇÕES COM RECURSOS DIRECIONADOS DE LCA | E100: 1145951.06 | G100: 225636.22 | H100: 84323.15 | I100: 1287264.13 | K100: 13 | L100: 1 | M100: Ativo circulante
A101: 5 | B101: 1.6.3.35.10-9 | D101: CUSTEIO - PECUÁRIA | E101: 1145951.06 | G101: 225636.22 | H101: 84323.15 | I101: 1287264.13 | K101: 13 | L101: 1 | M101: Ativo circulante
A102: 6 | B102: 1.6.3.35.10.0001-2 | C102: 11803 | D102: CUSTEIO - PECUÁRIA - REC. DIREC. LCA | E102: 1224643.38 | G102: 168659.6 | H102: 70663.55 | I102: 1322639.43 | K102: 18 | L102: 1 | M102: Ativo circulante | N102: Operações de Crédito
A103: 6 | B103: 1.6.3.35.10.0002-9 | C103: 11804 | D103: (-) RDAS APROP - CP - REC. DIREC. LCA | E103: -78692.32 | G103: 56976.62 | H103: 13659.6 | I103: -35375.3 | K103: 18 | L103: 1 | M103: Ativo circulante | N103: Operações de Crédito
A104: 3 | B104: 1.6.9.00.00-8 | D104: (-) PROVISOES PARA OPERACOES DE CREDITO | E104: -14108258.97 | G104: 9570878.24 | H104: 8484359.61 | I104: -13021740.34 | K104: 13 | L104: 1 | M104: Ativo circulante
A105: 4 | B105: 1.6.9.20.00-2 | D105: (-) PROVISÃO PARA EMPRÉSTIMOS E DIREITOS CREDITÓRIOS DESCONTADOS | E105: -13773923.06 | G105: 9304914.66 | H105: 7954628.28 | I105: -12423636.68 | K105: 13 | L105: 1 | M105: Ativo circulante
A106: 6 | B106: 1.6.9.20.00.0001-9 | C106: 1945 | D106: (-) ADIANTAMENTOS A DEPOSITANTES | E106: -40212.19 | G106: 214060.62 | H106: 237654.53 | I106: -63806.1 | K106: 18 | L106: 1 | M106: Ativo circulante | N106: Operações de Crédito
A107: 6 | B107: 1.6.9.20.00.0002-6 | C107: 1946 | D107: (-) EMPRÉSTIMOS | E107: -13330337.67 | G107: 5725290.55 | H107: 4281392.13 | I107: -11886439.25 | K107: 18 | L107: 1 | M107: Ativo circulante | N107: Operações de Crédito
A108: 6 | B108: 1.6.9.20.00.0003-3 | C108: 1947 | D108: (-) CHEQUE ESPECIAL | E108: -98584.45 | G108: 111640.35 | H108: 143411.54 | I108: -130355.64 | K108: 18 | L108: 1 | M108: Ativo circulante | N108: Operações de Crédito
A109: 6 | B109: 1.6.9.20.00.0005-7 | C109: 1949 | D109: (-) TÍTULOS DESCONTADOS | E109: -118124.04 | G109: 185635.34 | H109: 167184.73 | I109: -99673.43 | K109: 18 | L109: 1 | M109: Ativo circulante | N109: Operações de Crédito
A110: 6 | B110: 1.6.9.20.00.0007-1 | C110: 1951 | D110: (-) CONTA GARANTIDA | E110: -175650.22 | G110: 231042.3 | H110: 298754.34 | I110: -243362.26 | K110: 18 | L110: 1 | M110: Ativo circulante | N110: Operações de Crédito
A111: 6 | B111: 1.6.9.20.00.0011-2 | C111: 1955 | D111: (-) CRÉDITO PESSOAL | E111: -11014.49 | G111: 11014.49 | H111: 0 | I111: 0 | K111: 18 | L111: 1 | M111: Ativo circulante | N111: Operações de Crédito
A112: 6 | B112: 1.6.9.20.00.0035-6 | C112: 12065 | D112: (-) CRÉDITO PESSOAL | E112: 0 | G112: 86184.44 | H112: 86184.44 | I112: 0 | K112: 18 | L112: 1 | M112: Ativo circulante | N112: Operações de Crédito
A113: 6 | B113: 1.6.9.20.00.0037-0 | C113: 12067 | D113: (-) CAPITAL DE GIRO | E113: 0 | G113: 2740046.57 | H113: 2740046.57 | I113: 0 | K113: 18 | L113: 1 | M113: Ativo circulante | N113: Operações de Crédito
A114: 4 | B114: 1.6.9.30.00-9 | D114: (-) PROVISAO PARA FINANCIAMENTOS | E114: -176325.04 | G114: 132553.53 | H114: 323776.96 | I114: -367548.47 | K114: 13 | L114: 1 | M114: Ativo circulante
A115: 6 | B115: 1.6.9.30.00.0003-6 | C115: 1977 | D115: (-) FINANCIAMENTOS | E115: -176325.04 | G115: 132553.53 | H115: 323776.96 | I115: -367548.47 | K115: 18 | L115: 1 | M115: Ativo circulante | N115: Operações de Crédito
A116: 4 | B116: 1.6.9.40.00-6 | D116: (-) PROVISAO PARA FINANC. RURAIS E AGROINDUSTRIAIS | E116: -158010.87 | G116: 133410.05 | H116: 205954.37 | I116: -230555.19 | K116: 13 | L116: 1 | M116: Ativo circulante
A117: 6 | B117: 1.6.9.40.00.0026-6 | C117: 11868 | D117: (-) RECURSOS APLICAÇÕES LIVRES | E117: -28320.23 | G117: 33323.44 | H117: 44823.79 | I117: -39820.58 | K117: 18 | L117: 1 | M117: Ativo circulante | N117: Operações de Crédito
A118: 6 | B118: 1.6.9.40.00.0027-3 | C118: 11869 | D118: (-) RECURSOS DIRECIONADOS À VISTA | E118: -75418.54 | G118: 77776.28 | H118: 9373.59 | I118: -7015.85 | K118: 18 | L118: 1 | M118: Ativo circulante | N118: Operações de Crédito
A119: 6 | B119: 1.6.9.40.00.0028-0 | C119: 11870 | D119: (-) RECURSOS DIRECIONADOS DA POUPANÇA RURAL | E119: -39950.32 | G119: 16703.47 | H119: 136061.97 | I119: -159308.82 | K119: 18 | L119: 1 | M119: Ativo circulante | N119: Operações de Crédito
A120: 6 | B120: 1.6.9.40.00.0029-7 | C120: 11871 | D120: (-) RECURSOS DIRECIONADOS DE LCA | E120: -14321.78 | G120: 5606.86 | H120: 15695.02 | I120: -24409.94 | K120: 18 | L120: 1 | M120: Ativo circulante | N120: Operações de Crédito
A121: 2 | B121: 1.8.0.00.00-9 | D121: OUTROS CREDITOS | E121: 3248685.06 | G121: 2505821889 | H121: 2504795761 | I121: 4274813.21 | K121: 13 | L121: 1 | M121: Ativo circulante
A122: 3 | B122: 1.8.1.00.00-2 | D122: AVAIS E FIANCAS HONRADOS | E122: 83657.49 | G122: 345744.67 | H122: 260786.64 | I122: 168615.52 | K122: 13 | L122: 1 | M122: Ativo circulante
A123: 4 | B123: 1.8.1.10.00-9 | D123: CREDITOS POR AVAIS E FIANCAS HONRADOS | E123: 83657.49 | G123: 345744.67 | H123: 260786.64 | I123: 168615.52 | K123: 13 | L123: 1 | M123: Ativo circulante
A124: 6 | B124: 1.8.1.10.00.0001-8 | C124: 11024 | D124: CRÉDITO POR AVAIS E FIANÇAS HONRADOS | E124: 83657.49 | G124: 345744.67 | H124: 260786.64 | I124: 168615.52 | K124: 18 | L124: 1 | M124: Ativo circulante | N124: Créditos por Avais e Fianças Honrados
A125: 3 | B125: 1.8.3.00.00-8 | D125: RENDAS A RECEBER | E125: 749754.68 | G125: 3005073.4 | H125: 2991631.19 | I125: 763196.89 | K125: 13 | L125: 1 | M125: Ativo circulante
A126: 4 | B126: 1.8.3.70.00-7 | D126: SERVICOS PRESTADOS A RECEBER | E126: 31702.47 | G126: 1198441.72 | H126: 1192987.9 | I126: 37156.29 | K126: 13 | L126: 1 | M126: Ativo circulante
A127: 6 | B127: 1.8.3.70.00.0004-5 | C127: 11031 | D127: RENDAS CONVÊNIOS A RECEBER - TRIBUTOS FEDERAIS | E127: 1827.32 | G127: 11887.65 | H127: 11740.72 | I127: 1974.25 | K127: 18 | L127: 1 | M127: Ativo circulante | N127: Rendas a Receber
A128: 6 | B128: 1.8.3.70.00.0005-2 | C128: 11032 | D128: RENDAS CONVÊNIOS A RECEBER - TRIBUTOS ESTADUAIS | E128: 24327.3 | G128: 24100.6 | H128: 19846.94 | I128: 28580.96 | K128: 18 | L128: 1 | M128: Ativo circulante | N128: Rendas a Receber
A129: 6 | B129: 1.8.3.70.00.0006-9 | C129: 11033 | D129: RENDAS CONVÊNIOS A RECEBER - TRIBUTOS MUNICIPAIS | E129: 112.71 | G129: 3493.37 | H129: 3472.3 | I129: 133.78 | K129: 18 | L129: 1 | M129: Ativo circulante | N129: Rendas a Receber
A130: 6 | B130: 1.8.3.70.00.0007-6 | C130: 11034 | D130: RENDAS CONVÊNIOS A RECEBER - ENERGIA ELÉTRICA GAS | E130: 0 | G130: 11178.29 | H130: 11178.29 | I130: 0 | K130: 18 | L130: 1 | M130: Ativo circulante | N130: Rendas a Receber
A131: 6 | B131: 1.8.3.70.00.0008-3 | C131: 11035 | D131: RENDAS CONVÊNIOS A RECEBER - SANEAMENTO | E131: 0 | G131: 15361.73 | H131: 15361.73 | I131: 0 | K131: 18 | L131: 1 | M131: Ativo circulante | N131: Rendas a Receber
A132: 6 | B132: 1.8.3.70.00.0009-0 | C132: 11036 | D132: RENDAS CONVÊNIOS A RECEBER - TELECOMUNICAÇÕES | E132: 0 | G132: 9264.44 | H132: 9264.44 | I132: 0 | K132: 18 | L132: 1 | M132: Ativo circulante | N132: Rendas a Receber
A133: 6 | B133: 1.8.3.70.00.0010-0 | C133: 11037 | D133: RENDAS CONVÊNIOS A RECEBER - DPVAT | E133: 0 | G133: 7495.08 | H133: 7495.08 | I133: 0 | K133: 18 | L133: 1 | M133: Ativo circulante | N133: Rendas a Receber
A134: 6 | B134: 1.8.3.70.00.0011-7 | C134: 11038 | D134: RENDAS CONVÊNIOS A RECEBER - CARNÊS/ASSEMELHADOS | E134: 0 | G134: 1.71 | H134: 1.71 | I134: 0 | K134: 18 | L134: 1 | M134: Ativo circulante | N134: Rendas a Receber
A135: 6 | B135: 1.8.3.70.00.0013-1 | C135: 11040 | D135: RENDAS CONVÊNIOS A RECEBER - FGTS | E135: 2887.74 | G135: 18548.88 | H135: 18592.8 | I135: 2843.82 | K135: 18 | L135: 1 | M135: Ativo circulante | N135: Rendas a Receber
A136: 6 | B136: 1.8.3.70.00.0014-8 | C136: 11041 | D136: RENDAS CONVÊNIOS A RECEBER - SEGUROS | E136: 0 | G136: 3139.14 | H136: 3139.14 | I136: 0 | K136: 18 | L136: 1 | M136: Ativo circulante | N136: Rendas a Receber
A137: 6 | B137: 1.8.3.70.00.0015-5 | C137: 11042 | D137: RENDAS CONVÊNIOS A RECEBER - MULTAS DE TRÂNSITO | E137: 2547.4 | G137: 1087.36 | H137: 11.28 | I137: 3623.48 | K137: 18 | L137: 1 | M137: Ativo circulante | N137: Rendas a Receber
A138: 6 | B138: 1.8.3.70.00.0016-2 | C138: 11043 | D138: RENDAS CONVÊNIOS A RECEBER - DEMAIS EMPRESAS | E138: 0 | G138: 1078.46 | H138: 1078.46 | I138: 0 | K138: 18 | L138: 1 | M138: Ativo circulante | N138: Rendas a Receber
A139: 6 | B139: 1.8.3.70.00.0017-9 | C139: 11338 | D139: RENDAS A RECEBER - CARTÕES | E139: 0 | G139: 527887.7 | H139: 527887.7 | I139: 0 | K139: 18 | L139: 1 | M139: Ativo circulante | N139: Rendas a Receber
A140: 6 | B140: 1.8.3.70.00.0019-3 | C140: 11366 | D140: RENDAS A RECEBER - DOMICÍLIO BANCÁRIO | E140: 0 | G140: 563917.31 | H140: 563917.31 | I140: 0 | K140: 18 | L140: 1 | M140: Ativo circulante | N140: Rendas a Receber
A141: 4 | B141: 1.8.3.90.00-1 | D141: OUTRAS RENDAS A RECEBER | E141: 718052.21 | G141: 1806631.68 | H141: 1798643.29 | I141: 726040.6 | K141: 13 | L141: 1 | M141: Ativo circulante
A142: 6 | B142: 1.8.3.90.00.0001-0 | C142: 11044 | D142: CENTRALIZAÇÃO FINANCEIRA | E142: 716360.12 | G142: 1164029.95 | H142: 1154745.42 | I142: 725644.65 | K142: =LEN(B142) -> 18 | L142: =LEFT(B142,1) -> 1 | M142: Ativo circulante | N142: Rendas a Receber
A143: 6 | B143: 1.8.3.90.00.0007-2 | C143: 11050 | D143: RENDAS CONVÊNIOS A RECEBER - INSS | E143: 1692.09 | G143: 6788.68 | H143: 8084.82 | I143: 395.95 | K143: 18 | L143: 1 | M143: Ativo circulante | N143: Rendas a Receber
A144: 6 | B144: 1.8.3.90.00.9999-7 | C144: 11051 | D144: OUTRAS RENDAS A RECEBER | E144: 0 | G144: 635813.05 | H144: 635813.05 | I144: 0 | K144: 18 | L144: 1 | M144: Ativo circulante
A145: 3 | B145: 1.8.8.00.00-3 | D145: DIVERSOS | E145: 2476520.42 | G145: 2502394794 | H145: 2501416476 | I145: 3454838.37 | K145: 13 | L145: 1 | M145: Ativo circulante
A146: 4 | B146: 1.8.8.03.00-0 | D146: ADIANTAMENTOS E ANTECIPACOES SALARIAIS | E146: 0 | G146: 1394018.22 | H146: 1394018.22 | I146: 0 | K146: 13 | L146: 1 | M146: Ativo circulante
A147: 6 | B147: 1.8.8.03.00.0001-9 | C147: 11070 | D147: ADIANTAMENTO DE SALÁRIOS | E147: 0 | G147: 936008.8 | H147: 936008.8 | I147: 0 | K147: 18 | L147: 1 | M147: Ativo circulante
A148: 6 | B148: 1.8.8.03.00.0004-0 | C148: 11073 | D148: ADIANTAMENTO DE FÉRIAS | E148: 0 | G148: 299274 | H148: 299274 | I148: 0 | K148: 18 | L148: 1 | M148: Ativo circulante
A149: 6 | B149: 1.8.8.03.00.0005-7 | C149: 11074 | D149: ADIANTAMENTO DE RESCISÕES | E149: 0 | G149: 152990.25 | H149: 152990.25 | I149: 0 | K149: 18 | L149: 1 | M149: Ativo circulante
A150: 6 | B150: 1.8.8.03.00.0006-4 | C150: 11075 | D150: ADIANTAMENTO DE VALE TRANSPORTE | E150: 0 | G150: 4577.72 | H150: 4577.72 | I150: 0 | K150: 18 | L150: 1 | M150: Ativo circulante
A151: 6 | B151: 1.8.8.03.00.0007-1 | C151: 11076 | D151: ADIANTAMENTO DE FGTS - 13º SALÁRIO | E151: 0 | G151: 1167.45 | H151: 1167.45 | I151: 0 | K151: 18 | L151: 1 | M151: Ativo circulante
A152: 4 | B152: 1.8.8.05.00-8 | D152: ADIANTAMENTOS PARA PAGAMENTOS DE NOSSA CONTA | E152: 0 | G152: 339398.97 | H152: 251398.17 | I152: 88000.8 | K152: 13 | L152: 1 | M152: Ativo circulante
A153: 6 | B153: 1.8.8.05.00.0001-3 | C153: 11078 | D153: ADIANTAMENTOS PARA DESPESAS DE VIAGEM | E153: 0 | G153: 59030.97 | H153: 53016.07 | I153: 6014.9 | K153: 18 | L153: 1 | M153: Ativo circulante | N153: Diversos | O153: =VLOOKUP(B153,#REF!,1,0) -> 
A154: 6 | B154: 1.8.8.05.00.0003-7 | C154: 11079 | D154: ADIANTAMENTOS DESPESAS HONORÁRIOS | E154: 0 | G154: 198382.1 | H154: 198382.1 | I154: 0 | K154: 18 | L154: 1 | M154: Ativo circulante | N154: Diversos | O154: =VLOOKUP(B154,#REF!,1,0) -> 
A155: 6 | B155: 1.8.8.05.00.0004-4 | C155: 11080 | D155: ADIANTAMENTOS PARA DESPESAS DIVERSAS | E155: 0 | G155: 3400 | H155: 0 | I155: 3400 | K155: 18 | L155: 1 | M155: Ativo circulante | N155: Diversos | O155: =VLOOKUP(B155,#REF!,1,0) -> 
A156: 6 | B156: 1.8.8.05.00.9999-0 | C156: 11084 | D156: OUTRAS | E156: 0 | G156: 78585.9 | H156: 0 | I156: 78585.9 | K156: 18 | L156: 1 | M156: Ativo circulante | N156: Diversos | O156: =VLOOKUP(B156,#REF!,1,0) -> 
A157: 4 | B157: 1.8.8.10.00-0 | D157: ADIANTAMENTOS POR CONTA DE IMOBILIZACOES | E157: 224210.14 | G157: 451505.98 | H157: 116381.04 | I157: 559335.08 | K157: 13 | L157: 1 | M157: Ativo circulante
A158: 6 | B158: 1.8.8.10.00.0001-1 | C158: 11085 | D158: ADIANTAMENTOS POR CONTA DE IMOBILIZAÇÕES | E158: 224210.14 | G158: 451505.98 | H158: 116381.04 | I158: 559335.08 | K158: 18 | L158: 1 | M158: Ativo circulante | N158: Diversos | O158: =VLOOKUP(B158,#REF!,1,0) -> 
A159: 4 | B159: 1.8.8.40.00-1 | D159: DEVEDORES POR DEPOSITOS EM GARANTIA | E159: 2012013.65 | G159: 101124.08 | H159: 78585.9 | I159: 2034551.83 | K159: 13 | L159: 1 | M159: Ativo circulante
A160: 5 | B160: 1.8.8.40.05-6 | D160: PARA INTERPOSICAO DE RECURSOS FISCAIS LEI 9.703/98 | E160: 1999465.2 | G160: 22097.54 | H160: 0 | I160: 2021562.74 | K160: 13 | L160: 1 | M160: Ativo circulante
A161: 6 | B161: 1.8.8.40.05.0002-2 | C161: 11107 | D161: PIS - DEPÓSITO JUDICIAL | E161: 433452.82 | G161: 4489.81 | H161: 0 | I161: 437942.63 | K161: 18 | L161: 1 | M161: Ativo circulante | N161: Diversos não circulante
A162: 6 | B162: 1.8.8.40.05.0003-9 | C162: 11108 | D162: COFINS - DEPÓSITO JUDICIAL | E162: 1566012.38 | G162: 17607.73 | H162: 0 | I162: 1583620.11 | K162: 18 | L162: 1 | M162: Ativo circulante | N162: Diversos não circulante
A163: 5 | B163: 1.8.8.40.20-7 | D163: PARA INTERPOSICAO DE RECURSOS TRABALHISTAS | E163: 12548.45 | G163: 440.64 | H163: 0 | I163: 12989.09 | K163: 13 | L163: 1 | M163: Ativo circulante
A164: 6 | B164: 1.8.8.40.20.0001-8 | C164: 11122 | D164: PARA INTERPOSIÇÃO DE RECURSOS TRABALHISTAS | E164: 12548.45 | G164: 440.64 | H164: 0 | I164: 12989.09 | K164: 18 | L164: 1 | M164: Ativo circulante | N164: Diversos | O164: =VLOOKUP(B164,#REF!,1,0) -> 
A165: 5 | B165: 1.8.8.40.90-8 | D165: OUTROS | E165: 0 | G165: 78585.9 | H165: 78585.9 | I165: 0 | K165: 13 | L165: 1 | M165: Ativo circulante
A166: 6 | B166: 1.8.8.40.90.0001-1 | C166: 11123 | D166: OUTROS | E166: 0 | G166: 78585.9 | H166: 78585.9 | I166: 0 | K166: 18 | L166: 1 | M166: Ativo circulante | N166: Diversos | O166: =VLOOKUP(B166,#REF!,1,0) -> 
A167: 4 | B167: 1.8.8.50.00-8 | D167: IMPOSTO DE RENDA A RECUPERAR | E167: 0 | G167: 15328.53 | H167: 15328.53 | I167: 0 | K167: 13 | L167: 1 | M167: Ativo circulante
A168: 6 | B168: 1.8.8.50.00.0001-3 | C168: 11152 | D168: IMPOSTO DE RENDA A RECUPERAR | E168: 0 | G168: 15328.53 | H168: 15328.53 | I168: 0 | K168: 18 | L168: 1 | M168: Ativo circulante | N168: Diversos | O168: =VLOOKUP(B168,#REF!,1,0) -> 
A169: 4 | B169: 1.8.8.80.00-9 | D169: TÍTULOS E CRÉDITOS A RECEBER | E169: 219426.1 | G169: 2913549.1 | H169: 2378200.05 | I169: 754775.15 | K169: 13 | L169: 1 | M169: Ativo circulante
A170: 5 | B170: 1.8.8.80.20-5 | D170: SEM CARACTERÍSTICA DE CONCESSÃO DE CRÉDITO | E170: 219426.1 | G170: 2913549.1 | H170: 2378200.05 | I170: 754775.15 | K170: 13 | L170: 1 | M170: Ativo circulante
A171: 6 | B171: 1.8.8.80.20.0001-0 | C171: 11189 | D171: TÍTULOS E CRÉDITOS A RECEBER | E171: 0 | G171: 650000 | H171: 164500 | I171: 485500 | K171: 18 | L171: 1 | M171: Ativo circulante | N171: Diversos | O171: =VLOOKUP(B171,#REF!,1,0) -> 
A172: 6 | B172: 1.8.8.80.20.0011-3 | C172: 11199 | D172: VALORES A RECEBER - TARIFAS | E172: 219426.1 | G172: 2263549.1 | H172: 2213700.05 | I172: 269275.15 | K172: 18 | L172: 1 | M172: Ativo circulante | N172: Diversos | O172: =VLOOKUP(B172,#REF!,1,0) -> 
A173: 4 | B173: 1.8.8.92.00-4 | D173: DEVEDORES DIVERSOS - PAIS | E173: 20870.53 | G173: 2497179869 | H173: 2497182564 | I173: 18175.51 | K173: 13 | L173: 1 | M173: Ativo circulante
A174: 6 | B174: 1.8.8.92.00.0005-7 | C174: 11205 | D174: DIFERENÇA DE CAIXA | E174: 857.55 | G174: 25954.4 | H174: 24891 | I174: 1920.95 | K174: 18 | L174: 1 | M174: Ativo circulante | N174: Diversos | O174: =VLOOKUP(B174,#REF!,1,0) -> 
A175: 6 | B175: 1.8.8.92.00.0006-4 | C175: 11206 | D175: PENDÊNCIAS A REGULARIZAR | E175: 0 | G175: 177122.97 | H175: 176567.19 | I175: 555.78 | K175: 18 | L175: 1 | M175: Ativo circulante | N175: Diversos | O175: =VLOOKUP(B175,#REF!,1,0) -> 
A176: 6 | B176: 1.8.8.92.00.0015-0 | C176: 11215 | D176: PENDÊNCIAS A REGULARIZAR - CONTA CORRENTE | E176: 0 | G176: 1451.34 | H176: 1451.34 | I176: 0 | K176: 18 | L176: 1 | M176: Ativo circulante | N176: Diversos | O176: =VLOOKUP(B176,#REF!,1,0) -> 
A177: 6 | B177: 1.8.8.92.00.0016-7 | C177: 11216 | D177: PENDÊNCIAS A REGULARIZAR - BANCOOB | E177: 20012.98 | G177: 1263055.68 | H177: 1267369.88 | I177: 15698.78 | K177: 18 | L177: 1 | M177: Ativo circulante | N177: Diversos | O177: =VLOOKUP(B177,#REF!,1,0) -> 
A178: 6 | B178: 1.8.8.92.00.0027-7 | C178: 11227 | D178: TRANSITÓRIA - AVAIS E FIANÇAS HONRADOS | E178: 0 | G178: 5728549.9 | H178: 5728549.9 | I178: 0 | K178: 18 | L178: 1 | M178: Ativo circulante | N178: Diversos | O178: =VLOOKUP(B178,#REF!,1,0) -> 
A179: 6 | B179: 1.8.8.92.00.0033-2 | C179: 11233 | D179: TRANSITÓRIA COBRANÇA - CAIXA | E179: 0 | G179: 9702362 | H179: 9702362 | I179: 0 | K179: 18 | L179: 1 | M179: Ativo circulante | N179: Diversos | O179: =VLOOKUP(B179,#REF!,1,0) -> 
A180: 6 | B180: 1.8.8.92.00.0034-9 | C180: 11234 | D180: TRANSITÓRIA CONVÊNIO - CAIXA | E180: 0 | G180: 57512787.96 | H180: 57512787.96 | I180: 0 | K180: 18 | L180: 1 | M180: Ativo circulante | N180: Diversos | O180: =VLOOKUP(B180,#REF!,1,0) -> 
A181: 6 | B181: 1.8.8.92.00.0035-6 | C181: 11235 | D181: TRANSITÓRIA CONTA CORRENTE - CAIXA | E181: 0 | G181: 1064503500 | H181: 1064503500 | I181: 0 | K181: 18 | L181: 1 | M181: Ativo circulante | N181: Diversos | O181: =VLOOKUP(B181,#REF!,1,0) -> 
A182: 6 | B182: 1.8.8.92.00.0036-3 | C182: 11236 | D182: TRANSITÓRIA EMPRÉSTIMO - CAIXA | E182: 0 | G182: 1065201.43 | H182: 1065201.43 | I182: 0 | K182: 18 | L182: 1 | M182: Ativo circulante | N182: Diversos | O182: =VLOOKUP(B182,#REF!,1,0) -> 
A183: 6 | B183: 1.8.8.92.00.0037-0 | C183: 11237 | D183: TRANSITÓRIA TÍTULOS DESCONTADOS - CAIXA | E183: 0 | G183: 1468096.67 | H183: 1468096.67 | I183: 0 | K183: 18 | L183: 1 | M183: Ativo circulante | N183: Diversos | O183: =VLOOKUP(B183,#REF!,1,0) -> 
A184: 6 | B184: 1.8.8.92.00.0038-7 | C184: 11238 | D184: TRANSITÓRIA CRÉDITO RURAL - CAIXA | E184: 0 | G184: 12549.01 | H184: 12549.01 | I184: 0 | K184: 18 | L184: 1 | M184: Ativo circulante | N184: Diversos | O184: =VLOOKUP(B184,#REF!,1,0) -> 
A185: 6 | B185: 1.8.8.92.00.0039-4 | C185: 11239 | D185: TRANSITÓRIA CONTA CAPITAL - CAIXA | E185: 0 | G185: 505908.95 | H185: 505908.95 | I185: 0 | K185: 18 | L185: 1 | M185: Ativo circulante | N185: Diversos | O185: =VLOOKUP(B185,#REF!,1,0) -> 
A186: 6 | B186: 1.8.8.92.00.0040-4 | C186: 11240 | D186: TRANSITÓRIA CONTROLES GERAIS - CAIXA | E186: 0 | G186: 172459190 | H186: 172459190 | I186: 0 | K186: 18 | L186: 1 | M186: Ativo circulante | N186: Diversos | O186: =VLOOKUP(B186,#REF!,1,0) -> 
A187: 6 | B187: 1.8.8.92.00.0045-9 | C187: 11245 | D187: TRANSITÓRIA CONTA CORRENTE - CONTROLES GERAIS | E187: 0 | G187: 5937439.83 | H187: 5937439.83 | I187: 0 | K187: 18 | L187: 1 | M187: Ativo circulante | N187: Diversos | O187: =VLOOKUP(B187,#REF!,1,0) -> 
A188: 6 | B188: 1.8.8.92.00.0050-7 | C188: 11250 | D188: TRANSITÓRIA CONTA CORRENTE - COBRANÇA | E188: 0 | G188: 181485785.8 | H188: 181485785.8 | I188: 0 | K188: 18 | L188: 1 | M188: Ativo circulante | N188: Diversos | O188: =VLOOKUP(B188,#REF!,1,0) -> 
A189: 6 | B189: 1.8.8.92.00.0055-2 | C189: 11255 | D189: TRANSITÓRIA CONTA CORRENTE - CONVÊNIO | E189: 0 | G189: 52018585.11 | H189: 52018585.11 | I189: 0 | K189: 18 | L189: 1 | M189: Ativo circulante | N189: Diversos | O189: =VLOOKUP(B189,#REF!,1,0) -> 
A190: 6 | B190: 1.8.8.92.00.0060-0 | C190: 11260 | D190: TRANSITÓRIA CONTA CORRENTE - EMPRÉSTIMO | E190: 0 | G190: 147688445.9 | H190: 147688445.9 | I190: 0 | K190: 18 | L190: 1 | M190: Ativo circulante | N190: Diversos | O190: =VLOOKUP(B190,#REF!,1,0) -> 
A191: 6 | B191: 1.8.8.92.00.0061-7 | C191: 11261 | D191: TRANSITÓRIA CONTA CORRENTE - TÍTULOS DESCONTADOS | E191: 0 | G191: 31659681.33 | H191: 31659681.33 | I191: 0 | K191: 18 | L191: 1 | M191: Ativo circulante | N191: Diversos | O191: =VLOOKUP(B191,#REF!,1,0) -> 
A192: 6 | B192: 1.8.8.92.00.0063-1 | C192: 11263 | D192: TRANSITÓRIA CONTA CORRENTE - CONTA CAPITAL | E192: 0 | G192: 675330.56 | H192: 675330.56 | I192: 0 | K192: 18 | L192: 1 | M192: Ativo circulante | N192: Diversos | O192: =VLOOKUP(B192,#REF!,1,0) -> 
A193: 6 | B193: 1.8.8.92.00.0073-4 | C193: 11273 | D193: TRANSITÓRIA CONTA CORRENTE - CAPTAÇÃO REMUNERADA | E193: 0 | G193: 118054770.2 | H193: 118054770.2 | I193: 0 | K193: 18 | L193: 1 | M193: Ativo circulante | N193: Diversos | O193: =VLOOKUP(B193,#REF!,1,0) -> 
A194: 6 | B194: 1.8.8.92.00.0074-1 | C194: 11274 | D194: TRANSITÓRIA CONTA CORRENTE - INSS | E194: 0 | G194: 4039428.51 | H194: 4039428.51 | I194: 0 | K194: 18 | L194: 1 | M194: Ativo circulante | N194: Diversos | O194: =VLOOKUP(B194,#REF!,1,0) -> 
A195: 6 | B195: 1.8.8.92.00.0075-8 | C195: 11275 | D195: TRANSITÓRIA INTERCREDIS | E195: 0 | G195: 219030417.8 | H195: 219030417.8 | I195: 0 | K195: 18 | L195: 1 | M195: Ativo circulante | N195: Diversos | O195: =VLOOKUP(B195,#REF!,1,0) -> 
A196: 6 | B196: 1.8.8.92.00.0081-3 | C196: 11281 | D196: TRANSITÓRIA CONTA CORRENTE - CRÉDITO PESSOAL | E196: 0 | G196: 361734.15 | H196: 361734.15 | I196: 0 | K196: 18 | L196: 1 | M196: Ativo circulante | N196: Diversos | O196: =VLOOKUP(B196,#REF!,1,0) -> 
A197: 6 | B197: 1.8.8.92.00.0086-8 | C197: 11286 | D197: TRANSITÓRIA CONTA CORRENTE - COTAS PARTES | E197: 0 | G197: 112998.24 | H197: 112998.24 | I197: 0 | K197: 18 | L197: 1 | M197: Ativo circulante | N197: Diversos | O197: =VLOOKUP(B197,#REF!,1,0) -> 
A198: 6 | B198: 1.8.8.92.00.0087-5 | C198: 11287 | D198: TRANSITÓRIA CONTROLES GERAIS - RENEGOCIAÇÃO DE DÍV | E198: 0 | G198: 33546186.32 | H198: 33546186.32 | I198: 0 | K198: 18 | L198: 1 | M198: Ativo circulante | N198: Diversos | O198: =VLOOKUP(B198,#REF!,1,0) -> 
A199: 6 | B199: 1.8.8.92.00.0088-2 | C199: 11288 | D199: TRANSITÓRIA COBRANÇA - BANCO | E199: 0 | G199: 158122413.8 | H199: 158122413.8 | I199: 0 | K199: 18 | L199: 1 | M199: Ativo circulante | N199: Diversos | O199: =VLOOKUP(B199,#REF!,1,0) -> 
A200: 6 | B200: 1.8.8.92.00.0094-7 | C200: 11294 | D200: TRANSITÓRIA CONTA CAPITAL - BANCO | E200: 0 | G200: 55560.8 | H200: 55560.8 | I200: 0 | K200: 18 | L200: 1 | M200: Ativo circulante | N200: Diversos | O200: =VLOOKUP(B200,#REF!,1,0) -> 
A201: 6 | B201: 1.8.8.92.00.0097-8 | C201: 11297 | D201: TRANSITÓRIA TRANSFERÊNCIA ENTRE CONTAS CORRENTES | E201: 0 | G201: 215055846.2 | H201: 215055846.2 | I201: 0 | K201: 18 | L201: 1 | M201: Ativo circulante | N201: Diversos | O201: =VLOOKUP(B201,#REF!,1,0) -> 
... 929 more rows

Sheet LEAD 2018-2019 (hidden)
B15: Conta Contábil | C15: Código | D15: Descrição | G15: 2018-06-30 | H15: 2018-12-31 | I15: 2019-06-30 | J15: 2019-07-31 | K15: 2019-08-31 | L15: 2019-09-30 | M15: 2019-10-31 | N15: 2019-11-30 | O15: 2019-12-31
B16: 1.0.0.00.00-7 | D16: CIRCULANTE E REALIZAVEL A LONGO PRAZO | E16: =LEN(B16) -> 13 | F16: =LEFT(B16) -> 1 | G16: =IFERROR(VLOOKUP(B16,'1º SEM 2018'!$B:$I,8,0),0) -> 199795938.3 | H16: =IFERROR(VLOOKUP(B16,'2º SEM 2018'!$B:$I,8,0),0) -> 217635008.8 | I16: =IFERROR(VLOOKUP(B16,'1º SEM 2019'!$B:$I,8,0),0) -> 230365634.9
B17: 1.1.0.00.00-6 | D17: DISPONIBILIDADES | E17: 13 | F17: 1 | G17: =IFERROR(VLOOKUP(B17,'1º SEM 2018'!$B:$I,8,0),0) -> 2801209.73 | H17: =IFERROR(VLOOKUP(B17,'2º SEM 2018'!$B:$I,8,0),0) -> 3784241.86 | I17: =IFERROR(VLOOKUP(B17,'1º SEM 2019'!$B:$I,8,0),0) -> 2926807.46
B18: 1.1.1.00.00-9 | D18: CAIXA | E18: 13 | F18: 1 | G18: =IFERROR(VLOOKUP(B18,'1º SEM 2018'!$B:$I,8,0),0) -> 2801209.73 | H18: =IFERROR(VLOOKUP(B18,'2º SEM 2018'!$B:$I,8,0),0) -> 3784241.86 | I18: =IFERROR(VLOOKUP(B18,'1º SEM 2019'!$B:$I,8,0),0) -> 2926807.46
B19: 1.1.1.10.00.0001-9 | C19: 11 | D19: CAIXA | E19: 18 | F19: 1 | G19: =IFERROR(VLOOKUP(B19,'1º SEM 2018'!$B:$I,8,0),0) -> 2556439.73 | H19: =IFERROR(VLOOKUP(B19,'2º SEM 2018'!$B:$I,8,0),0) -> 2307147.86 | I19: =IFERROR(VLOOKUP(B19,'1º SEM 2019'!$B:$I,8,0),0) -> 2230311.15
B20: 1.1.1.10.00.0002-6 | C20: 12 | D20: NUMERÁRIO EM TRÂNSITO | E20: 18 | F20: 1 | G20: =IFERROR(VLOOKUP(B20,'1º SEM 2018'!$B:$I,8,0),0) -> 244770 | H20: =IFERROR(VLOOKUP(B20,'2º SEM 2018'!$B:$I,8,0),0) -> 1477094 | I20: =IFERROR(VLOOKUP(B20,'1º SEM 2019'!$B:$I,8,0),0) -> 696496.31
B21: 1.1.1.10.00-6 | D21: CAIXA | E21: 13 | F21: 1 | G21: =IFERROR(VLOOKUP(B21,'1º SEM 2018'!$B:$I,8,0),0) -> 2801209.73 | H21: =IFERROR(VLOOKUP(B21,'2º SEM 2018'!$B:$I,8,0),0) -> 3784241.86 | I21: =IFERROR(VLOOKUP(B21,'1º SEM 2019'!$B:$I,8,0),0) -> 2926807.46
B22: 1.1.2.00.00-2 | D22: DEPOSITOS BANCARIOS | E22: 13 | F22: 1 | G22: =IFERROR(VLOOKUP(B22,'1º SEM 2018'!$B:$I,8,0),0) -> 0 | H22: =IFERROR(VLOOKUP(B22,'2º SEM 2018'!$B:$I,8,0),0) -> 0 | I22: =IFERROR(VLOOKUP(B22,'1º SEM 2019'!$B:$I,8,0),0) -> 0
B23: 1.1.2.30.00.0009-0 | C23: 115 | D23: BANCOOB - ALÍQUOTA ZERO | E23: 18 | F23: 1 | G23: =IFERROR(VLOOKUP(B23,'1º SEM 2018'!$B:$I,8,0),0) -> 0 | H23: =IFERROR(VLOOKUP(B23,'2º SEM 2018'!$B:$I,8,0),0) -> 0 | I23: =IFERROR(VLOOKUP(B23,'1º SEM 2019'!$B:$I,8,0),0) -> 0
B24: 1.1.2.30.00.0010-0 | C24: 116 | D24: BANCOOB - ALÍQUOTA DIFERENTE ZERO | E24: 18 | F24: 1 | G24: =IFERROR(VLOOKUP(B24,'1º SEM 2018'!$B:$I,8,0),0) -> 0 | H24: =IFERROR(VLOOKUP(B24,'2º SEM 2018'!$B:$I,8,0),0) -> 0 | I24: =IFERROR(VLOOKUP(B24,'1º SEM 2019'!$B:$I,8,0),0) -> 0
B25: 1.1.2.30.00-3 | D25: DEPOSITOS BANC. DE INST. SEM CONTA RESERVA | E25: 13 | F25: 1 | G25: =IFERROR(VLOOKUP(B25,'1º SEM 2018'!$B:$I,8,0),0) -> 0 | H25: =IFERROR(VLOOKUP(B25,'2º SEM 2018'!$B:$I,8,0),0) -> 0 | I25: =IFERROR(VLOOKUP(B25,'1º SEM 2019'!$B:$I,8,0),0) -> 0
B26: 1.4.0.00.00-3 | D26: RELACOES INTERFINANCEIRAS | E26: 13 | F26: 1 | G26: =IFERROR(VLOOKUP(B26,'1º SEM 2018'!$B:$I,8,0),0) -> 127489104.3 | H26: =IFERROR(VLOOKUP(B26,'2º SEM 2018'!$B:$I,8,0),0) -> 141095758.1 | I26: =IFERROR(VLOOKUP(B26,'1º SEM 2019'!$B:$I,8,0),0) -> 147101629.1
B27: 1.4.5.00.00-8 | D27: CENTRALIZAÇÃO FINANCEIRA - COOPERATIVAS | E27: 13 | F27: 1 | G27: =IFERROR(VLOOKUP(B27,'1º SEM 2018'!$B:$I,8,0),0) -> 127489104.3 | H27: =IFERROR(VLOOKUP(B27,'2º SEM 2018'!$B:$I,8,0),0) -> 141095758.1 | I27: =IFERROR(VLOOKUP(B27,'1º SEM 2019'!$B:$I,8,0),0) -> 147101629.1
B28: 1.4.5.10.00.0001-6 | C28: 1620 | D28: CENTRALIZAÇÃO FINANCEIRA - COOPERATIVAS | E28: 18 | F28: 1 | G28: =IFERROR(VLOOKUP(B28,'1º SEM 2018'!$B:$I,8,0),0) -> 127489104.3 | H28: =IFERROR(VLOOKUP(B28,'2º SEM 2018'!$B:$I,8,0),0) -> 141095758.1 | I28: =IFERROR(VLOOKUP(B28,'1º SEM 2019'!$B:$I,8,0),0) -> 147101629.1
B29: 1.4.5.10.00-5 | D29: DEPÓSITOS NAS COOPERATIVAS CENTRAIS | E29: 13 | F29: 1 | G29: =IFERROR(VLOOKUP(B29,'1º SEM 2018'!$B:$I,8,0),0) -> 127489104.3 | H29: =IFERROR(VLOOKUP(B29,'2º SEM 2018'!$B:$I,8,0),0) -> 141095758.1 | I29: =IFERROR(VLOOKUP(B29,'1º SEM 2019'!$B:$I,8,0),0) -> 147101629.1
B30: 1.6.0.00.00-1 | D30: OPERACOES DE CREDITO | E30: 13 | F30: 1 | G30: =IFERROR(VLOOKUP(B30,'1º SEM 2018'!$B:$I,8,0),0) -> 60319057 | H30: =IFERROR(VLOOKUP(B30,'2º SEM 2018'!$B:$I,8,0),0) -> 63287604.32 | I30: =IFERROR(VLOOKUP(B30,'1º SEM 2019'!$B:$I,8,0),0) -> 69841855.55
B31: 1.6.1.00.00-4 | D31: EMPRÉSTIMOS E DIREITOS CREDITÓRIOS DESCONTADOS | E31: 13 | F31: 1 | G31: =IFERROR(VLOOKUP(B31,'1º SEM 2018'!$B:$I,8,0),0) -> 62899392.89 | H31: =IFERROR(VLOOKUP(B31,'2º SEM 2018'!$B:$I,8,0),0) -> 61670784.35 | I31: =IFERROR(VLOOKUP(B31,'1º SEM 2019'!$B:$I,8,0),0) -> 61843382.18
B32: 1.6.1.10.00.0001-4 | C32: 1626 | D32: ADIANTAMENTOS A DEPOSITANTES | E32: 18 | F32: 1 | G32: =IFERROR(VLOOKUP(B32,'1º SEM 2018'!$B:$I,8,0),0) -> 420348.4 | H32: =IFERROR(VLOOKUP(B32,'2º SEM 2018'!$B:$I,8,0),0) -> 233187.84 | I32: =IFERROR(VLOOKUP(B32,'1º SEM 2019'!$B:$I,8,0),0) -> 349258.03
B33: 1.6.1.10.00.0002-1 | C33: 1627 | D33: (-) RENDAS APROPRIAR ADIANTAMENTOS A DEPOSITANTES | E33: 18 | F33: 1 | G33: =IFERROR(VLOOKUP(B33,'1º SEM 2018'!$B:$I,8,0),0) -> -72142.57 | H33: =IFERROR(VLOOKUP(B33,'2º SEM 2018'!$B:$I,8,0),0) -> -18162.99 | I33: =IFERROR(VLOOKUP(B33,'1º SEM 2019'!$B:$I,8,0),0) -> -30853.57
B34: 1.6.1.10.00-1 | D34: ADIANTAMENTOS A DEPOSITANTES | E34: 13 | F34: 1 | G34: =IFERROR(VLOOKUP(B34,'1º SEM 2018'!$B:$I,8,0),0) -> 348205.83 | H34: =IFERROR(VLOOKUP(B34,'2º SEM 2018'!$B:$I,8,0),0) -> 215024.85 | I34: =IFERROR(VLOOKUP(B34,'1º SEM 2019'!$B:$I,8,0),0) -> 318404.46
B35: 1.6.1.20.00.0001-7 | C35: 1628 | D35: EMPRÉSTIMOS | E35: 18 | F35: 1 | G35: =IFERROR(VLOOKUP(B35,'1º SEM 2018'!$B:$I,8,0),0) -> 62654538.83 | H35: =IFERROR(VLOOKUP(B35,'2º SEM 2018'!$B:$I,8,0),0) -> 56347260.08 | I35: =IFERROR(VLOOKUP(B35,'1º SEM 2019'!$B:$I,8,0),0) -> 0
B36: 1.6.1.20.00.0002-4 | C36: 1629 | D36: (-) RENDAS APROPRIAR - EMPRÉSTIMOS | E36: 18 | F36: 1 | G36: =IFERROR(VLOOKUP(B36,'1º SEM 2018'!$B:$I,8,0),0) -> -12571448.39 | H36: =IFERROR(VLOOKUP(B36,'2º SEM 2018'!$B:$I,8,0),0) -> -10985227.12 | I36: =IFERROR(VLOOKUP(B36,'1º SEM 2019'!$B:$I,8,0),0) -> 0
B37: 1.6.1.20.00.0003-1 | C37: 1630 | D37: CHEQUE ESPECIAL | E37: 18 | F37: 1 | G37: =IFERROR(VLOOKUP(B37,'1º SEM 2018'!$B:$I,8,0),0) -> 1274345.41 | H37: =IFERROR(VLOOKUP(B37,'2º SEM 2018'!$B:$I,8,0),0) -> 1064281.78 | I37: =IFERROR(VLOOKUP(B37,'1º SEM 2019'!$B:$I,8,0),0) -> 0
B38: 1.6.1.20.00.0004-8 | C38: 1631 | D38: (-) RENDAS APROPRIAR - CHEQUE ESPECIAL | E38: 18 | F38: 1 | G38: =IFERROR(VLOOKUP(B38,'1º SEM 2018'!$B:$I,8,0),0) -> 0 | H38: =IFERROR(VLOOKUP(B38,'2º SEM 2018'!$B:$I,8,0),0) -> -4138.98 | I38: =IFERROR(VLOOKUP(B38,'1º SEM 2019'!$B:$I,8,0),0) -> 0
B39: 1.6.1.20.00.0005-5 | C39: 1632 | D39: (-) JUROS MORA APROPRIAR | E39: 18 | F39: 1 | G39: =IFERROR(VLOOKUP(B39,'1º SEM 2018'!$B:$I,8,0),0) -> -482313.21 | H39: =IFERROR(VLOOKUP(B39,'2º SEM 2018'!$B:$I,8,0),0) -> -456435.02 | I39: =IFERROR(VLOOKUP(B39,'1º SEM 2019'!$B:$I,8,0),0) -> 0
B40: 1.6.1.20.00.0006-2 | C40: 1633 | D40: CONTA GARANTIDA | E40: 18 | F40: 1 | G40: =IFERROR(VLOOKUP(B40,'1º SEM 2018'!$B:$I,8,0),0) -> 3998417.83 | H40: =IFERROR(VLOOKUP(B40,'2º SEM 2018'!$B:$I,8,0),0) -> 2760042.32 | I40: =IFERROR(VLOOKUP(B40,'1º SEM 2019'!$B:$I,8,0),0) -> 0
B41: 1.6.1.20.00.0007-9 | C41: 1634 | D41: (-) RENDAS APROPRIAR - CONTA GARANTIDA | E41: 18 | F41: 1 | G41: =IFERROR(VLOOKUP(B41,'1º SEM 2018'!$B:$I,8,0),0) -> 0 | H41: =IFERROR(VLOOKUP(B41,'2º SEM 2018'!$B:$I,8,0),0) -> -11210.4 | I41: =IFERROR(VLOOKUP(B41,'1º SEM 2019'!$B:$I,8,0),0) -> 0
B42: 1.6.1.20.00.0009-3 | C42: 1636 | D42: (-) RDS EFET VENC + 60 - EMPRÉSTIMOS | E42: 18 | F42: 1 | G42: =IFERROR(VLOOKUP(B42,'1º SEM 2018'!$B:$I,8,0),0) -> -747864.26 | H42: =IFERROR(VLOOKUP(B42,'2º SEM 2018'!$B:$I,8,0),0) -> -457301.75 | I42: =IFERROR(VLOOKUP(B42,'1º SEM 2019'!$B:$I,8,0),0) -> 0
B43: 1.6.1.20.00.0018-9 | C43: 1645 | D43: CRÉDITO PESSOAL | E43: 18 | F43: 1 | G43: =IFERROR(VLOOKUP(B43,'1º SEM 2018'!$B:$I,8,0),0) -> 0 | H43: =IFERROR(VLOOKUP(B43,'2º SEM 2018'!$B:$I,8,0),0) -> 529968.53 | I43: =IFERROR(VLOOKUP(B43,'1º SEM 2019'!$B:$I,8,0),0) -> 0
B44: 1.6.1.20.00.0019-6 | C44: 1646 | D44: (-) RENDAS APROPRIAR - CRÉDITO PESSOAL | E44: 18 | F44: 1 | G44: =IFERROR(VLOOKUP(B44,'1º SEM 2018'!$B:$I,8,0),0) -> 0 | H44: =IFERROR(VLOOKUP(B44,'2º SEM 2018'!$B:$I,8,0),0) -> -118895.4 | I44: =IFERROR(VLOOKUP(B44,'1º SEM 2019'!$B:$I,8,0),0) -> 0
B45: 1.6.1.20.00.0031-6 | C45: 11328 | D45: OPERAÇÕES RENEGOCIADAS | E45: 18 | F45: 1 | G45: =IFERROR(VLOOKUP(B45,'1º SEM 2018'!$B:$I,8,0),0) -> 4028243.85 | H45: =IFERROR(VLOOKUP(B45,'2º SEM 2018'!$B:$I,8,0),0) -> 9210295.41 | I45: =IFERROR(VLOOKUP(B45,'1º SEM 2019'!$B:$I,8,0),0) -> 0
B46: 1.6.1.20.00.0032-3 | C46: 11329 | D46: (-) RENDAS A APROPRIAR - OPERAÇÕES RENEGOCIADAS | E46: 18 | F46: 1 | G46: =IFERROR(VLOOKUP(B46,'1º SEM 2018'!$B:$I,8,0),0) -> -210475.34 | H46: =IFERROR(VLOOKUP(B46,'2º SEM 2018'!$B:$I,8,0),0) -> -644377.6 | I46: =IFERROR(VLOOKUP(B46,'1º SEM 2019'!$B:$I,8,0),0) -> 0
B47: 1.6.1.20.00.0033-0 | C47: 11330 | D47: (-) JUROS DE MORA A APROPRIAR | E47: 18 | F47: 1 | G47: =IFERROR(VLOOKUP(B47,'1º SEM 2018'!$B:$I,8,0),0) -> -5099.95 | H47: =IFERROR(VLOOKUP(B47,'2º SEM 2018'!$B:$I,8,0),0) -> -48724.7 | I47: =IFERROR(VLOOKUP(B47,'1º SEM 2019'!$B:$I,8,0),0) -> 0
B48: 1.6.1.20.00.0034-7 | C48: 11331 | D48: (-) RENDAS A EFET. EMPRÉSTIMOS VENC. MAIS 60 DIAS | E48: 18 | F48: 1 | G48: =IFERROR(VLOOKUP(B48,'1º SEM 2018'!$B:$I,8,0),0) -> -13530.62 | H48: =IFERROR(VLOOKUP(B48,'2º SEM 2018'!$B:$I,8,0),0) -> -62993.91 | I48: =IFERROR(VLOOKUP(B48,'1º SEM 2019'!$B:$I,8,0),0) -> 0
B49: 1.6.1.20.00.0036-1 | C49: 11892 | D49: (-) GANHOS A AUFERIR | E49: 18 | F49: 1 | G49: =IFERROR(VLOOKUP(B49,'1º SEM 2018'!$B:$I,8,0),0) -> -7005.01 | H49: =IFERROR(VLOOKUP(B49,'2º SEM 2018'!$B:$I,8,0),0) -> -32210.74 | I49: =IFERROR(VLOOKUP(B49,'1º SEM 2019'!$B:$I,8,0),0) -> 0
B50: 1.6.1.20.00-8 | D50: EMPRESTIMOS | E50: 13 | F50: 1 | G50: =IFERROR(VLOOKUP(B50,'1º SEM 2018'!$B:$I,8,0),0) -> 57917809.14 | H50: =IFERROR(VLOOKUP(B50,'2º SEM 2018'!$B:$I,8,0),0) -> 57090332.5 | I50: =IFERROR(VLOOKUP(B50,'1º SEM 2019'!$B:$I,8,0),0) -> 57131682.15
B51: 1.6.1.20.99.0005-3 | C51: 12019 | D51: CRÉDITO PESSOAL | E51: 18 | F51: 1 | G51: =IFERROR(VLOOKUP(B51,'1º SEM 2018'!$B:$I,8,0),0) -> 0 | H51: =IFERROR(VLOOKUP(B51,'2º SEM 2018'!$B:$I,8,0),0) -> 0 | I51: =IFERROR(VLOOKUP(B51,'1º SEM 2019'!$B:$I,8,0),0) -> 14769705.82
B52: 1.6.1.20.99.0006-0 | C52: 12020 | D52: (-) RENDAS A APROPRIAR - CRÉDITO PESSOAL | E52: 18 | F52: 1 | G52: =IFERROR(VLOOKUP(B52,'1º SEM 2018'!$B:$I,8,0),0) -> 0 | H52: =IFERROR(VLOOKUP(B52,'2º SEM 2018'!$B:$I,8,0),0) -> 0 | I52: =IFERROR(VLOOKUP(B52,'1º SEM 2019'!$B:$I,8,0),0) -> -2649235.6
B53: 1.6.1.20.99.0007-7 | C53: 12021 | D53: (-) JUROS MORA APROP - CRÉDITO PESSOAL | E53: 18 | F53: 1 | G53: =IFERROR(VLOOKUP(B53,'1º SEM 2018'!$B:$I,8,0),0) -> 0 | H53: =IFERROR(VLOOKUP(B53,'2º SEM 2018'!$B:$I,8,0),0) -> 0 | I53: =IFERROR(VLOOKUP(B53,'1º SEM 2019'!$B:$I,8,0),0) -> -40040.49
B54: 1.6.1.20.99.0008-4 | C54: 12022 | D54: (-) RDAS EFET - VENC + 60 D - CRÉDITO PESSOAL | E54: 18 | F54: 1 | G54: =IFERROR(VLOOKUP(B54,'1º SEM 2018'!$B:$I,8,0),0) -> 0 | H54: =IFERROR(VLOOKUP(B54,'2º SEM 2018'!$B:$I,8,0),0) -> 0 | I54: =IFERROR(VLOOKUP(B54,'1º SEM 2019'!$B:$I,8,0),0) -> -49336.01
B55: 1.6.1.20.99.0009-1 | C55: 12023 | D55: (-) GANHOS A AUFERIR - CRÉDITO PESSOAL | E55: 18 | F55: 1 | G55: =IFERROR(VLOOKUP(B55,'1º SEM 2018'!$B:$I,8,0),0) -> 0 | H55: =IFERROR(VLOOKUP(B55,'2º SEM 2018'!$B:$I,8,0),0) -> 0 | I55: =IFERROR(VLOOKUP(B55,'1º SEM 2019'!$B:$I,8,0),0) -> -16153.64
B56: 1.6.1.20.99.0037-6 | C56: 12124 | D56: CHEQUE ESPECIAL | E56: 18 | F56: 1 | G56: =IFERROR(VLOOKUP(B56,'1º SEM 2018'!$B:$I,8,0),0) -> 0 | H56: =IFERROR(VLOOKUP(B56,'2º SEM 2018'!$B:$I,8,0),0) -> 0 | I56: =IFERROR(VLOOKUP(B56,'1º SEM 2019'!$B:$I,8,0),0) -> 1173674.19
B57: 1.6.1.20.99.0038-3 | C57: 12125 | D57: (-) RENDAS A APROPRIAR - CHEQUE ESPECIAL | E57: 18 | F57: 1 | G57: =IFERROR(VLOOKUP(B57,'1º SEM 2018'!$B:$I,8,0),0) -> 0 | H57: =IFERROR(VLOOKUP(B57,'2º SEM 2018'!$B:$I,8,0),0) -> 0 | I57: =IFERROR(VLOOKUP(B57,'1º SEM 2019'!$B:$I,8,0),0) -> -10868.21
B58: 1.6.1.20.99.0039-0 | C58: 12126 | D58: CAPITAL DE GIRO | E58: 18 | F58: 1 | G58: =IFERROR(VLOOKUP(B58,'1º SEM 2018'!$B:$I,8,0),0) -> 0 | H58: =IFERROR(VLOOKUP(B58,'2º SEM 2018'!$B:$I,8,0),0) -> 0 | I58: =IFERROR(VLOOKUP(B58,'1º SEM 2019'!$B:$I,8,0),0) -> 48209052.65
B59: 1.6.1.20.99.0040-0 | C59: 12127 | D59: (-) RENDAS A APROPRIAR - CAPITAL DE GIRO | E59: 18 | F59: 1 | G59: =IFERROR(VLOOKUP(B59,'1º SEM 2018'!$B:$I,8,0),0) -> 0 | H59: =IFERROR(VLOOKUP(B59,'2º SEM 2018'!$B:$I,8,0),0) -> 0 | I59: =IFERROR(VLOOKUP(B59,'1º SEM 2019'!$B:$I,8,0),0) -> -8189853.45
B60: 1.6.1.20.99.0041-7 | C60: 12128 | D60: (-) JUROS MORA APROP - CAPITAL DE GIRO | E60: 18 | F60: 1 | G60: =IFERROR(VLOOKUP(B60,'1º SEM 2018'!$B:$I,8,0),0) -> 0 | H60: =IFERROR(VLOOKUP(B60,'2º SEM 2018'!$B:$I,8,0),0) -> 0 | I60: =IFERROR(VLOOKUP(B60,'1º SEM 2019'!$B:$I,8,0),0) -> -114112.39
B61: 1.6.1.20.99.0042-4 | C61: 12129 | D61: (-) RDAS EFET - VENC + 60 D - CAPITAL DE GIRO | E61: 18 | F61: 1 | G61: =IFERROR(VLOOKUP(B61,'1º SEM 2018'!$B:$I,8,0),0) -> 0 | H61: =IFERROR(VLOOKUP(B61,'2º SEM 2018'!$B:$I,8,0),0) -> 0 | I61: =IFERROR(VLOOKUP(B61,'1º SEM 2019'!$B:$I,8,0),0) -> -67091.02
B62: 1.6.1.20.99.0043-1 | C62: 12130 | D62: (-) GANHOS A AUFERIR - CAPITAL DE GIRO | E62: 18 | F62: 1 | G62: =IFERROR(VLOOKUP(B62,'1º SEM 2018'!$B:$I,8,0),0) -> 0 | H62: =IFERROR(VLOOKUP(B62,'2º SEM 2018'!$B:$I,8,0),0) -> 0 | I62: =IFERROR(VLOOKUP(B62,'1º SEM 2019'!$B:$I,8,0),0) -> -50816.22
B63: 1.6.1.20.99.0044-8 | C63: 12131 | D63: CONTA GARANTIDA | E63: 18 | F63: 1 | G63: =IFERROR(VLOOKUP(B63,'1º SEM 2018'!$B:$I,8,0),0) -> 0 | H63: =IFERROR(VLOOKUP(B63,'2º SEM 2018'!$B:$I,8,0),0) -> 0 | I63: =IFERROR(VLOOKUP(B63,'1º SEM 2019'!$B:$I,8,0),0) -> 3853037.48
B64: 1.6.1.20.99.0045-5 | C64: 12132 | D64: (-) RENDAS A APROPRIAR - CONTA GARANTIDA | E64: 18 | F64: 1 | G64: =IFERROR(VLOOKUP(B64,'1º SEM 2018'!$B:$I,8,0),0) -> 0 | H64: =IFERROR(VLOOKUP(B64,'2º SEM 2018'!$B:$I,8,0),0) -> 0 | I64: =IFERROR(VLOOKUP(B64,'1º SEM 2019'!$B:$I,8,0),0) -> -28970.1
B65: 1.6.1.20.99.0046-2 | C65: 12133 | D65: EMPRÉSTIMOS COM GARANTIAS BENS IMÓVEIS | E65: 18 | F65: 1 | G65: =IFERROR(VLOOKUP(B65,'1º SEM 2018'!$B:$I,8,0),0) -> 0 | H65: =IFERROR(VLOOKUP(B65,'2º SEM 2018'!$B:$I,8,0),0) -> 0 | I65: =IFERROR(VLOOKUP(B65,'1º SEM 2019'!$B:$I,8,0),0) -> 402387.55
B66: 1.6.1.20.99.0047-9 | C66: 12134 | D66: (-) RDAS A APROP - EMP COM GARANT BENS IMÓVEIS | E66: 18 | F66: 1 | G66: =IFERROR(VLOOKUP(B66,'1º SEM 2018'!$B:$I,8,0),0) -> 0 | H66: =IFERROR(VLOOKUP(B66,'2º SEM 2018'!$B:$I,8,0),0) -> 0 | I66: =IFERROR(VLOOKUP(B66,'1º SEM 2019'!$B:$I,8,0),0) -> -59698.41
B67: 1.6.1.20.99-8 | D67: OUTROS | E67: 13 | F67: 1 | G67: =IFERROR(VLOOKUP(B67,'1º SEM 2018'!$B:$I,8,0),0) -> 0 | H67: =IFERROR(VLOOKUP(B67,'2º SEM 2018'!$B:$I,8,0),0) -> 0 | I67: =IFERROR(VLOOKUP(B67,'1º SEM 2019'!$B:$I,8,0),0) -> 57131682.15
B68: 1.6.1.30.00-5 | D68: DIREITOS CREDITÓRIOS DESCONTADOS | E68: 13 | F68: 1 | G68: =IFERROR(VLOOKUP(B68,'1º SEM 2018'!$B:$I,8,0),0) -> 4633377.92 | H68: =IFERROR(VLOOKUP(B68,'2º SEM 2018'!$B:$I,8,0),0) -> 4365427 | I68: =IFERROR(VLOOKUP(B68,'1º SEM 2019'!$B:$I,8,0),0) -> 4393295.57
B69: 1.6.1.30.10.0001-9 | C69: 11407 | D69: TÍTULOS DESCONTADOS | E69: 18 | F69: 1 | G69: =IFERROR(VLOOKUP(B69,'1º SEM 2018'!$B:$I,8,0),0) -> 783922.23 | H69: =IFERROR(VLOOKUP(B69,'2º SEM 2018'!$B:$I,8,0),0) -> 534280.75 | I69: =IFERROR(VLOOKUP(B69,'1º SEM 2019'!$B:$I,8,0),0) -> 486945.42
B70: 1.6.1.30.10.0002-6 | C70: 11408 | D70: (-) RENDAS A APROPRIAR - TÍTULOS DESCONTADOS RPL | E70: 18 | F70: 1 | G70: =IFERROR(VLOOKUP(B70,'1º SEM 2018'!$B:$I,8,0),0) -> -21934.71 | H70: =IFERROR(VLOOKUP(B70,'2º SEM 2018'!$B:$I,8,0),0) -> -13403.21 | I70: =IFERROR(VLOOKUP(B70,'1º SEM 2019'!$B:$I,8,0),0) -> -11962.98
B71: 1.6.1.30.10.0003-3 | C71: 11409 | D71: (-) JUROS DE MORA A APROPRIAR | E71: 18 | F71: 1 | G71: =IFERROR(VLOOKUP(B71,'1º SEM 2018'!$B:$I,8,0),0) -> -182.4 | H71: =IFERROR(VLOOKUP(B71,'2º SEM 2018'!$B:$I,8,0),0) -> 0 | I71: =IFERROR(VLOOKUP(B71,'1º SEM 2019'!$B:$I,8,0),0) -> 0
B72: 1.6.1.30.10.0009-5 | C72: 11415 | D72: CHEQUES DESCONTADOS | E72: 18 | F72: 1 | G72: =IFERROR(VLOOKUP(B72,'1º SEM 2018'!$B:$I,8,0),0) -> 4018510.87 | H72: =IFERROR(VLOOKUP(B72,'2º SEM 2018'!$B:$I,8,0),0) -> 4001899.84 | I72: =IFERROR(VLOOKUP(B72,'1º SEM 2019'!$B:$I,8,0),0) -> 4062266.4
B73: 1.6.1.30.10.0010-5 | C73: 11416 | D73: (-) RENDAS A APROPRIAR - CHEQUES DESCONTADOS | E73: 18 | F73: 1 | G73: =IFERROR(VLOOKUP(B73,'1º SEM 2018'!$B:$I,8,0),0) -> -137320.87 | H73: =IFERROR(VLOOKUP(B73,'2º SEM 2018'!$B:$I,8,0),0) -> -131702.85 | I73: =IFERROR(VLOOKUP(B73,'1º SEM 2019'!$B:$I,8,0),0) -> -126157.99
B74: 1.6.1.30.10.0011-2 | C74: 11417 | D74: (-) JUROS DE MORA A APROPRIAR | E74: 18 | F74: 1 | G74: =IFERROR(VLOOKUP(B74,'1º SEM 2018'!$B:$I,8,0),0) -> -9617.2 | H74: =IFERROR(VLOOKUP(B74,'2º SEM 2018'!$B:$I,8,0),0) -> -25647.53 | I74: =IFERROR(VLOOKUP(B74,'1º SEM 2019'!$B:$I,8,0),0) -> -17795.28
B75: 1.6.1.30.10-8 | D75: TÍTULOS DE CRÉDITO | E75: 13 | F75: 1 | G75: =IFERROR(VLOOKUP(B75,'1º SEM 2018'!$B:$I,8,0),0) -> 4633377.92 | H75: =IFERROR(VLOOKUP(B75,'2º SEM 2018'!$B:$I,8,0),0) -> 4365427 | I75: =IFERROR(VLOOKUP(B75,'1º SEM 2019'!$B:$I,8,0),0) -> 4393295.57
B76: 1.6.2.00.00-7 | D76: FINANCIAMENTOS | E76: 13 | F76: 1 | G76: =IFERROR(VLOOKUP(B76,'1º SEM 2018'!$B:$I,8,0),0) -> 6961138.51 | H76: =IFERROR(VLOOKUP(B76,'2º SEM 2018'!$B:$I,8,0),0) -> 8996783.72 | I76: =IFERROR(VLOOKUP(B76,'1º SEM 2019'!$B:$I,8,0),0) -> 13306380.7
B77: 1.6.2.10.00.0008-2 | C77: 1681 | D77: FINANCIAMENTOS | E77: 18 | F77: 1 | G77: =IFERROR(VLOOKUP(B77,'1º SEM 2018'!$B:$I,8,0),0) -> 8590950.89 | H77: =IFERROR(VLOOKUP(B77,'2º SEM 2018'!$B:$I,8,0),0) -> 11044679.2 | I77: =IFERROR(VLOOKUP(B77,'1º SEM 2019'!$B:$I,8,0),0) -> 16385573.89
B78: 1.6.2.10.00.0009-9 | C78: 1682 | D78: (-) RENDAS A APROPRIAR - FINANCIAMENTOS | E78: 18 | F78: 1 | G78: =IFERROR(VLOOKUP(B78,'1º SEM 2018'!$B:$I,8,0),0) -> -1616508.32 | H78: =IFERROR(VLOOKUP(B78,'2º SEM 2018'!$B:$I,8,0),0) -> -2042390.16 | I78: =IFERROR(VLOOKUP(B78,'1º SEM 2019'!$B:$I,8,0),0) -> -3074318.33
B79: 1.6.2.10.00.0010-9 | C79: 1683 | D79: (-) JUROS DE MORA A APROPRIAR - FINANCIAMENTOS | E79: 18 | F79: 1 | G79: =IFERROR(VLOOKUP(B79,'1º SEM 2018'!$B:$I,8,0),0) -> -7904.84 | H79: =IFERROR(VLOOKUP(B79,'2º SEM 2018'!$B:$I,8,0),0) -> -4266.69 | I79: =IFERROR(VLOOKUP(B79,'1º SEM 2019'!$B:$I,8,0),0) -> -2076.39
B80: 1.6.2.10.00.0011-6 | C80: 1684 | D80: (-) RDAS A EFET. FIN VENC + 60 DIAS - FINANCIAMENT | E80: =LEN(B80) -> 18 | F80: =LEFT(B80) -> 1 | G80: =IFERROR(VLOOKUP(B80,'1º SEM 2018'!$B:$I,8,0),0) -> -5399.22 | H80: =IFERROR(VLOOKUP(B80,'2º SEM 2018'!$B:$I,8,0),0) -> -1238.63 | I80: =IFERROR(VLOOKUP(B80,'1º SEM 2019'!$B:$I,8,0),0) -> -2798.47
B81: 1.6.2.10.00-4 | D81: FINANCIAMENTOS | E81: 13 | F81: 1 | G81: =IFERROR(VLOOKUP(B81,'1º SEM 2018'!$B:$I,8,0),0) -> 6961138.51 | H81: =IFERROR(VLOOKUP(B81,'2º SEM 2018'!$B:$I,8,0),0) -> 8996783.72 | I81: =IFERROR(VLOOKUP(B81,'1º SEM 2019'!$B:$I,8,0),0) -> 13306380.7
B82: 1.6.3.00.00-0 | D82: FINANCIAMENTOS RURAIS E AGROINDUSTRIAIS | E82: 13 | F82: 1 | G82: =IFERROR(VLOOKUP(B82,'1º SEM 2018'!$B:$I,8,0),0) -> 5573366.44 | H82: =IFERROR(VLOOKUP(B82,'2º SEM 2018'!$B:$I,8,0),0) -> 6728295.22 | I82: =IFERROR(VLOOKUP(B82,'1º SEM 2019'!$B:$I,8,0),0) -> 7713833.01
B83: 1.6.3.05.00-5 | D83: FINANCIAMENTOS RURAIS - APLICAÇÕES COM RECURSOS LIVRES | E83: 13 | F83: 1 | G83: =IFERROR(VLOOKUP(B83,'1º SEM 2018'!$B:$I,8,0),0) -> 1657003.3 | H83: =IFERROR(VLOOKUP(B83,'2º SEM 2018'!$B:$I,8,0),0) -> 1226865.96 | I83: =IFERROR(VLOOKUP(B83,'1º SEM 2019'!$B:$I,8,0),0) -> 2499586.22
B84: 1.6.3.05.10.0001-3 | C84: 11707 | D84: CUSTEIO - PECUÁRIA - APLIC. REC. LIVRES | E84: 18 | F84: 1 | G84: =IFERROR(VLOOKUP(B84,'1º SEM 2018'!$B:$I,8,0),0) -> 136711.15 | H84: =IFERROR(VLOOKUP(B84,'2º SEM 2018'!$B:$I,8,0),0) -> 171885.78 | I84: =IFERROR(VLOOKUP(B84,'1º SEM 2019'!$B:$I,8,0),0) -> 199497.72
B85: 1.6.3.05.10.0002-0 | C85: 11708 | D85: (-) RDAS APROP - CP - APLIC. REC. LIVRES | E85: 18 | F85: 1 | G85: =IFERROR(VLOOKUP(B85,'1º SEM 2018'!$B:$I,8,0),0) -> -5866 | H85: =IFERROR(VLOOKUP(B85,'2º SEM 2018'!$B:$I,8,0),0) -> -8503.21 | I85: =IFERROR(VLOOKUP(B85,'1º SEM 2019'!$B:$I,8,0),0) -> -14976.58
B86: 1.6.3.05.10-8 | D86: CUSTEIO - PECUÁRIA | E86: 13 | F86: 1 | G86: =IFERROR(VLOOKUP(B86,'1º SEM 2018'!$B:$I,8,0),0) -> 130845.15 | H86: =IFERROR(VLOOKUP(B86,'2º SEM 2018'!$B:$I,8,0),0) -> 163382.57 | I86: =IFERROR(VLOOKUP(B86,'1º SEM 2019'!$B:$I,8,0),0) -> 184521.14
B87: 1.6.3.05.20.0001-2 | C87: 11715 | D87: INVESTIMENTO - PECUÁRIA - APLIC. REC. LIVRES | E87: 18 | F87: 1 | G87: =IFERROR(VLOOKUP(B87,'1º SEM 2018'!$B:$I,8,0),0) -> 1753232.58 | H87: =IFERROR(VLOOKUP(B87,'2º SEM 2018'!$B:$I,8,0),0) -> 1214857.85 | I87: =IFERROR(VLOOKUP(B87,'1º SEM 2019'!$B:$I,8,0),0) -> 2812040.81
B88: 1.6.3.05.20.0002-9 | C88: 11716 | D88: (-) RDAS APROP - IP - APLIC. REC. LIVRES | E88: 18 | F88: 1 | G88: =IFERROR(VLOOKUP(B88,'1º SEM 2018'!$B:$I,8,0),0) -> -223763.23 | H88: =IFERROR(VLOOKUP(B88,'2º SEM 2018'!$B:$I,8,0),0) -> -150867.48 | I88: =IFERROR(VLOOKUP(B88,'1º SEM 2019'!$B:$I,8,0),0) -> -496613.9
B89: 1.6.3.05.20.0003-6 | C89: 11717 | D89: (-) JUROS MORA APROP - IP - APLIC. REC. LIVRES | E89: 18 | F89: 1 | G89: =IFERROR(VLOOKUP(B89,'1º SEM 2018'!$B:$I,8,0),0) -> -2069.07 | H89: =IFERROR(VLOOKUP(B89,'2º SEM 2018'!$B:$I,8,0),0) -> -118.05 | I89: =IFERROR(VLOOKUP(B89,'1º SEM 2019'!$B:$I,8,0),0) -> -306.1
B90: 1.6.3.05.20.0004-3 | C90: 11718 | D90: (-) RDAS EFET - VENC + 60 D - IP - APLIC REC LIVRE | E90: 18 | F90: 1 | G90: =IFERROR(VLOOKUP(B90,'1º SEM 2018'!$B:$I,8,0),0) -> -1242.13 | H90: =IFERROR(VLOOKUP(B90,'2º SEM 2018'!$B:$I,8,0),0) -> -388.93 | I90: =IFERROR(VLOOKUP(B90,'1º SEM 2019'!$B:$I,8,0),0) -> -55.73
B91: 1.6.3.05.20-1 | D91: INVESTIMENTO - PECUÁRIA | E91: 13 | F91: 1 | G91: =IFERROR(VLOOKUP(B91,'1º SEM 2018'!$B:$I,8,0),0) -> 1526158.15 | H91: =IFERROR(VLOOKUP(B91,'2º SEM 2018'!$B:$I,8,0),0) -> 1063483.39 | I91: =IFERROR(VLOOKUP(B91,'1º SEM 2019'!$B:$I,8,0),0) -> 2315065.08
B92: 1.6.3.15.00-2 | D92: FINANCIAMENTOS RURAIS - APLICAÇÕES COM RECURSOS DIRECIONADOS À VISTA | E92: 13 | F92: 1 | G92: =IFERROR(VLOOKUP(B92,'1º SEM 2018'!$B:$I,8,0),0) -> 2804886.86 | H92: =IFERROR(VLOOKUP(B92,'2º SEM 2018'!$B:$I,8,0),0) -> 1056974.11 | I92: =IFERROR(VLOOKUP(B92,'1º SEM 2019'!$B:$I,8,0),0) -> 86316.6
B93: 1.6.3.15.10.0001-6 | C93: 11739 | D93: CUSTEIO - PECUÁRIA - REC. DIREC. À VISTA | E93: 18 | F93: 1 | G93: =IFERROR(VLOOKUP(B93,'1º SEM 2018'!$B:$I,8,0),0) -> 171388.24 | H93: =IFERROR(VLOOKUP(B93,'2º SEM 2018'!$B:$I,8,0),0) -> 0 | I93: =IFERROR(VLOOKUP(B93,'1º SEM 2019'!$B:$I,8,0),0) -> 0
B94: 1.6.3.15.10.0002-3 | C94: 11740 | D94: (-) RDAS APROP - CP - REC. DIREC. À VISTA | E94: 18 | F94: 1 | G94: =IFERROR(VLOOKUP(B94,'1º SEM 2018'!$B:$I,8,0),0) -> -5676.83 | H94: =IFERROR(VLOOKUP(B94,'2º SEM 2018'!$B:$I,8,0),0) -> 0 | I94: =IFERROR(VLOOKUP(B94,'1º SEM 2019'!$B:$I,8,0),0) -> 0
B95: 1.6.3.15.10-5 | D95: CUSTEIO - PECUÁRIA | E95: 13 | F95: 1 | G95: =IFERROR(VLOOKUP(B95,'1º SEM 2018'!$B:$I,8,0),0) -> 165711.41 | H95: =IFERROR(VLOOKUP(B95,'2º SEM 2018'!$B:$I,8,0),0) -> 0 | I95: =IFERROR(VLOOKUP(B95,'1º SEM 2019'!$B:$I,8,0),0) -> 0
B96: 1.6.3.15.20.0001-5 | C96: 11747 | D96: INVESTIMENTO - PECUÁRIA - REC. DIREC. À VISTA | E96: 18 | F96: 1 | G96: =IFERROR(VLOOKUP(B96,'1º SEM 2018'!$B:$I,8,0),0) -> 2770687.41 | H96: =IFERROR(VLOOKUP(B96,'2º SEM 2018'!$B:$I,8,0),0) -> 1084787.19 | I96: =IFERROR(VLOOKUP(B96,'1º SEM 2019'!$B:$I,8,0),0) -> 86572.2
B97: 1.6.3.15.20.0002-2 | C97: 11748 | D97: (-) RDAS APROP - IP - REC. DIREC. À VISTA | E97: 18 | F97: 1 | G97: =IFERROR(VLOOKUP(B97,'1º SEM 2018'!$B:$I,8,0),0) -> -128293.27 | H97: =IFERROR(VLOOKUP(B97,'2º SEM 2018'!$B:$I,8,0),0) -> -27813.08 | I97: =IFERROR(VLOOKUP(B97,'1º SEM 2019'!$B:$I,8,0),0) -> 0
B98: 1.6.3.15.20.0003-9 | C98: 11749 | D98: (-) JUROS MORA APROP - IP - REC. DIREC. À VISTA | E98: 18 | F98: 1 | G98: =IFERROR(VLOOKUP(B98,'1º SEM 2018'!$B:$I,8,0),0) -> -3218.69 | H98: =IFERROR(VLOOKUP(B98,'2º SEM 2018'!$B:$I,8,0),0) -> 0 | I98: =IFERROR(VLOOKUP(B98,'1º SEM 2019'!$B:$I,8,0),0) -> -255.6
B99: 1.6.3.15.20-8 | D99: INVESTIMENTO - PECUÁRIA | E99: 13 | F99: 1 | G99: =IFERROR(VLOOKUP(B99,'1º SEM 2018'!$B:$I,8,0),0) -> 2639175.45 | H99: =IFERROR(VLOOKUP(B99,'2º SEM 2018'!$B:$I,8,0),0) -> 1056974.11 | I99: =IFERROR(VLOOKUP(B99,'1º SEM 2019'!$B:$I,8,0),0) -> 86316.6
B100: 1.6.3.25.00-9 | D100: FINANCIAMENTOS RURAIS - APLICAÇÕES COM RECURSOS DIRECIONADOS DA POUPANÇA | E100: 13 | F100: 1 | G100: =IFERROR(VLOOKUP(B100,'1º SEM 2018'!$B:$I,8,0),0) -> 1111476.28 | H100: =IFERROR(VLOOKUP(B100,'2º SEM 2018'!$B:$I,8,0),0) -> 3298504.09 | I100: =IFERROR(VLOOKUP(B100,'1º SEM 2019'!$B:$I,8,0),0) -> 3840666.06
B101: 1.6.3.25.10.0001-9 | C101: 11771 | D101: CUSTEIO - PECUÁRIA - POUPANÇA RURAL | E101: 18 | F101: 1 | G101: =IFERROR(VLOOKUP(B101,'1º SEM 2018'!$B:$I,8,0),0) -> 396188.53 | H101: =IFERROR(VLOOKUP(B101,'2º SEM 2018'!$B:$I,8,0),0) -> 0 | I101: =IFERROR(VLOOKUP(B101,'1º SEM 2019'!$B:$I,8,0),0) -> 419612.09
B102: 1.6.3.25.10.0002-6 | C102: 11772 | D102: (-) RDAS APROP - CP - POUPANÇA RURAL | E102: 18 | F102: 1 | G102: =IFERROR(VLOOKUP(B102,'1º SEM 2018'!$B:$I,8,0),0) -> -13122.37 | H102: =IFERROR(VLOOKUP(B102,'2º SEM 2018'!$B:$I,8,0),0) -> 0 | I102: =IFERROR(VLOOKUP(B102,'1º SEM 2019'!$B:$I,8,0),0) -> -25680.96
B103: 1.6.3.25.10-2 | D103: CUSTEIO - PECUÁRIA | E103: 13 | F103: 1 | G103: =IFERROR(VLOOKUP(B103,'1º SEM 2018'!$B:$I,8,0),0) -> 383066.16 | H103: =IFERROR(VLOOKUP(B103,'2º SEM 2018'!$B:$I,8,0),0) -> 0 | I103: =IFERROR(VLOOKUP(B103,'1º SEM 2019'!$B:$I,8,0),0) -> 393931.13
B104: 1.6.3.25.20.0001-8 | C104: 11779 | D104: INVESTIMENTO - PECUÁRIA - POUPANÇA RURAL | E104: 18 | F104: 1 | G104: =IFERROR(VLOOKUP(B104,'1º SEM 2018'!$B:$I,8,0),0) -> 820931.8 | H104: =IFERROR(VLOOKUP(B104,'2º SEM 2018'!$B:$I,8,0),0) -> 3800119.42 | I104: =IFERROR(VLOOKUP(B104,'1º SEM 2019'!$B:$I,8,0),0) -> 3800119.42
B105: 1.6.3.25.20.0002-5 | C105: 11780 | D105: (-) RDAS APROP - IP - POUPANÇA RURAL | E105: 18 | F105: 1 | G105: =IFERROR(VLOOKUP(B105,'1º SEM 2018'!$B:$I,8,0),0) -> -92521.68 | H105: =IFERROR(VLOOKUP(B105,'2º SEM 2018'!$B:$I,8,0),0) -> -501615.33 | I105: =IFERROR(VLOOKUP(B105,'1º SEM 2019'!$B:$I,8,0),0) -> -353384.49
B106: 1.6.3.25.20-5 | D106: INVESTIMENTO - PECUÁRIA | E106: 13 | F106: 1 | G106: =IFERROR(VLOOKUP(B106,'1º SEM 2018'!$B:$I,8,0),0) -> 728410.12 | H106: =IFERROR(VLOOKUP(B106,'2º SEM 2018'!$B:$I,8,0),0) -> 3298504.09 | I106: =IFERROR(VLOOKUP(B106,'1º SEM 2019'!$B:$I,8,0),0) -> 3446734.93
B107: 1.6.3.35.00-6 | D107: FINANCIAMENTOS RURAIS - APLICAÇÕES COM RECURSOS DIRECIONADOS DE LCA | E107: 13 | F107: 1 | G107: =IFERROR(VLOOKUP(B107,'1º SEM 2018'!$B:$I,8,0),0) -> 0 | H107: =IFERROR(VLOOKUP(B107,'2º SEM 2018'!$B:$I,8,0),0) -> 1145951.06 | I107: =IFERROR(VLOOKUP(B107,'1º SEM 2019'!$B:$I,8,0),0) -> 1287264.13
B108: 1.6.3.35.10.0001-2 | C108: 11803 | D108: CUSTEIO - PECUÁRIA - REC. DIREC. LCA | E108: 18 | F108: 1 | G108: =IFERROR(VLOOKUP(B108,'1º SEM 2018'!$B:$I,8,0),0) -> 0 | H108: =IFERROR(VLOOKUP(B108,'2º SEM 2018'!$B:$I,8,0),0) -> 1224643.38 | I108: =IFERROR(VLOOKUP(B108,'1º SEM 2019'!$B:$I,8,0),0) -> 1322639.43
B109: 1.6.3.35.10.0002-9 | C109: 11804 | D109: (-) RDAS APROP - CP - REC. DIREC. LCA | E109: 18 | F109: 1 | G109: =IFERROR(VLOOKUP(B109,'1º SEM 2018'!$B:$I,8,0),0) -> 0 | H109: =IFERROR(VLOOKUP(B109,'2º SEM 2018'!$B:$I,8,0),0) -> -78692.32 | I109: =IFERROR(VLOOKUP(B109,'1º SEM 2019'!$B:$I,8,0),0) -> -35375.3
B110: 1.6.3.35.10-9 | D110: CUSTEIO - PECUÁRIA | E110: 13 | F110: 1 | G110: =IFERROR(VLOOKUP(B110,'1º SEM 2018'!$B:$I,8,0),0) -> 0 | H110: =IFERROR(VLOOKUP(B110,'2º SEM 2018'!$B:$I,8,0),0) -> 1145951.06 | I110: =IFERROR(VLOOKUP(B110,'1º SEM 2019'!$B:$I,8,0),0) -> 1287264.13
B111: 1.6.9.00.00-8 | D111: (-) PROVISOES PARA OPERACOES DE CREDITO | E111: 13 | F111: 1 | G111: =IFERROR(VLOOKUP(B111,'1º SEM 2018'!$B:$I,8,0),0) -> -15114840.84 | H111: =IFERROR(VLOOKUP(B111,'2º SEM 2018'!$B:$I,8,0),0) -> -14108258.97 | I111: =IFERROR(VLOOKUP(B111,'1º SEM 2019'!$B:$I,8,0),0) -> -13021740.34
B112: 1.6.9.20.00.0001-9 | C112: 1945 | D112: (-) ADIANTAMENTOS A DEPOSITANTES | E112: 18 | F112: 1 | G112: =IFERROR(VLOOKUP(B112,'1º SEM 2018'!$B:$I,8,0),0) -> -104824.72 | H112: =IFERROR(VLOOKUP(B112,'2º SEM 2018'!$B:$I,8,0),0) -> -40212.19 | I112: =IFERROR(VLOOKUP(B112,'1º SEM 2019'!$B:$I,8,0),0) -> -63806.1
B113: 1.6.9.20.00.0002-6 | C113: 1946 | D113: (-) EMPRÉSTIMOS | E113: 18 | F113: 1 | G113: =IFERROR(VLOOKUP(B113,'1º SEM 2018'!$B:$I,8,0),0) -> -14260877.4 | H113: =IFERROR(VLOOKUP(B113,'2º SEM 2018'!$B:$I,8,0),0) -> -13330337.67 | I113: =IFERROR(VLOOKUP(B113,'1º SEM 2019'!$B:$I,8,0),0) -> -11886439.25
B114: 1.6.9.20.00.0003-3 | C114: 1947 | D114: (-) CHEQUE ESPECIAL | E114: 18 | F114: 1 | G114: =IFERROR(VLOOKUP(B114,'1º SEM 2018'!$B:$I,8,0),0) -> -67899.4 | H114: =IFERROR(VLOOKUP(B114,'2º SEM 2018'!$B:$I,8,0),0) -> -98584.45 | I114: =IFERROR(VLOOKUP(B114,'1º SEM 2019'!$B:$I,8,0),0) -> -130355.64
B115: 1.6.9.20.00.0005-7 | C115: 1949 | D115: (-) TÍTULOS DESCONTADOS | E115: 18 | F115: 1 | G115: =IFERROR(VLOOKUP(B115,'1º SEM 2018'!$B:$I,8,0),0) -> -71981.06 | H115: =IFERROR(VLOOKUP(B115,'2º SEM 2018'!$B:$I,8,0),0) -> -118124.04 | I115: =IFERROR(VLOOKUP(B115,'1º SEM 2019'!$B:$I,8,0),0) -> -99673.43
B116: 1.6.9.20.00.0007-1 | C116: 1951 | D116: (-) CONTA GARANTIDA | E116: 18 | F116: 1 | G116: =IFERROR(VLOOKUP(B116,'1º SEM 2018'!$B:$I,8,0),0) -> -226583.6 | H116: =IFERROR(VLOOKUP(B116,'2º SEM 2018'!$B:$I,8,0),0) -> -175650.22 | I116: =IFERROR(VLOOKUP(B116,'1º SEM 2019'!$B:$I,8,0),0) -> -243362.26
B117: 1.6.9.20.00.0011-2 | C117: 1955 | D117: (-) CRÉDITO PESSOAL | E117: 18 | F117: 1 | G117: =IFERROR(VLOOKUP(B117,'1º SEM 2018'!$B:$I,8,0),0) -> 0 | H117: =IFERROR(VLOOKUP(B117,'2º SEM 2018'!$B:$I,8,0),0) -> -11014.49 | I117: =IFERROR(VLOOKUP(B117,'1º SEM 2019'!$B:$I,8,0),0) -> 0
B118: 1.6.9.20.00.0035-6 | C118: 12065 | D118: (-) CRÉDITO PESSOAL | E118: 18 | F118: 1 | G118: =IFERROR(VLOOKUP(B118,'1º SEM 2018'!$B:$I,8,0),0) -> 0 | H118: =IFERROR(VLOOKUP(B118,'2º SEM 2018'!$B:$I,8,0),0) -> 0 | I118: =IFERROR(VLOOKUP(B118,'1º SEM 2019'!$B:$I,8,0),0) -> 0
B119: 1.6.9.20.00.0037-0 | C119: 12067 | D119: (-) CAPITAL DE GIRO | E119: 18 | F119: 1 | G119: =IFERROR(VLOOKUP(B119,'1º SEM 2018'!$B:$I,8,0),0) -> 0 | H119: =IFERROR(VLOOKUP(B119,'2º SEM 2018'!$B:$I,8,0),0) -> 0 | I119: =IFERROR(VLOOKUP(B119,'1º SEM 2019'!$B:$I,8,0),0) -> 0
B120: 1.6.9.20.00-2 | D120: (-) PROVISÃO PARA EMPRÉSTIMOS E DIREITOS CREDITÓRIOS DESCONTADOS | E120: 13 | F120: 1 | G120: =IFERROR(VLOOKUP(B120,'1º SEM 2018'!$B:$I,8,0),0) -> -14732166.18 | H120: =IFERROR(VLOOKUP(B120,'2º SEM 2018'!$B:$I,8,0),0) -> -13773923.06 | I120: =IFERROR(VLOOKUP(B120,'1º SEM 2019'!$B:$I,8,0),0) -> -12423636.68
B121: 1.6.9.30.00.0003-6 | C121: 1977 | D121: (-) FINANCIAMENTOS | E121: 18 | F121: 1 | G121: =IFERROR(VLOOKUP(B121,'1º SEM 2018'!$B:$I,8,0),0) -> -183002.7 | H121: =IFERROR(VLOOKUP(B121,'2º SEM 2018'!$B:$I,8,0),0) -> -176325.04 | I121: =IFERROR(VLOOKUP(B121,'1º SEM 2019'!$B:$I,8,0),0) -> -367548.47
B122: 1.6.9.30.00-9 | D122: (-) PROVISAO PARA FINANCIAMENTOS | E122: 13 | F122: 1 | G122: =IFERROR(VLOOKUP(B122,'1º SEM 2018'!$B:$I,8,0),0) -> -183002.7 | H122: =IFERROR(VLOOKUP(B122,'2º SEM 2018'!$B:$I,8,0),0) -> -176325.04 | I122: =IFERROR(VLOOKUP(B122,'1º SEM 2019'!$B:$I,8,0),0) -> -367548.47
B123: 1.6.9.40.00.0026-6 | C123: 11868 | D123: (-) RECURSOS APLICAÇÕES LIVRES | E123: 18 | F123: 1 | G123: =IFERROR(VLOOKUP(B123,'1º SEM 2018'!$B:$I,8,0),0) -> -42089 | H123: =IFERROR(VLOOKUP(B123,'2º SEM 2018'!$B:$I,8,0),0) -> -28320.23 | I123: =IFERROR(VLOOKUP(B123,'1º SEM 2019'!$B:$I,8,0),0) -> -39820.58
B124: 1.6.9.40.00.0027-3 | C124: 11869 | D124: (-) RECURSOS DIRECIONADOS À VISTA | E124: 18 | F124: 1 | G124: =IFERROR(VLOOKUP(B124,'1º SEM 2018'!$B:$I,8,0),0) -> -146259.78 | H124: =IFERROR(VLOOKUP(B124,'2º SEM 2018'!$B:$I,8,0),0) -> -75418.54 | I124: =IFERROR(VLOOKUP(B124,'1º SEM 2019'!$B:$I,8,0),0) -> -7015.85
B125: 1.6.9.40.00.0028-0 | C125: 11870 | D125: (-) RECURSOS DIRECIONADOS DA POUPANÇA RURAL | E125: 18 | F125: 1 | G125: =IFERROR(VLOOKUP(B125,'1º SEM 2018'!$B:$I,8,0),0) -> -11323.18 | H125: =IFERROR(VLOOKUP(B125,'2º SEM 2018'!$B:$I,8,0),0) -> -39950.32 | I125: =IFERROR(VLOOKUP(B125,'1º SEM 2019'!$B:$I,8,0),0) -> -159308.82
B126: 1.6.9.40.00.0029-7 | C126: 11871 | D126: (-) RECURSOS DIRECIONADOS DE LCA | E126: 18 | F126: 1 | G126: =IFERROR(VLOOKUP(B126,'1º SEM 2018'!$B:$I,8,0),0) -> 0 | H126: =IFERROR(VLOOKUP(B126,'2º SEM 2018'!$B:$I,8,0),0) -> -14321.78 | I126: =IFERROR(VLOOKUP(B126,'1º SEM 2019'!$B:$I,8,0),0) -> -24409.94
B127: 1.6.9.40.00-6 | D127: (-) PROVISAO PARA FINANC. RURAIS E AGROINDUSTRIAIS | E127: 13 | F127: 1 | G127: =IFERROR(VLOOKUP(B127,'1º SEM 2018'!$B:$I,8,0),0) -> -199671.96 | H127: =IFERROR(VLOOKUP(B127,'2º SEM 2018'!$B:$I,8,0),0) -> -158010.87 | I127: =IFERROR(VLOOKUP(B127,'1º SEM 2019'!$B:$I,8,0),0) -> -230555.19
B128: 1.8.0.00.00-9 | D128: OUTROS CREDITOS | E128: 13 | F128: 1 | G128: =IFERROR(VLOOKUP(B128,'1º SEM 2018'!$B:$I,8,0),0) -> 3216644.73 | H128: =IFERROR(VLOOKUP(B128,'2º SEM 2018'!$B:$I,8,0),0) -> 3248685.06 | I128: =IFERROR(VLOOKUP(B128,'1º SEM 2019'!$B:$I,8,0),0) -> 4274813.21
B129: 1.8.1.00.00-2 | D129: AVAIS E FIANCAS HONRADOS | E129: 13 | F129: 1 | G129: =IFERROR(VLOOKUP(B129,'1º SEM 2018'!$B:$I,8,0),0) -> 97138.34 | H129: =IFERROR(VLOOKUP(B129,'2º SEM 2018'!$B:$I,8,0),0) -> 83657.49 | I129: =IFERROR(VLOOKUP(B129,'1º SEM 2019'!$B:$I,8,0),0) -> 168615.52
B130: 1.8.1.10.00.0001-8 | C130: 11024 | D130: CRÉDITO POR AVAIS E FIANÇAS HONRADOS | E130: 18 | F130: 1 | G130: =IFERROR(VLOOKUP(B130,'1º SEM 2018'!$B:$I,8,0),0) -> 97138.34 | H130: =IFERROR(VLOOKUP(B130,'2º SEM 2018'!$B:$I,8,0),0) -> 83657.49 | I130: =IFERROR(VLOOKUP(B130,'1º SEM 2019'!$B:$I,8,0),0) -> 168615.52
B131: 1.8.1.10.00-9 | D131: CREDITOS POR AVAIS E FIANCAS HONRADOS | E131: 13 | F131: 1 | G131: =IFERROR(VLOOKUP(B131,'1º SEM 2018'!$B:$I,8,0),0) -> 97138.34 | H131: =IFERROR(VLOOKUP(B131,'2º SEM 2018'!$B:$I,8,0),0) -> 83657.49 | I131: =IFERROR(VLOOKUP(B131,'1º SEM 2019'!$B:$I,8,0),0) -> 168615.52
B132: 1.8.3.00.00-8 | D132: RENDAS A RECEBER | E132: 13 | F132: 1 | G132: =IFERROR(VLOOKUP(B132,'1º SEM 2018'!$B:$I,8,0),0) -> 698701.98 | H132: =IFERROR(VLOOKUP(B132,'2º SEM 2018'!$B:$I,8,0),0) -> 749754.68 | I132: =IFERROR(VLOOKUP(B132,'1º SEM 2019'!$B:$I,8,0),0) -> 763196.89
B133: 1.8.3.70.00.0004-5 | C133: 11031 | D133: RENDAS CONVÊNIOS A RECEBER - TRIBUTOS FEDERAIS | E133: 18 | F133: 1 | G133: =IFERROR(VLOOKUP(B133,'1º SEM 2018'!$B:$I,8,0),0) -> 1755.82 | H133: =IFERROR(VLOOKUP(B133,'2º SEM 2018'!$B:$I,8,0),0) -> 1827.32 | I133: =IFERROR(VLOOKUP(B133,'1º SEM 2019'!$B:$I,8,0),0) -> 1974.25
B134: 1.8.3.70.00.0005-2 | C134: 11032 | D134: RENDAS CONVÊNIOS A RECEBER - TRIBUTOS ESTADUAIS | E134: 18 | F134: 1 | G134: =IFERROR(VLOOKUP(B134,'1º SEM 2018'!$B:$I,8,0),0) -> 30583.72 | H134: =IFERROR(VLOOKUP(B134,'2º SEM 2018'!$B:$I,8,0),0) -> 24327.3 | I134: =IFERROR(VLOOKUP(B134,'1º SEM 2019'!$B:$I,8,0),0) -> 28580.96
B135: 1.8.3.70.00.0006-9 | C135: 11033 | D135: RENDAS CONVÊNIOS A RECEBER - TRIBUTOS MUNICIPAIS | E135: 18 | F135: 1 | G135: =IFERROR(VLOOKUP(B135,'1º SEM 2018'!$B:$I,8,0),0) -> 157.36 | H135: =IFERROR(VLOOKUP(B135,'2º SEM 2018'!$B:$I,8,0),0) -> 112.71 | I135: =IFERROR(VLOOKUP(B135,'1º SEM 2019'!$B:$I,8,0),0) -> 133.78
B136: 1.8.3.70.00.0007-6 | C136: 11034 | D136: RENDAS CONVÊNIOS A RECEBER - ENERGIA ELÉTRICA GAS | E136: 18 | F136: 1 | G136: =IFERROR(VLOOKUP(B136,'1º SEM 2018'!$B:$I,8,0),0) -> 0 | H136: =IFERROR(VLOOKUP(B136,'2º SEM 2018'!$B:$I,8,0),0) -> 0 | I136: =IFERROR(VLOOKUP(B136,'1º SEM 2019'!$B:$I,8,0),0) -> 0
B137: 1.8.3.70.00.0008-3 | C137: 11035 | D137: RENDAS CONVÊNIOS A RECEBER - SANEAMENTO | E137: 18 | F137: 1 | G137: =IFERROR(VLOOKUP(B137,'1º SEM 2018'!$B:$I,8,0),0) -> 0 | H137: =IFERROR(VLOOKUP(B137,'2º SEM 2018'!$B:$I,8,0),0) -> 0 | I137: =IFERROR(VLOOKUP(B137,'1º SEM 2019'!$B:$I,8,0),0) -> 0
B138: 1.8.3.70.00.0009-0 | C138: 11036 | D138: RENDAS CONVÊNIOS A RECEBER - TELECOMUNICAÇÕES | E138: 18 | F138: 1 | G138: =IFERROR(VLOOKUP(B138,'1º SEM 2018'!$B:$I,8,0),0) -> 0 | H138: =IFERROR(VLOOKUP(B138,'2º SEM 2018'!$B:$I,8,0),0) -> 0 | I138: =IFERROR(VLOOKUP(B138,'1º SEM 2019'!$B:$I,8,0),0) -> 0
B139: 1.8.3.70.00.0010-0 | C139: 11037 | D139: RENDAS CONVÊNIOS A RECEBER - DPVAT | E139: 18 | F139: 1 | G139: =IFERROR(VLOOKUP(B139,'1º SEM 2018'!$B:$I,8,0),0) -> 0 | H139: =IFERROR(VLOOKUP(B139,'2º SEM 2018'!$B:$I,8,0),0) -> 0 | I139: =IFERROR(VLOOKUP(B139,'1º SEM 2019'!$B:$I,8,0),0) -> 0
B140: 1.8.3.70.00.0011-7 | C140: 11038 | D140: RENDAS CONVÊNIOS A RECEBER - CARNÊS/ASSEMELHADOS | E140: 18 | F140: 1 | G140: =IFERROR(VLOOKUP(B140,'1º SEM 2018'!$B:$I,8,0),0) -> 0 | H140: =IFERROR(VLOOKUP(B140,'2º SEM 2018'!$B:$I,8,0),0) -> 0 | I140: =IFERROR(VLOOKUP(B140,'1º SEM 2019'!$B:$I,8,0),0) -> 0
B141: 1.8.3.70.00.0013-1 | C141: 11040 | D141: RENDAS CONVÊNIOS A RECEBER - FGTS | E141: 18 | F141: 1 | G141: =IFERROR(VLOOKUP(B141,'1º SEM 2018'!$B:$I,8,0),0) -> 2957.28 | H141: =IFERROR(VLOOKUP(B141,'2º SEM 2018'!$B:$I,8,0),0) -> 2887.74 | I141: =IFERROR(VLOOKUP(B141,'1º SEM 2019'!$B:$I,8,0),0) -> 2843.82
B142: 1.8.3.70.00.0014-8 | C142: 11041 | D142: RENDAS CONVÊNIOS A RECEBER - SEGUROS | E142: 18 | F142: 1 | G142: =IFERROR(VLOOKUP(B142,'1º SEM 2018'!$B:$I,8,0),0) -> 0 | H142: =IFERROR(VLOOKUP(B142,'2º SEM 2018'!$B:$I,8,0),0) -> 0 | I142: =IFERROR(VLOOKUP(B142,'1º SEM 2019'!$B:$I,8,0),0) -> 0
B143: 1.8.3.70.00.0015-5 | C143: 11042 | D143: RENDAS CONVÊNIOS A RECEBER - MULTAS DE TRÂNSITO | E143: 18 | F143: 1 | G143: =IFERROR(VLOOKUP(B143,'1º SEM 2018'!$B:$I,8,0),0) -> 1711.95 | H143: =IFERROR(VLOOKUP(B143,'2º SEM 2018'!$B:$I,8,0),0) -> 2547.4 | I143: =IFERROR(VLOOKUP(B143,'1º SEM 2019'!$B:$I,8,0),0) -> 3623.48
B144: 1.8.3.70.00.0016-2 | C144: 11043 | D144: RENDAS CONVÊNIOS A RECEBER - DEMAIS EMPRESAS | E144: =LEN(B144) -> 18 | F144: =LEFT(B144) -> 1 | G144: =IFERROR(VLOOKUP(B144,'1º SEM 2018'!$B:$I,8,0),0) -> 0 | H144: =IFERROR(VLOOKUP(B144,'2º SEM 2018'!$B:$I,8,0),0) -> 0 | I144: =IFERROR(VLOOKUP(B144,'1º SEM 2019'!$B:$I,8,0),0) -> 0
B145: 1.8.3.70.00.0017-9 | C145: 11338 | D145: RENDAS A RECEBER - CARTÕES | E145: 18 | F145: 1 | G145: =IFERROR(VLOOKUP(B145,'1º SEM 2018'!$B:$I,8,0),0) -> 0 | H145: =IFERROR(VLOOKUP(B145,'2º SEM 2018'!$B:$I,8,0),0) -> 0 | I145: =IFERROR(VLOOKUP(B145,'1º SEM 2019'!$B:$I,8,0),0) -> 0
B146: 1.8.3.70.00.0019-3 | C146: 11366 | D146: RENDAS A RECEBER - DOMICÍLIO BANCÁRIO | E146: 18 | F146: 1 | G146: =IFERROR(VLOOKUP(B146,'1º SEM 2018'!$B:$I,8,0),0) -> 0 | H146: =IFERROR(VLOOKUP(B146,'2º SEM 2018'!$B:$I,8,0),0) -> 0 | I146: =IFERROR(VLOOKUP(B146,'1º SEM 2019'!$B:$I,8,0),0) -> 0
B147: 1.8.3.70.00-7 | D147: SERVICOS PRESTADOS A RECEBER | E147: 13 | F147: 1 | G147: =IFERROR(VLOOKUP(B147,'1º SEM 2018'!$B:$I,8,0),0) -> 37166.13 | H147: =IFERROR(VLOOKUP(B147,'2º SEM 2018'!$B:$I,8,0),0) -> 31702.47 | I147: =IFERROR(VLOOKUP(B147,'1º SEM 2019'!$B:$I,8,0),0) -> 37156.29
B148: 1.8.3.90.00.0001-0 | C148: 11044 | D148: CENTRALIZAÇÃO FINANCEIRA | E148: 18 | F148: 1 | G148: =IFERROR(VLOOKUP(B148,'1º SEM 2018'!$B:$I,8,0),0) -> 659700.29 | H148: =IFERROR(VLOOKUP(B148,'2º SEM 2018'!$B:$I,8,0),0) -> 716360.12 | I148: =IFERROR(VLOOKUP(B148,'1º SEM 2019'!$B:$I,8,0),0) -> 725644.65
B149: 1.8.3.90.00.0007-2 | C149: 11050 | D149: RENDAS CONVÊNIOS A RECEBER - INSS | E149: 18 | F149: 1 | G149: =IFERROR(VLOOKUP(B149,'1º SEM 2018'!$B:$I,8,0),0) -> 1835.56 | H149: =IFERROR(VLOOKUP(B149,'2º SEM 2018'!$B:$I,8,0),0) -> 1692.09 | I149: =IFERROR(VLOOKUP(B149,'1º SEM 2019'!$B:$I,8,0),0) -> 395.95
B150: 1.8.3.90.00.9999-7 | C150: 11051 | D150: OUTRAS RENDAS A RECEBER | E150: 18 | F150: 1 | G150: =IFERROR(VLOOKUP(B150,'1º SEM 2018'!$B:$I,8,0),0) -> 0 | H150: =IFERROR(VLOOKUP(B150,'2º SEM 2018'!$B:$I,8,0),0) -> 0 | I150: =IFERROR(VLOOKUP(B150,'1º SEM 2019'!$B:$I,8,0),0) -> 0
B151: 1.8.3.90.00-1 | D151: OUTRAS RENDAS A RECEBER | E151: 13 | F151: 1 | G151: =IFERROR(VLOOKUP(B151,'1º SEM 2018'!$B:$I,8,0),0) -> 661535.85 | H151: =IFERROR(VLOOKUP(B151,'2º SEM 2018'!$B:$I,8,0),0) -> 718052.21 | I151: =IFERROR(VLOOKUP(B151,'1º SEM 2019'!$B:$I,8,0),0) -> 726040.6
B152: 1.8.8.00.00-3 | D152: DIVERSOS | E152: 13 | F152: 1 | G152: =IFERROR(VLOOKUP(B152,'1º SEM 2018'!$B:$I,8,0),0) -> 2488250.2 | H152: =IFERROR(VLOOKUP(B152,'2º SEM 2018'!$B:$I,8,0),0) -> 2476520.42 | I152: =IFERROR(VLOOKUP(B152,'1º SEM 2019'!$B:$I,8,0),0) -> 3454838.37
B153: 1.8.8.03.00.0001-9 | C153: 11070 | D153: ADIANTAMENTO DE SALÁRIOS | E153: 18 | F153: 1 | G153: =IFERROR(VLOOKUP(B153,'1º SEM 2018'!$B:$I,8,0),0) -> 0 | H153: =IFERROR(VLOOKUP(B153,'2º SEM 2018'!$B:$I,8,0),0) -> 0 | I153: =IFERROR(VLOOKUP(B153,'1º SEM 2019'!$B:$I,8,0),0) -> 0
B154: 1.8.8.03.00.0004-0 | C154: 11073 | D154: ADIANTAMENTO DE FÉRIAS | E154: 18 | F154: 1 | G154: =IFERROR(VLOOKUP(B154,'1º SEM 2018'!$B:$I,8,0),0) -> 9205.26 | H154: =IFERROR(VLOOKUP(B154,'2º SEM 2018'!$B:$I,8,0),0) -> 0 | I154: =IFERROR(VLOOKUP(B154,'1º SEM 2019'!$B:$I,8,0),0) -> 0
B155: 1.8.8.03.00.0005-7 | C155: 11074 | D155: ADIANTAMENTO DE RESCISÕES | E155: 18 | F155: 1 | G155: =IFERROR(VLOOKUP(B155,'1º SEM 2018'!$B:$I,8,0),0) -> 0 | H155: =IFERROR(VLOOKUP(B155,'2º SEM 2018'!$B:$I,8,0),0) -> 0 | I155: =IFERROR(VLOOKUP(B155,'1º SEM 2019'!$B:$I,8,0),0) -> 0
B156: 1.8.8.03.00.0006-4 | C156: 11075 | D156: ADIANTAMENTO DE VALE TRANSPORTE | E156: 18 | F156: 1 | G156: =IFERROR(VLOOKUP(B156,'1º SEM 2018'!$B:$I,8,0),0) -> 0 | H156: =IFERROR(VLOOKUP(B156,'2º SEM 2018'!$B:$I,8,0),0) -> 0 | I156: =IFERROR(VLOOKUP(B156,'1º SEM 2019'!$B:$I,8,0),0) -> 0
B157: 1.8.8.03.00.0007-1 | C157: 11076 | D157: ADIANTAMENTO DE FGTS - 13º SALÁRIO | E157: 18 | F157: 1 | G157: =IFERROR(VLOOKUP(B157,'1º SEM 2018'!$B:$I,8,0),0) -> 0 | H157: =IFERROR(VLOOKUP(B157,'2º SEM 2018'!$B:$I,8,0),0) -> 0 | I157: =IFERROR(VLOOKUP(B157,'1º SEM 2019'!$B:$I,8,0),0) -> 0
B158: 1.8.8.03.00-0 | D158: ADIANTAMENTOS E ANTECIPACOES SALARIAIS | E158: 13 | F158: 1 | G158: =IFERROR(VLOOKUP(B158,'1º SEM 2018'!$B:$I,8,0),0) -> 9205.26 | H158: =IFERROR(VLOOKUP(B158,'2º SEM 2018'!$B:$I,8,0),0) -> 0 | I158: =IFERROR(VLOOKUP(B158,'1º SEM 2019'!$B:$I,8,0),0) -> 0
B159: 1.8.8.05.00.0001-3 | C159: 11078 | D159: ADIANTAMENTOS PARA DESPESAS DE VIAGEM | E159: 18 | F159: 1 | G159: =IFERROR(VLOOKUP(B159,'1º SEM 2018'!$B:$I,8,0),0) -> 1660 | H159: =IFERROR(VLOOKUP(B159,'2º SEM 2018'!$B:$I,8,0),0) -> 0 | I159: =IFERROR(VLOOKUP(B159,'1º SEM 2019'!$B:$I,8,0),0) -> 6014.9
B160: 1.8.8.05.00.0003-7 | C160: 11079 | D160: ADIANTAMENTOS DESPESAS HONORÁRIOS | E160: 18 | F160: 1 | G160: =IFERROR(VLOOKUP(B160,'1º SEM 2018'!$B:$I,8,0),0) -> 0 | H160: =IFERROR(VLOOKUP(B160,'2º SEM 2018'!$B:$I,8,0),0) -> 0 | I160: =IFERROR(VLOOKUP(B160,'1º SEM 2019'!$B:$I,8,0),0) -> 0
B161: 1.8.8.05.00.0004-4 | C161: 11080 | D161: ADIANTAMENTOS PARA DESPESAS DIVERSAS | E161: 18 | F161: 1 | G161: =IFERROR(VLOOKUP(B161,'1º SEM 2018'!$B:$I,8,0),0) -> 0 | H161: =IFERROR(VLOOKUP(B161,'2º SEM 2018'!$B:$I,8,0),0) -> 0 | I161: =IFERROR(VLOOKUP(B161,'1º SEM 2019'!$B:$I,8,0),0) -> 3400
B162: 1.8.8.05.00.9999-0 | C162: 11084 | D162: OUTRAS | E162: 18 | F162: 1 | G162: =IFERROR(VLOOKUP(B162,'1º SEM 2018'!$B:$I,8,0),0) -> 0 | H162: =IFERROR(VLOOKUP(B162,'2º SEM 2018'!$B:$I,8,0),0) -> 0 | I162: =IFERROR(VLOOKUP(B162,'1º SEM 2019'!$B:$I,8,0),0) -> 78585.9
B163: 1.8.8.05.00-8 | D163: ADIANTAMENTOS PARA PAGAMENTOS DE NOSSA CONTA | E163: 13 | F163: 1 | G163: =IFERROR(VLOOKUP(B163,'1º SEM 2018'!$B:$I,8,0),0) -> 1660 | H163: =IFERROR(VLOOKUP(B163,'2º SEM 2018'!$B:$I,8,0),0) -> 0 | I163: =IFERROR(VLOOKUP(B163,'1º SEM 2019'!$B:$I,8,0),0) -> 88000.8
B164: 1.8.8.10.00.0001-1 | C164: 11085 | D164: ADIANTAMENTOS POR CONTA DE IMOBILIZAÇÕES | E164: 18 | F164: 1 | G164: =IFERROR(VLOOKUP(B164,'1º SEM 2018'!$B:$I,8,0),0) -> 226460.14 | H164: =IFERROR(VLOOKUP(B164,'2º SEM 2018'!$B:$I,8,0),0) -> 224210.14 | I164: =IFERROR(VLOOKUP(B164,'1º SEM 2019'!$B:$I,8,0),0) -> 559335.08
B165: 1.8.8.10.00-0 | D165: ADIANTAMENTOS POR CONTA DE IMOBILIZACOES | E165: 13 | F165: 1 | G165: =IFERROR(VLOOKUP(B165,'1º SEM 2018'!$B:$I,8,0),0) -> 226460.14 | H165: =IFERROR(VLOOKUP(B165,'2º SEM 2018'!$B:$I,8,0),0) -> 224210.14 | I165: =IFERROR(VLOOKUP(B165,'1º SEM 2019'!$B:$I,8,0),0) -> 559335.08
B166: 1.8.8.40.00-1 | D166: DEVEDORES POR DEPOSITOS EM GARANTIA | E166: 13 | F166: 1 | G166: =IFERROR(VLOOKUP(B166,'1º SEM 2018'!$B:$I,8,0),0) -> 1986429.48 | H166: =IFERROR(VLOOKUP(B166,'2º SEM 2018'!$B:$I,8,0),0) -> 2012013.65 | I166: =IFERROR(VLOOKUP(B166,'1º SEM 2019'!$B:$I,8,0),0) -> 2034551.83
B167: 1.8.8.40.05.0002-2 | C167: 11107 | D167: PIS - DEPÓSITO JUDICIAL | E167: 18 | F167: 1 | G167: =IFERROR(VLOOKUP(B167,'1º SEM 2018'!$B:$I,8,0),0) -> 428859.29 | H167: =IFERROR(VLOOKUP(B167,'2º SEM 2018'!$B:$I,8,0),0) -> 433452.82 | I167: =IFERROR(VLOOKUP(B167,'1º SEM 2019'!$B:$I,8,0),0) -> 437942.63
B168: 1.8.8.40.05.0003-9 | C168: 11108 | D168: COFINS - DEPÓSITO JUDICIAL | E168: 18 | F168: 1 | G168: =IFERROR(VLOOKUP(B168,'1º SEM 2018'!$B:$I,8,0),0) -> 1547997.87 | H168: =IFERROR(VLOOKUP(B168,'2º SEM 2018'!$B:$I,8,0),0) -> 1566012.38 | I168: =IFERROR(VLOOKUP(B168,'1º SEM 2019'!$B:$I,8,0),0) -> 1583620.11
B169: 1.8.8.40.05-6 | D169: PARA INTERPOSICAO DE RECURSOS FISCAIS LEI 9.703/98 | E169: 13 | F169: 1 | G169: =IFERROR(VLOOKUP(B169,'1º SEM 2018'!$B:$I,8,0),0) -> 1976857.16 | H169: =IFERROR(VLOOKUP(B169,'2º SEM 2018'!$B:$I,8,0),0) -> 1999465.2 | I169: =IFERROR(VLOOKUP(B169,'1º SEM 2019'!$B:$I,8,0),0) -> 2021562.74
B170: 1.8.8.40.20.0001-8 | C170: 11122 | D170: PARA INTERPOSIÇÃO DE RECURSOS TRABALHISTAS | E170: 18 | F170: 1 | G170: =IFERROR(VLOOKUP(B170,'1º SEM 2018'!$B:$I,8,0),0) -> 9572.32 | H170: =IFERROR(VLOOKUP(B170,'2º SEM 2018'!$B:$I,8,0),0) -> 12548.45 | I170: =IFERROR(VLOOKUP(B170,'1º SEM 2019'!$B:$I,8,0),0) -> 12989.09
B171: 1.8.8.40.20-7 | D171: PARA INTERPOSICAO DE RECURSOS TRABALHISTAS | E171: 13 | F171: 1 | G171: =IFERROR(VLOOKUP(B171,'1º SEM 2018'!$B:$I,8,0),0) -> 9572.32 | H171: =IFERROR(VLOOKUP(B171,'2º SEM 2018'!$B:$I,8,0),0) -> 12548.45 | I171: =IFERROR(VLOOKUP(B171,'1º SEM 2019'!$B:$I,8,0),0) -> 12989.09
B172: 1.8.8.40.90.0001-1 | C172: 11123 | D172: OUTROS | E172: 18 | F172: 1 | G172: =IFERROR(VLOOKUP(B172,'1º SEM 2018'!$B:$I,8,0),0) -> 0 | H172: =IFERROR(VLOOKUP(B172,'2º SEM 2018'!$B:$I,8,0),0) -> 0 | I172: =IFERROR(VLOOKUP(B172,'1º SEM 2019'!$B:$I,8,0),0) -> 0
B173: 1.8.8.40.90-8 | D173: OUTROS | E173: 13 | F173: 1 | G173: =IFERROR(VLOOKUP(B173,'1º SEM 2018'!$B:$I,8,0),0) -> 0 | H173: =IFERROR(VLOOKUP(B173,'2º SEM 2018'!$B:$I,8,0),0) -> 0 | I173: =IFERROR(VLOOKUP(B173,'1º SEM 2019'!$B:$I,8,0),0) -> 0
B174: 1.8.8.50.00.0001-3 | C174: 11152 | D174: IMPOSTO DE RENDA A RECUPERAR | E174: 18 | F174: 1 | G174: =IFERROR(VLOOKUP(B174,'1º SEM 2018'!$B:$I,8,0),0) -> 0 | H174: =IFERROR(VLOOKUP(B174,'2º SEM 2018'!$B:$I,8,0),0) -> 0 | I174: =IFERROR(VLOOKUP(B174,'1º SEM 2019'!$B:$I,8,0),0) -> 0
B175: 1.8.8.50.00-8 | D175: IMPOSTO DE RENDA A RECUPERAR | E175: 13 | F175: 1 | G175: =IFERROR(VLOOKUP(B175,'1º SEM 2018'!$B:$I,8,0),0) -> 0 | H175: =IFERROR(VLOOKUP(B175,'2º SEM 2018'!$B:$I,8,0),0) -> 0 | I175: =IFERROR(VLOOKUP(B175,'1º SEM 2019'!$B:$I,8,0),0) -> 0
B176: 1.8.8.80.00-9 | D176: TÍTULOS E CRÉDITOS A RECEBER | E176: 13 | F176: 1 | G176: =IFERROR(VLOOKUP(B176,'1º SEM 2018'!$B:$I,8,0),0) -> 242203.58 | H176: =IFERROR(VLOOKUP(B176,'2º SEM 2018'!$B:$I,8,0),0) -> 219426.1 | I176: =IFERROR(VLOOKUP(B176,'1º SEM 2019'!$B:$I,8,0),0) -> 754775.15
B177: 1.8.8.80.20.0001-0 | C177: 11189 | D177: TÍTULOS E CRÉDITOS A RECEBER | E177: 18 | F177: 1 | G177: =IFERROR(VLOOKUP(B177,'1º SEM 2018'!$B:$I,8,0),0) -> 0 | H177: =IFERROR(VLOOKUP(B177,'2º SEM 2018'!$B:$I,8,0),0) -> 0 | I177: =IFERROR(VLOOKUP(B177,'1º SEM 2019'!$B:$I,8,0),0) -> 485500
B178: 1.8.8.80.20.0011-3 | C178: 11199 | D178: VALORES A RECEBER - TARIFAS | E178: 18 | F178: 1 | G178: =IFERROR(VLOOKUP(B178,'1º SEM 2018'!$B:$I,8,0),0) -> 242203.58 | H178: =IFERROR(VLOOKUP(B178,'2º SEM 2018'!$B:$I,8,0),0) -> 219426.1 | I178: =IFERROR(VLOOKUP(B178,'1º SEM 2019'!$B:$I,8,0),0) -> 269275.15
B179: 1.8.8.80.20-5 | D179: SEM CARACTERÍSTICA DE CONCESSÃO DE CRÉDITO | E179: 13 | F179: 1 | G179: =IFERROR(VLOOKUP(B179,'1º SEM 2018'!$B:$I,8,0),0) -> 242203.58 | H179: =IFERROR(VLOOKUP(B179,'2º SEM 2018'!$B:$I,8,0),0) -> 219426.1 | I179: =IFERROR(VLOOKUP(B179,'1º SEM 2019'!$B:$I,8,0),0) -> 754775.15
B180: 1.8.8.92.00.0005-7 | C180: 11205 | D180: DIFERENÇA DE CAIXA | E180: 18 | F180: 1 | G180: =IFERROR(VLOOKUP(B180,'1º SEM 2018'!$B:$I,8,0),0) -> 688.97 | H180: =IFERROR(VLOOKUP(B180,'2º SEM 2018'!$B:$I,8,0),0) -> 857.55 | I180: =IFERROR(VLOOKUP(B180,'1º SEM 2019'!$B:$I,8,0),0) -> 1920.95
B181: 1.8.8.92.00.0006-4 | C181: 11206 | D181: PENDÊNCIAS A REGULARIZAR | E181: 18 | F181: 1 | G181: =IFERROR(VLOOKUP(B181,'1º SEM 2018'!$B:$I,8,0),0) -> 9468.21 | H181: =IFERROR(VLOOKUP(B181,'2º SEM 2018'!$B:$I,8,0),0) -> 0 | I181: =IFERROR(VLOOKUP(B181,'1º SEM 2019'!$B:$I,8,0),0) -> 555.78
B182: 1.8.8.92.00.0015-0 | C182: 11215 | D182: PENDÊNCIAS A REGULARIZAR - CONTA CORRENTE | E182: 18 | F182: 1 | G182: =IFERROR(VLOOKUP(B182,'1º SEM 2018'!$B:$I,8,0),0) -> 0 | H182: =IFERROR(VLOOKUP(B182,'2º SEM 2018'!$B:$I,8,0),0) -> 0 | I182: =IFERROR(VLOOKUP(B182,'1º SEM 2019'!$B:$I,8,0),0) -> 0
B183: 1.8.8.92.00.0016-7 | C183: 11216 | D183: PENDÊNCIAS A REGULARIZAR - BANCOOB | E183: 18 | F183: 1 | G183: =IFERROR(VLOOKUP(B183,'1º SEM 2018'!$B:$I,8,0),0) -> 12134.56 | H183: =IFERROR(VLOOKUP(B183,'2º SEM 2018'!$B:$I,8,0),0) -> 20012.98 | I183: =IFERROR(VLOOKUP(B183,'1º SEM 2019'!$B:$I,8,0),0) -> 15698.78
B184: 1.8.8.92.00.0027-7 | C184: 11227 | D184: TRANSITÓRIA - AVAIS E FIANÇAS HONRADOS | E184: 18 | F184: 1 | G184: =IFERROR(VLOOKUP(B184,'1º SEM 2018'!$B:$I,8,0),0) -> 0 | H184: =IFERROR(VLOOKUP(B184,'2º SEM 2018'!$B:$I,8,0),0) -> 0 | I184: =IFERROR(VLOOKUP(B184,'1º SEM 2019'!$B:$I,8,0),0) -> 0
B185: 1.8.8.92.00.0033-2 | C185: 11233 | D185: TRANSITÓRIA COBRANÇA - CAIXA | E185: 18 | F185: 1 | G185: =IFERROR(VLOOKUP(B185,'1º SEM 2018'!$B:$I,8,0),0) -> 0 | H185: =IFERROR(VLOOKUP(B185,'2º SEM 2018'!$B:$I,8,0),0) -> 0 | I185: =IFERROR(VLOOKUP(B185,'1º SEM 2019'!$B:$I,8,0),0) -> 0
B186: 1.8.8.92.00.0034-9 | C186: 11234 | D186: TRANSITÓRIA CONVÊNIO - CAIXA | E186: 18 | F186: 1 | G186: =IFERROR(VLOOKUP(B186,'1º SEM 2018'!$B:$I,8,0),0) -> 0 | H186: =IFERROR(VLOOKUP(B186,'2º SEM 2018'!$B:$I,8,0),0) -> 0 | I186: =IFERROR(VLOOKUP(B186,'1º SEM 2019'!$B:$I,8,0),0) -> 0
B187: 1.8.8.92.00.0035-6 | C187: 11235 | D187: TRANSITÓRIA CONTA CORRENTE - CAIXA | E187: 18 | F187: 1 | G187: =IFERROR(VLOOKUP(B187,'1º SEM 2018'!$B:$I,8,0),0) -> 0 | H187: =IFERROR(VLOOKUP(B187,'2º SEM 2018'!$B:$I,8,0),0) -> 0 | I187: =IFERROR(VLOOKUP(B187,'1º SEM 2019'!$B:$I,8,0),0) -> 0
B188: 1.8.8.92.00.0036-3 | C188: 11236 | D188: TRANSITÓRIA EMPRÉSTIMO - CAIXA | E188: 18 | F188: 1 | G188: =IFERROR(VLOOKUP(B188,'1º SEM 2018'!$B:$I,8,0),0) -> 0 | H188: =IFERROR(VLOOKUP(B188,'2º SEM 2018'!$B:$I,8,0),0) -> 0 | I188: =IFERROR(VLOOKUP(B188,'1º SEM 2019'!$B:$I,8,0),0) -> 0
B189: 1.8.8.92.00.0037-0 | C189: 11237 | D189: TRANSITÓRIA TÍTULOS DESCONTADOS - CAIXA | E189: 18 | F189: 1 | G189: =IFERROR(VLOOKUP(B189,'1º SEM 2018'!$B:$I,8,0),0) -> 0 | H189: =IFERROR(VLOOKUP(B189,'2º SEM 2018'!$B:$I,8,0),0) -> 0 | I189: =IFERROR(VLOOKUP(B189,'1º SEM 2019'!$B:$I,8,0),0) -> 0
B190: 1.8.8.92.00.0038-7 | C190: 11238 | D190: TRANSITÓRIA CRÉDITO RURAL - CAIXA | E190: 18 | F190: 1 | G190: =IFERROR(VLOOKUP(B190,'1º SEM 2018'!$B:$I,8,0),0) -> 0 | H190: =IFERROR(VLOOKUP(B190,'2º SEM 2018'!$B:$I,8,0),0) -> 0 | I190: =IFERROR(VLOOKUP(B190,'1º SEM 2019'!$B:$I,8,0),0) -> 0
B191: 1.8.8.92.00.0039-4 | C191: 11239 | D191: TRANSITÓRIA CONTA CAPITAL - CAIXA | E191: 18 | F191: 1 | G191: =IFERROR(VLOOKUP(B191,'1º SEM 2018'!$B:$I,8,0),0) -> 0 | H191: =IFERROR(VLOOKUP(B191,'2º SEM 2018'!$B:$I,8,0),0) -> 0 | I191: =IFERROR(VLOOKUP(B191,'1º SEM 2019'!$B:$I,8,0),0) -> 0
B192: 1.8.8.92.00.0040-4 | C192: 11240 | D192: TRANSITÓRIA CONTROLES GERAIS - CAIXA | E192: 18 | F192: 1 | G192: =IFERROR(VLOOKUP(B192,'1º SEM 2018'!$B:$I,8,0),0) -> 0 | H192: =IFERROR(VLOOKUP(B192,'2º SEM 2018'!$B:$I,8,0),0) -> 0 | I192: =IFERROR(VLOOKUP(B192,'1º SEM 2019'!$B:$I,8,0),0) -> 0
B193: 1.8.8.92.00.0045-9 | C193: 11245 | D193: TRANSITÓRIA CONTA CORRENTE - CONTROLES GERAIS | E193: 18 | F193: 1 | G193: =IFERROR(VLOOKUP(B193,'1º SEM 2018'!$B:$I,8,0),0) -> 0 | H193: =IFERROR(VLOOKUP(B193,'2º SEM 2018'!$B:$I,8,0),0) -> 0 | I193: =IFERROR(VLOOKUP(B193,'1º SEM 2019'!$B:$I,8,0),0) -> 0
B194: 1.8.8.92.00.0050-7 | C194: 11250 | D194: TRANSITÓRIA CONTA CORRENTE - COBRANÇA | E194: 18 | F194: 1 | G194: =IFERROR(VLOOKUP(B194,'1º SEM 2018'!$B:$I,8,0),0) -> 0 | H194: =IFERROR(VLOOKUP(B194,'2º SEM 2018'!$B:$I,8,0),0) -> 0 | I194: =IFERROR(VLOOKUP(B194,'1º SEM 2019'!$B:$I,8,0),0) -> 0
B195: 1.8.8.92.00.0055-2 | C195: 11255 | D195: TRANSITÓRIA CONTA CORRENTE - CONVÊNIO | E195: 18 | F195: 1 | G195: =IFERROR(VLOOKUP(B195,'1º SEM 2018'!$B:$I,8,0),0) -> 0 | H195: =IFERROR(VLOOKUP(B195,'2º SEM 2018'!$B:$I,8,0),0) -> 0 | I195: =IFERROR(VLOOKUP(B195,'1º SEM 2019'!$B:$I,8,0),0) -> 0
B196: 1.8.8.92.00.0060-0 | C196: 11260 | D196: TRANSITÓRIA CONTA CORRENTE - EMPRÉSTIMO | E196: 18 | F196: 1 | G196: =IFERROR(VLOOKUP(B196,'1º SEM 2018'!$B:$I,8,0),0) -> 0 | H196: =IFERROR(VLOOKUP(B196,'2º SEM 2018'!$B:$I,8,0),0) -> 0 | I196: =IFERROR(VLOOKUP(B196,'1º SEM 2019'!$B:$I,8,0),0) -> 0
B197: 1.8.8.92.00.0061-7 | C197: 11261 | D197: TRANSITÓRIA CONTA CORRENTE - TÍTULOS DESCONTADOS | E197: 18 | F197: 1 | G197: =IFERROR(VLOOKUP(B197,'1º SEM 2018'!$B:$I,8,0),0) -> 0 | H197: =IFERROR(VLOOKUP(B197,'2º SEM 2018'!$B:$I,8,0),0) -> 0 | I197: =IFERROR(VLOOKUP(B197,'1º SEM 2019'!$B:$I,8,0),0) -> 0
B198: 1.8.8.92.00.0063-1 | C198: 11263 | D198: TRANSITÓRIA CONTA CORRENTE - CONTA CAPITAL | E198: 18 | F198: 1 | G198: =IFERROR(VLOOKUP(B198,'1º SEM 2018'!$B:$I,8,0),0) -> 0 | H198: =IFERROR(VLOOKUP(B198,'2º SEM 2018'!$B:$I,8,0),0) -> 0 | I198: =IFERROR(VLOOKUP(B198,'1º SEM 2019'!$B:$I,8,0),0) -> 0
B199: 1.8.8.92.00.0073-4 | C199: 11273 | D199: TRANSITÓRIA CONTA CORRENTE - CAPTAÇÃO REMUNERADA | E199: 18 | F199: 1 | G199: =IFERROR(VLOOKUP(B199,'1º SEM 2018'!$B:$I,8,0),0) -> 0 | H199: =IFERROR(VLOOKUP(B199,'2º SEM 2018'!$B:$I,8,0),0) -> 0 | I199: =IFERROR(VLOOKUP(B199,'1º SEM 2019'!$B:$I,8,0),0) -> 0
B200: 1.8.8.92.00.0074-1 | C200: 11274 | D200: TRANSITÓRIA CONTA CORRENTE - INSS | E200: 18 | F200: 1 | G200: =IFERROR(VLOOKUP(B200,'1º SEM 2018'!$B:$I,8,0),0) -> 0 | H200: =IFERROR(VLOOKUP(B200,'2º SEM 2018'!$B:$I,8,0),0) -> 0 | I200: =IFERROR(VLOOKUP(B200,'1º SEM 2019'!$B:$I,8,0),0) -> 0
B201: 1.8.8.92.00.0075-8 | C201: 11275 | D201: TRANSITÓRIA INTERCREDIS | E201: 18 | F201: 1 | G201: =IFERROR(VLOOKUP(B201,'1º SEM 2018'!$B:$I,8,0),0) -> 0 | H201: =IFERROR(VLOOKUP(B201,'2º SEM 2018'!$B:$I,8,0),0) -> 0 | I201: =IFERROR(VLOOKUP(B201,'1º SEM 2019'!$B:$I,8,0),0) -> 0
B202: 1.8.8.92.00.0081-3 | C202: 11281 | D202: TRANSITÓRIA CONTA CORRENTE - CRÉDITO PESSOAL | E202: 18 | F202: 1 | G202: =IFERROR(VLOOKUP(B202,'1º SEM 2018'!$B:$I,8,0),0) -> 0 | H202: =IFERROR(VLOOKUP(B202,'2º SEM 2018'!$B:$I,8,0),0) -> 0 | I202: =IFERROR(VLOOKUP(B202,'1º SEM 2019'!$B:$I,8,0),0) -> 0
B203: 1.8.8.92.00.0086-8 | C203: 11286 | D203: TRANSITÓRIA CONTA CORRENTE - COTAS PARTES | E203: 18 | F203: 1 | G203: =IFERROR(VLOOKUP(B203,'1º SEM 2018'!$B:$I,8,0),0) -> 0 | H203: =IFERROR(VLOOKUP(B203,'2º SEM 2018'!$B:$I,8,0),0) -> 0 | I203: =IFERROR(VLOOKUP(B203,'1º SEM 2019'!$B:$I,8,0),0) -> 0
B204: 1.8.8.92.00.0087-5 | C204: 11287 | D204: TRANSITÓRIA CONTROLES GERAIS - RENEGOCIAÇÃO DE DÍV | E204: 18 | F204: 1 | G204: =IFERROR(VLOOKUP(B204,'1º SEM 2018'!$B:$I,8,0),0) -> 0 | H204: =IFERROR(VLOOKUP(B204,'2º SEM 2018'!$B:$I,8,0),0) -> 0 | I204: =IFERROR(VLOOKUP(B204,'1º SEM 2019'!$B:$I,8,0),0) -> 0
B205: 1.8.8.92.00.0088-2 | C205: 11288 | D205: TRANSITÓRIA COBRANÇA - BANCO | E205: 18 | F205: 1 | G205: =IFERROR(VLOOKUP(B205,'1º SEM 2018'!$B:$I,8,0),0) -> 0 | H205: =IFERROR(VLOOKUP(B205,'2º SEM 2018'!$B:$I,8,0),0) -> 0 | I205: =IFERROR(VLOOKUP(B205,'1º SEM 2019'!$B:$I,8,0),0) -> 0
B206: 1.8.8.92.00.0094-7 | C206: 11294 | D206: TRANSITÓRIA CONTA CAPITAL - BANCO | E206: 18 | F206: 1 | G206: =IFERROR(VLOOKUP(B206,'1º SEM 2018'!$B:$I,8,0),0) -> 0 | H206: =IFERROR(VLOOKUP(B206,'2º SEM 2018'!$B:$I,8,0),0) -> 0 | I206: =IFERROR(VLOOKUP(B206,'1º SEM 2019'!$B:$I,8,0),0) -> 0
B207: 1.8.8.92.00.0097-8 | C207: 11297 | D207: TRANSITÓRIA TRANSFERÊNCIA ENTRE CONTAS CORRENTES | E207: 18 | F207: 1 | G207: =IFERROR(VLOOKUP(B207,'1º SEM 2018'!$B:$I,8,0),0) -> 0 | H207: =IFERROR(VLOOKUP(B207,'2º SEM 2018'!$B:$I,8,0),0) -> 0 | I207: =IFERROR(VLOOKUP(B207,'1º SEM 2019'!$B:$I,8,0),0) -> 0
B208: 1.8.8.92.00.0153-7 | C208: 11875 | D208: TRANSITÓRIA - FINANCIAMENTOS RURAIS | E208: =LEN(B208) -> 18 | F208: =LEFT(B208) -> 1 | G208: =IFERROR(VLOOKUP(B208,'1º SEM 2018'!$B:$I,8,0),0) -> 0 | H208: =IFERROR(VLOOKUP(B208,'2º SEM 2018'!$B:$I,8,0),0) -> 0 | I208: =IFERROR(VLOOKUP(B208,'1º SEM 2019'!$B:$I,8,0),0) -> 0
B209: 1.8.8.92.00.0156-8 | C209: 11878 | D209: TRANSITÓRIA - CENTRAL DE RISCO DE OPERAÇÕES | E209: 18 | F209: 1 | G209: =IFERROR(VLOOKUP(B209,'1º SEM 2018'!$B:$I,8,0),0) -> 0 | H209: =IFERROR(VLOOKUP(B209,'2º SEM 2018'!$B:$I,8,0),0) -> 0 | I209: =IFERROR(VLOOKUP(B209,'1º SEM 2019'!$B:$I,8,0),0) -> 0
B210: 1.8.8.92.00.2065-9 | C210: 11376 | D210: VALORES CRA´S - CARTÓRIOS | E210: 18 | F210: 1 | G210: =IFERROR(VLOOKUP(B210,'1º SEM 2018'!$B:$I,8,0),0) -> 0 | H210: =IFERROR(VLOOKUP(B210,'2º SEM 2018'!$B:$I,8,0),0) -> 0 | I210: =IFERROR(VLOOKUP(B210,'1º SEM 2019'!$B:$I,8,0),0) -> 0
B211: 1.8.8.92.00-4 | D211: DEVEDORES DIVERSOS - PAIS | E211: 13 | F211: 1 | G211: =IFERROR(VLOOKUP(B211,'1º SEM 2018'!$B:$I,8,0),0) -> 22291.74 | H211: =IFERROR(VLOOKUP(B211,'2º SEM 2018'!$B:$I,8,0),0) -> 20870.53 | I211: =IFERROR(VLOOKUP(B211,'1º SEM 2019'!$B:$I,8,0),0) -> 18175.51
B212: 1.8.9.00.00-6 | D212: (-) PROVISOES PARA OUTROS CREDITOS | E212: 13 | F212: 1 | G212: =IFERROR(VLOOKUP(B212,'1º SEM 2018'!$B:$I,8,0),0) -> -67445.79 | H212: =IFERROR(VLOOKUP(B212,'2º SEM 2018'!$B:$I,8,0),0) -> -61247.53 | I212: =IFERROR(VLOOKUP(B212,'1º SEM 2019'!$B:$I,8,0),0) -> -111837.57
B213: 1.8.9.99.00-0 | D213: (-) PROVISÃO P/OUTROS CRÉDITOS LIQUIDAÇÃO DUVIDOSA | E213: 13 | F213: 1 | G213: =IFERROR(VLOOKUP(B213,'1º SEM 2018'!$B:$I,8,0),0) -> -67445.79 | H213: =IFERROR(VLOOKUP(B213,'2º SEM 2018'!$B:$I,8,0),0) -> -61247.53 | I213: =IFERROR(VLOOKUP(B213,'1º SEM 2019'!$B:$I,8,0),0) -> -111837.57
B214: 1.8.9.99.10.0002-3 | C214: 11302 | D214: (-) AVAIS E FIANÇAS HONRADOS | E214: 18 | F214: 1 | G214: =IFERROR(VLOOKUP(B214,'1º SEM 2018'!$B:$I,8,0),0) -> -67445.79 | H214: =IFERROR(VLOOKUP(B214,'2º SEM 2018'!$B:$I,8,0),0) -> -61247.53 | I214: =IFERROR(VLOOKUP(B214,'1º SEM 2019'!$B:$I,8,0),0) -> -111837.57
... 957 more rows

Sheet 07.2019 (hidden)
D1: Sisbr 2.0 - Plataforma Contábill | H1: Data de Emissão:
D2: Relatório Balancete Analítico | H2: 2019-11-14T10:45:01.704
A3: 3175 - SICOOB CREDISETE | H3: Hora de Emissão:
H4: 43783.44794
A6: Instituição resp.: | C6: 1003 - SICOOB CENTRAL CREDIMINAS | E6: Período: | G6: 01/07/2019 a 31/07/2019
A7: Instituição: | C7: 3175 - SICOOB CREDISETE | E7: Tipo de Saldo: | G7: Somente Saldos Diferentes de Zero
A8: PA: | C8: TODOS... | E8: Apresentação do Saldo: | G8: Saldo Contábil
A9: Grupo Contábil: | C9: Ativo, Compensação, Passivo, Patrimônio Líquido, Resultado
A10: N | B10: Conta | C10: Cód.Reduzido | D10: Descrição da Conta | E10: Saldo Anterior | G10: Débito | H10: Crédito | I10: Saldo Atual
A11: 1 | B11: 1.0.0.00.00-7 | D11: CIRCULANTE E REALIZAVEL A LONGO PRAZO | E11: 230365634.9 | G11: 1428622365 | H11: 1423327917 | I11: 235660083.4 | L11: =VLOOKUP(B11,#REF!,1,0) -> 
A12: 2 | B12: 1.1.0.00.00-6 | D12: DISPONIBILIDADES | E12: 2926807.46 | G12: 455899541.2 | H12: 454800027.4 | I12: 4026321.32 | L12: =VLOOKUP(B12,#REF!,1,0) -> 
A13: 3 | B13: 1.1.1.00.00-9 | D13: CAIXA | E13: 2926807.46 | G13: 180450458.5 | H13: 179350944.6 | I13: 4026321.32 | L13: =VLOOKUP(B13,#REF!,1,0) -> 
A14: 4 | B14: 1.1.1.10.00-6 | D14: CAIXA | E14: 2926807.46 | G14: 180450458.5 | H14: 179350944.6 | I14: 4026321.32 | L14: =VLOOKUP(B14,#REF!,1,0) -> 
A15: 6 | B15: 1.1.1.10.00.0001-9 | C15: 11 | D15: CAIXA | E15: 2230311.15 | G15: 169908233.5 | H15: 169382461.6 | I15: 2756083.01 | L15: =VLOOKUP(B15,#REF!,1,0) -> 
A16: 6 | B16: 1.1.1.10.00.0002-6 | C16: 12 | D16: NUMERÁRIO EM TRÂNSITO | E16: 696496.31 | G16: 10542225 | H16: 9968483 | I16: 1270238.31 | L16: =VLOOKUP(B16,#REF!,1,0) -> 
A17: 2 | B17: 1.4.0.00.00-3 | D17: RELACOES INTERFINANCEIRAS | E17: 147101629.1 | G17: 23669656.84 | H17: 24242303.43 | I17: 146528982.5 | L17: =VLOOKUP(B17,#REF!,1,0) -> 
A18: 3 | B18: 1.4.5.00.00-8 | D18: CENTRALIZAÇÃO FINANCEIRA - COOPERATIVAS | E18: 147101629.1 | G18: 23669656.84 | H18: 24242303.43 | I18: 146528982.5 | L18: =VLOOKUP(B18,#REF!,1,0) -> 
A19: 4 | B19: 1.4.5.10.00-5 | D19: DEPÓSITOS NAS COOPERATIVAS CENTRAIS | E19: 147101629.1 | G19: 23669656.84 | H19: 24242303.43 | I19: 146528982.5 | L19: =VLOOKUP(B19,#REF!,1,0) -> 
A20: 6 | B20: 1.4.5.10.00.0001-6 | C20: 1620 | D20: CENTRALIZAÇÃO FINANCEIRA - COOPERATIVAS | E20: 147101629.1 | G20: 23669656.84 | H20: 24242303.43 | I20: 146528982.5 | L20: =VLOOKUP(B20,#REF!,1,0) -> 
A21: 2 | B21: 1.6.0.00.00-1 | D21: OPERACOES DE CREDITO | E21: 69841855.55 | G21: 35500278.52 | H21: 29216865.94 | I21: 76125268.13 | L21: =VLOOKUP(B21,#REF!,1,0) -> 
A22: 3 | B22: 1.6.1.00.00-4 | D22: EMPRÉSTIMOS E DIREITOS CREDITÓRIOS DESCONTADOS | E22: 61843382.18 | G22: 26194961.96 | H22: 25931153.01 | I22: 62107191.13 | L22: =VLOOKUP(B22,#REF!,1,0) -> 
A23: 4 | B23: 1.6.1.10.00-1 | D23: ADIANTAMENTOS A DEPOSITANTES | E23: 318404.46 | G23: 2948704.76 | H23: 3034934.35 | I23: 232174.87 | L23: =VLOOKUP(B23,#REF!,1,0) -> 
A24: 6 | B24: 1.6.1.10.00.0001-4 | C24: 1626 | D24: ADIANTAMENTOS A DEPOSITANTES | E24: 349258.03 | G24: 2937033.26 | H24: 3024508.39 | I24: 261782.9 | L24: =VLOOKUP(B24,#REF!,1,0) -> 
A25: 6 | B25: 1.6.1.10.00.0002-1 | C25: 1627 | D25: (-) RENDAS APROPRIAR ADIANTAMENTOS A DEPOSITANTES | E25: -30853.57 | G25: 11671.5 | H25: 10425.96 | I25: -29608.03 | L25: =VLOOKUP(B25,#REF!,1,0) -> 
A26: 4 | B26: 1.6.1.20.00-8 | D26: EMPRESTIMOS | E26: 57131682.15 | G26: 20446485.22 | H26: 20061770.1 | I26: 57516397.27 | L26: =VLOOKUP(B26,#REF!,1,0) -> 
A27: 5 | B27: 1.6.1.20.99-8 | D27: OUTROS | E27: 57131682.15 | G27: 20446485.22 | H27: 20061770.1 | I27: 57516397.27 | L27: =VLOOKUP(B27,#REF!,1,0) -> 
A28: 6 | B28: 1.6.1.20.99.0005-3 | C28: 12019 | D28: CRÉDITO PESSOAL | E28: 14769705.82 | G28: 1552675.05 | H28: 1285231.26 | I28: 15037149.61 | L28: =VLOOKUP(B28,#REF!,1,0) -> 
A29: 6 | B29: 1.6.1.20.99.0006-0 | C29: 12020 | D29: (-) RENDAS A APROPRIAR - CRÉDITO PESSOAL | E29: -2649235.6 | G29: 281286.46 | H29: 308575.76 | I29: -2676524.9 | L29: =VLOOKUP(B29,#REF!,1,0) -> 
A30: 6 | B30: 1.6.1.20.99.0007-7 | C30: 12021 | D30: (-) JUROS MORA APROP - CRÉDITO PESSOAL | E30: -40040.49 | G30: 15835.03 | H30: 13599.49 | I30: -37804.95 | L30: =VLOOKUP(B30,#REF!,1,0) -> 
A31: 6 | B31: 1.6.1.20.99.0008-4 | C31: 12022 | D31: (-) RDAS EFET - VENC + 60 D - CRÉDITO PESSOAL | E31: -49336.01 | G31: 10315.11 | H31: 11331.17 | I31: -50352.07 | L31: =VLOOKUP(B31,#REF!,1,0) -> 
A32: 6 | B32: 1.6.1.20.99.0009-1 | C32: 12023 | D32: (-) GANHOS A AUFERIR - CRÉDITO PESSOAL | E32: -16153.64 | G32: 245.79 | H32: 9143.61 | I32: -25051.46 | L32: =VLOOKUP(B32,#REF!,1,0) -> 
A33: 6 | B33: 1.6.1.20.99.0037-6 | C33: 12124 | D33: CHEQUE ESPECIAL | E33: 1173674.19 | G33: 2350861.38 | H33: 2371272.32 | I33: 1153263.25 | L33: =VLOOKUP(B33,#REF!,1,0) -> 
A34: 6 | B34: 1.6.1.20.99.0038-3 | C34: 12125 | D34: (-) RENDAS A APROPRIAR - CHEQUE ESPECIAL | E34: -10868.21 | G34: 4424.46 | H34: 3801.39 | I34: -10245.14 | L34: =VLOOKUP(B34,#REF!,1,0) -> 
A35: 6 | B35: 1.6.1.20.99.0039-0 | C35: 12126 | D35: CAPITAL DE GIRO | E35: 48209052.65 | G35: 6464758.25 | H35: 5043287.43 | I35: 49630523.47 | L35: =VLOOKUP(B35,#REF!,1,0) -> 
A36: 6 | B36: 1.6.1.20.99.0040-0 | C36: 12127 | D36: (-) RENDAS A APROPRIAR - CAPITAL DE GIRO | E36: -8189853.45 | G36: 594858.97 | H36: 1228162.34 | I36: -8823156.82 | L36: =VLOOKUP(B36,#REF!,1,0) -> 
A37: 6 | B37: 1.6.1.20.99.0041-7 | C37: 12128 | D37: (-) JUROS MORA APROP - CAPITAL DE GIRO | E37: -114112.39 | G37: 27113.1 | H37: 33363.58 | I37: -120362.87 | L37: =VLOOKUP(B37,#REF!,1,0) -> 
A38: 6 | B38: 1.6.1.20.99.0042-4 | C38: 12129 | D38: (-) RDAS EFET - VENC + 60 D - CAPITAL DE GIRO | E38: -67091.02 | G38: 3416.83 | H38: 21943.38 | I38: -85617.57 | L38: =VLOOKUP(B38,#REF!,1,0) -> 
A39: 6 | B39: 1.6.1.20.99.0043-1 | C39: 12130 | D39: (-) GANHOS A AUFERIR - CAPITAL DE GIRO | E39: -50816.22 | G39: 1082.07 | H39: 3464.93 | I39: -53199.08 | L39: =VLOOKUP(B39,#REF!,1,0) -> 
A40: 6 | B40: 1.6.1.20.99.0044-8 | C40: 12131 | D40: CONTA GARANTIDA | E40: 3853037.48 | G40: 9123199.96 | H40: 9692144.52 | I40: 3284092.92 | L40: =VLOOKUP(B40,#REF!,1,0) -> 
A41: 6 | B41: 1.6.1.20.99.0045-5 | C41: 12132 | D41: (-) RENDAS A APROPRIAR - CONTA GARANTIDA | E41: -28970.1 | G41: 10673.34 | H41: 5808.84 | I41: -24105.6 | L41: =VLOOKUP(B41,#REF!,1,0) -> 
A42: 6 | B42: 1.6.1.20.99.0046-2 | C42: 12133 | D42: EMPRÉSTIMOS COM GARANTIAS BENS IMÓVEIS | E42: 402387.55 | G42: 63.82 | H42: 30640.08 | I42: 371811.29 | L42: =VLOOKUP(B42,#REF!,1,0) -> 
A43: 6 | B43: 1.6.1.20.99.0047-9 | C43: 12134 | D43: (-) RDAS A APROP - EMP COM GARANT BENS IMÓVEIS | E43: -59698.41 | G43: 5675.6 | H43: 0 | I43: -54022.81 | L43: =VLOOKUP(B43,#REF!,1,0) -> 
A44: 4 | B44: 1.6.1.30.00-5 | D44: DIREITOS CREDITÓRIOS DESCONTADOS | E44: 4393295.57 | G44: 2799771.98 | H44: 2834448.56 | I44: 4358618.99 | L44: =VLOOKUP(B44,#REF!,1,0) -> 
A45: 5 | B45: 1.6.1.30.10-8 | D45: TÍTULOS DE CRÉDITO | E45: 4393295.57 | G45: 2799771.98 | H45: 2834448.56 | I45: 4358618.99 | L45: =VLOOKUP(B45,#REF!,1,0) -> 
A46: 6 | B46: 1.6.1.30.10.0001-9 | C46: 11407 | D46: TÍTULOS DESCONTADOS | E46: 486945.42 | G46: 389372.38 | H46: 411304.79 | I46: 465013.01 | L46: =VLOOKUP(B46,#REF!,1,0) -> 
A47: 6 | B47: 1.6.1.30.10.0002-6 | C47: 11408 | D47: (-) RENDAS A APROPRIAR - TÍTULOS DESCONTADOS RPL | E47: -11962.98 | G47: 12657.19 | H47: 12572.27 | I47: -11878.06 | L47: =VLOOKUP(B47,#REF!,1,0) -> 
A48: 6 | B48: 1.6.1.30.10.0009-5 | C48: 11415 | D48: CHEQUES DESCONTADOS | E48: 4062266.4 | G48: 2289021.54 | H48: 2293572.58 | I48: 4057715.36 | L48: =VLOOKUP(B48,#REF!,1,0) -> 
A49: 6 | B49: 1.6.1.30.10.0010-5 | C49: 11416 | D49: (-) RENDAS A APROPRIAR - CHEQUES DESCONTADOS | E49: -126157.99 | G49: 102896.67 | H49: 111911.56 | I49: -135172.88 | L49: =VLOOKUP(B49,#REF!,1,0) -> 
A50: 6 | B50: 1.6.1.30.10.0011-2 | C50: 11417 | D50: (-) JUROS DE MORA A APROPRIAR | E50: -17795.28 | G50: 5824.2 | H50: 5087.36 | I50: -17058.44 | L50: =VLOOKUP(B50,#REF!,1,0) -> 
A51: 3 | B51: 1.6.2.00.00-7 | D51: FINANCIAMENTOS | E51: 13306380.7 | G51: 5695134.24 | H51: 2065407.92 | I51: 16936107.02 | L51: =VLOOKUP(B51,#REF!,1,0) -> 
A52: 4 | B52: 1.6.2.10.00-4 | D52: FINANCIAMENTOS | E52: 13306380.7 | G52: 5695134.24 | H52: 2065407.92 | I52: 16936107.02 | L52: =VLOOKUP(B52,#REF!,1,0) -> 
A53: 6 | B53: 1.6.2.10.00.0008-2 | C53: 1681 | D53: FINANCIAMENTOS | E53: 16385573.89 | G53: 5472813.55 | H53: 828217.84 | I53: 21030169.6 | L53: =VLOOKUP(B53,#REF!,1,0) -> 
A54: 6 | B54: 1.6.2.10.00.0009-9 | C54: 1682 | D54: (-) RENDAS A APROPRIAR - FINANCIAMENTOS | E54: -3074318.33 | G54: 222303.23 | H54: 1235037.45 | I54: -4087052.55 | L54: =VLOOKUP(B54,#REF!,1,0) -> 
A55: 6 | B55: 1.6.2.10.00.0010-9 | C55: 1683 | D55: (-) JUROS DE MORA A APROPRIAR - FINANCIAMENTOS | E55: -2076.39 | G55: 17.46 | H55: 981.29 | I55: -3040.22 | L55: =VLOOKUP(B55,#REF!,1,0) -> 
A56: 6 | B56: 1.6.2.10.00.0011-6 | C56: 1684 | D56: (-) RDAS A EFET. FIN VENC + 60 DIAS - FINANCIAMENT | E56: -2798.47 | G56: 0 | H56: 1171.34 | I56: -3969.81 | L56: =VLOOKUP(B56,#REF!,1,0) -> 
A57: 3 | B57: 1.6.3.00.00-0 | D57: FINANCIAMENTOS RURAIS E AGROINDUSTRIAIS | E57: 7713833.01 | G57: 626836.31 | H57: 272732.34 | I57: 8067936.98 | L57: =VLOOKUP(B57,#REF!,1,0) -> 
A58: 4 | B58: 1.6.3.05.00-5 | D58: FINANCIAMENTOS RURAIS - APLICAÇÕES COM RECURSOS LIVRES | E58: 2499586.22 | G58: 237842.39 | H58: 132083.3 | I58: 2605345.31 | L58: =VLOOKUP(B58,#REF!,1,0) -> 
A59: 5 | B59: 1.6.3.05.10-8 | D59: CUSTEIO - PECUÁRIA | E59: 184521.14 | G59: 2354.9 | H59: 22315.4 | I59: 164560.64 | L59: =VLOOKUP(B59,#REF!,1,0) -> 
A60: 6 | B60: 1.6.3.05.10.0001-3 | C60: 11707 | D60: CUSTEIO - PECUÁRIA - APLIC. REC. LIVRES | E60: 199497.72 | G60: 9.51 | H60: 22315.4 | I60: 177191.83 | L60: =VLOOKUP(B60,#REF!,1,0) -> 
A61: 6 | B61: 1.6.3.05.10.0002-0 | C61: 11708 | D61: (-) RDAS APROP - CP - APLIC. REC. LIVRES | E61: -14976.58 | G61: 2345.39 | H61: 0 | I61: -12631.19 | L61: =VLOOKUP(B61,#REF!,1,0) -> 
A62: 5 | B62: 1.6.3.05.20-1 | D62: INVESTIMENTO - PECUÁRIA | E62: 2315065.08 | G62: 235487.49 | H62: 109767.9 | I62: 2440784.67 | L62: =VLOOKUP(B62,#REF!,1,0) -> 
A63: 6 | B63: 1.6.3.05.20.0001-2 | C63: 11715 | D63: INVESTIMENTO - PECUÁRIA - APLIC. REC. LIVRES | E63: 2812040.81 | G63: 207854.32 | H63: 72312.89 | I63: 2947582.24 | L63: =VLOOKUP(B63,#REF!,1,0) -> 
A64: 6 | B64: 1.6.3.05.20.0002-9 | C64: 11716 | D64: (-) RDAS APROP - IP - APLIC. REC. LIVRES | E64: -496613.9 | G64: 27271.34 | H64: 37386.39 | I64: -506728.95 | L64: =VLOOKUP(B64,#REF!,1,0) -> 
A65: 6 | B65: 1.6.3.05.20.0003-6 | C65: 11717 | D65: (-) JUROS MORA APROP - IP - APLIC. REC. LIVRES | E65: -306.1 | G65: 306.1 | H65: 23.5 | I65: -23.5 | L65: =VLOOKUP(B65,#REF!,1,0) -> 
A66: 6 | B66: 1.6.3.05.20.0004-3 | C66: 11718 | D66: (-) RDAS EFET - VENC + 60 D - IP - APLIC REC LIVRE | E66: -55.73 | G66: 55.73 | H66: 45.12 | I66: -45.12 | L66: =VLOOKUP(B66,#REF!,1,0) -> 
A67: 4 | B67: 1.6.3.15.00-2 | D67: FINANCIAMENTOS RURAIS - APLICAÇÕES COM RECURSOS DIRECIONADOS À VISTA | E67: 86316.6 | G67: 288.7 | H67: 80390.47 | I67: 6214.83 | L67: =VLOOKUP(B67,#REF!,1,0) -> 
A68: 5 | B68: 1.6.3.15.20-8 | D68: INVESTIMENTO - PECUÁRIA | E68: 86316.6 | G68: 288.7 | H68: 80390.47 | I68: 6214.83 | L68: =VLOOKUP(B68,#REF!,1,0) -> 
A69: 6 | B69: 1.6.3.15.20.0001-5 | C69: 11747 | D69: INVESTIMENTO - PECUÁRIA - REC. DIREC. À VISTA | E69: 86572.2 | G69: 288.7 | H69: 80334.67 | I69: 6526.23 | L69: =VLOOKUP(B69,#REF!,1,0) -> 
A70: 6 | B70: 1.6.3.15.20.0003-9 | C70: 11749 | D70: (-) JUROS MORA APROP - IP - REC. DIREC. À VISTA | E70: -255.6 | G70: 0 | H70: 55.8 | I70: -311.4 | L70: =VLOOKUP(B70,#REF!,1,0) -> 
A71: 4 | B71: 1.6.3.25.00-9 | D71: FINANCIAMENTOS RURAIS - APLICAÇÕES COM RECURSOS DIRECIONADOS DA POUPANÇA | E71: 3840666.06 | G71: 29096.92 | H71: 0 | I71: 3869762.98 | L71: =VLOOKUP(B71,#REF!,1,0) -> 
A72: 5 | B72: 1.6.3.25.10-2 | D72: CUSTEIO - PECUÁRIA | E72: 393931.13 | G72: 3048.04 | H72: 0 | I72: 396979.17 | L72: =VLOOKUP(B72,#REF!,1,0) -> 
A73: 6 | B73: 1.6.3.25.10.0001-9 | C73: 11771 | D73: CUSTEIO - PECUÁRIA - POUPANÇA RURAL | E73: 419612.09 | G73: 0 | H73: 0 | I73: 419612.09 | L73: =VLOOKUP(B73,#REF!,1,0) -> 
A74: 6 | B74: 1.6.3.25.10.0002-6 | C74: 11772 | D74: (-) RDAS APROP - CP - POUPANÇA RURAL | E74: -25680.96 | G74: 3048.04 | H74: 0 | I74: -22632.92 | L74: =VLOOKUP(B74,#REF!,1,0) -> 
A75: 5 | B75: 1.6.3.25.20-5 | D75: INVESTIMENTO - PECUÁRIA | E75: 3446734.93 | G75: 26048.88 | H75: 0 | I75: 3472783.81 | L75: =VLOOKUP(B75,#REF!,1,0) -> 
A76: 6 | B76: 1.6.3.25.20.0001-8 | C76: 11779 | D76: INVESTIMENTO - PECUÁRIA - POUPANÇA RURAL | E76: 3800119.42 | G76: 0 | H76: 0 | I76: 3800119.42 | L76: =VLOOKUP(B76,#REF!,1,0) -> 
A77: 6 | B77: 1.6.3.25.20.0002-5 | C77: 11780 | D77: (-) RDAS APROP - IP - POUPANÇA RURAL | E77: -353384.49 | G77: 26048.88 | H77: 0 | I77: -327335.61 | L77: =VLOOKUP(B77,#REF!,1,0) -> 
A78: 4 | B78: 1.6.3.35.00-6 | D78: FINANCIAMENTOS RURAIS - APLICAÇÕES COM RECURSOS DIRECIONADOS DE LCA | E78: 1287264.13 | G78: 359608.3 | H78: 60258.57 | I78: 1586613.86 | L78: =VLOOKUP(B78,#REF!,1,0) -> 
A79: 5 | B79: 1.6.3.35.10-9 | D79: CUSTEIO - PECUÁRIA | E79: 1287264.13 | G79: 359608.3 | H79: 60258.57 | I79: 1586613.86 | L79: =VLOOKUP(B79,#REF!,1,0) -> 
A80: 6 | B80: 1.6.3.35.10.0001-2 | C80: 11803 | D80: CUSTEIO - PECUÁRIA - REC. DIREC. LCA | E80: 1322639.43 | G80: 347587.81 | H80: 32670.76 | I80: 1637556.48 | L80: =VLOOKUP(B80,#REF!,1,0) -> 
A81: 6 | B81: 1.6.3.35.10.0002-9 | C81: 11804 | D81: (-) RDAS APROP - CP - REC. DIREC. LCA | E81: -35375.3 | G81: 12020.49 | H81: 27587.81 | I81: -50942.62 | L81: =VLOOKUP(B81,#REF!,1,0) -> 
A82: 3 | B82: 1.6.9.00.00-8 | D82: (-) PROVISOES PARA OPERACOES DE CREDITO | E82: -13021740.34 | G82: 2983346.01 | H82: 947572.67 | I82: -10985967 | L82: =VLOOKUP(B82,#REF!,1,0) -> 
A83: 4 | B83: 1.6.9.20.00-2 | D83: (-) PROVISÃO PARA EMPRÉSTIMOS E DIREITOS CREDITÓRIOS DESCONTADOS | E83: -12423636.68 | G83: 2941349.82 | H83: 808062.24 | I83: -10290349.1 | L83: =VLOOKUP(B83,#REF!,1,0) -> 
A84: 6 | B84: 1.6.9.20.00.0001-9 | C84: 1945 | D84: (-) ADIANTAMENTOS A DEPOSITANTES | E84: -63806.1 | G84: 37108.85 | H84: 28473.57 | I84: -55170.82 | L84: =VLOOKUP(B84,#REF!,1,0) -> 
A85: 6 | B85: 1.6.9.20.00.0002-6 | C85: 1946 | D85: (-) EMPRÉSTIMOS | E85: -11886439.25 | G85: 2760720.9 | H85: 673998.62 | I85: -9799716.97 | L85: =VLOOKUP(B85,#REF!,1,0) -> 
A86: 6 | B86: 1.6.9.20.00.0003-3 | C86: 1947 | D86: (-) CHEQUE ESPECIAL | E86: -130355.64 | G86: 35626.66 | H86: 23144.55 | I86: -117873.53 | L86: =VLOOKUP(B86,#REF!,1,0) -> 
A87: 6 | B87: 1.6.9.20.00.0005-7 | C87: 1949 | D87: (-) TÍTULOS DESCONTADOS | E87: -99673.43 | G87: 36450.79 | H87: 43559.06 | I87: -106781.7 | L87: =VLOOKUP(B87,#REF!,1,0) -> 
A88: 6 | B88: 1.6.9.20.00.0007-1 | C88: 1951 | D88: (-) CONTA GARANTIDA | E88: -243362.26 | G88: 71442.62 | H88: 38886.44 | I88: -210806.08 | L88: =VLOOKUP(B88,#REF!,1,0) -> 
A89: 4 | B89: 1.6.9.30.00-9 | D89: (-) PROVISAO PARA FINANCIAMENTOS | E89: -367548.47 | G89: 25332.75 | H89: 103823.74 | I89: -446039.46 | L89: =VLOOKUP(B89,#REF!,1,0) -> 
A90: 6 | B90: 1.6.9.30.00.0003-6 | C90: 1977 | D90: (-) FINANCIAMENTOS | E90: -367548.47 | G90: 25332.75 | H90: 103823.74 | I90: -446039.46 | L90: =VLOOKUP(B90,#REF!,1,0) -> 
A91: 4 | B91: 1.6.9.40.00-6 | D91: (-) PROVISAO PARA FINANC. RURAIS E AGROINDUSTRIAIS | E91: -230555.19 | G91: 16663.44 | H91: 35686.69 | I91: -249578.44 | L91: =VLOOKUP(B91,#REF!,1,0) -> 
A92: 6 | B92: 1.6.9.40.00.0026-6 | C92: 11868 | D92: (-) RECURSOS APLICAÇÕES LIVRES | E92: -39820.58 | G92: 9831.47 | H92: 6793.08 | I92: -36782.19 | L92: =VLOOKUP(B92,#REF!,1,0) -> 
A93: 6 | B93: 1.6.9.40.00.0027-3 | C93: 11869 | D93: (-) RECURSOS DIRECIONADOS À VISTA | E93: -7015.85 | G93: 801.02 | H93: 0 | I93: -6214.83 | L93: =VLOOKUP(B93,#REF!,1,0) -> 
A94: 6 | B94: 1.6.9.40.00.0028-0 | C94: 11870 | D94: (-) RECURSOS DIRECIONADOS DA POUPANÇA RURAL | E94: -159308.82 | G94: 4390.93 | H94: 24191.9 | I94: -179109.79 | L94: =VLOOKUP(B94,#REF!,1,0) -> 
A95: 6 | B95: 1.6.9.40.00.0029-7 | C95: 11871 | D95: (-) RECURSOS DIRECIONADOS DE LCA | E95: -24409.94 | G95: 1640.02 | H95: 4701.71 | I95: -27471.63 | L95: =VLOOKUP(B95,#REF!,1,0) -> 
A96: 2 | B96: 1.8.0.00.00-9 | D96: OUTROS CREDITOS | E96: 4274813.21 | G96: 912959675.7 | H96: 913612392.2 | I96: 3622096.69 | L96: =VLOOKUP(B96,#REF!,1,0) -> 
A97: 3 | B97: 1.8.1.00.00-2 | D97: AVAIS E FIANCAS HONRADOS | E97: 168615.52 | G97: 77383.61 | H97: 99353.73 | I97: 146645.4 | L97: =VLOOKUP(B97,#REF!,1,0) -> 
A98: 4 | B98: 1.8.1.10.00-9 | D98: CREDITOS POR AVAIS E FIANCAS HONRADOS | E98: 168615.52 | G98: 77383.61 | H98: 99353.73 | I98: 146645.4 | L98: =VLOOKUP(B98,#REF!,1,0) -> 
A99: 6 | B99: 1.8.1.10.00.0001-8 | C99: 11024 | D99: CRÉDITO POR AVAIS E FIANÇAS HONRADOS | E99: 168615.52 | G99: 77383.61 | H99: 99353.73 | I99: 146645.4 | L99: =VLOOKUP(B99,#REF!,1,0) -> 
A100: 3 | B100: 1.8.3.00.00-8 | D100: RENDAS A RECEBER | E100: 763196.89 | G100: 388543.65 | H100: 1012842.74 | I100: 138897.8 | L100: =VLOOKUP(B100,#REF!,1,0) -> 
A101: 4 | B101: 1.8.3.70.00-7 | D101: SERVICOS PRESTADOS A RECEBER | E101: 37156.29 | G101: 195574.83 | H101: 195367.83 | I101: 37363.29 | L101: =VLOOKUP(B101,#REF!,1,0) -> 
A102: 6 | B102: 1.8.3.70.00.0004-5 | C102: 11031 | D102: RENDAS CONVÊNIOS A RECEBER - TRIBUTOS FEDERAIS | E102: 1974.25 | G102: 2062.21 | H102: 1974.25 | I102: 2062.21 | L102: =VLOOKUP(B102,#REF!,1,0) -> 
A103: 6 | B103: 1.8.3.70.00.0005-2 | C103: 11032 | D103: RENDAS CONVÊNIOS A RECEBER - TRIBUTOS ESTADUAIS | E103: 28580.96 | G103: 1819.37 | H103: 2411.39 | I103: 27988.94 | L103: =VLOOKUP(B103,#REF!,1,0) -> 
A104: 6 | B104: 1.8.3.70.00.0006-9 | C104: 11033 | D104: RENDAS CONVÊNIOS A RECEBER - TRIBUTOS MUNICIPAIS | E104: 133.78 | G104: 394.24 | H104: 408.45 | I104: 119.57 | L104: =VLOOKUP(B104,#REF!,1,0) -> 
A105: 6 | B105: 1.8.3.70.00.0013-1 | C105: 11040 | D105: RENDAS CONVÊNIOS A RECEBER - FGTS | E105: 2843.82 | G105: 3348.9 | H105: 2843.82 | I105: 3348.9 | L105: =VLOOKUP(B105,#REF!,1,0) -> 
A106: 6 | B106: 1.8.3.70.00.0015-5 | C106: 11042 | D106: RENDAS CONVÊNIOS A RECEBER - MULTAS DE TRÂNSITO | E106: 3623.48 | G106: 222.62 | H106: 2.43 | I106: 3843.67 | L106: =VLOOKUP(B106,#REF!,1,0) -> 
A107: 4 | B107: 1.8.3.90.00-1 | D107: OUTRAS RENDAS A RECEBER | E107: 726040.6 | G107: 192968.82 | H107: 817474.91 | I107: 101534.51 | L107: =VLOOKUP(B107,#REF!,1,0) -> 
A108: 6 | B108: 1.8.3.90.00.0001-0 | C108: 11044 | D108: CENTRALIZAÇÃO FINANCEIRA | E108: 725644.65 | G108: 101108.92 | H108: 725644.65 | I108: 101108.92 | L108: =VLOOKUP(B108,#REF!,1,0) -> 
A109: 6 | B109: 1.8.3.90.00.0007-2 | C109: 11050 | D109: RENDAS CONVÊNIOS A RECEBER - INSS | E109: 395.95 | G109: 1149.94 | H109: 1120.3 | I109: 425.59 | L109: =VLOOKUP(B109,#REF!,1,0) -> 
A110: 3 | B110: 1.8.8.00.00-3 | D110: DIVERSOS | E110: 3454838.37 | G110: 912450590.2 | H110: 912459182.7 | I110: 3446245.92 | L110: =VLOOKUP(B110,#REF!,1,0) -> 
A111: 4 | B111: 1.8.8.03.00-0 | D111: ADIANTAMENTOS E ANTECIPACOES SALARIAIS | E111: 0 | G111: 452578.47 | H111: 247270.27 | I111: 205308.2 | L111: =VLOOKUP(B111,#REF!,1,0) -> 
A112: 6 | B112: 1.8.8.03.00.0002-6 | C112: 11071 | D112: ADIANTAMENTO DE 13º SALÁRIO | E112: 0 | G112: 212006.45 | H112: 6698.25 | I112: 205308.2 | L112: =VLOOKUP(B112,#REF!,1,0) -> 
A113: 4 | B113: 1.8.8.05.00-8 | D113: ADIANTAMENTOS PARA PAGAMENTOS DE NOSSA CONTA | E113: 88000.8 | G113: 56395.93 | H113: 132841.83 | I113: 11554.9 | L113: =VLOOKUP(B113,#REF!,1,0) -> 
A114: 6 | B114: 1.8.8.05.00.0001-3 | C114: 11078 | D114: ADIANTAMENTOS PARA DESPESAS DE VIAGEM | E114: 6014.9 | G114: 18386.8 | H114: 12846.8 | I114: 11554.9 | L114: =VLOOKUP(B114,#REF!,1,0) -> 
A115: 4 | B115: 1.8.8.10.00-0 | D115: ADIANTAMENTOS POR CONTA DE IMOBILIZACOES | E115: 559335.08 | G115: 47003.23 | H115: 150856.53 | I115: 455481.78 | L115: =VLOOKUP(B115,#REF!,1,0) -> 
A116: 6 | B116: 1.8.8.10.00.0001-1 | C116: 11085 | D116: ADIANTAMENTOS POR CONTA DE IMOBILIZAÇÕES | E116: 559335.08 | G116: 47003.23 | H116: 150856.53 | I116: 455481.78 | L116: =VLOOKUP(B116,#REF!,1,0) -> 
A117: 4 | B117: 1.8.8.40.00-1 | D117: DEVEDORES POR DEPOSITOS EM GARANTIA | E117: 2034551.83 | G117: 0 | H117: 0 | I117: 2034551.83 | L117: =VLOOKUP(B117,#REF!,1,0) -> 
A118: 5 | B118: 1.8.8.40.05-6 | D118: PARA INTERPOSICAO DE RECURSOS FISCAIS LEI 9.703/98 | E118: 2021562.74 | G118: 0 | H118: 0 | I118: 2021562.74 | L118: =VLOOKUP(B118,#REF!,1,0) -> 
A119: 6 | B119: 1.8.8.40.05.0002-2 | C119: 11107 | D119: PIS - DEPÓSITO JUDICIAL | E119: 437942.63 | G119: 0 | H119: 0 | I119: 437942.63 | L119: =VLOOKUP(B119,#REF!,1,0) -> 
A120: 6 | B120: 1.8.8.40.05.0003-9 | C120: 11108 | D120: COFINS - DEPÓSITO JUDICIAL | E120: 1583620.11 | G120: 0 | H120: 0 | I120: 1583620.11 | L120: =VLOOKUP(B120,#REF!,1,0) -> 
A121: 5 | B121: 1.8.8.40.20-7 | D121: PARA INTERPOSICAO DE RECURSOS TRABALHISTAS | E121: 12989.09 | G121: 0 | H121: 0 | I121: 12989.09 | L121: =VLOOKUP(B121,#REF!,1,0) -> 
A122: 6 | B122: 1.8.8.40.20.0001-8 | C122: 11122 | D122: PARA INTERPOSIÇÃO DE RECURSOS TRABALHISTAS | E122: 12989.09 | G122: 0 | H122: 0 | I122: 12989.09 | L122: =VLOOKUP(B122,#REF!,1,0) -> 
A123: 4 | B123: 1.8.8.50.00-8 | D123: IMPOSTO DE RENDA A RECUPERAR | E123: 0 | G123: 2053.89 | H123: 0 | I123: 2053.89 | L123: =VLOOKUP(B123,#REF!,1,0) -> 
A124: 6 | B124: 1.8.8.50.00.0001-3 | C124: 11152 | D124: IMPOSTO DE RENDA A RECUPERAR | E124: 0 | G124: 2053.89 | H124: 0 | I124: 2053.89 | L124: =VLOOKUP(B124,#REF!,1,0) -> 
A125: 4 | B125: 1.8.8.80.00-9 | D125: TÍTULOS E CRÉDITOS A RECEBER | E125: 754775.15 | G125: 442303.38 | H125: 474313.37 | I125: 722765.16 | L125: =VLOOKUP(B125,#REF!,1,0) -> 
A126: 5 | B126: 1.8.8.80.20-5 | D126: SEM CARACTERÍSTICA DE CONCESSÃO DE CRÉDITO | E126: 754775.15 | G126: 442303.38 | H126: 474313.37 | I126: 722765.16 | L126: =VLOOKUP(B126,#REF!,1,0) -> 
A127: 6 | B127: 1.8.8.80.20.0001-0 | C127: 11189 | D127: TÍTULOS E CRÉDITOS A RECEBER | E127: 485500 | G127: 0 | H127: 13500 | I127: 472000 | L127: =VLOOKUP(B127,#REF!,1,0) -> 
A128: 6 | B128: 1.8.8.80.20.0011-3 | C128: 11199 | D128: VALORES A RECEBER - TARIFAS | E128: 269275.15 | G128: 442303.38 | H128: 460813.37 | I128: 250765.16 | L128: =VLOOKUP(B128,#REF!,1,0) -> 
A129: 4 | B129: 1.8.8.92.00-4 | D129: DEVEDORES DIVERSOS - PAIS | E129: 18175.51 | G129: 911450255.3 | H129: 911453900.7 | I129: 14530.16 | L129: =VLOOKUP(B129,#REF!,1,0) -> 
A130: 6 | B130: 1.8.8.92.00.0005-7 | C130: 11205 | D130: DIFERENÇA DE CAIXA | E130: 1920.95 | G130: 11339.1 | H130: 12774.05 | I130: 486 | L130: =VLOOKUP(B130,#REF!,1,0) -> 
A131: 6 | B131: 1.8.8.92.00.0006-4 | C131: 11206 | D131: PENDÊNCIAS A REGULARIZAR | E131: 555.78 | G131: 1169.29 | H131: 1539.29 | I131: 185.78 | L131: =VLOOKUP(B131,#REF!,1,0) -> 
A132: 6 | B132: 1.8.8.92.00.0016-7 | C132: 11216 | D132: PENDÊNCIAS A REGULARIZAR - BANCOOB | E132: 15698.78 | G132: 271506.74 | H132: 273347.14 | I132: 13858.38 | L132: =VLOOKUP(B132,#REF!,1,0) -> 
A133: 3 | B133: 1.8.9.00.00-6 | D133: (-) PROVISOES PARA OUTROS CREDITOS | E133: -111837.57 | G133: 43158.2 | H133: 41013.06 | I133: -109692.43 | L133: =VLOOKUP(B133,#REF!,1,0) -> 
A134: 4 | B134: 1.8.9.99.00-0 | D134: (-) PROVISÃO P/OUTROS CRÉDITOS LIQUIDAÇÃO DUVIDOSA | E134: -111837.57 | G134: 43158.2 | H134: 41013.06 | I134: -109692.43 | L134: =VLOOKUP(B134,#REF!,1,0) -> 
A135: 5 | B135: 1.8.9.99.10-3 | D135: COM CARACTERÍSTICAS DE CONCESSÃO DE CRÉDITO | E135: -111837.57 | G135: 43158.2 | H135: 41013.06 | I135: -109692.43 | L135: =VLOOKUP(B135,#REF!,1,0) -> 
A136: 6 | B136: 1.8.9.99.10.0002-3 | C136: 11302 | D136: (-) AVAIS E FIANÇAS HONRADOS | E136: -111837.57 | G136: 43158.2 | H136: 41013.06 | I136: -109692.43 | L136: =VLOOKUP(B136,#REF!,1,0) -> 
A137: 2 | B137: 1.9.0.00.00-8 | D137: OUTROS VALORES E BENS | E137: 6220529.68 | G137: 593213.1 | H137: 1456328 | I137: 5357414.78 | L137: =VLOOKUP(B137,#REF!,1,0) -> 
A138: 3 | B138: 1.9.8.00.00-2 | D138: OUTROS VALORES E BENS | E138: 6023089.99 | G138: 593213.1 | H138: 1430000 | I138: 5186303.09 | L138: =VLOOKUP(B138,#REF!,1,0) -> 
A139: 4 | B139: 1.9.8.10.00-9 | D139: BENS NAO DE USO PROPRIO | E139: 6023089.99 | G139: 593213.1 | H139: 1430000 | I139: 5186303.09 | L139: =VLOOKUP(B139,#REF!,1,0) -> 
A140: 5 | B140: 1.9.8.10.10-2 | D140: IMOVEIS | E140: 5451999.58 | G140: 510148.52 | H140: 1430000 | I140: 4532148.1 | L140: =VLOOKUP(B140,#REF!,1,0) -> 
A141: 6 | B141: 1.9.8.10.10.0001-7 | C141: 11305 | D141: IMÓVEIS | E141: 5668660.54 | G141: 386148.52 | H141: 1430000 | I141: 4624809.06 | L141: =VLOOKUP(B141,#REF!,1,0) -> 
A142: 6 | B142: 1.9.8.10.10.0002-4 | C142: 11336 | D142: (-) IMÓVEIS | E142: -216660.96 | G142: 124000 | H142: 0 | I142: -92660.96 | L142: =VLOOKUP(B142,#REF!,1,0) -> 
A143: 5 | B143: 1.9.8.10.30-8 | D143: VEICULOS E AFINS | E143: 56090.41 | G143: 83064.58 | H143: 0 | I143: 139154.99 | L143: =VLOOKUP(B143,#REF!,1,0) -> 
A144: 6 | B144: 1.9.8.10.30.0001-5 | C144: 11306 | D144: VEÍCULOS E AFINS | E144: 56090.41 | G144: 83064.58 | H144: 0 | I144: 139154.99 | L144: =VLOOKUP(B144,#REF!,1,0) -> 
A145: 5 | B145: 1.9.8.10.50-4 | D145: BENS EM REGIME ESPECIAL | E145: 515000 | G145: 0 | H145: 0 | I145: 515000 | L145: =VLOOKUP(B145,#REF!,1,0) -> 
A146: 6 | B146: 1.9.8.10.50.0001-3 | C146: 11308 | D146: BENS EM REGIME ESPECIAL | E146: 584000 | G146: 0 | H146: 0 | I146: 584000 | L146: =VLOOKUP(B146,#REF!,1,0) -> 
A147: 6 | B147: 1.9.8.10.50.0003-7 | C147: 11370 | D147: (-) BENS EM REGIME ESPECIAL | E147: -69000 | G147: 0 | H147: 0 | I147: -69000 | L147: =VLOOKUP(B147,#REF!,1,0) -> 
A148: 3 | B148: 1.9.9.00.00-5 | D148: DESPESAS ANTECIPADAS | E148: 197439.69 | G148: 0 | H148: 26328 | I148: 171111.69 | L148: =VLOOKUP(B148,#REF!,1,0) -> 
A149: 4 | B149: 1.9.9.10.00-2 | D149: DESPESAS ANTECIPADAS | E149: 197439.69 | G149: 0 | H149: 26328 | I149: 171111.69 | L149: =VLOOKUP(B149,#REF!,1,0) -> 
A150: 6 | B150: 1.9.9.10.00.0001-7 | C150: 11315 | D150: PRÊMIOS DE SEGUROS | E150: 117524.75 | G150: 0 | H150: 15835.51 | I150: 101689.24 | L150: =VLOOKUP(B150,#REF!,1,0) -> 
A151: 6 | B151: 1.9.9.10.00.0019-6 | C151: 12178 | D151: CONTRIBUIÇÃO CONFEDERATIVA | E151: 8981.04 | G151: 0 | H151: 1496.84 | I151: 7484.2 | L151: =VLOOKUP(B151,#REF!,1,0) -> 
A152: 6 | B152: 1.9.9.10.00.9999-4 | C152: 11326 | D152: OUTROS | E152: 70933.9 | G152: 0 | H152: 8995.65 | I152: 61938.25 | L152: =VLOOKUP(B152,#REF!,1,0) -> 
A153: 1 | B153: 2.0.0.00.00-4 | D153: PERMANENTE | E153: 18720947.79 | G153: 854765.07 | H153: 35766.24 | I153: 19539946.62 | L153: =VLOOKUP(B153,#REF!,1,0) -> 
A154: 2 | B154: 2.1.0.00.00-3 | D154: INVESTIMENTOS | E154: 4583326.18 | G154: 0 | H154: 0 | I154: 4583326.18 | L154: =VLOOKUP(B154,#REF!,1,0) -> 
A155: 3 | B155: 2.1.5.00.00-8 | D155: ACOES E COTAS | E155: 4583326.18 | G155: 0 | H155: 0 | I155: 4583326.18 | L155: =VLOOKUP(B155,#REF!,1,0) -> 
A156: 4 | B156: 2.1.5.30.00-9 | D156: PARTICIPAÇÕES DE COOPERATIVAS | E156: 4583326.18 | G156: 0 | H156: 0 | I156: 4583326.18 | L156: =VLOOKUP(B156,#REF!,1,0) -> 
A157: 5 | B157: 2.1.5.30.05-4 | D157: PARTICIPAÇÃO EM COOPERATIVA CENTRAL DE CRÉDITO | E157: 4509259.63 | G157: 0 | H157: 0 | I157: 4509259.63 | L157: =VLOOKUP(B157,#REF!,1,0) -> 
A158: 6 | B158: 2.1.5.30.05.0001-9 | C158: 235 | D158: PARTICIPAÇÕES EM COOPERATIVA CENTRAL DE CRÉDITO | E158: 4509259.63 | G158: 0 | H158: 0 | I158: 4509259.63 | L158: =VLOOKUP(B158,#REF!,1,0) -> 
A159: 5 | B159: 2.1.5.30.10-2 | D159: PARTIC.EM INST.FINAC.CONTROLADA POR COOP. CRÉDITO | E159: 74066.55 | G159: 0 | H159: 0 | I159: 74066.55 | L159: =VLOOKUP(B159,#REF!,1,0) -> 
A160: 6 | B160: 2.1.5.30.10.0001-3 | C160: 236 | D160: PARTICIPAÇÕES INST FINANC CONTROLADA COOP CRÉDITO | E160: 74066.55 | G160: 0 | H160: 0 | I160: 74066.55 | L160: =VLOOKUP(B160,#REF!,1,0) -> 
A161: 2 | B161: 2.2.0.00.00-2 | D161: IMOBILIZADO DE USO | E161: 14137621.61 | G161: 854765.07 | H161: 35766.24 | I161: 14956620.44 | L161: =VLOOKUP(B161,#REF!,1,0) -> 
A162: 3 | B162: 2.2.2.00.00-8 | D162: IMOBILIZACOES EM CURSO | E162: 12248381.7 | G162: 802025 | H162: 0 | I162: 13050406.7 | L162: =VLOOKUP(B162,#REF!,1,0) -> 
A163: 4 | B163: 2.2.2.10.00-5 | D163: IMOBILIZACOES EM CURSO | E163: 12248381.7 | G163: 802025 | H163: 0 | I163: 13050406.7 | L163: =VLOOKUP(B163,#REF!,1,0) -> 
A164: 5 | B164: 2.2.2.10.10-8 | D164: IMOVEIS | E164: 12248381.7 | G164: 802025 | H164: 0 | I164: 13050406.7 | L164: =VLOOKUP(B164,#REF!,1,0) -> 
A165: 6 | B165: 2.2.2.10.10.0001-7 | C165: 281 | D165: IMÓVEIS | E165: 12248381.7 | G165: 802025 | H165: 0 | I165: 13050406.7 | L165: =VLOOKUP(B165,#REF!,1,0) -> 
A166: 3 | B166: 2.2.3.00.00-1 | D166: IMOVEIS DE USO | E166: 136719.54 | G166: 0 | H166: 58.42 | I166: 136661.12 | L166: =VLOOKUP(B166,#REF!,1,0) -> 
A167: 4 | B167: 2.2.3.10.00-8 | D167: IMOVEIS DE USO | E167: 1364501.2 | G167: 0 | H167: 0 | I167: 1364501.2 | L167: =VLOOKUP(B167,#REF!,1,0) -> 
A168: 5 | B168: 2.2.3.10.10-1 | D168: TERRENOS | E168: 130000 | G168: 0 | H168: 0 | I168: 130000 | L168: =VLOOKUP(B168,#REF!,1,0) -> 
A169: 6 | B169: 2.2.3.10.10.0001-6 | C169: 284 | D169: TERRENOS | E169: 130000 | G169: 0 | H169: 0 | I169: 130000 | L169: =VLOOKUP(B169,#REF!,1,0) -> 
A170: 5 | B170: 2.2.3.10.20-4 | D170: EDIFICACOES | E170: 1234501.2 | G170: 0 | H170: 0 | I170: 1234501.2 | L170: =VLOOKUP(B170,#REF!,1,0) -> 
A171: 6 | B171: 2.2.3.10.20.0001-5 | C171: 286 | D171: EDIFICAÇÕES | E171: 1234501.2 | G171: 0 | H171: 0 | I171: 1234501.2 | L171: =VLOOKUP(B171,#REF!,1,0) -> 
A172: 4 | B172: 2.2.3.99.00-5 | D172: (-) DEPRECIACAO ACUMUL DE IMOV DE USO-EDIFICACOES | E172: -1227781.66 | G172: 0 | H172: 58.42 | I172: -1227840.08 | L172: =VLOOKUP(B172,#REF!,1,0) -> 
A173: 6 | B173: 2.2.3.99.00.0001-4 | C173: 288 | D173: (-) DEPR. ACUMULADA DE IMÓVEIS DE USO-EDIFICAÇÕES | E173: -1227781.66 | G173: 0 | H173: 58.42 | I173: -1227840.08 | L173: =VLOOKUP(B173,#REF!,1,0) -> 
A174: 3 | B174: 2.2.4.00.00-4 | D174: INSTALACOES, MOVEIS E EQUIPAMENTOS DE USO | E174: 1117369.68 | G174: 50477 | H174: 20778.03 | I174: 1147068.65 | L174: =VLOOKUP(B174,#REF!,1,0) -> 
A175: 4 | B175: 2.2.4.10.00-1 | D175: INSTALACOES | E175: 1150352.03 | G175: 50477 | H175: 0 | I175: 1200829.03 | L175: =VLOOKUP(B175,#REF!,1,0) -> 
A176: 6 | B176: 2.2.4.10.00.0001-6 | C176: 289 | D176: INSTALAÇÕES | E176: 1150352.03 | G176: 50477 | H176: 0 | I176: 1200829.03 | L176: =VLOOKUP(B176,#REF!,1,0) -> 
A177: 4 | B177: 2.2.4.20.00-8 | D177: MOVEIS E EQUIPAMENTOS DE USO | E177: 1303386.26 | G177: 0 | H177: 0 | I177: 1303386.26 | L177: =VLOOKUP(B177,#REF!,1,0) -> 
A178: 6 | B178: 2.2.4.20.00.0001-9 | C178: 290 | D178: APARELHOS DE REFRIGERAÇÃO | E178: 157780.69 | G178: 0 | H178: 0 | I178: 157780.69 | L178: =VLOOKUP(B178,#REF!,1,0) -> 
A179: 6 | B179: 2.2.4.20.00.0002-6 | C179: 291 | D179: MÁQUINAS | E179: 251219.08 | G179: 0 | H179: 0 | I179: 251219.08 | L179: =VLOOKUP(B179,#REF!,1,0) -> 
A180: 6 | B180: 2.2.4.20.00.0003-3 | C180: 292 | D180: MOBILIÁRIOS | E180: 894386.49 | G180: 0 | H180: 0 | I180: 894386.49 | L180: =VLOOKUP(B180,#REF!,1,0) -> 
A181: 4 | B181: 2.2.4.96.00-1 | D181: (-) DEPRECIACAO ACUMULADA DE INSTALACOES | E181: -717698.64 | G181: 0 | H181: 10659.82 | I181: -728358.46 | L181: =VLOOKUP(B181,#REF!,1,0) -> 
A182: 6 | B182: 2.2.4.96.00.0001-2 | C182: 294 | D182: (-) DEPRECIAÇÃO ACUMULADA DE INSTALAÇÕES | E182: -717698.64 | G182: 0 | H182: 10659.82 | I182: -728358.46 | L182: =VLOOKUP(B182,#REF!,1,0) -> 
A183: 4 | B183: 2.2.4.99.00-8 | D183: (-) DEPRECIACAO ACUMUL DE MOVEIS E EQUIPAM DE USO | E183: -618669.97 | G183: 0 | H183: 10118.21 | I183: -628788.18 | L183: =VLOOKUP(B183,#REF!,1,0) -> 
A184: 6 | B184: 2.2.4.99.00.0001-3 | C184: 295 | D184: (-) DEPREC. ACUMUL.DE APARELHOS REFRIGERAÇÃO | E184: -81545.17 | G184: 0 | H184: 1162.48 | I184: -82707.65 | L184: =VLOOKUP(B184,#REF!,1,0) -> 
A185: 6 | B185: 2.2.4.99.00.0002-0 | C185: 296 | D185: (-) DEPREC. ACUMULADA DE MÁQUINAS | E185: -89719.89 | G185: 0 | H185: 1898.5 | I185: -91618.39 | L185: =VLOOKUP(B185,#REF!,1,0) -> 
A186: 6 | B186: 2.2.4.99.00.0003-7 | C186: 297 | D186: (-) DEPREC. ACUMULADA DE MOBILIÁRIOS | E186: -447404.91 | G186: 0 | H186: 7057.23 | I186: -454462.14 | L186: =VLOOKUP(B186,#REF!,1,0) -> 
A187: 3 | B187: 2.2.9.00.00-9 | D187: OUTROS | E187: 635150.69 | G187: 2263.07 | H187: 14929.79 | I187: 622483.97 | L187: =VLOOKUP(B187,#REF!,1,0) -> 
A188: 4 | B188: 2.2.9.10.00-6 | D188: SISTEMA DE COMUNICACAO | E188: 25206.7 | G188: 0 | H188: 0 | I188: 25206.7 | L188: =VLOOKUP(B188,#REF!,1,0) -> 
A189: 5 | B189: 2.2.9.10.10-9 | D189: EQUIPAMENTOS | E189: 25206.7 | G189: 0 | H189: 0 | I189: 25206.7 | L189: =VLOOKUP(B189,#REF!,1,0) -> 
A190: 6 | B190: 2.2.9.10.10.0001-0 | C190: 299 | D190: EQUIPAMENTOS | E190: 25206.7 | G190: 0 | H190: 0 | I190: 25206.7 | L190: =VLOOKUP(B190,#REF!,1,0) -> 
A191: 4 | B191: 2.2.9.30.00-0 | D191: SISTEMA DE PROCESSAMENTO DE DADOS | E191: 933986.55 | G191: 2263.07 | H191: 0 | I191: 936249.62 | L191: =VLOOKUP(B191,#REF!,1,0) -> 
A192: 6 | B192: 2.2.9.30.00.0001-7 | C192: 2101 | D192: EQUIPAMENTOS | E192: 933986.55 | G192: 2263.07 | H192: 0 | I192: 936249.62 | L192: =VLOOKUP(B192,#REF!,1,0) -> 
A193: 4 | B193: 2.2.9.50.00-4 | D193: SISTEMA DE SEGURANCA | E193: 282921.24 | G193: 0 | H193: 0 | I193: 282921.24 | L193: =VLOOKUP(B193,#REF!,1,0) -> 
A194: 6 | B194: 2.2.9.50.00.0001-3 | C194: 2103 | D194: ALARME | E194: 50841.37 | G194: 0 | H194: 0 | I194: 50841.37 | L194: =VLOOKUP(B194,#REF!,1,0) -> 
A195: 6 | B195: 2.2.9.50.00.0002-0 | C195: 2104 | D195: CABINES DE SEGURANÇA | E195: 6200 | G195: 0 | H195: 0 | I195: 6200 | L195: =VLOOKUP(B195,#REF!,1,0) -> 
A196: 6 | B196: 2.2.9.50.00.0003-7 | C196: 2105 | D196: ARMAS E EQUIPAMENTOS | E196: 81466.88 | G196: 0 | H196: 0 | I196: 81466.88 | L196: =VLOOKUP(B196,#REF!,1,0) -> 
A197: 6 | B197: 2.2.9.50.00.0004-4 | C197: 2106 | D197: SISTEMA DE VIGILANCIA | E197: 68005.24 | G197: 0 | H197: 0 | I197: 68005.24 | L197: =VLOOKUP(B197,#REF!,1,0) -> 
A198: 6 | B198: 2.2.9.50.00.9999-0 | C198: 2107 | D198: OUTROS SISTEMAS DE SEGURANÇA | E198: 76407.75 | G198: 0 | H198: 0 | I198: 76407.75 | L198: =VLOOKUP(B198,#REF!,1,0) -> 
A199: 4 | B199: 2.2.9.70.00-8 | D199: SISTEMA DE TRANSPORTE | E199: 392401 | G199: 0 | H199: 0 | I199: 392401 | L199: =VLOOKUP(B199,#REF!,1,0) -> 
A200: 6 | B200: 2.2.9.70.00.0001-9 | C200: 2108 | D200: VEÍCULOS | E200: 392401 | G200: 0 | H200: 0 | I200: 392401 | L200: =VLOOKUP(B200,#REF!,1,0) -> 
A201: 4 | B201: 2.2.9.99.00-3 | D201: (-) DEPRECIACAO ACUMUL OUTRAS IMOBILIZACOES DE USO | E201: -999364.8 | G201: 0 | H201: 14929.79 | I201: -1014294.59 | L201: =VLOOKUP(B201,#REF!,1,0) -> 
... 753 more rows

Sheet 08.2019 (hidden)
D1: Sisbr 2.0 - Plataforma Contábill | H1: Data de Emissão:
D2: Relatório Balancete Analítico | H2: 2019-11-14T10:46:30.500
A3: 3175 - SICOOB CREDISETE | H3: Hora de Emissão:
H4: 43783.44896
A6: Instituição resp.: | C6: 1003 - SICOOB CENTRAL CREDIMINAS | E6: Período: | G6: 01/08/2019 a 31/08/2019
A7: Instituição: | C7: 3175 - SICOOB CREDISETE | E7: Tipo de Saldo: | G7: Somente Saldos Diferentes de Zero
A8: PA: | C8: TODOS... | E8: Apresentação do Saldo: | G8: Saldo Contábil
A9: Grupo Contábil: | C9: Ativo, Compensação, Passivo, Patrimônio Líquido, Resultado
A10: N | B10: Conta | C10: Cód.Reduzido | D10: Descrição da Conta | E10: Saldo Anterior | G10: Débito | H10: Crédito | I10: Saldo Atual
A11: 1 | B11: 1.0.0.00.00-7 | D11: CIRCULANTE E REALIZAVEL A LONGO PRAZO | E11: 235660083.4 | G11: 1327273860 | H11: 1324611596 | I11: 238322346.9 | K11: =VLOOKUP(B11,#REF!,1,0) -> 
A12: 2 | B12: 1.1.0.00.00-6 | D12: DISPONIBILIDADES | E12: 4026321.32 | G12: 426276035.8 | H12: 427752429.3 | I12: 2549927.83 | K12: =VLOOKUP(B12,#REF!,1,0) -> 
A13: 3 | B13: 1.1.1.00.00-9 | D13: CAIXA | E13: 4026321.32 | G13: 160391156.5 | H13: 161867550 | I13: 2549927.83 | K13: =VLOOKUP(B13,#REF!,1,0) -> 
A14: 4 | B14: 1.1.1.10.00-6 | D14: CAIXA | E14: 4026321.32 | G14: 160391156.5 | H14: 161867550 | I14: 2549927.83 | K14: =VLOOKUP(B14,#REF!,1,0) -> 
A15: 6 | B15: 1.1.1.10.00.0001-9 | C15: 11 | D15: CAIXA | E15: 2756083.01 | G15: 153113741.5 | H15: 153976401 | I15: 1893423.52 | K15: =VLOOKUP(B15,#REF!,1,0) -> 
A16: 6 | B16: 1.1.1.10.00.0002-6 | C16: 12 | D16: NUMERÁRIO EM TRÂNSITO | E16: 1270238.31 | G16: 7277415 | H16: 7891149 | I16: 656504.31 | K16: =VLOOKUP(B16,#REF!,1,0) -> 
A17: 2 | B17: 1.4.0.00.00-3 | D17: RELACOES INTERFINANCEIRAS | E17: 146528982.5 | G17: 20440800.79 | H17: 21785368 | I17: 145184415.2 | K17: =VLOOKUP(B17,#REF!,1,0) -> 
A18: 3 | B18: 1.4.5.00.00-8 | D18: CENTRALIZAÇÃO FINANCEIRA - COOPERATIVAS | E18: 146528982.5 | G18: 20440800.79 | H18: 21785368 | I18: 145184415.2 | K18: =VLOOKUP(B18,#REF!,1,0) -> 
A19: 4 | B19: 1.4.5.10.00-5 | D19: DEPÓSITOS NAS COOPERATIVAS CENTRAIS | E19: 146528982.5 | G19: 20440800.79 | H19: 21785368 | I19: 145184415.2 | K19: =VLOOKUP(B19,#REF!,1,0) -> 
A20: 6 | B20: 1.4.5.10.00.0001-6 | C20: 1620 | D20: CENTRALIZAÇÃO FINANCEIRA - COOPERATIVAS | E20: 146528982.5 | G20: 20440800.79 | H20: 21785368 | I20: 145184415.2 | K20: =VLOOKUP(B20,#REF!,1,0) -> 
A21: 2 | B21: 1.6.0.00.00-1 | D21: OPERACOES DE CREDITO | E21: 76125268.13 | G21: 30603919.95 | H21: 26683454.68 | I21: 80045733.4 | K21: =VLOOKUP(B21,#REF!,1,0) -> 
A22: 3 | B22: 1.6.1.00.00-4 | D22: EMPRÉSTIMOS E DIREITOS CREDITÓRIOS DESCONTADOS | E22: 62107191.13 | G22: 25555594.79 | H22: 23415137.5 | I22: 64247648.42 | K22: =VLOOKUP(B22,#REF!,1,0) -> 
A23: 4 | B23: 1.6.1.10.00-1 | D23: ADIANTAMENTOS A DEPOSITANTES | E23: 232174.87 | G23: 2612400.48 | H23: 2585933.57 | I23: 258641.78 | K23: =VLOOKUP(B23,#REF!,1,0) -> 
A24: 6 | B24: 1.6.1.10.00.0001-4 | C24: 1626 | D24: ADIANTAMENTOS A DEPOSITANTES | E24: 261782.9 | G24: 2608496.43 | H24: 2575938.88 | I24: 294340.45 | K24: =VLOOKUP(B24,#REF!,1,0) -> 
A25: 6 | B25: 1.6.1.10.00.0002-1 | C25: 1627 | D25: (-) RENDAS APROPRIAR ADIANTAMENTOS A DEPOSITANTES | E25: -29608.03 | G25: 3904.05 | H25: 9994.69 | I25: -35698.67 | K25: =VLOOKUP(B25,#REF!,1,0) -> 
A26: 4 | B26: 1.6.1.20.00-8 | D26: EMPRESTIMOS | E26: 57516397.27 | G26: 20080932.18 | H26: 18097998.55 | I26: 59499330.9 | K26: =VLOOKUP(B26,#REF!,1,0) -> 
A27: 5 | B27: 1.6.1.20.99-8 | D27: OUTROS | E27: 57516397.27 | G27: 20080932.18 | H27: 18097998.55 | I27: 59499330.9 | K27: =VLOOKUP(B27,#REF!,1,0) -> 
A28: 6 | B28: 1.6.1.20.99.0005-3 | C28: 12019 | D28: CRÉDITO PESSOAL | E28: 15037149.61 | G28: 1511083.38 | H28: 1286182.07 | I28: 15262050.92 | K28: =VLOOKUP(B28,#REF!,1,0) -> 
A29: 6 | B29: 1.6.1.20.99.0006-0 | C29: 12020 | D29: (-) RENDAS A APROPRIAR - CRÉDITO PESSOAL | E29: -2676524.9 | G29: 256205.33 | H29: 303988.62 | I29: -2724308.19 | K29: =VLOOKUP(B29,#REF!,1,0) -> 
A30: 6 | B30: 1.6.1.20.99.0007-7 | C30: 12021 | D30: (-) JUROS MORA APROP - CRÉDITO PESSOAL | E30: -37804.95 | G30: 11696.26 | H30: 13475.08 | I30: -39583.77 | K30: =VLOOKUP(B30,#REF!,1,0) -> 
A31: 6 | B31: 1.6.1.20.99.0008-4 | C31: 12022 | D31: (-) RDAS EFET - VENC + 60 D - CRÉDITO PESSOAL | E31: -50352.07 | G31: 15995.5 | H31: 11961.5 | I31: -46318.07 | K31: =VLOOKUP(B31,#REF!,1,0) -> 
A32: 6 | B32: 1.6.1.20.99.0009-1 | C32: 12023 | D32: (-) GANHOS A AUFERIR - CRÉDITO PESSOAL | E32: -25051.46 | G32: 2132.82 | H32: 7651.74 | I32: -30570.38 | K32: =VLOOKUP(B32,#REF!,1,0) -> 
A33: 6 | B33: 1.6.1.20.99.0037-6 | C33: 12124 | D33: CHEQUE ESPECIAL | E33: 1153263.25 | G33: 2400051.72 | H33: 2318445.13 | I33: 1234869.84 | K33: =VLOOKUP(B33,#REF!,1,0) -> 
A34: 6 | B34: 1.6.1.20.99.0038-3 | C34: 12125 | D34: (-) RENDAS A APROPRIAR - CHEQUE ESPECIAL | E34: -10245.14 | G34: 295.58 | H34: 4157.84 | I34: -14107.4 | K34: =VLOOKUP(B34,#REF!,1,0) -> 
A35: 6 | B35: 1.6.1.20.99.0039-0 | C35: 12126 | D35: CAPITAL DE GIRO | E35: 49630523.47 | G35: 6102370.62 | H35: 3823363.67 | I35: 51909530.42 | K35: =VLOOKUP(B35,#REF!,1,0) -> 
A36: 6 | B36: 1.6.1.20.99.0040-0 | C36: 12127 | D36: (-) RENDAS A APROPRIAR - CAPITAL DE GIRO | E36: -8823156.82 | G36: 595125.77 | H36: 1536289.86 | I36: -9764320.91 | K36: =VLOOKUP(B36,#REF!,1,0) -> 
A37: 6 | B37: 1.6.1.20.99.0041-7 | C37: 12128 | D37: (-) JUROS MORA APROP - CAPITAL DE GIRO | E37: -120362.87 | G37: 21581 | H37: 27240.92 | I37: -126022.79 | K37: =VLOOKUP(B37,#REF!,1,0) -> 
A38: 6 | B38: 1.6.1.20.99.0042-4 | C38: 12129 | D38: (-) RDAS EFET - VENC + 60 D - CAPITAL DE GIRO | E38: -85617.57 | G38: 13968.72 | H38: 21892.03 | I38: -93540.88 | K38: =VLOOKUP(B38,#REF!,1,0) -> 
A39: 6 | B39: 1.6.1.20.99.0043-1 | C39: 12130 | D39: (-) GANHOS A AUFERIR - CAPITAL DE GIRO | E39: -53199.08 | G39: 1027.41 | H39: 0 | I39: -52171.67 | K39: =VLOOKUP(B39,#REF!,1,0) -> 
A40: 6 | B40: 1.6.1.20.99.0044-8 | C40: 12131 | D40: CONTA GARANTIDA | E40: 3284092.92 | G40: 9052957.59 | H40: 8683632.09 | I40: 3653418.42 | K40: =VLOOKUP(B40,#REF!,1,0) -> 
A41: 6 | B41: 1.6.1.20.99.0045-5 | C41: 12132 | D41: (-) RENDAS A APROPRIAR - CONTA GARANTIDA | E41: -24105.6 | G41: 2804.34 | H41: 6256.74 | I41: -27558 | K41: =VLOOKUP(B41,#REF!,1,0) -> 
A42: 6 | B42: 1.6.1.20.99.0046-2 | C42: 12133 | D42: EMPRÉSTIMOS COM GARANTIAS BENS IMÓVEIS | E42: 371811.29 | G42: 87885 | H42: 30576.26 | I42: 429120.03 | K42: =VLOOKUP(B42,#REF!,1,0) -> 
A43: 6 | B43: 1.6.1.20.99.0047-9 | C43: 12134 | D43: (-) RDAS A APROP - EMP COM GARANT BENS IMÓVEIS | E43: -54022.81 | G43: 5751.14 | H43: 22885 | I43: -71156.67 | K43: =VLOOKUP(B43,#REF!,1,0) -> 
A44: 4 | B44: 1.6.1.30.00-5 | D44: DIREITOS CREDITÓRIOS DESCONTADOS | E44: 4358618.99 | G44: 2862262.13 | H44: 2731205.38 | I44: 4489675.74 | K44: =VLOOKUP(B44,#REF!,1,0) -> 
A45: 5 | B45: 1.6.1.30.10-8 | D45: TÍTULOS DE CRÉDITO | E45: 4358618.99 | G45: 2862262.13 | H45: 2731205.38 | I45: 4489675.74 | K45: =VLOOKUP(B45,#REF!,1,0) -> 
A46: 6 | B46: 1.6.1.30.10.0001-9 | C46: 11407 | D46: TÍTULOS DESCONTADOS | E46: 465013.01 | G46: 453955.66 | H46: 432499.89 | I46: 486468.78 | K46: =VLOOKUP(B46,#REF!,1,0) -> 
A47: 6 | B47: 1.6.1.30.10.0002-6 | C47: 11408 | D47: (-) RENDAS A APROPRIAR - TÍTULOS DESCONTADOS RPL | E47: -11878.06 | G47: 13920.91 | H47: 13815.04 | I47: -11772.19 | K47: =VLOOKUP(B47,#REF!,1,0) -> 
A48: 6 | B48: 1.6.1.30.10.0009-5 | C48: 11415 | D48: CHEQUES DESCONTADOS | E48: 4057715.36 | G48: 2281347.91 | H48: 2177434.07 | I48: 4161629.2 | K48: =VLOOKUP(B48,#REF!,1,0) -> 
A49: 6 | B49: 1.6.1.30.10.0010-5 | C49: 11416 | D49: (-) RENDAS A APROPRIAR - CHEQUES DESCONTADOS | E49: -135172.88 | G49: 101698.03 | H49: 104948.1 | I49: -138422.95 | K49: =VLOOKUP(B49,#REF!,1,0) -> 
A50: 6 | B50: 1.6.1.30.10.0011-2 | C50: 11417 | D50: (-) JUROS DE MORA A APROPRIAR | E50: -17058.44 | G50: 11339.62 | H50: 2508.28 | I50: -8227.1 | K50: =VLOOKUP(B50,#REF!,1,0) -> 
A51: 3 | B51: 1.6.2.00.00-7 | D51: FINANCIAMENTOS | E51: 16936107.02 | G51: 4008467.29 | H51: 1625728.18 | I51: 19318846.13 | K51: =VLOOKUP(B51,#REF!,1,0) -> 
A52: 4 | B52: 1.6.2.10.00-4 | D52: FINANCIAMENTOS | E52: 16936107.02 | G52: 4008467.29 | H52: 1625728.18 | I52: 19318846.13 | K52: =VLOOKUP(B52,#REF!,1,0) -> 
A53: 6 | B53: 1.6.2.10.00.0008-2 | C53: 1681 | D53: FINANCIAMENTOS | E53: 21030169.6 | G53: 3763488.5 | H53: 762205.36 | I53: 24031452.74 | K53: =VLOOKUP(B53,#REF!,1,0) -> 
A54: 6 | B54: 1.6.2.10.00.0009-9 | C54: 1682 | D54: (-) RENDAS A APROPRIAR - FINANCIAMENTOS | E54: -4087052.55 | G54: 244939.34 | H54: 860438.22 | I54: -4702551.43 | K54: =VLOOKUP(B54,#REF!,1,0) -> 
A55: 6 | B55: 1.6.2.10.00.0010-9 | C55: 1683 | D55: (-) JUROS DE MORA A APROPRIAR - FINANCIAMENTOS | E55: -3040.22 | G55: 39.45 | H55: 1553.44 | I55: -4554.21 | K55: =VLOOKUP(B55,#REF!,1,0) -> 
A56: 6 | B56: 1.6.2.10.00.0011-6 | C56: 1684 | D56: (-) RDAS A EFET. FIN VENC + 60 DIAS - FINANCIAMENT | E56: -3969.81 | G56: 0 | H56: 1531.16 | I56: -5500.97 | K56: =VLOOKUP(B56,#REF!,1,0) -> 
A57: 3 | B57: 1.6.3.00.00-0 | D57: FINANCIAMENTOS RURAIS E AGROINDUSTRIAIS | E57: 8067936.98 | G57: 70278.31 | H57: 717161.23 | I57: 7421054.06 | K57: =VLOOKUP(B57,#REF!,1,0) -> 
A58: 4 | B58: 1.6.3.05.00-5 | D58: FINANCIAMENTOS RURAIS - APLICAÇÕES COM RECURSOS LIVRES | E58: 2605345.31 | G58: 29461.21 | H58: 98454.71 | I58: 2536351.81 | K58: =VLOOKUP(B58,#REF!,1,0) -> 
A59: 5 | B59: 1.6.3.05.10-8 | D59: CUSTEIO - PECUÁRIA | E59: 164560.64 | G59: 2080.38 | H59: 20912.41 | I59: 145728.61 | K59: =VLOOKUP(B59,#REF!,1,0) -> 
A60: 6 | B60: 1.6.3.05.10.0001-3 | C60: 11707 | D60: CUSTEIO - PECUÁRIA - APLIC. REC. LIVRES | E60: 177191.83 | G60: 0 | H60: 20912.41 | I60: 156279.42 | K60: =VLOOKUP(B60,#REF!,1,0) -> 
A61: 6 | B61: 1.6.3.05.10.0002-0 | C61: 11708 | D61: (-) RDAS APROP - CP - APLIC. REC. LIVRES | E61: -12631.19 | G61: 2080.38 | H61: 0 | I61: -10550.81 | K61: =VLOOKUP(B61,#REF!,1,0) -> 
A62: 5 | B62: 1.6.3.05.20-1 | D62: INVESTIMENTO - PECUÁRIA | E62: 2440784.67 | G62: 27380.83 | H62: 77542.3 | I62: 2390623.2 | K62: =VLOOKUP(B62,#REF!,1,0) -> 
A63: 6 | B63: 1.6.3.05.20.0001-2 | C63: 11715 | D63: INVESTIMENTO - PECUÁRIA - APLIC. REC. LIVRES | E63: 2947582.24 | G63: 354.53 | H63: 77460.2 | I63: 2870476.57 | K63: =VLOOKUP(B63,#REF!,1,0) -> 
A64: 6 | B64: 1.6.3.05.20.0002-9 | C64: 11716 | D64: (-) RDAS APROP - IP - APLIC. REC. LIVRES | E64: -506728.95 | G64: 27010.32 | H64: 0 | I64: -479718.63 | K64: =VLOOKUP(B64,#REF!,1,0) -> 
A65: 6 | B65: 1.6.3.05.20.0003-6 | C65: 11717 | D65: (-) JUROS MORA APROP - IP - APLIC. REC. LIVRES | E65: -23.5 | G65: 15.98 | H65: 16.5 | I65: -24.02 | K65: =VLOOKUP(B65,#REF!,1,0) -> 
A66: 6 | B66: 1.6.3.05.20.0004-3 | C66: 11718 | D66: (-) RDAS EFET - VENC + 60 D - IP - APLIC REC LIVRE | E66: -45.12 | G66: 0 | H66: 65.6 | I66: -110.72 | K66: =VLOOKUP(B66,#REF!,1,0) -> 
A67: 4 | B67: 1.6.3.15.00-2 | D67: FINANCIAMENTOS RURAIS - APLICAÇÕES COM RECURSOS DIRECIONADOS À VISTA | E67: 6214.83 | G67: 55.8 | H67: 55.8 | I67: 6214.83 | K67: =VLOOKUP(B67,#REF!,1,0) -> 
A68: 5 | B68: 1.6.3.15.20-8 | D68: INVESTIMENTO - PECUÁRIA | E68: 6214.83 | G68: 55.8 | H68: 55.8 | I68: 6214.83 | K68: =VLOOKUP(B68,#REF!,1,0) -> 
A69: 6 | B69: 1.6.3.15.20.0001-5 | C69: 11747 | D69: INVESTIMENTO - PECUÁRIA - REC. DIREC. À VISTA | E69: 6526.23 | G69: 55.8 | H69: 0 | I69: 6582.03 | K69: =VLOOKUP(B69,#REF!,1,0) -> 
A70: 6 | B70: 1.6.3.15.20.0003-9 | C70: 11749 | D70: (-) JUROS MORA APROP - IP - REC. DIREC. À VISTA | E70: -311.4 | G70: 0 | H70: 55.8 | I70: -367.2 | K70: =VLOOKUP(B70,#REF!,1,0) -> 
A71: 4 | B71: 1.6.3.25.00-9 | D71: FINANCIAMENTOS RURAIS - APLICAÇÕES COM RECURSOS DIRECIONADOS DA POUPANÇA | E71: 3869762.98 | G71: 29317.77 | H71: 0 | I71: 3899080.75 | K71: =VLOOKUP(B71,#REF!,1,0) -> 
A72: 5 | B72: 1.6.3.25.10-2 | D72: CUSTEIO - PECUÁRIA | E72: 396979.17 | G72: 3071.62 | H72: 0 | I72: 400050.79 | K72: =VLOOKUP(B72,#REF!,1,0) -> 
A73: 6 | B73: 1.6.3.25.10.0001-9 | C73: 11771 | D73: CUSTEIO - PECUÁRIA - POUPANÇA RURAL | E73: 419612.09 | G73: 0 | H73: 0 | I73: 419612.09 | K73: =VLOOKUP(B73,#REF!,1,0) -> 
A74: 6 | B74: 1.6.3.25.10.0002-6 | C74: 11772 | D74: (-) RDAS APROP - CP - POUPANÇA RURAL | E74: -22632.92 | G74: 3071.62 | H74: 0 | I74: -19561.3 | K74: =VLOOKUP(B74,#REF!,1,0) -> 
A75: 5 | B75: 1.6.3.25.20-5 | D75: INVESTIMENTO - PECUÁRIA | E75: 3472783.81 | G75: 26246.15 | H75: 0 | I75: 3499029.96 | K75: =VLOOKUP(B75,#REF!,1,0) -> 
A76: 6 | B76: 1.6.3.25.20.0001-8 | C76: 11779 | D76: INVESTIMENTO - PECUÁRIA - POUPANÇA RURAL | E76: 3800119.42 | G76: 0 | H76: 0 | I76: 3800119.42 | K76: =VLOOKUP(B76,#REF!,1,0) -> 
A77: 6 | B77: 1.6.3.25.20.0002-5 | C77: 11780 | D77: (-) RDAS APROP - IP - POUPANÇA RURAL | E77: -327335.61 | G77: 26246.15 | H77: 0 | I77: -301089.46 | K77: =VLOOKUP(B77,#REF!,1,0) -> 
A78: 4 | B78: 1.6.3.35.00-6 | D78: FINANCIAMENTOS RURAIS - APLICAÇÕES COM RECURSOS DIRECIONADOS DE LCA | E78: 1586613.86 | G78: 11443.53 | H78: 618650.72 | I78: 979406.67 | K78: =VLOOKUP(B78,#REF!,1,0) -> 
A79: 5 | B79: 1.6.3.35.10-9 | D79: CUSTEIO - PECUÁRIA | E79: 1586613.86 | G79: 11443.53 | H79: 618650.72 | I79: 979406.67 | K79: =VLOOKUP(B79,#REF!,1,0) -> 
A80: 6 | B80: 1.6.3.35.10.0001-2 | C80: 11803 | D80: CUSTEIO - PECUÁRIA - REC. DIREC. LCA | E80: 1637556.48 | G80: 2282.83 | H80: 618650.72 | I80: 1021188.59 | K80: =VLOOKUP(B80,#REF!,1,0) -> 
A81: 6 | B81: 1.6.3.35.10.0002-9 | C81: 11804 | D81: (-) RDAS APROP - CP - REC. DIREC. LCA | E81: -50942.62 | G81: 9160.7 | H81: 0 | I81: -41781.92 | K81: =VLOOKUP(B81,#REF!,1,0) -> 
A82: 3 | B82: 1.6.9.00.00-8 | D82: (-) PROVISOES PARA OPERACOES DE CREDITO | E82: -10985967 | G82: 969579.56 | H82: 925427.77 | I82: -10941815.21 | K82: =VLOOKUP(B82,#REF!,1,0) -> 
A83: 4 | B83: 1.6.9.20.00-2 | D83: (-) PROVISÃO PARA EMPRÉSTIMOS E DIREITOS CREDITÓRIOS DESCONTADOS | E83: -10290349.1 | G83: 927264.16 | H83: 737377.32 | I83: -10100462.26 | K83: =VLOOKUP(B83,#REF!,1,0) -> 
A84: 6 | B84: 1.6.9.20.00.0001-9 | C84: 1945 | D84: (-) ADIANTAMENTOS A DEPOSITANTES | E84: -55170.82 | G84: 16391.23 | H84: 20538.16 | I84: -59317.75 | K84: =VLOOKUP(B84,#REF!,1,0) -> 
A85: 6 | B85: 1.6.9.20.00.0002-6 | C85: 1946 | D85: (-) EMPRÉSTIMOS | E85: -9799716.97 | G85: 806154.1 | H85: 573784.15 | I85: -9567347.02 | K85: =VLOOKUP(B85,#REF!,1,0) -> 
A86: 6 | B86: 1.6.9.20.00.0003-3 | C86: 1947 | D86: (-) CHEQUE ESPECIAL | E86: -117873.53 | G86: 19180.68 | H86: 37968.46 | I86: -136661.31 | K86: =VLOOKUP(B86,#REF!,1,0) -> 
A87: 6 | B87: 1.6.9.20.00.0005-7 | C87: 1949 | D87: (-) TÍTULOS DESCONTADOS | E87: -106781.7 | G87: 59959.67 | H87: 36046.96 | I87: -82868.99 | K87: =VLOOKUP(B87,#REF!,1,0) -> 
A88: 6 | B88: 1.6.9.20.00.0007-1 | C88: 1951 | D88: (-) CONTA GARANTIDA | E88: -210806.08 | G88: 25578.48 | H88: 69039.59 | I88: -254267.19 | K88: =VLOOKUP(B88,#REF!,1,0) -> 
A89: 4 | B89: 1.6.9.30.00-9 | D89: (-) PROVISAO PARA FINANCIAMENTOS | E89: -446039.46 | G89: 27147 | H89: 132023.15 | I89: -550915.61 | K89: =VLOOKUP(B89,#REF!,1,0) -> 
A90: 6 | B90: 1.6.9.30.00.0003-6 | C90: 1977 | D90: (-) FINANCIAMENTOS | E90: -446039.46 | G90: 27147 | H90: 132023.15 | I90: -550915.61 | K90: =VLOOKUP(B90,#REF!,1,0) -> 
A91: 4 | B91: 1.6.9.40.00-6 | D91: (-) PROVISAO PARA FINANC. RURAIS E AGROINDUSTRIAIS | E91: -249578.44 | G91: 15168.4 | H91: 56027.3 | I91: -290437.34 | K91: =VLOOKUP(B91,#REF!,1,0) -> 
A92: 6 | B92: 1.6.9.40.00.0026-6 | C92: 11868 | D92: (-) RECURSOS APLICAÇÕES LIVRES | E92: -36782.19 | G92: 4485.6 | H92: 10850.58 | I92: -43147.17 | K92: =VLOOKUP(B92,#REF!,1,0) -> 
A93: 6 | B93: 1.6.9.40.00.0027-3 | C93: 11869 | D93: (-) RECURSOS DIRECIONADOS À VISTA | E93: -6214.83 | G93: 0 | H93: 0 | I93: -6214.83 | K93: =VLOOKUP(B93,#REF!,1,0) -> 
A94: 6 | B94: 1.6.9.40.00.0028-0 | C94: 11870 | D94: (-) RECURSOS DIRECIONADOS DA POUPANÇA RURAL | E94: -179109.79 | G94: 1852.82 | H94: 43604.94 | I94: -220861.91 | K94: =VLOOKUP(B94,#REF!,1,0) -> 
A95: 6 | B95: 1.6.9.40.00.0029-7 | C95: 11871 | D95: (-) RECURSOS DIRECIONADOS DE LCA | E95: -27471.63 | G95: 8829.98 | H95: 1571.78 | I95: -20213.43 | K95: =VLOOKUP(B95,#REF!,1,0) -> 
A96: 2 | B96: 1.8.0.00.00-9 | D96: OUTROS CREDITOS | E96: 3622096.69 | G96: 848074004 | H96: 848093347.6 | I96: 3602753.09 | K96: =VLOOKUP(B96,#REF!,1,0) -> 
A97: 3 | B97: 1.8.1.00.00-2 | D97: AVAIS E FIANCAS HONRADOS | E97: 146645.4 | G97: 42790.17 | H97: 31776.51 | I97: 157659.06 | K97: =VLOOKUP(B97,#REF!,1,0) -> 
A98: 4 | B98: 1.8.1.10.00-9 | D98: CREDITOS POR AVAIS E FIANCAS HONRADOS | E98: 146645.4 | G98: 42790.17 | H98: 31776.51 | I98: 157659.06 | K98: =VLOOKUP(B98,#REF!,1,0) -> 
A99: 6 | B99: 1.8.1.10.00.0001-8 | C99: 11024 | D99: CRÉDITO POR AVAIS E FIANÇAS HONRADOS | E99: 146645.4 | G99: 42790.17 | H99: 31776.51 | I99: 157659.06 | K99: =VLOOKUP(B99,#REF!,1,0) -> 
A100: 3 | B100: 1.8.3.00.00-8 | D100: RENDAS A RECEBER | E100: 138897.8 | G100: 450027.06 | H100: 464640.92 | I100: 124283.94 | K100: =VLOOKUP(B100,#REF!,1,0) -> 
A101: 4 | B101: 1.8.3.70.00-7 | D101: SERVICOS PRESTADOS A RECEBER | E101: 37363.29 | G101: 220501.91 | H101: 217043.93 | I101: 40821.27 | K101: =VLOOKUP(B101,#REF!,1,0) -> 
A102: 6 | B102: 1.8.3.70.00.0004-5 | C102: 11031 | D102: RENDAS CONVÊNIOS A RECEBER - TRIBUTOS FEDERAIS | E102: 2062.21 | G102: 1937.12 | H102: 2062.21 | I102: 1937.12 | K102: =VLOOKUP(B102,#REF!,1,0) -> 
A103: 6 | B103: 1.8.3.70.00.0005-2 | C103: 11032 | D103: RENDAS CONVÊNIOS A RECEBER - TRIBUTOS ESTADUAIS | E103: 27988.94 | G103: 1688.55 | H103: 1712.33 | I103: 27965.16 | K103: =VLOOKUP(B103,#REF!,1,0) -> 
A104: 6 | B104: 1.8.3.70.00.0006-9 | C104: 11033 | D104: RENDAS CONVÊNIOS A RECEBER - TRIBUTOS MUNICIPAIS | E104: 119.57 | G104: 341.15 | H104: 355.86 | I104: 104.86 | K104: =VLOOKUP(B104,#REF!,1,0) -> 
A105: 6 | B105: 1.8.3.70.00.0013-1 | C105: 11040 | D105: RENDAS CONVÊNIOS A RECEBER - FGTS | E105: 3348.9 | G105: 3332.43 | H105: 0 | I105: 6681.33 | K105: =VLOOKUP(B105,#REF!,1,0) -> 
A106: 6 | B106: 1.8.3.70.00.0015-5 | C106: 11042 | D106: RENDAS CONVÊNIOS A RECEBER - MULTAS DE TRÂNSITO | E106: 3843.67 | G106: 294.19 | H106: 5.06 | I106: 4132.8 | K106: =VLOOKUP(B106,#REF!,1,0) -> 
A107: 4 | B107: 1.8.3.90.00-1 | D107: OUTRAS RENDAS A RECEBER | E107: 101534.51 | G107: 229525.15 | H107: 247596.99 | I107: 83462.67 | K107: =VLOOKUP(B107,#REF!,1,0) -> 
A108: 6 | B108: 1.8.3.90.00.0001-0 | C108: 11044 | D108: CENTRALIZAÇÃO FINANCEIRA | E108: 101108.92 | G108: 83092.69 | H108: 101108.92 | I108: 83092.69 | K108: =VLOOKUP(B108,#REF!,1,0) -> 
A109: 6 | B109: 1.8.3.90.00.0007-2 | C109: 11050 | D109: RENDAS CONVÊNIOS A RECEBER - INSS | E109: 425.59 | G109: 1094.33 | H109: 1149.94 | I109: 369.98 | K109: =VLOOKUP(B109,#REF!,1,0) -> 
A110: 3 | B110: 1.8.8.00.00-3 | D110: DIVERSOS | E110: 3446245.92 | G110: 847568080.3 | H110: 847578790.2 | I110: 3435535.99 | K110: =VLOOKUP(B110,#REF!,1,0) -> 
A111: 4 | B111: 1.8.8.03.00-0 | D111: ADIANTAMENTOS E ANTECIPACOES SALARIAIS | E111: 205308.2 | G111: 217467.96 | H111: 218802.95 | I111: 203973.21 | K111: =VLOOKUP(B111,#REF!,1,0) -> 
A112: 6 | B112: 1.8.8.03.00.0002-6 | C112: 11071 | D112: ADIANTAMENTO DE 13º SALÁRIO | E112: 205308.2 | G112: 0 | H112: 1334.99 | I112: 203973.21 | K112: =VLOOKUP(B112,#REF!,1,0) -> 
A113: 4 | B113: 1.8.8.05.00-8 | D113: ADIANTAMENTOS PARA PAGAMENTOS DE NOSSA CONTA | E113: 11554.9 | G113: 65563.63 | H113: 65097.33 | I113: 12021.2 | K113: =VLOOKUP(B113,#REF!,1,0) -> 
A114: 6 | B114: 1.8.8.05.00.0001-3 | C114: 11078 | D114: ADIANTAMENTOS PARA DESPESAS DE VIAGEM | E114: 11554.9 | G114: 20683.9 | H114: 20217.6 | I114: 12021.2 | K114: =VLOOKUP(B114,#REF!,1,0) -> 
A115: 4 | B115: 1.8.8.10.00-0 | D115: ADIANTAMENTOS POR CONTA DE IMOBILIZACOES | E115: 455481.78 | G115: 10000 | H115: 33070.31 | I115: 432411.47 | K115: =VLOOKUP(B115,#REF!,1,0) -> 
A116: 6 | B116: 1.8.8.10.00.0001-1 | C116: 11085 | D116: ADIANTAMENTOS POR CONTA DE IMOBILIZAÇÕES | E116: 455481.78 | G116: 10000 | H116: 33070.31 | I116: 432411.47 | K116: =VLOOKUP(B116,#REF!,1,0) -> 
A117: 4 | B117: 1.8.8.40.00-1 | D117: DEVEDORES POR DEPOSITOS EM GARANTIA | E117: 2034551.83 | G117: 5346.68 | H117: 18335.77 | I117: 2021562.74 | K117: =VLOOKUP(B117,#REF!,1,0) -> 
A118: 5 | B118: 1.8.8.40.05-6 | D118: PARA INTERPOSICAO DE RECURSOS FISCAIS LEI 9.703/98 | E118: 2021562.74 | G118: 0 | H118: 0 | I118: 2021562.74 | K118: =VLOOKUP(B118,#REF!,1,0) -> 
A119: 6 | B119: 1.8.8.40.05.0002-2 | C119: 11107 | D119: PIS - DEPÓSITO JUDICIAL | E119: 437942.63 | G119: 0 | H119: 0 | I119: 437942.63 | K119: =VLOOKUP(B119,#REF!,1,0) -> 
A120: 6 | B120: 1.8.8.40.05.0003-9 | C120: 11108 | D120: COFINS - DEPÓSITO JUDICIAL | E120: 1583620.11 | G120: 0 | H120: 0 | I120: 1583620.11 | K120: =VLOOKUP(B120,#REF!,1,0) -> 
A121: 4 | B121: 1.8.8.50.00-8 | D121: IMPOSTO DE RENDA A RECUPERAR | E121: 2053.89 | G121: 2429.4 | H121: 0 | I121: 4483.29 | K121: =VLOOKUP(B121,#REF!,1,0) -> 
A122: 6 | B122: 1.8.8.50.00.0001-3 | C122: 11152 | D122: IMPOSTO DE RENDA A RECUPERAR | E122: 2053.89 | G122: 2429.4 | H122: 0 | I122: 4483.29 | K122: =VLOOKUP(B122,#REF!,1,0) -> 
A123: 4 | B123: 1.8.8.80.00-9 | D123: TÍTULOS E CRÉDITOS A RECEBER | E123: 722765.16 | G123: 430406.71 | H123: 437037.38 | I123: 716134.49 | K123: =VLOOKUP(B123,#REF!,1,0) -> 
A124: 5 | B124: 1.8.8.80.20-5 | D124: SEM CARACTERÍSTICA DE CONCESSÃO DE CRÉDITO | E124: 722765.16 | G124: 430406.71 | H124: 437037.38 | I124: 716134.49 | K124: =VLOOKUP(B124,#REF!,1,0) -> 
A125: 6 | B125: 1.8.8.80.20.0001-0 | C125: 11189 | D125: TÍTULOS E CRÉDITOS A RECEBER | E125: 472000 | G125: 0 | H125: 13500 | I125: 458500 | K125: =VLOOKUP(B125,#REF!,1,0) -> 
A126: 6 | B126: 1.8.8.80.20.0011-3 | C126: 11199 | D126: VALORES A RECEBER - TARIFAS | E126: 250765.16 | G126: 430406.71 | H126: 423537.38 | I126: 257634.49 | K126: =VLOOKUP(B126,#REF!,1,0) -> 
A127: 4 | B127: 1.8.8.92.00-4 | D127: DEVEDORES DIVERSOS - PAIS | E127: 14530.16 | G127: 846836865.9 | H127: 846806446.5 | I127: 44949.59 | K127: =VLOOKUP(B127,#REF!,1,0) -> 
A128: 6 | B128: 1.8.8.92.00.0005-7 | C128: 11205 | D128: DIFERENÇA DE CAIXA | E128: 486 | G128: 3389.04 | H128: 3270.04 | I128: 605 | K128: =VLOOKUP(B128,#REF!,1,0) -> 
A129: 6 | B129: 1.8.8.92.00.0006-4 | C129: 11206 | D129: PENDÊNCIAS A REGULARIZAR | E129: 185.78 | G129: 3360.83 | H129: 0 | I129: 3546.61 | K129: =VLOOKUP(B129,#REF!,1,0) -> 
A130: 6 | B130: 1.8.8.92.00.0016-7 | C130: 11216 | D130: PENDÊNCIAS A REGULARIZAR - BANCOOB | E130: 13858.38 | G130: 139425.82 | H130: 112486.22 | I130: 40797.98 | K130: =VLOOKUP(B130,#REF!,1,0) -> 
A131: 3 | B131: 1.8.9.00.00-6 | D131: (-) PROVISOES PARA OUTROS CREDITOS | E131: -109692.43 | G131: 13106.46 | H131: 18139.93 | I131: -114725.9 | K131: =VLOOKUP(B131,#REF!,1,0) -> 
A132: 4 | B132: 1.8.9.99.00-0 | D132: (-) PROVISÃO P/OUTROS CRÉDITOS LIQUIDAÇÃO DUVIDOSA | E132: -109692.43 | G132: 13106.46 | H132: 18139.93 | I132: -114725.9 | K132: =VLOOKUP(B132,#REF!,1,0) -> 
A133: 5 | B133: 1.8.9.99.10-3 | D133: COM CARACTERÍSTICAS DE CONCESSÃO DE CRÉDITO | E133: -109692.43 | G133: 13106.46 | H133: 18139.93 | I133: -114725.9 | K133: =VLOOKUP(B133,#REF!,1,0) -> 
A134: 6 | B134: 1.8.9.99.10.0002-3 | C134: 11302 | D134: (-) AVAIS E FIANÇAS HONRADOS | E134: -109692.43 | G134: 13106.46 | H134: 18139.93 | I134: -114725.9 | K134: =VLOOKUP(B134,#REF!,1,0) -> 
A135: 2 | B135: 1.9.0.00.00-8 | D135: OUTROS VALORES E BENS | E135: 5357414.78 | G135: 1879099.09 | H135: 296996.52 | I135: 6939517.35 | K135: =VLOOKUP(B135,#REF!,1,0) -> 
A136: 3 | B136: 1.9.8.00.00-2 | D136: OUTROS VALORES E BENS | E136: 5186303.09 | G136: 1879099.09 | H136: 272192.04 | I136: 6793210.14 | K136: =VLOOKUP(B136,#REF!,1,0) -> 
A137: 4 | B137: 1.9.8.10.00-9 | D137: BENS NAO DE USO PROPRIO | E137: 5186303.09 | G137: 1879099.09 | H137: 272192.04 | I137: 6793210.14 | K137: =VLOOKUP(B137,#REF!,1,0) -> 
A138: 5 | B138: 1.9.8.10.10-2 | D138: IMOVEIS | E138: 4532148.1 | G138: 1879099.09 | H138: 270692.04 | I138: 6140555.15 | K138: =VLOOKUP(B138,#REF!,1,0) -> 
A139: 6 | B139: 1.9.8.10.10.0001-7 | C139: 11305 | D139: IMÓVEIS | E139: 4624809.06 | G139: 1879099.09 | H139: 270692.04 | I139: 6233216.11 | K139: =VLOOKUP(B139,#REF!,1,0) -> 
A140: 6 | B140: 1.9.8.10.10.0002-4 | C140: 11336 | D140: (-) IMÓVEIS | E140: -92660.96 | G140: 0 | H140: 0 | I140: -92660.96 | K140: =VLOOKUP(B140,#REF!,1,0) -> 
A141: 5 | B141: 1.9.8.10.30-8 | D141: VEICULOS E AFINS | E141: 139154.99 | G141: 0 | H141: 1500 | I141: 137654.99 | K141: =VLOOKUP(B141,#REF!,1,0) -> 
A142: 6 | B142: 1.9.8.10.30.0001-5 | C142: 11306 | D142: VEÍCULOS E AFINS | E142: 139154.99 | G142: 0 | H142: 1500 | I142: 137654.99 | K142: =VLOOKUP(B142,#REF!,1,0) -> 
A143: 5 | B143: 1.9.8.10.50-4 | D143: BENS EM REGIME ESPECIAL | E143: 515000 | G143: 0 | H143: 0 | I143: 515000 | K143: =VLOOKUP(B143,#REF!,1,0) -> 
A144: 6 | B144: 1.9.8.10.50.0001-3 | C144: 11308 | D144: BENS EM REGIME ESPECIAL | E144: 584000 | G144: 0 | H144: 0 | I144: 584000 | K144: =VLOOKUP(B144,#REF!,1,0) -> 
A145: 6 | B145: 1.9.8.10.50.0003-7 | C145: 11370 | D145: (-) BENS EM REGIME ESPECIAL | E145: -69000 | G145: 0 | H145: 0 | I145: -69000 | K145: =VLOOKUP(B145,#REF!,1,0) -> 
A146: 3 | B146: 1.9.9.00.00-5 | D146: DESPESAS ANTECIPADAS | E146: 171111.69 | G146: 0 | H146: 24804.48 | I146: 146307.21 | K146: =VLOOKUP(B146,#REF!,1,0) -> 
A147: 4 | B147: 1.9.9.10.00-2 | D147: DESPESAS ANTECIPADAS | E147: 171111.69 | G147: 0 | H147: 24804.48 | I147: 146307.21 | K147: =VLOOKUP(B147,#REF!,1,0) -> 
A148: 6 | B148: 1.9.9.10.00.0001-7 | C148: 11315 | D148: PRÊMIOS DE SEGUROS | E148: 101689.24 | G148: 0 | H148: 14311.99 | I148: 87377.25 | K148: =VLOOKUP(B148,#REF!,1,0) -> 
A149: 6 | B149: 1.9.9.10.00.0019-6 | C149: 12178 | D149: CONTRIBUIÇÃO CONFEDERATIVA | E149: 7484.2 | G149: 0 | H149: 1496.84 | I149: 5987.36 | K149: =VLOOKUP(B149,#REF!,1,0) -> 
A150: 6 | B150: 1.9.9.10.00.9999-4 | C150: 11326 | D150: OUTROS | E150: 61938.25 | G150: 0 | H150: 8995.65 | I150: 52942.6 | K150: =VLOOKUP(B150,#REF!,1,0) -> 
A151: 1 | B151: 2.0.0.00.00-4 | D151: PERMANENTE | E151: 19539946.62 | G151: 863768.64 | H151: 168786.3 | I151: 20234928.96 | K151: =VLOOKUP(B151,#REF!,1,0) -> 
A152: 2 | B152: 2.1.0.00.00-3 | D152: INVESTIMENTOS | E152: 4583326.18 | G152: 77197.37 | H152: 0 | I152: 4660523.55 | K152: =VLOOKUP(B152,#REF!,1,0) -> 
A153: 3 | B153: 2.1.5.00.00-8 | D153: ACOES E COTAS | E153: 4583326.18 | G153: 77197.37 | H153: 0 | I153: 4660523.55 | K153: =VLOOKUP(B153,#REF!,1,0) -> 
A154: 4 | B154: 2.1.5.30.00-9 | D154: PARTICIPAÇÕES DE COOPERATIVAS | E154: 4583326.18 | G154: 77197.37 | H154: 0 | I154: 4660523.55 | K154: =VLOOKUP(B154,#REF!,1,0) -> 
A155: 5 | B155: 2.1.5.30.05-4 | D155: PARTICIPAÇÃO EM COOPERATIVA CENTRAL DE CRÉDITO | E155: 4509259.63 | G155: 77197.37 | H155: 0 | I155: 4586457 | K155: =VLOOKUP(B155,#REF!,1,0) -> 
A156: 6 | B156: 2.1.5.30.05.0001-9 | C156: 235 | D156: PARTICIPAÇÕES EM COOPERATIVA CENTRAL DE CRÉDITO | E156: 4509259.63 | G156: 77197.37 | H156: 0 | I156: 4586457 | K156: =VLOOKUP(B156,#REF!,1,0) -> 
A157: 5 | B157: 2.1.5.30.10-2 | D157: PARTIC.EM INST.FINAC.CONTROLADA POR COOP. CRÉDITO | E157: 74066.55 | G157: 0 | H157: 0 | I157: 74066.55 | K157: =VLOOKUP(B157,#REF!,1,0) -> 
A158: 6 | B158: 2.1.5.30.10.0001-3 | C158: 236 | D158: PARTICIPAÇÕES INST FINANC CONTROLADA COOP CRÉDITO | E158: 74066.55 | G158: 0 | H158: 0 | I158: 74066.55 | K158: =VLOOKUP(B158,#REF!,1,0) -> 
A159: 2 | B159: 2.2.0.00.00-2 | D159: IMOBILIZADO DE USO | E159: 14956620.44 | G159: 786571.27 | H159: 168786.3 | I159: 15574405.41 | K159: =VLOOKUP(B159,#REF!,1,0) -> 
A160: 3 | B160: 2.2.2.00.00-8 | D160: IMOBILIZACOES EM CURSO | E160: 13050406.7 | G160: 786571.27 | H160: 133721.09 | I160: 13703256.88 | K160: =VLOOKUP(B160,#REF!,1,0) -> 
A161: 4 | B161: 2.2.2.10.00-5 | D161: IMOBILIZACOES EM CURSO | E161: 13050406.7 | G161: 786571.27 | H161: 133721.09 | I161: 13703256.88 | K161: =VLOOKUP(B161,#REF!,1,0) -> 
A162: 5 | B162: 2.2.2.10.10-8 | D162: IMOVEIS | E162: 13050406.7 | G162: 786571.27 | H162: 133721.09 | I162: 13703256.88 | K162: =VLOOKUP(B162,#REF!,1,0) -> 
A163: 6 | B163: 2.2.2.10.10.0001-7 | C163: 281 | D163: IMÓVEIS | E163: 13050406.7 | G163: 786571.27 | H163: 133721.09 | I163: 13703256.88 | K163: =VLOOKUP(B163,#REF!,1,0) -> 
A164: 3 | B164: 2.2.3.00.00-1 | D164: IMOVEIS DE USO | E164: 136661.12 | G164: 0 | H164: 58.42 | I164: 136602.7 | K164: =VLOOKUP(B164,#REF!,1,0) -> 
A165: 4 | B165: 2.2.3.10.00-8 | D165: IMOVEIS DE USO | E165: 1364501.2 | G165: 0 | H165: 0 | I165: 1364501.2 | K165: =VLOOKUP(B165,#REF!,1,0) -> 
A166: 5 | B166: 2.2.3.10.10-1 | D166: TERRENOS | E166: 130000 | G166: 0 | H166: 0 | I166: 130000 | K166: =VLOOKUP(B166,#REF!,1,0) -> 
A167: 6 | B167: 2.2.3.10.10.0001-6 | C167: 284 | D167: TERRENOS | E167: 130000 | G167: 0 | H167: 0 | I167: 130000 | K167: =VLOOKUP(B167,#REF!,1,0) -> 
A168: 5 | B168: 2.2.3.10.20-4 | D168: EDIFICACOES | E168: 1234501.2 | G168: 0 | H168: 0 | I168: 1234501.2 | K168: =VLOOKUP(B168,#REF!,1,0) -> 
A169: 6 | B169: 2.2.3.10.20.0001-5 | C169: 286 | D169: EDIFICAÇÕES | E169: 1234501.2 | G169: 0 | H169: 0 | I169: 1234501.2 | K169: =VLOOKUP(B169,#REF!,1,0) -> 
A170: 4 | B170: 2.2.3.99.00-5 | D170: (-) DEPRECIACAO ACUMUL DE IMOV DE USO-EDIFICACOES | E170: -1227840.08 | G170: 0 | H170: 58.42 | I170: -1227898.5 | K170: =VLOOKUP(B170,#REF!,1,0) -> 
A171: 6 | B171: 2.2.3.99.00.0001-4 | C171: 288 | D171: (-) DEPR. ACUMULADA DE IMÓVEIS DE USO-EDIFICAÇÕES | E171: -1227840.08 | G171: 0 | H171: 58.42 | I171: -1227898.5 | K171: =VLOOKUP(B171,#REF!,1,0) -> 
A172: 3 | B172: 2.2.4.00.00-4 | D172: INSTALACOES, MOVEIS E EQUIPAMENTOS DE USO | E172: 1147068.65 | G172: 0 | H172: 20791.01 | I172: 1126277.64 | K172: =VLOOKUP(B172,#REF!,1,0) -> 
A173: 4 | B173: 2.2.4.10.00-1 | D173: INSTALACOES | E173: 1200829.03 | G173: 0 | H173: 0 | I173: 1200829.03 | K173: =VLOOKUP(B173,#REF!,1,0) -> 
A174: 6 | B174: 2.2.4.10.00.0001-6 | C174: 289 | D174: INSTALAÇÕES | E174: 1200829.03 | G174: 0 | H174: 0 | I174: 1200829.03 | K174: =VLOOKUP(B174,#REF!,1,0) -> 
A175: 4 | B175: 2.2.4.20.00-8 | D175: MOVEIS E EQUIPAMENTOS DE USO | E175: 1303386.26 | G175: 0 | H175: 0 | I175: 1303386.26 | K175: =VLOOKUP(B175,#REF!,1,0) -> 
A176: 6 | B176: 2.2.4.20.00.0001-9 | C176: 290 | D176: APARELHOS DE REFRIGERAÇÃO | E176: 157780.69 | G176: 0 | H176: 0 | I176: 157780.69 | K176: =VLOOKUP(B176,#REF!,1,0) -> 
A177: 6 | B177: 2.2.4.20.00.0002-6 | C177: 291 | D177: MÁQUINAS | E177: 251219.08 | G177: 0 | H177: 0 | I177: 251219.08 | K177: =VLOOKUP(B177,#REF!,1,0) -> 
A178: 6 | B178: 2.2.4.20.00.0003-3 | C178: 292 | D178: MOBILIÁRIOS | E178: 894386.49 | G178: 0 | H178: 0 | I178: 894386.49 | K178: =VLOOKUP(B178,#REF!,1,0) -> 
A179: 4 | B179: 2.2.4.96.00-1 | D179: (-) DEPRECIACAO ACUMULADA DE INSTALACOES | E179: -728358.46 | G179: 0 | H179: 10758.14 | I179: -739116.6 | K179: =VLOOKUP(B179,#REF!,1,0) -> 
A180: 6 | B180: 2.2.4.96.00.0001-2 | C180: 294 | D180: (-) DEPRECIAÇÃO ACUMULADA DE INSTALAÇÕES | E180: -728358.46 | G180: 0 | H180: 10758.14 | I180: -739116.6 | K180: =VLOOKUP(B180,#REF!,1,0) -> 
A181: 4 | B181: 2.2.4.99.00-8 | D181: (-) DEPRECIACAO ACUMUL DE MOVEIS E EQUIPAM DE USO | E181: -628788.18 | G181: 0 | H181: 10032.87 | I181: -638821.05 | K181: =VLOOKUP(B181,#REF!,1,0) -> 
A182: 6 | B182: 2.2.4.99.00.0001-3 | C182: 295 | D182: (-) DEPREC. ACUMUL.DE APARELHOS REFRIGERAÇÃO | E182: -82707.65 | G182: 0 | H182: 1158.6 | I182: -83866.25 | K182: =VLOOKUP(B182,#REF!,1,0) -> 
A183: 6 | B183: 2.2.4.99.00.0002-0 | C183: 296 | D183: (-) DEPREC. ACUMULADA DE MÁQUINAS | E183: -91618.39 | G183: 0 | H183: 1898.5 | I183: -93516.89 | K183: =VLOOKUP(B183,#REF!,1,0) -> 
A184: 6 | B184: 2.2.4.99.00.0003-7 | C184: 297 | D184: (-) DEPREC. ACUMULADA DE MOBILIÁRIOS | E184: -454462.14 | G184: 0 | H184: 6975.77 | I184: -461437.91 | K184: =VLOOKUP(B184,#REF!,1,0) -> 
A185: 3 | B185: 2.2.9.00.00-9 | D185: OUTROS | E185: 622483.97 | G185: 0 | H185: 14215.78 | I185: 608268.19 | K185: =VLOOKUP(B185,#REF!,1,0) -> 
A186: 4 | B186: 2.2.9.10.00-6 | D186: SISTEMA DE COMUNICACAO | E186: 25206.7 | G186: 0 | H186: 0 | I186: 25206.7 | K186: =VLOOKUP(B186,#REF!,1,0) -> 
A187: 5 | B187: 2.2.9.10.10-9 | D187: EQUIPAMENTOS | E187: 25206.7 | G187: 0 | H187: 0 | I187: 25206.7 | K187: =VLOOKUP(B187,#REF!,1,0) -> 
A188: 6 | B188: 2.2.9.10.10.0001-0 | C188: 299 | D188: EQUIPAMENTOS | E188: 25206.7 | G188: 0 | H188: 0 | I188: 25206.7 | K188: =VLOOKUP(B188,#REF!,1,0) -> 
A189: 4 | B189: 2.2.9.30.00-0 | D189: SISTEMA DE PROCESSAMENTO DE DADOS | E189: 936249.62 | G189: 0 | H189: 0 | I189: 936249.62 | K189: =VLOOKUP(B189,#REF!,1,0) -> 
A190: 6 | B190: 2.2.9.30.00.0001-7 | C190: 2101 | D190: EQUIPAMENTOS | E190: 936249.62 | G190: 0 | H190: 0 | I190: 936249.62 | K190: =VLOOKUP(B190,#REF!,1,0) -> 
A191: 4 | B191: 2.2.9.50.00-4 | D191: SISTEMA DE SEGURANCA | E191: 282921.24 | G191: 0 | H191: 0 | I191: 282921.24 | K191: =VLOOKUP(B191,#REF!,1,0) -> 
A192: 6 | B192: 2.2.9.50.00.0001-3 | C192: 2103 | D192: ALARME | E192: 50841.37 | G192: 0 | H192: 0 | I192: 50841.37 | K192: =VLOOKUP(B192,#REF!,1,0) -> 
A193: 6 | B193: 2.2.9.50.00.0002-0 | C193: 2104 | D193: CABINES DE SEGURANÇA | E193: 6200 | G193: 0 | H193: 0 | I193: 6200 | K193: =VLOOKUP(B193,#REF!,1,0) -> 
A194: 6 | B194: 2.2.9.50.00.0003-7 | C194: 2105 | D194: ARMAS E EQUIPAMENTOS | E194: 81466.88 | G194: 0 | H194: 0 | I194: 81466.88 | K194: =VLOOKUP(B194,#REF!,1,0) -> 
A195: 6 | B195: 2.2.9.50.00.0004-4 | C195: 2106 | D195: SISTEMA DE VIGILANCIA | E195: 68005.24 | G195: 0 | H195: 0 | I195: 68005.24 | K195: =VLOOKUP(B195,#REF!,1,0) -> 
A196: 6 | B196: 2.2.9.50.00.9999-0 | C196: 2107 | D196: OUTROS SISTEMAS DE SEGURANÇA | E196: 76407.75 | G196: 0 | H196: 0 | I196: 76407.75 | K196: =VLOOKUP(B196,#REF!,1,0) -> 
A197: 4 | B197: 2.2.9.70.00-8 | D197: SISTEMA DE TRANSPORTE | E197: 392401 | G197: 0 | H197: 0 | I197: 392401 | K197: =VLOOKUP(B197,#REF!,1,0) -> 
A198: 6 | B198: 2.2.9.70.00.0001-9 | C198: 2108 | D198: VEÍCULOS | E198: 392401 | G198: 0 | H198: 0 | I198: 392401 | K198: =VLOOKUP(B198,#REF!,1,0) -> 
A199: 4 | B199: 2.2.9.99.00-3 | D199: (-) DEPRECIACAO ACUMUL OUTRAS IMOBILIZACOES DE USO | E199: -1014294.59 | G199: 0 | H199: 14215.78 | I199: -1028510.37 | K199: =VLOOKUP(B199,#REF!,1,0) -> 
A200: 5 | B200: 2.2.9.99.10-6 | D200: (-) SISTEMA DE COMUNICACAO - EQUIPAMENTOS | E200: -20651.55 | G200: 0 | H200: 134.25 | I200: -20785.8 | K200: =VLOOKUP(B200,#REF!,1,0) -> 
A201: 6 | B201: 2.2.9.99.10.0001-7 | C201: 2110 | D201: (-) DEPREC.ACUMUL.SISTEMA COMUNICAÇÃO-EQUIPAMENTOS | E201: -20651.55 | G201: 0 | H201: 134.25 | I201: -20785.8 | K201: =VLOOKUP(B201,#REF!,1,0) -> 
... 782 more rows

Sheet 09.2019 (hidden)
D1: Sisbr 2.0 - Plataforma Contábill
H2: Data de Emissão:
D3: Relatório Balancete Analítico
H4: 2019-10-17T13:48:47.160
A6: 3175 - SICOOB CREDISETE | H6: Hora de Emissão:
H7: 43755.57555
A8: Instituição resp.: | C8: 1003 - SICOOB CENTRAL CREDIMINAS | E8: Período: | G8: 01/09/2019 a 30/09/2019
A9: Instituição: | C9: 3175 - SICOOB CREDISETE | E9: Tipo de Saldo: | G9: Somente Saldos Diferentes de Zero
A10: PA: | C10: TODOS... | E10: Apresentação do Saldo: | G10: Saldo Contábil
A11: Grupo Contábil: | C11: Ativo, Compensação, Passivo, Patrimônio Líquido, Resultado
A12: N | B12: Conta | C12: Cód.Reduzido | D12: Descrição da Conta | E12: Saldo Anterior | G12: Débito | H12: Crédito | I12: Saldo Atual
A13: 1 | B13: 1.0.0.00.00-7 | D13: CIRCULANTE E REALIZAVEL A LONGO PRAZO | E13: 238322346.9 | G13: 1337567760 | H13: 1337632937 | I13: 238257170.2 | K13: =VLOOKUP(B13,#REF!,1,0) -> 
A14: 2 | B14: 1.1.0.00.00-6 | D14: DISPONIBILIDADES | E14: 2549927.83 | G14: 440432382.4 | H14: 438296777.3 | I14: 4685532.91 | K14: =VLOOKUP(B14,#REF!,1,0) -> 
A15: 3 | B15: 1.1.1.00.00-9 | D15: CAIXA | E15: 2549927.83 | G15: 171863519.5 | H15: 169727914.4 | I15: 4685532.91 | K15: =VLOOKUP(B15,#REF!,1,0) -> 
A16: 4 | B16: 1.1.1.10.00-6 | D16: CAIXA | E16: 2549927.83 | G16: 171863519.5 | H16: 169727914.4 | I16: 4685532.91 | K16: =VLOOKUP(B16,#REF!,1,0) -> 
A17: 6 | B17: 1.1.1.10.00.0001-9 | C17: 11 | D17: CAIXA | E17: 1893423.52 | G17: 161336621.5 | H17: 160350919.9 | I17: 2879125.1 | K17: =VLOOKUP(B17,#REF!,1,0) -> 
A18: 6 | B18: 1.1.1.10.00.0002-6 | C18: 12 | D18: NUMERÁRIO EM TRÂNSITO | E18: 656504.31 | G18: 10526898 | H18: 9376994.5 | I18: 1806407.81 | K18: =VLOOKUP(B18,#REF!,1,0) -> 
A19: 2 | B19: 1.4.0.00.00-3 | D19: RELACOES INTERFINANCEIRAS | E19: 145184415.2 | G19: 18400530.87 | H19: 24153394.69 | I19: 139431551.4 | K19: =VLOOKUP(B19,#REF!,1,0) -> 
A20: 3 | B20: 1.4.5.00.00-8 | D20: CENTRALIZAÇÃO FINANCEIRA - COOPERATIVAS | E20: 145184415.2 | G20: 18400530.87 | H20: 24153394.69 | I20: 139431551.4 | K20: =VLOOKUP(B20,#REF!,1,0) -> 
A21: 4 | B21: 1.4.5.10.00-5 | D21: DEPÓSITOS NAS COOPERATIVAS CENTRAIS | E21: 145184415.2 | G21: 18400530.87 | H21: 24153394.69 | I21: 139431551.4 | K21: =VLOOKUP(B21,#REF!,1,0) -> 
A22: 6 | B22: 1.4.5.10.00.0001-6 | C22: 1620 | D22: CENTRALIZAÇÃO FINANCEIRA - COOPERATIVAS | E22: 145184415.2 | G22: 18400530.87 | H22: 24153394.69 | I22: 139431551.4 | K22: =VLOOKUP(B22,#REF!,1,0) -> 
A23: 2 | B23: 1.6.0.00.00-1 | D23: OPERACOES DE CREDITO | E23: 80045733.4 | G23: 28604286.61 | H23: 24689011.83 | I23: 83961008.18 | K23: =VLOOKUP(B23,#REF!,1,0) -> 
A24: 3 | B24: 1.6.1.00.00-4 | D24: EMPRÉSTIMOS E DIREITOS CREDITÓRIOS DESCONTADOS | E24: 64247648.42 | G24: 24267394.54 | H24: 21449622.43 | I24: 67065420.53 | K24: =VLOOKUP(B24,#REF!,1,0) -> 
A25: 4 | B25: 1.6.1.10.00-1 | D25: ADIANTAMENTOS A DEPOSITANTES | E25: 258641.78 | G25: 2419846.09 | H25: 2281455.28 | I25: 397032.59 | K25: =VLOOKUP(B25,#REF!,1,0) -> 
A26: 6 | B26: 1.6.1.10.00.0001-4 | C26: 1626 | D26: ADIANTAMENTOS A DEPOSITANTES | E26: 294340.45 | G26: 2414875.35 | H26: 2269192.72 | I26: 440023.08 | K26: =VLOOKUP(B26,#REF!,1,0) -> 
A27: 6 | B27: 1.6.1.10.00.0002-1 | C27: 1627 | D27: (-) RENDAS APROPRIAR ADIANTAMENTOS A DEPOSITANTES | E27: -35698.67 | G27: 4970.74 | H27: 12262.56 | I27: -42990.49 | K27: =VLOOKUP(B27,#REF!,1,0) -> 
A28: 4 | B28: 1.6.1.20.00-8 | D28: EMPRESTIMOS | E28: 59499330.9 | G28: 18907637.07 | H28: 16553842.8 | I28: 61853125.17 | K28: =VLOOKUP(B28,#REF!,1,0) -> 
A29: 5 | B29: 1.6.1.20.99-8 | D29: OUTROS | E29: 59499330.9 | G29: 18907637.07 | H29: 16553842.8 | I29: 61853125.17 | K29: =VLOOKUP(B29,#REF!,1,0) -> 
A30: 6 | B30: 1.6.1.20.99.0005-3 | C30: 12019 | D30: CRÉDITO PESSOAL | E30: 15262050.92 | G30: 1147587.75 | H30: 1641929.3 | I30: 14767709.37 | K30: =VLOOKUP(B30,#REF!,1,0) -> 
A31: 6 | B31: 1.6.1.20.99.0006-0 | C31: 12020 | D31: (-) RENDAS A APROPRIAR - CRÉDITO PESSOAL | E31: -2724308.19 | G31: 288409.85 | H31: 288615.62 | I31: -2724513.96 | K31: =VLOOKUP(B31,#REF!,1,0) -> 
A32: 6 | B32: 1.6.1.20.99.0007-7 | C32: 12021 | D32: (-) JUROS MORA APROP - CRÉDITO PESSOAL | E32: -39583.77 | G32: 6208.72 | H32: 15583.81 | I32: -48958.86 | K32: =VLOOKUP(B32,#REF!,1,0) -> 
A33: 6 | B33: 1.6.1.20.99.0008-4 | C33: 12022 | D33: (-) RDAS EFET - VENC + 60 D - CRÉDITO PESSOAL | E33: -46318.07 | G33: 8053.26 | H33: 11237.9 | I33: -49502.71 | K33: =VLOOKUP(B33,#REF!,1,0) -> 
A34: 6 | B34: 1.6.1.20.99.0009-1 | C34: 12023 | D34: (-) GANHOS A AUFERIR - CRÉDITO PESSOAL | E34: -30570.38 | G34: 1021.85 | H34: 1526.69 | I34: -31075.22 | K34: =VLOOKUP(B34,#REF!,1,0) -> 
A35: 6 | B35: 1.6.1.20.99.0037-6 | C35: 12124 | D35: CHEQUE ESPECIAL | E35: 1234869.84 | G35: 2430407.6 | H35: 2304177.81 | I35: 1361099.63 | K35: =VLOOKUP(B35,#REF!,1,0) -> 
A36: 6 | B36: 1.6.1.20.99.0038-3 | C36: 12125 | D36: (-) RENDAS A APROPRIAR - CHEQUE ESPECIAL | E36: -14107.4 | G36: 7136.76 | H36: 4878.66 | I36: -11849.3 | K36: =VLOOKUP(B36,#REF!,1,0) -> 
A37: 6 | B37: 1.6.1.20.99.0039-0 | C37: 12126 | D37: CAPITAL DE GIRO | E37: 51909530.42 | G37: 5383859.09 | H37: 2835489.31 | I37: 54457900.2 | K37: =VLOOKUP(B37,#REF!,1,0) -> 
A38: 6 | B38: 1.6.1.20.99.0040-0 | C38: 12127 | D38: (-) RENDAS A APROPRIAR - CAPITAL DE GIRO | E38: -9764320.91 | G38: 599856.18 | H38: 1278093.32 | I38: -10442558.05 | K38: =VLOOKUP(B38,#REF!,1,0) -> 
A39: 6 | B39: 1.6.1.20.99.0041-7 | C39: 12128 | D39: (-) JUROS MORA APROP - CAPITAL DE GIRO | E39: -126022.79 | G39: 1570.29 | H39: 30327.88 | I39: -154780.38 | K39: =VLOOKUP(B39,#REF!,1,0) -> 
A40: 6 | B40: 1.6.1.20.99.0042-4 | C40: 12129 | D40: (-) RDAS EFET - VENC + 60 D - CAPITAL DE GIRO | E40: -93540.88 | G40: 494.25 | H40: 20711.65 | I40: -113758.28 | K40: =VLOOKUP(B40,#REF!,1,0) -> 
A41: 6 | B41: 1.6.1.20.99.0043-1 | C41: 12130 | D41: (-) GANHOS A AUFERIR - CAPITAL DE GIRO | E41: -52171.67 | G41: 774.69 | H41: 1518.29 | I41: -52915.27 | K41: =VLOOKUP(B41,#REF!,1,0) -> 
A42: 6 | B42: 1.6.1.20.99.0044-8 | C42: 12131 | D42: CONTA GARANTIDA | E42: 3653418.42 | G42: 8940619.7 | H42: 8055159.04 | I42: 4538879.08 | K42: =VLOOKUP(B42,#REF!,1,0) -> 
A43: 6 | B43: 1.6.1.20.99.0045-5 | C43: 12132 | D43: (-) RENDAS A APROPRIAR - CONTA GARANTIDA | E43: -27558 | G43: 4409.25 | H43: 5998.65 | I43: -29147.4 | K43: =VLOOKUP(B43,#REF!,1,0) -> 
A44: 6 | B44: 1.6.1.20.99.0046-2 | C44: 12133 | D44: EMPRÉSTIMOS COM GARANTIAS BENS IMÓVEIS | E44: 429120.03 | G44: 81391.11 | H44: 32298.95 | I44: 478212.19 | K44: =VLOOKUP(B44,#REF!,1,0) -> 
A45: 6 | B45: 1.6.1.20.99.0047-9 | C45: 12134 | D45: (-) RDAS A APROP - EMP COM GARANT BENS IMÓVEIS | E45: -71156.67 | G45: 5836.72 | H45: 26295.92 | I45: -91615.87 | K45: =VLOOKUP(B45,#REF!,1,0) -> 
A46: 4 | B46: 1.6.1.30.00-5 | D46: DIREITOS CREDITÓRIOS DESCONTADOS | E46: 4489675.74 | G46: 2939911.38 | H46: 2614324.35 | I46: 4815262.77 | K46: =VLOOKUP(B46,#REF!,1,0) -> 
A47: 5 | B47: 1.6.1.30.10-8 | D47: TÍTULOS DE CRÉDITO | E47: 4489675.74 | G47: 2939911.38 | H47: 2614324.35 | I47: 4815262.77 | K47: =VLOOKUP(B47,#REF!,1,0) -> 
A48: 6 | B48: 1.6.1.30.10.0001-9 | C48: 11407 | D48: TÍTULOS DESCONTADOS | E48: 486468.78 | G48: 427004.7 | H48: 412728.21 | I48: 500745.27 | K48: =VLOOKUP(B48,#REF!,1,0) -> 
A49: 6 | B49: 1.6.1.30.10.0002-6 | C49: 11408 | D49: (-) RENDAS A APROPRIAR - TÍTULOS DESCONTADOS RPL | E49: -11772.19 | G49: 12552.79 | H49: 12960.75 | I49: -12180.15 | K49: =VLOOKUP(B49,#REF!,1,0) -> 
A50: 6 | B50: 1.6.1.30.10.0009-5 | C50: 11415 | D50: CHEQUES DESCONTADOS | E50: 4161629.2 | G50: 2396560.43 | H50: 2070209.12 | I50: 4487980.51 | K50: =VLOOKUP(B50,#REF!,1,0) -> 
A51: 6 | B51: 1.6.1.30.10.0010-5 | C51: 11416 | D51: (-) RENDAS A APROPRIAR - CHEQUES DESCONTADOS | E51: -138422.95 | G51: 103793.46 | H51: 115529.71 | I51: -150159.2 | K51: =VLOOKUP(B51,#REF!,1,0) -> 
A52: 6 | B52: 1.6.1.30.10.0011-2 | C52: 11417 | D52: (-) JUROS DE MORA A APROPRIAR | E52: -8227.1 | G52: 0 | H52: 2896.56 | I52: -11123.66 | K52: =VLOOKUP(B52,#REF!,1,0) -> 
A53: 3 | B53: 1.6.2.00.00-7 | D53: FINANCIAMENTOS | E53: 19318846.13 | G53: 3366849.13 | H53: 1759637.48 | I53: 20926057.78 | K53: =VLOOKUP(B53,#REF!,1,0) -> 
A54: 4 | B54: 1.6.2.10.00-4 | D54: FINANCIAMENTOS | E54: 19318846.13 | G54: 3366849.13 | H54: 1759637.48 | I54: 20926057.78 | K54: =VLOOKUP(B54,#REF!,1,0) -> 
A55: 6 | B55: 1.6.2.10.00.0008-2 | C55: 1681 | D55: FINANCIAMENTOS | E55: 24031452.74 | G55: 3096476.61 | H55: 967644.69 | I55: 26160284.66 | K55: =VLOOKUP(B55,#REF!,1,0) -> 
A56: 6 | B56: 1.6.2.10.00.0009-9 | C56: 1682 | D56: (-) RENDAS A APROPRIAR - FINANCIAMENTOS | E56: -4702551.43 | G56: 269843.47 | H56: 788980.19 | I56: -5221688.15 | K56: =VLOOKUP(B56,#REF!,1,0) -> 
A57: 6 | B57: 1.6.2.10.00.0010-9 | C57: 1683 | D57: (-) JUROS DE MORA A APROPRIAR - FINANCIAMENTOS | E57: -4554.21 | G57: 212.16 | H57: 1627.95 | I57: -5970 | K57: =VLOOKUP(B57,#REF!,1,0) -> 
A58: 6 | B58: 1.6.2.10.00.0011-6 | C58: 1684 | D58: (-) RDAS A EFET. FIN VENC + 60 DIAS - FINANCIAMENT | E58: -5500.97 | G58: 316.89 | H58: 1384.65 | I58: -6568.73 | K58: =VLOOKUP(B58,#REF!,1,0) -> 
A59: 3 | B59: 1.6.3.00.00-0 | D59: FINANCIAMENTOS RURAIS E AGROINDUSTRIAIS | E59: 7421054.06 | G59: 474980.65 | H59: 254759.72 | I59: 7641274.99 | K59: =VLOOKUP(B59,#REF!,1,0) -> 
A60: 4 | B60: 1.6.3.05.00-5 | D60: FINANCIAMENTOS RURAIS - APLICAÇÕES COM RECURSOS LIVRES | E60: 2536351.81 | G60: 439257.32 | H60: 216596.36 | I60: 2759012.77 | K60: =VLOOKUP(B60,#REF!,1,0) -> 
A61: 5 | B61: 1.6.3.05.10-8 | D61: CUSTEIO - PECUÁRIA | E61: 145728.61 | G61: 1783.06 | H61: 14524.46 | I61: 132987.21 | K61: =VLOOKUP(B61,#REF!,1,0) -> 
A62: 6 | B62: 1.6.3.05.10.0001-3 | C62: 11707 | D62: CUSTEIO - PECUÁRIA - APLIC. REC. LIVRES | E62: 156279.42 | G62: 0 | H62: 14524.46 | I62: 141754.96 | K62: =VLOOKUP(B62,#REF!,1,0) -> 
A63: 6 | B63: 1.6.3.05.10.0002-0 | C63: 11708 | D63: (-) RDAS APROP - CP - APLIC. REC. LIVRES | E63: -10550.81 | G63: 1783.06 | H63: 0 | I63: -8767.75 | K63: =VLOOKUP(B63,#REF!,1,0) -> 
A64: 5 | B64: 1.6.3.05.20-1 | D64: INVESTIMENTO - PECUÁRIA | E64: 2390623.2 | G64: 437474.26 | H64: 202071.9 | I64: 2626025.56 | K64: =VLOOKUP(B64,#REF!,1,0) -> 
A65: 6 | B65: 1.6.3.05.20.0001-2 | C65: 11715 | D65: INVESTIMENTO - PECUÁRIA - APLIC. REC. LIVRES | E65: 2870476.57 | G65: 410019.05 | H65: 92594.15 | I65: 3187901.47 | K65: =VLOOKUP(B65,#REF!,1,0) -> 
A66: 6 | B66: 1.6.3.05.20.0002-9 | C66: 11716 | D66: (-) RDAS APROP - IP - APLIC. REC. LIVRES | E66: -479718.63 | G66: 27303.17 | H66: 109460.45 | I66: -561875.91 | K66: =VLOOKUP(B66,#REF!,1,0) -> 
A67: 4 | B67: 1.6.3.15.00-2 | D67: FINANCIAMENTOS RURAIS - APLICAÇÕES COM RECURSOS DIRECIONADOS À VISTA | E67: 6214.83 | G67: 54 | H67: 54 | I67: 6214.83 | K67: =VLOOKUP(B67,#REF!,1,0) -> 
A68: 5 | B68: 1.6.3.15.20-8 | D68: INVESTIMENTO - PECUÁRIA | E68: 6214.83 | G68: 54 | H68: 54 | I68: 6214.83 | K68: =VLOOKUP(B68,#REF!,1,0) -> 
A69: 6 | B69: 1.6.3.15.20.0001-5 | C69: 11747 | D69: INVESTIMENTO - PECUÁRIA - REC. DIREC. À VISTA | E69: 6582.03 | G69: 54 | H69: 0 | I69: 6636.03 | K69: =VLOOKUP(B69,#REF!,1,0) -> 
A70: 6 | B70: 1.6.3.15.20.0003-9 | C70: 11749 | D70: (-) JUROS MORA APROP - IP - REC. DIREC. À VISTA | E70: -367.2 | G70: 0 | H70: 54 | I70: -421.2 | K70: =VLOOKUP(B70,#REF!,1,0) -> 
A71: 4 | B71: 1.6.3.25.00-9 | D71: FINANCIAMENTOS RURAIS - APLICAÇÕES COM RECURSOS DIRECIONADOS DA POUPANÇA | E71: 3899080.75 | G71: 28583.88 | H71: 0 | I71: 3927664.63 | K71: =VLOOKUP(B71,#REF!,1,0) -> 
A72: 5 | B72: 1.6.3.25.10-2 | D72: CUSTEIO - PECUÁRIA | E72: 400050.79 | G72: 2995.16 | H72: 0 | I72: 403045.95 | K72: =VLOOKUP(B72,#REF!,1,0) -> 
A73: 6 | B73: 1.6.3.25.10.0001-9 | C73: 11771 | D73: CUSTEIO - PECUÁRIA - POUPANÇA RURAL | E73: 419612.09 | G73: 0 | H73: 0 | I73: 419612.09 | K73: =VLOOKUP(B73,#REF!,1,0) -> 
A74: 6 | B74: 1.6.3.25.10.0002-6 | C74: 11772 | D74: (-) RDAS APROP - CP - POUPANÇA RURAL | E74: -19561.3 | G74: 2995.16 | H74: 0 | I74: -16566.14 | K74: =VLOOKUP(B74,#REF!,1,0) -> 
A75: 5 | B75: 1.6.3.25.20-5 | D75: INVESTIMENTO - PECUÁRIA | E75: 3499029.96 | G75: 25588.72 | H75: 0 | I75: 3524618.68 | K75: =VLOOKUP(B75,#REF!,1,0) -> 
A76: 6 | B76: 1.6.3.25.20.0001-8 | C76: 11779 | D76: INVESTIMENTO - PECUÁRIA - POUPANÇA RURAL | E76: 3800119.42 | G76: 0 | H76: 0 | I76: 3800119.42 | K76: =VLOOKUP(B76,#REF!,1,0) -> 
A77: 6 | B77: 1.6.3.25.20.0002-5 | C77: 11780 | D77: (-) RDAS APROP - IP - POUPANÇA RURAL | E77: -301089.46 | G77: 25588.72 | H77: 0 | I77: -275500.74 | K77: =VLOOKUP(B77,#REF!,1,0) -> 
A78: 4 | B78: 1.6.3.35.00-6 | D78: FINANCIAMENTOS RURAIS - APLICAÇÕES COM RECURSOS DIRECIONADOS DE LCA | E78: 979406.67 | G78: 7085.45 | H78: 38109.36 | I78: 948382.76 | K78: =VLOOKUP(B78,#REF!,1,0) -> 
A79: 5 | B79: 1.6.3.35.10-9 | D79: CUSTEIO - PECUÁRIA | E79: 979406.67 | G79: 7085.45 | H79: 38109.36 | I79: 948382.76 | K79: =VLOOKUP(B79,#REF!,1,0) -> 
A80: 6 | B80: 1.6.3.35.10.0001-2 | C80: 11803 | D80: CUSTEIO - PECUÁRIA - REC. DIREC. LCA | E80: 1021188.59 | G80: 65.07 | H80: 38109.36 | I80: 983144.3 | K80: =VLOOKUP(B80,#REF!,1,0) -> 
A81: 6 | B81: 1.6.3.35.10.0002-9 | C81: 11804 | D81: (-) RDAS APROP - CP - REC. DIREC. LCA | E81: -41781.92 | G81: 7020.38 | H81: 0 | I81: -34761.54 | K81: =VLOOKUP(B81,#REF!,1,0) -> 
A82: 3 | B82: 1.6.9.00.00-8 | D82: (-) PROVISOES PARA OPERACOES DE CREDITO | E82: -10941815.21 | G82: 495062.29 | H82: 1224992.2 | I82: -11671745.12 | K82: =VLOOKUP(B82,#REF!,1,0) -> 
A83: 4 | B83: 1.6.9.20.00-2 | D83: (-) PROVISÃO PARA EMPRÉSTIMOS E DIREITOS CREDITÓRIOS DESCONTADOS | E83: -10100462.26 | G83: 438591.74 | H83: 1065276.7 | I83: -10727147.22 | K83: =VLOOKUP(B83,#REF!,1,0) -> 
A84: 6 | B84: 1.6.9.20.00.0001-9 | C84: 1945 | D84: (-) ADIANTAMENTOS A DEPOSITANTES | E84: -59317.75 | G84: 17193.56 | H84: 54141.96 | I84: -96266.15 | K84: =VLOOKUP(B84,#REF!,1,0) -> 
A85: 6 | B85: 1.6.9.20.00.0002-6 | C85: 1946 | D85: (-) EMPRÉSTIMOS | E85: -9567347.02 | G85: 338776.28 | H85: 823142.61 | I85: -10051713.35 | K85: =VLOOKUP(B85,#REF!,1,0) -> 
A86: 6 | B86: 1.6.9.20.00.0003-3 | C86: 1947 | D86: (-) CHEQUE ESPECIAL | E86: -136661.31 | G86: 29054.87 | H86: 47152.27 | I86: -154758.71 | K86: =VLOOKUP(B86,#REF!,1,0) -> 
A87: 6 | B87: 1.6.9.20.00.0005-7 | C87: 1949 | D87: (-) TÍTULOS DESCONTADOS | E87: -82868.99 | G87: 23633.4 | H87: 56432.7 | I87: -115668.29 | K87: =VLOOKUP(B87,#REF!,1,0) -> 
A88: 6 | B88: 1.6.9.20.00.0007-1 | C88: 1951 | D88: (-) CONTA GARANTIDA | E88: -254267.19 | G88: 29933.63 | H88: 84407.16 | I88: -308740.72 | K88: =VLOOKUP(B88,#REF!,1,0) -> 
A89: 4 | B89: 1.6.9.30.00-9 | D89: (-) PROVISAO PARA FINANCIAMENTOS | E89: -550915.61 | G89: 39997.98 | H89: 119486.6 | I89: -630404.23 | K89: =VLOOKUP(B89,#REF!,1,0) -> 
A90: 6 | B90: 1.6.9.30.00.0003-6 | C90: 1977 | D90: (-) FINANCIAMENTOS | E90: -550915.61 | G90: 39997.98 | H90: 119486.6 | I90: -630404.23 | K90: =VLOOKUP(B90,#REF!,1,0) -> 
A91: 4 | B91: 1.6.9.40.00-6 | D91: (-) PROVISAO PARA FINANC. RURAIS E AGROINDUSTRIAIS | E91: -290437.34 | G91: 16472.57 | H91: 40228.9 | I91: -314193.67 | K91: =VLOOKUP(B91,#REF!,1,0) -> 
A92: 6 | B92: 1.6.9.40.00.0026-6 | C92: 11868 | D92: (-) RECURSOS APLICAÇÕES LIVRES | E92: -43147.17 | G92: 8348.3 | H92: 4460.14 | I92: -39259.01 | K92: =VLOOKUP(B92,#REF!,1,0) -> 
A93: 6 | B93: 1.6.9.40.00.0027-3 | C93: 11869 | D93: (-) RECURSOS DIRECIONADOS À VISTA | E93: -6214.83 | G93: 0 | H93: 0 | I93: -6214.83 | K93: =VLOOKUP(B93,#REF!,1,0) -> 
A94: 6 | B94: 1.6.9.40.00.0028-0 | C94: 11870 | D94: (-) RECURSOS DIRECIONADOS DA POUPANÇA RURAL | E94: -220861.91 | G94: 2426.46 | H94: 35663.85 | I94: -254099.3 | K94: =VLOOKUP(B94,#REF!,1,0) -> 
A95: 6 | B95: 1.6.9.40.00.0029-7 | C95: 11871 | D95: (-) RECURSOS DIRECIONADOS DE LCA | E95: -20213.43 | G95: 5697.81 | H95: 104.91 | I95: -14620.53 | K95: =VLOOKUP(B95,#REF!,1,0) -> 
A96: 2 | B96: 1.8.0.00.00-9 | D96: OUTROS CREDITOS | E96: 3602753.09 | G96: 850083538.9 | H96: 849802427.2 | I96: 3883864.82 | K96: =VLOOKUP(B96,#REF!,1,0) -> 
A97: 3 | B97: 1.8.1.00.00-2 | D97: AVAIS E FIANCAS HONRADOS | E97: 157659.06 | G97: 32905.73 | H97: 46010.77 | I97: 144554.02 | K97: =VLOOKUP(B97,#REF!,1,0) -> 
A98: 4 | B98: 1.8.1.10.00-9 | D98: CREDITOS POR AVAIS E FIANCAS HONRADOS | E98: 157659.06 | G98: 32905.73 | H98: 46010.77 | I98: 144554.02 | K98: =VLOOKUP(B98,#REF!,1,0) -> 
A99: 6 | B99: 1.8.1.10.00.0001-8 | C99: 11024 | D99: CRÉDITO POR AVAIS E FIANÇAS HONRADOS | E99: 157659.06 | G99: 32905.73 | H99: 46010.77 | I99: 144554.02 | K99: =VLOOKUP(B99,#REF!,1,0) -> 
A100: 3 | B100: 1.8.3.00.00-8 | D100: RENDAS A RECEBER | E100: 124283.94 | G100: 390766.47 | H100: 400675.42 | I100: 114374.99 | K100: =VLOOKUP(B100,#REF!,1,0) -> 
A101: 4 | B101: 1.8.3.70.00-7 | D101: SERVICOS PRESTADOS A RECEBER | E101: 40821.27 | G101: 199603.1 | H101: 203474.94 | I101: 36949.43 | K101: =VLOOKUP(B101,#REF!,1,0) -> 
A102: 6 | B102: 1.8.3.70.00.0004-5 | C102: 11031 | D102: RENDAS CONVÊNIOS A RECEBER - TRIBUTOS FEDERAIS | E102: 1937.12 | G102: 2950.58 | H102: 1937.12 | I102: 2950.58 | K102: =VLOOKUP(B102,#REF!,1,0) -> 
A103: 6 | B103: 1.8.3.70.00.0005-2 | C103: 11032 | D103: RENDAS CONVÊNIOS A RECEBER - TRIBUTOS ESTADUAIS | E103: 27965.16 | G103: 1473.71 | H103: 3250.51 | I103: 26188.36 | K103: =VLOOKUP(B103,#REF!,1,0) -> 
A104: 6 | B104: 1.8.3.70.00.0006-9 | C104: 11033 | D104: RENDAS CONVÊNIOS A RECEBER - TRIBUTOS MUNICIPAIS | E104: 104.86 | G104: 384.21 | H104: 341.88 | I104: 147.19 | K104: =VLOOKUP(B104,#REF!,1,0) -> 
A105: 6 | B105: 1.8.3.70.00.0013-1 | C105: 11040 | D105: RENDAS CONVÊNIOS A RECEBER - FGTS | E105: 6681.33 | G105: 3258.41 | H105: 6681.33 | I105: 3258.41 | K105: =VLOOKUP(B105,#REF!,1,0) -> 
A106: 6 | B106: 1.8.3.70.00.0015-5 | C106: 11042 | D106: RENDAS CONVÊNIOS A RECEBER - MULTAS DE TRÂNSITO | E106: 4132.8 | G106: 279.45 | H106: 7.36 | I106: 4404.89 | K106: =VLOOKUP(B106,#REF!,1,0) -> 
A107: 4 | B107: 1.8.3.90.00-1 | D107: OUTRAS RENDAS A RECEBER | E107: 83462.67 | G107: 191163.37 | H107: 197200.48 | I107: 77425.56 | K107: =VLOOKUP(B107,#REF!,1,0) -> 
A108: 6 | B108: 1.8.3.90.00.0001-0 | C108: 11044 | D108: CENTRALIZAÇÃO FINANCEIRA | E108: 83092.69 | G108: 76799.3 | H108: 83092.69 | I108: 76799.3 | K108: =VLOOKUP(B108,#REF!,1,0) -> 
A109: 6 | B109: 1.8.3.90.00.0007-2 | C109: 11050 | D109: RENDAS CONVÊNIOS A RECEBER - INSS | E109: 369.98 | G109: 1350.61 | H109: 1094.33 | I109: 626.26 | K109: =VLOOKUP(B109,#REF!,1,0) -> 
A110: 3 | B110: 1.8.8.00.00-3 | D110: DIVERSOS | E110: 3435535.99 | G110: 849640883 | H110: 849347208.1 | I110: 3729210.84 | K110: =VLOOKUP(B110,#REF!,1,0) -> 
A111: 4 | B111: 1.8.8.03.00-0 | D111: ADIANTAMENTOS E ANTECIPACOES SALARIAIS | E111: 203973.21 | G111: 204813.02 | H111: 204813.02 | I111: 203973.21 | K111: =VLOOKUP(B111,#REF!,1,0) -> 
A112: 6 | B112: 1.8.8.03.00.0002-6 | C112: 11071 | D112: ADIANTAMENTO DE 13º SALÁRIO | E112: 203973.21 | G112: 0 | H112: 0 | I112: 203973.21 | K112: =VLOOKUP(B112,#REF!,1,0) -> 
A113: 4 | B113: 1.8.8.05.00-8 | D113: ADIANTAMENTOS PARA PAGAMENTOS DE NOSSA CONTA | E113: 12021.2 | G113: 78364.31 | H113: 75907.01 | I113: 14478.5 | K113: =VLOOKUP(B113,#REF!,1,0) -> 
A114: 6 | B114: 1.8.8.05.00.0001-3 | C114: 11078 | D114: ADIANTAMENTOS PARA DESPESAS DE VIAGEM | E114: 12021.2 | G114: 13630.6 | H114: 11173.3 | I114: 14478.5 | K114: =VLOOKUP(B114,#REF!,1,0) -> 
A115: 4 | B115: 1.8.8.10.00-0 | D115: ADIANTAMENTOS POR CONTA DE IMOBILIZACOES | E115: 432411.47 | G115: 34083.94 | H115: 93258.83 | I115: 373236.58 | K115: =VLOOKUP(B115,#REF!,1,0) -> 
A116: 6 | B116: 1.8.8.10.00.0001-1 | C116: 11085 | D116: ADIANTAMENTOS POR CONTA DE IMOBILIZAÇÕES | E116: 432411.47 | G116: 34083.94 | H116: 93258.83 | I116: 373236.58 | K116: =VLOOKUP(B116,#REF!,1,0) -> 
A117: 4 | B117: 1.8.8.40.00-1 | D117: DEVEDORES POR DEPOSITOS EM GARANTIA | E117: 2021562.74 | G117: 11158.18 | H117: 0 | I117: 2032720.92 | K117: =VLOOKUP(B117,#REF!,1,0) -> 
A118: 5 | B118: 1.8.8.40.05-6 | D118: PARA INTERPOSICAO DE RECURSOS FISCAIS LEI 9.703/98 | E118: 2021562.74 | G118: 11158.18 | H118: 0 | I118: 2032720.92 | K118: =VLOOKUP(B118,#REF!,1,0) -> 
A119: 6 | B119: 1.8.8.40.05.0002-2 | C119: 11107 | D119: PIS - DEPÓSITO JUDICIAL | E119: 437942.63 | G119: 2267.14 | H119: 0 | I119: 440209.77 | K119: =VLOOKUP(B119,#REF!,1,0) -> 
A120: 6 | B120: 1.8.8.40.05.0003-9 | C120: 11108 | D120: COFINS - DEPÓSITO JUDICIAL | E120: 1583620.11 | G120: 8891.04 | H120: 0 | I120: 1592511.15 | K120: =VLOOKUP(B120,#REF!,1,0) -> 
A121: 4 | B121: 1.8.8.80.00-9 | D121: TÍTULOS E CRÉDITOS A RECEBER | E121: 716134.49 | G121: 900077.09 | H121: 530790.78 | I121: 1085420.8 | K121: =VLOOKUP(B121,#REF!,1,0) -> 
A122: 5 | B122: 1.8.8.80.20-5 | D122: SEM CARACTERÍSTICA DE CONCESSÃO DE CRÉDITO | E122: 716134.49 | G122: 900077.09 | H122: 530790.78 | I122: 1085420.8 | K122: =VLOOKUP(B122,#REF!,1,0) -> 
A123: 6 | B123: 1.8.8.80.20.0001-0 | C123: 11189 | D123: TÍTULOS E CRÉDITOS A RECEBER | E123: 458500 | G123: 470000 | H123: 103500 | I123: 825000 | K123: =VLOOKUP(B123,#REF!,1,0) -> 
A124: 6 | B124: 1.8.8.80.20.0011-3 | C124: 11199 | D124: VALORES A RECEBER - TARIFAS | E124: 257634.49 | G124: 430077.09 | H124: 427290.78 | I124: 260420.8 | K124: =VLOOKUP(B124,#REF!,1,0) -> 
A125: 4 | B125: 1.8.8.92.00-4 | D125: DEVEDORES DIVERSOS - PAIS | E125: 44949.59 | G125: 848410075.3 | H125: 848435644.1 | I125: 19380.83 | K125: =VLOOKUP(B125,#REF!,1,0) -> 
A126: 6 | B126: 1.8.8.92.00.0005-7 | C126: 11205 | D126: DIFERENÇA DE CAIXA | E126: 605 | G126: 1937.82 | H126: 1708.35 | I126: 834.47 | K126: =VLOOKUP(B126,#REF!,1,0) -> 
A127: 6 | B127: 1.8.8.92.00.0006-4 | C127: 11206 | D127: PENDÊNCIAS A REGULARIZAR | E127: 3546.61 | G127: 19966.2 | H127: 19788.18 | I127: 3724.63 | K127: =VLOOKUP(B127,#REF!,1,0) -> 
A128: 6 | B128: 1.8.8.92.00.0016-7 | C128: 11216 | D128: PENDÊNCIAS A REGULARIZAR - BANCOOB | E128: 40797.98 | G128: 95593.91 | H128: 121570.16 | I128: 14821.73 | K128: =VLOOKUP(B128,#REF!,1,0) -> 
A129: 3 | B129: 1.8.9.00.00-6 | D129: (-) PROVISOES PARA OUTROS CREDITOS | E129: -114725.9 | G129: 18983.76 | H129: 8532.89 | I129: -104275.03 | K129: =VLOOKUP(B129,#REF!,1,0) -> 
A130: 4 | B130: 1.8.9.99.00-0 | D130: (-) PROVISÃO P/OUTROS CRÉDITOS LIQUIDAÇÃO DUVIDOSA | E130: -114725.9 | G130: 18983.76 | H130: 8532.89 | I130: -104275.03 | K130: =VLOOKUP(B130,#REF!,1,0) -> 
A131: 5 | B131: 1.8.9.99.10-3 | D131: COM CARACTERÍSTICAS DE CONCESSÃO DE CRÉDITO | E131: -114725.9 | G131: 18983.76 | H131: 8532.89 | I131: -104275.03 | K131: =VLOOKUP(B131,#REF!,1,0) -> 
A132: 6 | B132: 1.8.9.99.10.0002-3 | C132: 11302 | D132: (-) AVAIS E FIANÇAS HONRADOS | E132: -114725.9 | G132: 18983.76 | H132: 8532.89 | I132: -104275.03 | K132: =VLOOKUP(B132,#REF!,1,0) -> 
A133: 2 | B133: 1.9.0.00.00-8 | D133: OUTROS VALORES E BENS | E133: 6939517.35 | G133: 47021 | H133: 691325.48 | I133: 6295212.87 | K133: =VLOOKUP(B133,#REF!,1,0) -> 
A134: 3 | B134: 1.9.8.00.00-2 | D134: OUTROS VALORES E BENS | E134: 6793210.14 | G134: 47021 | H134: 666521 | I134: 6173710.14 | K134: =VLOOKUP(B134,#REF!,1,0) -> 
A135: 4 | B135: 1.9.8.10.00-9 | D135: BENS NAO DE USO PROPRIO | E135: 6793210.14 | G135: 47000 | H135: 666500 | I135: 6173710.14 | K135: =VLOOKUP(B135,#REF!,1,0) -> 
A136: 5 | B136: 1.9.8.10.10-2 | D136: IMOVEIS | E136: 6140555.15 | G136: 5000 | H136: 607000 | I136: 5538555.15 | K136: =VLOOKUP(B136,#REF!,1,0) -> 
A137: 6 | B137: 1.9.8.10.10.0001-7 | C137: 11305 | D137: IMÓVEIS | E137: 6233216.11 | G137: 5000 | H137: 607000 | I137: 5631216.11 | K137: =VLOOKUP(B137,#REF!,1,0) -> 
A138: 6 | B138: 1.9.8.10.10.0002-4 | C138: 11336 | D138: (-) IMÓVEIS | E138: -92660.96 | G138: 0 | H138: 0 | I138: -92660.96 | K138: =VLOOKUP(B138,#REF!,1,0) -> 
A139: 5 | B139: 1.9.8.10.30-8 | D139: VEICULOS E AFINS | E139: 137654.99 | G139: 42000 | H139: 59500 | I139: 120154.99 | K139: =VLOOKUP(B139,#REF!,1,0) -> 
A140: 6 | B140: 1.9.8.10.30.0001-5 | C140: 11306 | D140: VEÍCULOS E AFINS | E140: 137654.99 | G140: 42000 | H140: 59500 | I140: 120154.99 | K140: =VLOOKUP(B140,#REF!,1,0) -> 
A141: 5 | B141: 1.9.8.10.50-4 | D141: BENS EM REGIME ESPECIAL | E141: 515000 | G141: 0 | H141: 0 | I141: 515000 | K141: =VLOOKUP(B141,#REF!,1,0) -> 
A142: 6 | B142: 1.9.8.10.50.0001-3 | C142: 11308 | D142: BENS EM REGIME ESPECIAL | E142: 584000 | G142: 0 | H142: 0 | I142: 584000 | K142: =VLOOKUP(B142,#REF!,1,0) -> 
A143: 6 | B143: 1.9.8.10.50.0003-7 | C143: 11370 | D143: (-) BENS EM REGIME ESPECIAL | E143: -69000 | G143: 0 | H143: 0 | I143: -69000 | K143: =VLOOKUP(B143,#REF!,1,0) -> 
A144: 3 | B144: 1.9.9.00.00-5 | D144: DESPESAS ANTECIPADAS | E144: 146307.21 | G144: 0 | H144: 24804.48 | I144: 121502.73 | K144: =VLOOKUP(B144,#REF!,1,0) -> 
A145: 4 | B145: 1.9.9.10.00-2 | D145: DESPESAS ANTECIPADAS | E145: 146307.21 | G145: 0 | H145: 24804.48 | I145: 121502.73 | K145: =VLOOKUP(B145,#REF!,1,0) -> 
A146: 6 | B146: 1.9.9.10.00.0001-7 | C146: 11315 | D146: PRÊMIOS DE SEGUROS | E146: 87377.25 | G146: 0 | H146: 14311.99 | I146: 73065.26 | K146: =VLOOKUP(B146,#REF!,1,0) -> 
A147: 6 | B147: 1.9.9.10.00.0019-6 | C147: 12178 | D147: CONTRIBUIÇÃO CONFEDERATIVA | E147: 5987.36 | G147: 0 | H147: 1496.84 | I147: 4490.52 | K147: =VLOOKUP(B147,#REF!,1,0) -> 
A148: 6 | B148: 1.9.9.10.00.9999-4 | C148: 11326 | D148: OUTROS | E148: 52942.6 | G148: 0 | H148: 8995.65 | I148: 43946.95 | K148: =VLOOKUP(B148,#REF!,1,0) -> 
A149: 1 | B149: 2.0.0.00.00-4 | D149: PERMANENTE | E149: 20234928.96 | G149: 692380.54 | H149: 74504.75 | I149: 20852804.75 | K149: =VLOOKUP(B149,#REF!,1,0) -> 
A150: 2 | B150: 2.1.0.00.00-3 | D150: INVESTIMENTOS | E150: 4660523.55 | G150: 0 | H150: 0 | I150: 4660523.55 | K150: =VLOOKUP(B150,#REF!,1,0) -> 
A151: 3 | B151: 2.1.5.00.00-8 | D151: ACOES E COTAS | E151: 4660523.55 | G151: 0 | H151: 0 | I151: 4660523.55 | K151: =VLOOKUP(B151,#REF!,1,0) -> 
A152: 4 | B152: 2.1.5.30.00-9 | D152: PARTICIPAÇÕES DE COOPERATIVAS | E152: 4660523.55 | G152: 0 | H152: 0 | I152: 4660523.55 | K152: =VLOOKUP(B152,#REF!,1,0) -> 
A153: 5 | B153: 2.1.5.30.05-4 | D153: PARTICIPAÇÃO EM COOPERATIVA CENTRAL DE CRÉDITO | E153: 4586457 | G153: 0 | H153: 0 | I153: 4586457 | K153: =VLOOKUP(B153,#REF!,1,0) -> 
A154: 6 | B154: 2.1.5.30.05.0001-9 | C154: 235 | D154: PARTICIPAÇÕES EM COOPERATIVA CENTRAL DE CRÉDITO | E154: 4586457 | G154: 0 | H154: 0 | I154: 4586457 | K154: =VLOOKUP(B154,#REF!,1,0) -> 
A155: 5 | B155: 2.1.5.30.10-2 | D155: PARTIC.EM INST.FINAC.CONTROLADA POR COOP. CRÉDITO | E155: 74066.55 | G155: 0 | H155: 0 | I155: 74066.55 | K155: =VLOOKUP(B155,#REF!,1,0) -> 
A156: 6 | B156: 2.1.5.30.10.0001-3 | C156: 236 | D156: PARTICIPAÇÕES INST FINANC CONTROLADA COOP CRÉDITO | E156: 74066.55 | G156: 0 | H156: 0 | I156: 74066.55 | K156: =VLOOKUP(B156,#REF!,1,0) -> 
A157: 2 | B157: 2.2.0.00.00-2 | D157: IMOBILIZADO DE USO | E157: 15574405.41 | G157: 692380.54 | H157: 74504.75 | I157: 16192281.2 | K157: =VLOOKUP(B157,#REF!,1,0) -> 
A158: 3 | B158: 2.2.2.00.00-8 | D158: IMOBILIZACOES EM CURSO | E158: 13703256.88 | G158: 645871.54 | H158: 31968 | I158: 14317160.42 | K158: =VLOOKUP(B158,#REF!,1,0) -> 
A159: 4 | B159: 2.2.2.10.00-5 | D159: IMOBILIZACOES EM CURSO | E159: 13703256.88 | G159: 645871.54 | H159: 31968 | I159: 14317160.42 | K159: =VLOOKUP(B159,#REF!,1,0) -> 
A160: 5 | B160: 2.2.2.10.10-8 | D160: IMOVEIS | E160: 13703256.88 | G160: 645871.54 | H160: 31968 | I160: 14317160.42 | K160: =VLOOKUP(B160,#REF!,1,0) -> 
A161: 6 | B161: 2.2.2.10.10.0001-7 | C161: 281 | D161: IMÓVEIS | E161: 13703256.88 | G161: 645871.54 | H161: 31968 | I161: 14317160.42 | K161: =VLOOKUP(B161,#REF!,1,0) -> 
A162: 3 | B162: 2.2.3.00.00-1 | D162: IMOVEIS DE USO | E162: 136602.7 | G162: 0 | H162: 58.42 | I162: 136544.28 | K162: =VLOOKUP(B162,#REF!,1,0) -> 
A163: 4 | B163: 2.2.3.10.00-8 | D163: IMOVEIS DE USO | E163: 1364501.2 | G163: 0 | H163: 0 | I163: 1364501.2 | K163: =VLOOKUP(B163,#REF!,1,0) -> 
A164: 5 | B164: 2.2.3.10.10-1 | D164: TERRENOS | E164: 130000 | G164: 0 | H164: 0 | I164: 130000 | K164: =VLOOKUP(B164,#REF!,1,0) -> 
A165: 6 | B165: 2.2.3.10.10.0001-6 | C165: 284 | D165: TERRENOS | E165: 130000 | G165: 0 | H165: 0 | I165: 130000 | K165: =VLOOKUP(B165,#REF!,1,0) -> 
A166: 5 | B166: 2.2.3.10.20-4 | D166: EDIFICACOES | E166: 1234501.2 | G166: 0 | H166: 0 | I166: 1234501.2 | K166: =VLOOKUP(B166,#REF!,1,0) -> 
A167: 6 | B167: 2.2.3.10.20.0001-5 | C167: 286 | D167: EDIFICAÇÕES | E167: 1234501.2 | G167: 0 | H167: 0 | I167: 1234501.2 | K167: =VLOOKUP(B167,#REF!,1,0) -> 
A168: 4 | B168: 2.2.3.99.00-5 | D168: (-) DEPRECIACAO ACUMUL DE IMOV DE USO-EDIFICACOES | E168: -1227898.5 | G168: 0 | H168: 58.42 | I168: -1227956.92 | K168: =VLOOKUP(B168,#REF!,1,0) -> 
A169: 6 | B169: 2.2.3.99.00.0001-4 | C169: 288 | D169: (-) DEPR. ACUMULADA DE IMÓVEIS DE USO-EDIFICAÇÕES | E169: -1227898.5 | G169: 0 | H169: 58.42 | I169: -1227956.92 | K169: =VLOOKUP(B169,#REF!,1,0) -> 
A170: 3 | B170: 2.2.4.00.00-4 | D170: INSTALACOES, MOVEIS E EQUIPAMENTOS DE USO | E170: 1126277.64 | G170: 46509 | H170: 28406 | I170: 1144380.64 | K170: =VLOOKUP(B170,#REF!,1,0) -> 
A171: 4 | B171: 2.2.4.10.00-1 | D171: INSTALACOES | E171: 1200829.03 | G171: 0 | H171: 0 | I171: 1200829.03 | K171: =VLOOKUP(B171,#REF!,1,0) -> 
A172: 6 | B172: 2.2.4.10.00.0001-6 | C172: 289 | D172: INSTALAÇÕES | E172: 1200829.03 | G172: 0 | H172: 0 | I172: 1200829.03 | K172: =VLOOKUP(B172,#REF!,1,0) -> 
A173: 4 | B173: 2.2.4.20.00-8 | D173: MOVEIS E EQUIPAMENTOS DE USO | E173: 1303386.26 | G173: 46509 | H173: 7360 | I173: 1342535.26 | K173: =VLOOKUP(B173,#REF!,1,0) -> 
A174: 6 | B174: 2.2.4.20.00.0001-9 | C174: 290 | D174: APARELHOS DE REFRIGERAÇÃO | E174: 157780.69 | G174: 7360 | H174: 0 | I174: 165140.69 | K174: =VLOOKUP(B174,#REF!,1,0) -> 
A175: 6 | B175: 2.2.4.20.00.0002-6 | C175: 291 | D175: MÁQUINAS | E175: 251219.08 | G175: 0 | H175: 0 | I175: 251219.08 | K175: =VLOOKUP(B175,#REF!,1,0) -> 
A176: 6 | B176: 2.2.4.20.00.0003-3 | C176: 292 | D176: MOBILIÁRIOS | E176: 894386.49 | G176: 39149 | H176: 7360 | I176: 926175.49 | K176: =VLOOKUP(B176,#REF!,1,0) -> 
A177: 4 | B177: 2.2.4.96.00-1 | D177: (-) DEPRECIACAO ACUMULADA DE INSTALACOES | E177: -739116.6 | G177: 0 | H177: 10758.14 | I177: -749874.74 | K177: =VLOOKUP(B177,#REF!,1,0) -> 
A178: 6 | B178: 2.2.4.96.00.0001-2 | C178: 294 | D178: (-) DEPRECIAÇÃO ACUMULADA DE INSTALAÇÕES | E178: -739116.6 | G178: 0 | H178: 10758.14 | I178: -749874.74 | K178: =VLOOKUP(B178,#REF!,1,0) -> 
A179: 4 | B179: 2.2.4.99.00-8 | D179: (-) DEPRECIACAO ACUMUL DE MOVEIS E EQUIPAM DE USO | E179: -638821.05 | G179: 0 | H179: 10287.86 | I179: -649108.91 | K179: =VLOOKUP(B179,#REF!,1,0) -> 
A180: 6 | B180: 2.2.4.99.00.0001-3 | C180: 295 | D180: (-) DEPREC. ACUMUL.DE APARELHOS REFRIGERAÇÃO | E180: -83866.25 | G180: 0 | H180: 1174.11 | I180: -85040.36 | K180: =VLOOKUP(B180,#REF!,1,0) -> 
A181: 6 | B181: 2.2.4.99.00.0002-0 | C181: 296 | D181: (-) DEPREC. ACUMULADA DE MÁQUINAS | E181: -93516.89 | G181: 0 | H181: 1898.5 | I181: -95415.39 | K181: =VLOOKUP(B181,#REF!,1,0) -> 
A182: 6 | B182: 2.2.4.99.00.0003-7 | C182: 297 | D182: (-) DEPREC. ACUMULADA DE MOBILIÁRIOS | E182: -461437.91 | G182: 0 | H182: 7215.25 | I182: -468653.16 | K182: =VLOOKUP(B182,#REF!,1,0) -> 
A183: 3 | B183: 2.2.9.00.00-9 | D183: OUTROS | E183: 608268.19 | G183: 0 | H183: 14072.33 | I183: 594195.86 | K183: =VLOOKUP(B183,#REF!,1,0) -> 
A184: 4 | B184: 2.2.9.10.00-6 | D184: SISTEMA DE COMUNICACAO | E184: 25206.7 | G184: 0 | H184: 0 | I184: 25206.7 | K184: =VLOOKUP(B184,#REF!,1,0) -> 
A185: 5 | B185: 2.2.9.10.10-9 | D185: EQUIPAMENTOS | E185: 25206.7 | G185: 0 | H185: 0 | I185: 25206.7 | K185: =VLOOKUP(B185,#REF!,1,0) -> 
A186: 6 | B186: 2.2.9.10.10.0001-0 | C186: 299 | D186: EQUIPAMENTOS | E186: 25206.7 | G186: 0 | H186: 0 | I186: 25206.7 | K186: =VLOOKUP(B186,#REF!,1,0) -> 
A187: 4 | B187: 2.2.9.30.00-0 | D187: SISTEMA DE PROCESSAMENTO DE DADOS | E187: 936249.62 | G187: 0 | H187: 0 | I187: 936249.62 | K187: =VLOOKUP(B187,#REF!,1,0) -> 
A188: 6 | B188: 2.2.9.30.00.0001-7 | C188: 2101 | D188: EQUIPAMENTOS | E188: 936249.62 | G188: 0 | H188: 0 | I188: 936249.62 | K188: =VLOOKUP(B188,#REF!,1,0) -> 
A189: 4 | B189: 2.2.9.50.00-4 | D189: SISTEMA DE SEGURANCA | E189: 282921.24 | G189: 0 | H189: 0 | I189: 282921.24 | K189: =VLOOKUP(B189,#REF!,1,0) -> 
A190: 6 | B190: 2.2.9.50.00.0001-3 | C190: 2103 | D190: ALARME | E190: 50841.37 | G190: 0 | H190: 0 | I190: 50841.37 | K190: =VLOOKUP(B190,#REF!,1,0) -> 
A191: 6 | B191: 2.2.9.50.00.0002-0 | C191: 2104 | D191: CABINES DE SEGURANÇA | E191: 6200 | G191: 0 | H191: 0 | I191: 6200 | K191: =VLOOKUP(B191,#REF!,1,0) -> 
A192: 6 | B192: 2.2.9.50.00.0003-7 | C192: 2105 | D192: ARMAS E EQUIPAMENTOS | E192: 81466.88 | G192: 0 | H192: 0 | I192: 81466.88 | K192: =VLOOKUP(B192,#REF!,1,0) -> 
A193: 6 | B193: 2.2.9.50.00.0004-4 | C193: 2106 | D193: SISTEMA DE VIGILANCIA | E193: 68005.24 | G193: 0 | H193: 0 | I193: 68005.24 | K193: =VLOOKUP(B193,#REF!,1,0) -> 
A194: 6 | B194: 2.2.9.50.00.9999-0 | C194: 2107 | D194: OUTROS SISTEMAS DE SEGURANÇA | E194: 76407.75 | G194: 0 | H194: 0 | I194: 76407.75 | K194: =VLOOKUP(B194,#REF!,1,0) -> 
A195: 4 | B195: 2.2.9.70.00-8 | D195: SISTEMA DE TRANSPORTE | E195: 392401 | G195: 0 | H195: 0 | I195: 392401 | K195: =VLOOKUP(B195,#REF!,1,0) -> 
A196: 6 | B196: 2.2.9.70.00.0001-9 | C196: 2108 | D196: VEÍCULOS | E196: 392401 | G196: 0 | H196: 0 | I196: 392401 | K196: =VLOOKUP(B196,#REF!,1,0) -> 
A197: 4 | B197: 2.2.9.99.00-3 | D197: (-) DEPRECIACAO ACUMUL OUTRAS IMOBILIZACOES DE USO | E197: -1028510.37 | G197: 0 | H197: 14072.33 | I197: -1042582.7 | K197: =VLOOKUP(B197,#REF!,1,0) -> 
A198: 5 | B198: 2.2.9.99.10-6 | D198: (-) SISTEMA DE COMUNICACAO - EQUIPAMENTOS | E198: -20785.8 | G198: 0 | H198: 134.25 | I198: -20920.05 | K198: =VLOOKUP(B198,#REF!,1,0) -> 
A199: 6 | B199: 2.2.9.99.10.0001-7 | C199: 2110 | D199: (-) DEPREC.ACUMUL.SISTEMA COMUNICAÇÃO-EQUIPAMENTOS | E199: -20785.8 | G199: 0 | H199: 134.25 | I199: -20920.05 | K199: =VLOOKUP(B199,#REF!,1,0) -> 
A200: 5 | B200: 2.2.9.99.30-2 | D200: (-) SISTEMA DE PROCESSAMENTO DE DADOS | E200: -740426.22 | G200: 0 | H200: 6506.44 | I200: -746932.66 | K200: =VLOOKUP(B200,#REF!,1,0) -> 
A201: 6 | B201: 2.2.9.99.30.0001-5 | C201: 2111 | D201: (-) SISTEMA DE PROCESSAMENTO DE DADOS | E201: -740426.22 | G201: 0 | H201: 6506.44 | I201: -746932.66 | K201: =VLOOKUP(B201,#REF!,1,0) -> 
... 797 more rows

Sheet Balancete 10.2019 (hidden)
D1: Sisbr 2.0 - Plataforma Contábill | H1: Data de Emissão:
D2: Relatório Balancete Analítico | H2: 2019-11-14T13:56:21.836
A3: 3175 - SICOOB CREDISETE | H3: Hora de Emissão:
H4: 43783.58081
A6: Instituição resp.: | C6: 1003 - SICOOB CENTRAL CREDIMINAS | E6: Período: | G6: 01/10/2019 a 31/10/2019
A7: Instituição: | C7: 3175 - SICOOB CREDISETE | E7: Tipo de Saldo: | G7: Somente Saldos Diferentes de Zero
A8: PA: | C8: TODOS... | E8: Apresentação do Saldo: | G8: Saldo Contábil
A9: Grupo Contábil: | C9: Ativo, Compensação, Passivo, Patrimônio Líquido, Resultado
A10: N | B10: Conta | C10: Cód.Reduzido | D10: Descrição da Conta | E10: Saldo Anterior | G10: Débito | H10: Crédito | I10: Saldo Atual
A11: 1 | B11: 1.0.0.00.00-7 | D11: CIRCULANTE E REALIZAVEL A LONGO PRAZO | E11: 238257170.2 | G11: 1424688929 | H11: 1423721660 | I11: 239224439.3 | K11: =VLOOKUP(B11,#REF!,1,0) -> 
A12: 2 | B12: 1.1.0.00.00-6 | D12: DISPONIBILIDADES | E12: 4685532.91 | G12: 468449975 | H12: 470188954.8 | I12: 2946553.05 | K12: =VLOOKUP(B12,#REF!,1,0) -> 
A13: 3 | B13: 1.1.1.00.00-9 | D13: CAIXA | E13: 4685532.91 | G13: 177206604.1 | H13: 178945583.9 | I13: 2946553.05 | K13: =VLOOKUP(B13,#REF!,1,0) -> 
A14: 4 | B14: 1.1.1.10.00-6 | D14: CAIXA | E14: 4685532.91 | G14: 177206604.1 | H14: 178945583.9 | I14: 2946553.05 | K14: =VLOOKUP(B14,#REF!,1,0) -> 
A15: 6 | B15: 1.1.1.10.00.0001-9 | C15: 11 | D15: CAIXA | E15: 2879125.1 | G15: 162940440.3 | H15: 163218614.9 | I15: 2600950.49 | K15: =VLOOKUP(B15,#REF!,1,0) -> 
A16: 6 | B16: 1.1.1.10.00.0002-6 | C16: 12 | D16: NUMERÁRIO EM TRÂNSITO | E16: 1806407.81 | G16: 14266163.75 | H16: 15726969 | I16: 345602.56 | K16: =VLOOKUP(B16,#REF!,1,0) -> 
A17: 2 | B17: 1.4.0.00.00-3 | D17: RELACOES INTERFINANCEIRAS | E17: 139431551.4 | G17: 19501410.62 | H17: 20753252.27 | I17: 138179709.8 | K17: =VLOOKUP(B17,#REF!,1,0) -> 
A18: 3 | B18: 1.4.5.00.00-8 | D18: CENTRALIZAÇÃO FINANCEIRA - COOPERATIVAS | E18: 139431551.4 | G18: 19501410.62 | H18: 20753252.27 | I18: 138179709.8 | K18: =VLOOKUP(B18,#REF!,1,0) -> 
A19: 4 | B19: 1.4.5.10.00-5 | D19: DEPÓSITOS NAS COOPERATIVAS CENTRAIS | E19: 139431551.4 | G19: 19501410.62 | H19: 20753252.27 | I19: 138179709.8 | K19: =VLOOKUP(B19,#REF!,1,0) -> 
A20: 6 | B20: 1.4.5.10.00.0001-6 | C20: 1620 | D20: CENTRALIZAÇÃO FINANCEIRA - COOPERATIVAS | E20: 139431551.4 | G20: 19501410.62 | H20: 20753252.27 | I20: 138179709.8 | K20: =VLOOKUP(B20,#REF!,1,0) -> 
A21: 2 | B21: 1.6.0.00.00-1 | D21: OPERACOES DE CREDITO | E21: 83961008.18 | G21: 32970465.83 | H21: 28797072.56 | I21: 88134401.45 | K21: =VLOOKUP(B21,#REF!,1,0) -> 
A22: 3 | B22: 1.6.1.00.00-4 | D22: EMPRÉSTIMOS E DIREITOS CREDITÓRIOS DESCONTADOS | E22: 67065420.53 | G22: 27187586.17 | H22: 25132288.52 | I22: 69120718.18 | K22: =VLOOKUP(B22,#REF!,1,0) -> 
A23: 4 | B23: 1.6.1.10.00-1 | D23: ADIANTAMENTOS A DEPOSITANTES | E23: 397032.59 | G23: 2594829.13 | H23: 2781319.19 | I23: 210542.53 | K23: =VLOOKUP(B23,#REF!,1,0) -> 
A24: 6 | B24: 1.6.1.10.00.0001-4 | C24: 1626 | D24: ADIANTAMENTOS A DEPOSITANTES | E24: 440023.08 | G24: 2571499.07 | H24: 2770751.86 | I24: 240770.29 | K24: =VLOOKUP(B24,#REF!,1,0) -> 
A25: 6 | B25: 1.6.1.10.00.0002-1 | C25: 1627 | D25: (-) RENDAS APROPRIAR ADIANTAMENTOS A DEPOSITANTES | E25: -42990.49 | G25: 23330.06 | H25: 10567.33 | I25: -30227.76 | K25: =VLOOKUP(B25,#REF!,1,0) -> 
A26: 4 | B26: 1.6.1.20.00-8 | D26: EMPRESTIMOS | E26: 61853125.17 | G26: 21568749.03 | H26: 19357710.74 | I26: 64064163.46 | K26: =VLOOKUP(B26,#REF!,1,0) -> 
A27: 5 | B27: 1.6.1.20.99-8 | D27: OUTROS | E27: 61853125.17 | G27: 21568749.03 | H27: 19357710.74 | I27: 64064163.46 | K27: =VLOOKUP(B27,#REF!,1,0) -> 
A28: 6 | B28: 1.6.1.20.99.0005-3 | C28: 12019 | D28: CRÉDITO PESSOAL | E28: 14767709.37 | G28: 1535623.26 | H28: 1252648.54 | I28: 15050684.09 | K28: =VLOOKUP(B28,#REF!,1,0) -> 
A29: 6 | B29: 1.6.1.20.99.0006-0 | C29: 12020 | D29: (-) RENDAS A APROPRIAR - CRÉDITO PESSOAL | E29: -2724513.96 | G29: 292653.76 | H29: 364704.36 | I29: -2796564.56 | K29: =VLOOKUP(B29,#REF!,1,0) -> 
A30: 6 | B30: 1.6.1.20.99.0007-7 | C30: 12021 | D30: (-) JUROS MORA APROP - CRÉDITO PESSOAL | E30: -48958.86 | G30: 9217.27 | H30: 15788.15 | I30: -55529.74 | K30: =VLOOKUP(B30,#REF!,1,0) -> 
A31: 6 | B31: 1.6.1.20.99.0008-4 | C31: 12022 | D31: (-) RDAS EFET - VENC + 60 D - CRÉDITO PESSOAL | E31: -49502.71 | G31: 7790.53 | H31: 11022.48 | I31: -52734.66 | K31: =VLOOKUP(B31,#REF!,1,0) -> 
A32: 6 | B32: 1.6.1.20.99.0009-1 | C32: 12023 | D32: (-) GANHOS A AUFERIR - CRÉDITO PESSOAL | E32: -31075.22 | G32: 3434.95 | H32: 3559.83 | I32: -31200.1 | K32: =VLOOKUP(B32,#REF!,1,0) -> 
A33: 6 | B33: 1.6.1.20.99.0037-6 | C33: 12124 | D33: CHEQUE ESPECIAL | E33: 1361099.63 | G33: 2375094.18 | H33: 2501748.02 | I33: 1234445.79 | K33: =VLOOKUP(B33,#REF!,1,0) -> 
A34: 6 | B34: 1.6.1.20.99.0038-3 | C34: 12125 | D34: (-) RENDAS A APROPRIAR - CHEQUE ESPECIAL | E34: -11849.3 | G34: 6075.69 | H34: 4688.8 | I34: -10462.41 | K34: =VLOOKUP(B34,#REF!,1,0) -> 
A35: 6 | B35: 1.6.1.20.99.0039-0 | C35: 12126 | D35: CAPITAL DE GIRO | E35: 54457900.2 | G35: 6366051.92 | H35: 3532357.67 | I35: 57291594.45 | K35: =VLOOKUP(B35,#REF!,1,0) -> 
A36: 6 | B36: 1.6.1.20.99.0040-0 | C36: 12127 | D36: (-) RENDAS A APROPRIAR - CAPITAL DE GIRO | E36: -10442558.05 | G36: 708533.87 | H36: 1088485.13 | I36: -10822509.31 | K36: =VLOOKUP(B36,#REF!,1,0) -> 
A37: 6 | B37: 1.6.1.20.99.0041-7 | C37: 12128 | D37: (-) JUROS MORA APROP - CAPITAL DE GIRO | E37: -154780.38 | G37: 73930.96 | H37: 19734.69 | I37: -100584.11 | K37: =VLOOKUP(B37,#REF!,1,0) -> 
A38: 6 | B38: 1.6.1.20.99.0042-4 | C38: 12129 | D38: (-) RDAS EFET - VENC + 60 D - CAPITAL DE GIRO | E38: -113758.28 | G38: 55037.27 | H38: 21411.09 | I38: -80132.1 | K38: =VLOOKUP(B38,#REF!,1,0) -> 
A39: 6 | B39: 1.6.1.20.99.0043-1 | C39: 12130 | D39: (-) GANHOS A AUFERIR - CAPITAL DE GIRO | E39: -52915.27 | G39: 17109.34 | H39: 478.31 | I39: -36284.24 | K39: =VLOOKUP(B39,#REF!,1,0) -> 
A40: 6 | B40: 1.6.1.20.99.0044-8 | C40: 12131 | D40: CONTA GARANTIDA | E40: 4538879.08 | G40: 10100664.65 | H40: 10501263.34 | I40: 4138280.39 | K40: =VLOOKUP(B40,#REF!,1,0) -> 
A41: 6 | B41: 1.6.1.20.99.0045-5 | C41: 12132 | D41: (-) RENDAS A APROPRIAR - CONTA GARANTIDA | E41: -29147.4 | G41: 11881.8 | H41: 6486.3 | I41: -23751.9 | K41: =VLOOKUP(B41,#REF!,1,0) -> 
A42: 6 | B42: 1.6.1.20.99.0046-2 | C42: 12133 | D42: EMPRÉSTIMOS COM GARANTIAS BENS IMÓVEIS | E42: 478212.19 | G42: 1.16 | H42: 33334.03 | I42: 444879.32 | K42: =VLOOKUP(B42,#REF!,1,0) -> 
A43: 6 | B43: 1.6.1.20.99.0047-9 | C43: 12134 | D43: (-) RDAS A APROP - EMP COM GARANT BENS IMÓVEIS | E43: -91615.87 | G43: 5648.42 | H43: 0 | I43: -85967.45 | K43: =VLOOKUP(B43,#REF!,1,0) -> 
A44: 4 | B44: 1.6.1.30.00-5 | D44: DIREITOS CREDITÓRIOS DESCONTADOS | E44: 4815262.77 | G44: 3024008.01 | H44: 2993258.59 | I44: 4846012.19 | K44: =VLOOKUP(B44,#REF!,1,0) -> 
A45: 5 | B45: 1.6.1.30.10-8 | D45: TÍTULOS DE CRÉDITO | E45: 4815262.77 | G45: 3024008.01 | H45: 2993258.59 | I45: 4846012.19 | K45: =VLOOKUP(B45,#REF!,1,0) -> 
A46: 6 | B46: 1.6.1.30.10.0001-9 | C46: 11407 | D46: TÍTULOS DESCONTADOS | E46: 500745.27 | G46: 625311.81 | H46: 432551.55 | I46: 693505.53 | K46: =VLOOKUP(B46,#REF!,1,0) -> 
A47: 6 | B47: 1.6.1.30.10.0002-6 | C47: 11408 | D47: (-) RENDAS A APROPRIAR - TÍTULOS DESCONTADOS RPL | E47: -12180.15 | G47: 17774.13 | H47: 20518.5 | I47: -14924.52 | K47: =VLOOKUP(B47,#REF!,1,0) -> 
A48: 6 | B48: 1.6.1.30.10.0009-5 | C48: 11415 | D48: CHEQUES DESCONTADOS | E48: 4487980.51 | G48: 2273569.88 | H48: 2432026.71 | I48: 4329523.68 | K48: =VLOOKUP(B48,#REF!,1,0) -> 
A49: 6 | B49: 1.6.1.30.10.0010-5 | C49: 11416 | D49: (-) RENDAS A APROPRIAR - CHEQUES DESCONTADOS | E49: -150159.2 | G49: 107340.39 | H49: 105107.71 | I49: -147926.52 | K49: =VLOOKUP(B49,#REF!,1,0) -> 
A50: 6 | B50: 1.6.1.30.10.0011-2 | C50: 11417 | D50: (-) JUROS DE MORA A APROPRIAR | E50: -11123.66 | G50: 11.8 | H50: 3054.12 | I50: -14165.98 | K50: =VLOOKUP(B50,#REF!,1,0) -> 
A51: 3 | B51: 1.6.2.00.00-7 | D51: FINANCIAMENTOS | E51: 20926057.78 | G51: 3928904.28 | H51: 2127519.65 | I51: 22727442.41 | K51: =VLOOKUP(B51,#REF!,1,0) -> 
A52: 4 | B52: 1.6.2.10.00-4 | D52: FINANCIAMENTOS | E52: 20926057.78 | G52: 3928904.28 | H52: 2127519.65 | I52: 22727442.41 | K52: =VLOOKUP(B52,#REF!,1,0) -> 
A53: 6 | B53: 1.6.2.10.00.0008-2 | C53: 1681 | D53: FINANCIAMENTOS | E53: 26160284.66 | G53: 3596123.27 | H53: 1234365.95 | I53: 28522041.98 | K53: =VLOOKUP(B53,#REF!,1,0) -> 
A54: 6 | B54: 1.6.2.10.00.0009-9 | C54: 1682 | D54: (-) RENDAS A APROPRIAR - FINANCIAMENTOS | E54: -5221688.15 | G54: 318945.34 | H54: 891372.31 | I54: -5794115.12 | K54: =VLOOKUP(B54,#REF!,1,0) -> 
A55: 6 | B55: 1.6.2.10.00.0010-9 | C55: 1683 | D55: (-) JUROS DE MORA A APROPRIAR - FINANCIAMENTOS | E55: -5970 | G55: 5970 | H55: 175.16 | I55: -175.16 | K55: =VLOOKUP(B55,#REF!,1,0) -> 
A56: 6 | B56: 1.6.2.10.00.0011-6 | C56: 1684 | D56: (-) RDAS A EFET. FIN VENC + 60 DIAS - FINANCIAMENT | E56: -6568.73 | G56: 7865.67 | H56: 1606.23 | I56: -309.29 | K56: =VLOOKUP(B56,#REF!,1,0) -> 
A57: 3 | B57: 1.6.3.00.00-0 | D57: FINANCIAMENTOS RURAIS E AGROINDUSTRIAIS | E57: 7641274.99 | G57: 593056.33 | H57: 736606.65 | I57: 7497724.67 | K57: =VLOOKUP(B57,#REF!,1,0) -> 
A58: 4 | B58: 1.6.3.05.00-5 | D58: FINANCIAMENTOS RURAIS - APLICAÇÕES COM RECURSOS LIVRES | E58: 2759012.77 | G58: 554738.17 | H58: 645959.93 | I58: 2667791.01 | K58: =VLOOKUP(B58,#REF!,1,0) -> 
A59: 5 | B59: 1.6.3.05.10-8 | D59: CUSTEIO - PECUÁRIA | E59: 132987.21 | G59: 1986.94 | H59: 14846.5 | I59: 120127.65 | K59: =VLOOKUP(B59,#REF!,1,0) -> 
A60: 6 | B60: 1.6.3.05.10.0001-3 | C60: 11707 | D60: CUSTEIO - PECUÁRIA - APLIC. REC. LIVRES | E60: 141754.96 | G60: 322.04 | H60: 14846.5 | I60: 127230.5 | K60: =VLOOKUP(B60,#REF!,1,0) -> 
A61: 6 | B61: 1.6.3.05.10.0002-0 | C61: 11708 | D61: (-) RDAS APROP - CP - APLIC. REC. LIVRES | E61: -8767.75 | G61: 1664.9 | H61: 0 | I61: -7102.85 | K61: =VLOOKUP(B61,#REF!,1,0) -> 
A62: 5 | B62: 1.6.3.05.20-1 | D62: INVESTIMENTO - PECUÁRIA | E62: 2626025.56 | G62: 552751.23 | H62: 631113.43 | I62: 2547663.36 | K62: =VLOOKUP(B62,#REF!,1,0) -> 
A63: 6 | B63: 1.6.3.05.20.0001-2 | C63: 11715 | D63: INVESTIMENTO - PECUÁRIA - APLIC. REC. LIVRES | E63: 3187901.47 | G63: 376267.56 | H63: 530408.15 | I63: 3033760.88 | K63: =VLOOKUP(B63,#REF!,1,0) -> 
A64: 6 | B64: 1.6.3.05.20.0002-9 | C64: 11716 | D64: (-) RDAS APROP - IP - APLIC. REC. LIVRES | E64: -561875.91 | G64: 176483.67 | H64: 100705.28 | I64: -486097.52 | K64: =VLOOKUP(B64,#REF!,1,0) -> 
A65: 4 | B65: 1.6.3.25.00-9 | D65: FINANCIAMENTOS RURAIS - APLICAÇÕES COM RECURSOS DIRECIONADOS DA POUPANÇA | E65: 3927664.63 | G65: 30369.23 | H65: 58559.36 | I65: 3899474.5 | K65: =VLOOKUP(B65,#REF!,1,0) -> 
A66: 5 | B66: 1.6.3.25.10-2 | D66: CUSTEIO - PECUÁRIA | E66: 403045.95 | G66: 3118.58 | H66: 0 | I66: 406164.53 | K66: =VLOOKUP(B66,#REF!,1,0) -> 
A67: 6 | B67: 1.6.3.25.10.0001-9 | C67: 11771 | D67: CUSTEIO - PECUÁRIA - POUPANÇA RURAL | E67: 419612.09 | G67: 0 | H67: 0 | I67: 419612.09 | K67: =VLOOKUP(B67,#REF!,1,0) -> 
A68: 6 | B68: 1.6.3.25.10.0002-6 | C68: 11772 | D68: (-) RDAS APROP - CP - POUPANÇA RURAL | E68: -16566.14 | G68: 3118.58 | H68: 0 | I68: -13447.56 | K68: =VLOOKUP(B68,#REF!,1,0) -> 
A69: 5 | B69: 1.6.3.25.20-5 | D69: INVESTIMENTO - PECUÁRIA | E69: 3524618.68 | G69: 27250.65 | H69: 58559.36 | I69: 3493309.97 | K69: =VLOOKUP(B69,#REF!,1,0) -> 
A70: 6 | B70: 1.6.3.25.20.0001-8 | C70: 11779 | D70: INVESTIMENTO - PECUÁRIA - POUPANÇA RURAL | E70: 3800119.42 | G70: 0 | H70: 58559.36 | I70: 3741560.06 | K70: =VLOOKUP(B70,#REF!,1,0) -> 
A71: 6 | B71: 1.6.3.25.20.0002-5 | C71: 11780 | D71: (-) RDAS APROP - IP - POUPANÇA RURAL | E71: -275500.74 | G71: 27250.65 | H71: 0 | I71: -248250.09 | K71: =VLOOKUP(B71,#REF!,1,0) -> 
A72: 4 | B72: 1.6.3.35.00-6 | D72: FINANCIAMENTOS RURAIS - APLICAÇÕES COM RECURSOS DIRECIONADOS DE LCA | E72: 948382.76 | G72: 7527.73 | H72: 25451.33 | I72: 930459.16 | K72: =VLOOKUP(B72,#REF!,1,0) -> 
A73: 5 | B73: 1.6.3.35.10-9 | D73: CUSTEIO - PECUÁRIA | E73: 948382.76 | G73: 7527.73 | H73: 25451.33 | I73: 930459.16 | K73: =VLOOKUP(B73,#REF!,1,0) -> 
A74: 6 | B74: 1.6.3.35.10.0001-2 | C74: 11803 | D74: CUSTEIO - PECUÁRIA - REC. DIREC. LCA | E74: 983144.3 | G74: 29.68 | H74: 25451.33 | I74: 957722.65 | K74: =VLOOKUP(B74,#REF!,1,0) -> 
A75: 6 | B75: 1.6.3.35.10.0002-9 | C75: 11804 | D75: (-) RDAS APROP - CP - REC. DIREC. LCA | E75: -34761.54 | G75: 7498.05 | H75: 0 | I75: -27263.49 | K75: =VLOOKUP(B75,#REF!,1,0) -> 
A76: 3 | B76: 1.6.9.00.00-8 | D76: (-) PROVISOES PARA OPERACOES DE CREDITO | E76: -11671745.12 | G76: 1260919.05 | H76: 800657.74 | I76: -11211483.81 | K76: =VLOOKUP(B76,#REF!,1,0) -> 
A77: 4 | B77: 1.6.9.20.00-2 | D77: (-) PROVISÃO PARA EMPRÉSTIMOS E DIREITOS CREDITÓRIOS DESCONTADOS | E77: -10727147.22 | G77: 1118914.83 | H77: 681677.9 | I77: -10289910.29 | K77: =VLOOKUP(B77,#REF!,1,0) -> 
A78: 6 | B78: 1.6.9.20.00.0001-9 | C78: 1945 | D78: (-) ADIANTAMENTOS A DEPOSITANTES | E78: -96266.15 | G78: 74972.36 | H78: 37817.45 | I78: -59111.24 | K78: =VLOOKUP(B78,#REF!,1,0) -> 
A79: 6 | B79: 1.6.9.20.00.0002-6 | C79: 1946 | D79: (-) EMPRÉSTIMOS | E79: -10051713.35 | G79: 893298.9 | H79: 538939.91 | I79: -9697354.36 | K79: =VLOOKUP(B79,#REF!,1,0) -> 
A80: 6 | B80: 1.6.9.20.00.0003-3 | C80: 1947 | D80: (-) CHEQUE ESPECIAL | E80: -154758.71 | G80: 34250.15 | H80: 29333.17 | I80: -149841.73 | K80: =VLOOKUP(B80,#REF!,1,0) -> 
A81: 6 | B81: 1.6.9.20.00.0005-7 | C81: 1949 | D81: (-) TÍTULOS DESCONTADOS | E81: -115668.29 | G81: 36735.12 | H81: 32610.09 | I81: -111543.26 | K81: =VLOOKUP(B81,#REF!,1,0) -> 
A82: 6 | B82: 1.6.9.20.00.0007-1 | C82: 1951 | D82: (-) CONTA GARANTIDA | E82: -308740.72 | G82: 79658.3 | H82: 42977.28 | I82: -272059.7 | K82: =VLOOKUP(B82,#REF!,1,0) -> 
A83: 4 | B83: 1.6.9.30.00-9 | D83: (-) PROVISAO PARA FINANCIAMENTOS | E83: -630404.23 | G83: 121042.76 | H83: 110840.86 | I83: -620202.33 | K83: =VLOOKUP(B83,#REF!,1,0) -> 
A84: 6 | B84: 1.6.9.30.00.0003-6 | C84: 1977 | D84: (-) FINANCIAMENTOS | E84: -630404.23 | G84: 121042.76 | H84: 110840.86 | I84: -620202.33 | K84: =VLOOKUP(B84,#REF!,1,0) -> 
A85: 4 | B85: 1.6.9.40.00-6 | D85: (-) PROVISAO PARA FINANC. RURAIS E AGROINDUSTRIAIS | E85: -314193.67 | G85: 20961.46 | H85: 8138.98 | I85: -301371.19 | K85: =VLOOKUP(B85,#REF!,1,0) -> 
A86: 6 | B86: 1.6.9.40.00.0026-6 | C86: 11868 | D86: (-) RECURSOS APLICAÇÕES LIVRES | E86: -39259.01 | G86: 7796.92 | H86: 3958.59 | I86: -35420.68 | K86: =VLOOKUP(B86,#REF!,1,0) -> 
A87: 6 | B87: 1.6.9.40.00.0028-0 | C87: 11870 | D87: (-) RECURSOS DIRECIONADOS DA POUPANÇA RURAL | E87: -254099.3 | G87: 4669.61 | H87: 4085.74 | I87: -253515.43 | K87: =VLOOKUP(B87,#REF!,1,0) -> 
A88: 6 | B88: 1.6.9.40.00.0029-7 | C88: 11871 | D88: (-) RECURSOS DIRECIONADOS DE LCA | E88: -14620.53 | G88: 2280.1 | H88: 94.65 | I88: -12435.08 | K88: =VLOOKUP(B88,#REF!,1,0) -> 
A89: 2 | B89: 1.8.0.00.00-9 | D89: OUTROS CREDITOS | E89: 3883864.82 | G89: 903664408.4 | H89: 903288289.6 | I89: 4259983.66 | K89: =VLOOKUP(B89,#REF!,1,0) -> 
A90: 3 | B90: 1.8.1.00.00-2 | D90: AVAIS E FIANCAS HONRADOS | E90: 144554.02 | G90: 57375.75 | H90: 51564.04 | I90: 150365.73 | K90: =VLOOKUP(B90,#REF!,1,0) -> 
A91: 4 | B91: 1.8.1.10.00-9 | D91: CREDITOS POR AVAIS E FIANCAS HONRADOS | E91: 144554.02 | G91: 57375.75 | H91: 51564.04 | I91: 150365.73 | K91: =VLOOKUP(B91,#REF!,1,0) -> 
A92: 6 | B92: 1.8.1.10.00.0001-8 | C92: 11024 | D92: CRÉDITO POR AVAIS E FIANÇAS HONRADOS | E92: 144554.02 | G92: 57375.75 | H92: 51564.04 | I92: 150365.73 | K92: =VLOOKUP(B92,#REF!,1,0) -> 
A93: 3 | B93: 1.8.3.00.00-8 | D93: RENDAS A RECEBER | E93: 114374.99 | G93: 429334.81 | H93: 443044.1 | I93: 100665.7 | K93: =VLOOKUP(B93,#REF!,1,0) -> 
A94: 4 | B94: 1.8.3.70.00-7 | D94: SERVICOS PRESTADOS A RECEBER | E94: 36949.43 | G94: 197557.31 | H94: 199074.22 | I94: 35432.52 | K94: =VLOOKUP(B94,#REF!,1,0) -> 
A95: 6 | B95: 1.8.3.70.00.0004-5 | C95: 11031 | D95: RENDAS CONVÊNIOS A RECEBER - TRIBUTOS FEDERAIS | E95: 2950.58 | G95: 2847.96 | H95: 2950.58 | I95: 2847.96 | K95: =VLOOKUP(B95,#REF!,1,0) -> 
A96: 6 | B96: 1.8.3.70.00.0005-2 | C96: 11032 | D96: RENDAS CONVÊNIOS A RECEBER - TRIBUTOS ESTADUAIS | E96: 26188.36 | G96: 1764.67 | H96: 4643.2 | I96: 23309.83 | K96: =VLOOKUP(B96,#REF!,1,0) -> 
A97: 6 | B97: 1.8.3.70.00.0006-9 | C97: 11033 | D97: RENDAS CONVÊNIOS A RECEBER - TRIBUTOS MUNICIPAIS | E97: 147.19 | G97: 785.4 | H97: 822 | I97: 110.59 | K97: =VLOOKUP(B97,#REF!,1,0) -> 
A98: 6 | B98: 1.8.3.70.00.0013-1 | C98: 11040 | D98: RENDAS CONVÊNIOS A RECEBER - FGTS | E98: 3258.41 | G98: 4573.1 | H98: 3258.41 | I98: 4573.1 | K98: =VLOOKUP(B98,#REF!,1,0) -> 
A99: 6 | B99: 1.8.3.70.00.0015-5 | C99: 11042 | D99: RENDAS CONVÊNIOS A RECEBER - MULTAS DE TRÂNSITO | E99: 4404.89 | G99: 189.46 | H99: 3.31 | I99: 4591.04 | K99: =VLOOKUP(B99,#REF!,1,0) -> 
A100: 4 | B100: 1.8.3.90.00-1 | D100: OUTRAS RENDAS A RECEBER | E100: 77425.56 | G100: 231777.5 | H100: 243969.88 | I100: 65233.18 | K100: =VLOOKUP(B100,#REF!,1,0) -> 
A101: 6 | B101: 1.8.3.90.00.0001-0 | C101: 11044 | D101: CENTRALIZAÇÃO FINANCEIRA | E101: 76799.3 | G101: 64327.74 | H101: 76799.3 | I101: 64327.74 | K101: =VLOOKUP(B101,#REF!,1,0) -> 
A102: 6 | B102: 1.8.3.90.00.0007-2 | C102: 11050 | D102: RENDAS CONVÊNIOS A RECEBER - INSS | E102: 626.26 | G102: 1505.77 | H102: 1226.59 | I102: 905.44 | K102: =VLOOKUP(B102,#REF!,1,0) -> 
A103: 3 | B103: 1.8.8.00.00-3 | D103: DIVERSOS | E103: 3729210.84 | G103: 903159712.8 | H103: 902774786 | I103: 4114137.64 | K103: =VLOOKUP(B103,#REF!,1,0) -> 
A104: 4 | B104: 1.8.8.03.00-0 | D104: ADIANTAMENTOS E ANTECIPACOES SALARIAIS | E104: 203973.21 | G104: 219783 | H104: 220144.15 | I104: 203612.06 | K104: =VLOOKUP(B104,#REF!,1,0) -> 
A105: 6 | B105: 1.8.8.03.00.0002-6 | C105: 11071 | D105: ADIANTAMENTO DE 13º SALÁRIO | E105: 203973.21 | G105: 0 | H105: 361.15 | I105: 203612.06 | K105: =VLOOKUP(B105,#REF!,1,0) -> 
A106: 4 | B106: 1.8.8.05.00-8 | D106: ADIANTAMENTOS PARA PAGAMENTOS DE NOSSA CONTA | E106: 14478.5 | G106: 198973.55 | H106: 151097.37 | I106: 62354.68 | K106: =VLOOKUP(B106,#REF!,1,0) -> 
A107: 6 | B107: 1.8.8.05.00.0001-3 | C107: 11078 | D107: ADIANTAMENTOS PARA DESPESAS DE VIAGEM | E107: 14478.5 | G107: 20873.67 | H107: 17087.02 | I107: 18265.15 | K107: =VLOOKUP(B107,#REF!,1,0) -> 
A108: 6 | B108: 1.8.8.05.00.0004-4 | C108: 11080 | D108: ADIANTAMENTOS PARA DESPESAS DIVERSAS | E108: 0 | G108: 125090.75 | H108: 86116.26 | I108: 38974.49 | K108: =VLOOKUP(B108,#REF!,1,0) -> 
A109: 6 | B109: 1.8.8.05.00.0005-1 | C109: 11081 | D109: FUNDO FIXO | E109: 0 | G109: 15000 | H109: 9884.96 | I109: 5115.04 | K109: =VLOOKUP(B109,#REF!,1,0) -> 
A110: 4 | B110: 1.8.8.10.00-0 | D110: ADIANTAMENTOS POR CONTA DE IMOBILIZACOES | E110: 373236.58 | G110: 0 | H110: 114213.15 | I110: 259023.43 | K110: =VLOOKUP(B110,#REF!,1,0) -> 
A111: 6 | B111: 1.8.8.10.00.0001-1 | C111: 11085 | D111: ADIANTAMENTOS POR CONTA DE IMOBILIZAÇÕES | E111: 373236.58 | G111: 0 | H111: 114213.15 | I111: 259023.43 | K111: =VLOOKUP(B111,#REF!,1,0) -> 
A112: 4 | B112: 1.8.8.40.00-1 | D112: DEVEDORES POR DEPOSITOS EM GARANTIA | E112: 2032720.92 | G112: 0 | H112: 0 | I112: 2032720.92 | K112: =VLOOKUP(B112,#REF!,1,0) -> 
A113: 5 | B113: 1.8.8.40.05-6 | D113: PARA INTERPOSICAO DE RECURSOS FISCAIS LEI 9.703/98 | E113: 2032720.92 | G113: 0 | H113: 0 | I113: 2032720.92 | K113: =VLOOKUP(B113,#REF!,1,0) -> 
A114: 6 | B114: 1.8.8.40.05.0002-2 | C114: 11107 | D114: PIS - DEPÓSITO JUDICIAL | E114: 440209.77 | G114: 0 | H114: 0 | I114: 440209.77 | K114: =VLOOKUP(B114,#REF!,1,0) -> 
A115: 6 | B115: 1.8.8.40.05.0003-9 | C115: 11108 | D115: COFINS - DEPÓSITO JUDICIAL | E115: 1592511.15 | G115: 0 | H115: 0 | I115: 1592511.15 | K115: =VLOOKUP(B115,#REF!,1,0) -> 
A116: 4 | B116: 1.8.8.50.00-8 | D116: IMPOSTO DE RENDA A RECUPERAR | E116: 0 | G116: 266.56 | H116: 0 | I116: 266.56 | K116: =VLOOKUP(B116,#REF!,1,0) -> 
A117: 6 | B117: 1.8.8.50.00.0001-3 | C117: 11152 | D117: IMPOSTO DE RENDA A RECUPERAR | E117: 0 | G117: 266.56 | H117: 0 | I117: 266.56 | K117: =VLOOKUP(B117,#REF!,1,0) -> 
A118: 4 | B118: 1.8.8.80.00-9 | D118: TÍTULOS E CRÉDITOS A RECEBER | E118: 1085420.8 | G118: 962081.83 | H118: 547208.62 | I118: 1500294.01 | K118: =VLOOKUP(B118,#REF!,1,0) -> 
A119: 5 | B119: 1.8.8.80.20-5 | D119: SEM CARACTERÍSTICA DE CONCESSÃO DE CRÉDITO | E119: 1085420.8 | G119: 962081.83 | H119: 547208.62 | I119: 1500294.01 | K119: =VLOOKUP(B119,#REF!,1,0) -> 
A120: 6 | B120: 1.8.8.80.20.0001-0 | C120: 11189 | D120: TÍTULOS E CRÉDITOS A RECEBER | E120: 825000 | G120: 510000 | H120: 100000 | I120: 1235000 | K120: =VLOOKUP(B120,#REF!,1,0) -> 
A121: 6 | B121: 1.8.8.80.20.0011-3 | C121: 11199 | D121: VALORES A RECEBER - TARIFAS | E121: 260420.8 | G121: 452081.83 | H121: 447208.62 | I121: 265294.01 | K121: =VLOOKUP(B121,#REF!,1,0) -> 
A122: 4 | B122: 1.8.8.92.00-4 | D122: DEVEDORES DIVERSOS - PAIS | E122: 19380.83 | G122: 901167959.3 | H122: 901131474.1 | I122: 55865.98 | K122: =VLOOKUP(B122,#REF!,1,0) -> 
A123: 6 | B123: 1.8.8.92.00.0005-7 | C123: 11205 | D123: DIFERENÇA DE CAIXA | E123: 834.47 | G123: 5409.51 | H123: 2370.98 | I123: 3873 | K123: =VLOOKUP(B123,#REF!,1,0) -> 
A124: 6 | B124: 1.8.8.92.00.0006-4 | C124: 11206 | D124: PENDÊNCIAS A REGULARIZAR | E124: 3724.63 | G124: 1757262.36 | H124: 1732927.14 | I124: 28059.85 | K124: =VLOOKUP(B124,#REF!,1,0) -> 
A125: 6 | B125: 1.8.8.92.00.0016-7 | C125: 11216 | D125: PENDÊNCIAS A REGULARIZAR - BANCOOB | E125: 14821.73 | G125: 219107.82 | H125: 209996.42 | I125: 23933.13 | K125: =VLOOKUP(B125,#REF!,1,0) -> 
A126: 3 | B126: 1.8.9.00.00-6 | D126: (-) PROVISOES PARA OUTROS CREDITOS | E126: -104275.03 | G126: 17985.04 | H126: 18895.42 | I126: -105185.41 | K126: =VLOOKUP(B126,#REF!,1,0) -> 
A127: 4 | B127: 1.8.9.99.00-0 | D127: (-) PROVISÃO P/OUTROS CRÉDITOS LIQUIDAÇÃO DUVIDOSA | E127: -104275.03 | G127: 17985.04 | H127: 18895.42 | I127: -105185.41 | K127: =VLOOKUP(B127,#REF!,1,0) -> 
A128: 5 | B128: 1.8.9.99.10-3 | D128: COM CARACTERÍSTICAS DE CONCESSÃO DE CRÉDITO | E128: -104275.03 | G128: 17985.04 | H128: 18895.42 | I128: -105185.41 | K128: =VLOOKUP(B128,#REF!,1,0) -> 
A129: 6 | B129: 1.8.9.99.10.0002-3 | C129: 11302 | D129: (-) AVAIS E FIANÇAS HONRADOS | E129: -104275.03 | G129: 17985.04 | H129: 18895.42 | I129: -105185.41 | K129: =VLOOKUP(B129,#REF!,1,0) -> 
A130: 2 | B130: 1.9.0.00.00-8 | D130: OUTROS VALORES E BENS | E130: 6295212.87 | G130: 101408.92 | H130: 692830.42 | I130: 5703791.37 | K130: =VLOOKUP(B130,#REF!,1,0) -> 
A131: 3 | B131: 1.9.8.00.00-2 | D131: OUTROS VALORES E BENS | E131: 6173710.14 | G131: 101408.92 | H131: 668025.94 | I131: 5607093.12 | K131: =VLOOKUP(B131,#REF!,1,0) -> 
A132: 4 | B132: 1.9.8.10.00-9 | D132: BENS NAO DE USO PROPRIO | E132: 6173710.14 | G132: 101394.92 | H132: 668011.94 | I132: 5607093.12 | K132: =VLOOKUP(B132,#REF!,1,0) -> 
A133: 5 | B133: 1.9.8.10.10-2 | D133: IMOVEIS | E133: 5538555.15 | G133: 38000 | H133: 646000 | I133: 4930555.15 | K133: =VLOOKUP(B133,#REF!,1,0) -> 
A134: 6 | B134: 1.9.8.10.10.0001-7 | C134: 11305 | D134: IMÓVEIS | E134: 5631216.11 | G134: 0 | H134: 646000 | I134: 4985216.11 | K134: =VLOOKUP(B134,#REF!,1,0) -> 
A135: 6 | B135: 1.9.8.10.10.0002-4 | C135: 11336 | D135: (-) IMÓVEIS | E135: -92660.96 | G135: 38000 | H135: 0 | I135: -54660.96 | K135: =VLOOKUP(B135,#REF!,1,0) -> 
A136: 5 | B136: 1.9.8.10.30-8 | D136: VEICULOS E AFINS | E136: 120154.99 | G136: 63394.92 | H136: 22011.94 | I136: 161537.97 | K136: =VLOOKUP(B136,#REF!,1,0) -> 
A137: 6 | B137: 1.9.8.10.30.0001-5 | C137: 11306 | D137: VEÍCULOS E AFINS | E137: 120154.99 | G137: 63394.92 | H137: 17544.58 | I137: 166005.33 | K137: =VLOOKUP(B137,#REF!,1,0) -> 
A138: 6 | B138: 1.9.8.10.30.0002-2 | C138: 11337 | D138: (-) VEÍCULOS E AFINS | E138: 0 | G138: 0 | H138: 4467.36 | I138: -4467.36 | K138: =VLOOKUP(B138,#REF!,1,0) -> 
A139: 5 | B139: 1.9.8.10.50-4 | D139: BENS EM REGIME ESPECIAL | E139: 515000 | G139: 0 | H139: 0 | I139: 515000 | K139: =VLOOKUP(B139,#REF!,1,0) -> 
A140: 6 | B140: 1.9.8.10.50.0001-3 | C140: 11308 | D140: BENS EM REGIME ESPECIAL | E140: 584000 | G140: 0 | H140: 0 | I140: 584000 | K140: =VLOOKUP(B140,#REF!,1,0) -> 
A141: 6 | B141: 1.9.8.10.50.0003-7 | C141: 11370 | D141: (-) BENS EM REGIME ESPECIAL | E141: -69000 | G141: 0 | H141: 0 | I141: -69000 | K141: =VLOOKUP(B141,#REF!,1,0) -> 
A142: 3 | B142: 1.9.9.00.00-5 | D142: DESPESAS ANTECIPADAS | E142: 121502.73 | G142: 0 | H142: 24804.48 | I142: 96698.25 | K142: =VLOOKUP(B142,#REF!,1,0) -> 
A143: 4 | B143: 1.9.9.10.00-2 | D143: DESPESAS ANTECIPADAS | E143: 121502.73 | G143: 0 | H143: 24804.48 | I143: 96698.25 | K143: =VLOOKUP(B143,#REF!,1,0) -> 
A144: 6 | B144: 1.9.9.10.00.0001-7 | C144: 11315 | D144: PRÊMIOS DE SEGUROS | E144: 73065.26 | G144: 0 | H144: 14311.99 | I144: 58753.27 | K144: =VLOOKUP(B144,#REF!,1,0) -> 
A145: 6 | B145: 1.9.9.10.00.0019-6 | C145: 12178 | D145: CONTRIBUIÇÃO CONFEDERATIVA | E145: 4490.52 | G145: 0 | H145: 1496.84 | I145: 2993.68 | K145: =VLOOKUP(B145,#REF!,1,0) -> 
A146: 6 | B146: 1.9.9.10.00.9999-4 | C146: 11326 | D146: OUTROS | E146: 43946.95 | G146: 0 | H146: 8995.65 | I146: 34951.3 | K146: =VLOOKUP(B146,#REF!,1,0) -> 
A147: 1 | B147: 2.0.0.00.00-4 | D147: PERMANENTE | E147: 20852804.75 | G147: 1924142.97 | H147: 447982.35 | I147: 22328965.37 | K147: =VLOOKUP(B147,#REF!,1,0) -> 
A148: 2 | B148: 2.1.0.00.00-3 | D148: INVESTIMENTOS | E148: 4660523.55 | G148: 0 | H148: 0 | I148: 4660523.55 | K148: =VLOOKUP(B148,#REF!,1,0) -> 
A149: 3 | B149: 2.1.5.00.00-8 | D149: ACOES E COTAS | E149: 4660523.55 | G149: 0 | H149: 0 | I149: 4660523.55 | K149: =VLOOKUP(B149,#REF!,1,0) -> 
A150: 4 | B150: 2.1.5.30.00-9 | D150: PARTICIPAÇÕES DE COOPERATIVAS | E150: 4660523.55 | G150: 0 | H150: 0 | I150: 4660523.55 | K150: =VLOOKUP(B150,#REF!,1,0) -> 
A151: 5 | B151: 2.1.5.30.05-4 | D151: PARTICIPAÇÃO EM COOPERATIVA CENTRAL DE CRÉDITO | E151: 4586457 | G151: 0 | H151: 0 | I151: 4586457 | K151: =VLOOKUP(B151,#REF!,1,0) -> 
A152: 6 | B152: 2.1.5.30.05.0001-9 | C152: 235 | D152: PARTICIPAÇÕES EM COOPERATIVA CENTRAL DE CRÉDITO | E152: 4586457 | G152: 0 | H152: 0 | I152: 4586457 | K152: =VLOOKUP(B152,#REF!,1,0) -> 
A153: 5 | B153: 2.1.5.30.10-2 | D153: PARTIC.EM INST.FINAC.CONTROLADA POR COOP. CRÉDITO | E153: 74066.55 | G153: 0 | H153: 0 | I153: 74066.55 | K153: =VLOOKUP(B153,#REF!,1,0) -> 
A154: 6 | B154: 2.1.5.30.10.0001-3 | C154: 236 | D154: PARTICIPAÇÕES INST FINANC CONTROLADA COOP CRÉDITO | E154: 74066.55 | G154: 0 | H154: 0 | I154: 74066.55 | K154: =VLOOKUP(B154,#REF!,1,0) -> 
A155: 2 | B155: 2.2.0.00.00-2 | D155: IMOBILIZADO DE USO | E155: 16192281.2 | G155: 1924142.97 | H155: 447982.35 | I155: 17668441.82 | K155: =VLOOKUP(B155,#REF!,1,0) -> 
A156: 3 | B156: 2.2.2.00.00-8 | D156: IMOBILIZACOES EM CURSO | E156: 14317160.42 | G156: 1347467.4 | H156: 272845.02 | I156: 15391782.8 | K156: =VLOOKUP(B156,#REF!,1,0) -> 
A157: 4 | B157: 2.2.2.10.00-5 | D157: IMOBILIZACOES EM CURSO | E157: 14317160.42 | G157: 1347467.4 | H157: 272845.02 | I157: 15391782.8 | K157: =VLOOKUP(B157,#REF!,1,0) -> 
A158: 5 | B158: 2.2.2.10.10-8 | D158: IMOVEIS | E158: 14317160.42 | G158: 1252878.27 | H158: 272845.02 | I158: 15297193.67 | K158: =VLOOKUP(B158,#REF!,1,0) -> 
A159: 6 | B159: 2.2.2.10.10.0001-7 | C159: 281 | D159: IMÓVEIS | E159: 14317160.42 | G159: 1252878.27 | H159: 272845.02 | I159: 15297193.67 | K159: =VLOOKUP(B159,#REF!,1,0) -> 
A160: 5 | B160: 2.2.2.10.20-1 | D160: MOVEIS E EQUIPAMENTOS | E160: 0 | G160: 94589.13 | H160: 0 | I160: 94589.13 | K160: =VLOOKUP(B160,#REF!,1,0) -> 
A161: 6 | B161: 2.2.2.10.20.0001-6 | C161: 282 | D161: MÓVEIS E EQUIPAMENTOS | E161: 0 | G161: 94589.13 | H161: 0 | I161: 94589.13 | K161: =VLOOKUP(B161,#REF!,1,0) -> 
A162: 3 | B162: 2.2.3.00.00-1 | D162: IMOVEIS DE USO | E162: 136544.28 | G162: 0 | H162: 58.42 | I162: 136485.86 | K162: =VLOOKUP(B162,#REF!,1,0) -> 
A163: 4 | B163: 2.2.3.10.00-8 | D163: IMOVEIS DE USO | E163: 1364501.2 | G163: 0 | H163: 0 | I163: 1364501.2 | K163: =VLOOKUP(B163,#REF!,1,0) -> 
A164: 5 | B164: 2.2.3.10.10-1 | D164: TERRENOS | E164: 130000 | G164: 0 | H164: 0 | I164: 130000 | K164: =VLOOKUP(B164,#REF!,1,0) -> 
A165: 6 | B165: 2.2.3.10.10.0001-6 | C165: 284 | D165: TERRENOS | E165: 130000 | G165: 0 | H165: 0 | I165: 130000 | K165: =VLOOKUP(B165,#REF!,1,0) -> 
A166: 5 | B166: 2.2.3.10.20-4 | D166: EDIFICACOES | E166: 1234501.2 | G166: 0 | H166: 0 | I166: 1234501.2 | K166: =VLOOKUP(B166,#REF!,1,0) -> 
A167: 6 | B167: 2.2.3.10.20.0001-5 | C167: 286 | D167: EDIFICAÇÕES | E167: 1234501.2 | G167: 0 | H167: 0 | I167: 1234501.2 | K167: =VLOOKUP(B167,#REF!,1,0) -> 
A168: 4 | B168: 2.2.3.99.00-5 | D168: (-) DEPRECIACAO ACUMUL DE IMOV DE USO-EDIFICACOES | E168: -1227956.92 | G168: 0 | H168: 58.42 | I168: -1228015.34 | K168: =VLOOKUP(B168,#REF!,1,0) -> 
A169: 6 | B169: 2.2.3.99.00.0001-4 | C169: 288 | D169: (-) DEPR. ACUMULADA DE IMÓVEIS DE USO-EDIFICAÇÕES | E169: -1227956.92 | G169: 0 | H169: 58.42 | I169: -1228015.34 | K169: =VLOOKUP(B169,#REF!,1,0) -> 
A170: 3 | B170: 2.2.4.00.00-4 | D170: INSTALACOES, MOVEIS E EQUIPAMENTOS DE USO | E170: 1144380.64 | G170: 571975.59 | H170: 161046.8 | I170: 1555309.43 | K170: =VLOOKUP(B170,#REF!,1,0) -> 
A171: 4 | B171: 2.2.4.10.00-1 | D171: INSTALACOES | E171: 1200829.03 | G171: 0 | H171: 0 | I171: 1200829.03 | K171: =VLOOKUP(B171,#REF!,1,0) -> 
A172: 6 | B172: 2.2.4.10.00.0001-6 | C172: 289 | D172: INSTALAÇÕES | E172: 1200829.03 | G172: 0 | H172: 0 | I172: 1200829.03 | K172: =VLOOKUP(B172,#REF!,1,0) -> 
A173: 4 | B173: 2.2.4.20.00-8 | D173: MOVEIS E EQUIPAMENTOS DE USO | E173: 1342535.26 | G173: 571975.59 | H173: 94589.13 | I173: 1819921.72 | K173: =VLOOKUP(B173,#REF!,1,0) -> 
A174: 6 | B174: 2.2.4.20.00.0001-9 | C174: 290 | D174: APARELHOS DE REFRIGERAÇÃO | E174: 165140.69 | G174: 0 | H174: 0 | I174: 165140.69 | K174: =VLOOKUP(B174,#REF!,1,0) -> 
A175: 6 | B175: 2.2.4.20.00.0002-6 | C175: 291 | D175: MÁQUINAS | E175: 251219.08 | G175: 209071.64 | H175: 0 | I175: 460290.72 | K175: =VLOOKUP(B175,#REF!,1,0) -> 
A176: 6 | B176: 2.2.4.20.00.0003-3 | C176: 292 | D176: MOBILIÁRIOS | E176: 926175.49 | G176: 362903.95 | H176: 94589.13 | I176: 1194490.31 | K176: =VLOOKUP(B176,#REF!,1,0) -> 
A177: 4 | B177: 2.2.4.96.00-1 | D177: (-) DEPRECIACAO ACUMULADA DE INSTALACOES | E177: -749874.74 | G177: 0 | H177: 10758.14 | I177: -760632.88 | K177: =VLOOKUP(B177,#REF!,1,0) -> 
A178: 6 | B178: 2.2.4.96.00.0001-2 | C178: 294 | D178: (-) DEPRECIAÇÃO ACUMULADA DE INSTALAÇÕES | E178: -749874.74 | G178: 0 | H178: 10758.14 | I178: -760632.88 | K178: =VLOOKUP(B178,#REF!,1,0) -> 
A179: 4 | B179: 2.2.4.99.00-8 | D179: (-) DEPRECIACAO ACUMUL DE MOVEIS E EQUIPAM DE USO | E179: -649108.91 | G179: 0 | H179: 55699.53 | I179: -704808.44 | K179: =VLOOKUP(B179,#REF!,1,0) -> 
A180: 6 | B180: 2.2.4.99.00.0001-3 | C180: 295 | D180: (-) DEPREC. ACUMUL.DE APARELHOS REFRIGERAÇÃO | E180: -85040.36 | G180: 0 | H180: 1190.51 | I180: -86230.87 | K180: =VLOOKUP(B180,#REF!,1,0) -> 
A181: 6 | B181: 2.2.4.99.00.0002-0 | C181: 296 | D181: (-) DEPREC. ACUMULADA DE MÁQUINAS | E181: -95415.39 | G181: 0 | H181: 8177.44 | I181: -103592.83 | K181: =VLOOKUP(B181,#REF!,1,0) -> 
A182: 6 | B182: 2.2.4.99.00.0003-7 | C182: 297 | D182: (-) DEPREC. ACUMULADA DE MOBILIÁRIOS | E182: -468653.16 | G182: 0 | H182: 46331.58 | I182: -514984.74 | K182: =VLOOKUP(B182,#REF!,1,0) -> 
A183: 3 | B183: 2.2.9.00.00-9 | D183: OUTROS | E183: 594195.86 | G183: 4699.98 | H183: 14032.11 | I183: 584863.73 | K183: =VLOOKUP(B183,#REF!,1,0) -> 
A184: 4 | B184: 2.2.9.10.00-6 | D184: SISTEMA DE COMUNICACAO | E184: 25206.7 | G184: 0 | H184: 0 | I184: 25206.7 | K184: =VLOOKUP(B184,#REF!,1,0) -> 
A185: 5 | B185: 2.2.9.10.10-9 | D185: EQUIPAMENTOS | E185: 25206.7 | G185: 0 | H185: 0 | I185: 25206.7 | K185: =VLOOKUP(B185,#REF!,1,0) -> 
A186: 6 | B186: 2.2.9.10.10.0001-0 | C186: 299 | D186: EQUIPAMENTOS | E186: 25206.7 | G186: 0 | H186: 0 | I186: 25206.7 | K186: =VLOOKUP(B186,#REF!,1,0) -> 
A187: 4 | B187: 2.2.9.30.00-0 | D187: SISTEMA DE PROCESSAMENTO DE DADOS | E187: 936249.62 | G187: 0 | H187: 0 | I187: 936249.62 | K187: =VLOOKUP(B187,#REF!,1,0) -> 
A188: 6 | B188: 2.2.9.30.00.0001-7 | C188: 2101 | D188: EQUIPAMENTOS | E188: 936249.62 | G188: 0 | H188: 0 | I188: 936249.62 | K188: =VLOOKUP(B188,#REF!,1,0) -> 
A189: 4 | B189: 2.2.9.50.00-4 | D189: SISTEMA DE SEGURANCA | E189: 282921.24 | G189: 4699.98 | H189: 0 | I189: 287621.22 | K189: =VLOOKUP(B189,#REF!,1,0) -> 
A190: 6 | B190: 2.2.9.50.00.0001-3 | C190: 2103 | D190: ALARME | E190: 50841.37 | G190: 0 | H190: 0 | I190: 50841.37 | K190: =VLOOKUP(B190,#REF!,1,0) -> 
A191: 6 | B191: 2.2.9.50.00.0002-0 | C191: 2104 | D191: CABINES DE SEGURANÇA | E191: 6200 | G191: 0 | H191: 0 | I191: 6200 | K191: =VLOOKUP(B191,#REF!,1,0) -> 
A192: 6 | B192: 2.2.9.50.00.0003-7 | C192: 2105 | D192: ARMAS E EQUIPAMENTOS | E192: 81466.88 | G192: 4699.98 | H192: 0 | I192: 86166.86 | K192: =VLOOKUP(B192,#REF!,1,0) -> 
A193: 6 | B193: 2.2.9.50.00.0004-4 | C193: 2106 | D193: SISTEMA DE VIGILANCIA | E193: 68005.24 | G193: 0 | H193: 0 | I193: 68005.24 | K193: =VLOOKUP(B193,#REF!,1,0) -> 
A194: 6 | B194: 2.2.9.50.00.9999-0 | C194: 2107 | D194: OUTROS SISTEMAS DE SEGURANÇA | E194: 76407.75 | G194: 0 | H194: 0 | I194: 76407.75 | K194: =VLOOKUP(B194,#REF!,1,0) -> 
A195: 4 | B195: 2.2.9.70.00-8 | D195: SISTEMA DE TRANSPORTE | E195: 392401 | G195: 0 | H195: 0 | I195: 392401 | K195: =VLOOKUP(B195,#REF!,1,0) -> 
A196: 6 | B196: 2.2.9.70.00.0001-9 | C196: 2108 | D196: VEÍCULOS | E196: 392401 | G196: 0 | H196: 0 | I196: 392401 | K196: =VLOOKUP(B196,#REF!,1,0) -> 
A197: 4 | B197: 2.2.9.99.00-3 | D197: (-) DEPRECIACAO ACUMUL OUTRAS IMOBILIZACOES DE USO | E197: -1042582.7 | G197: 0 | H197: 14032.11 | I197: -1056614.81 | K197: =VLOOKUP(B197,#REF!,1,0) -> 
A198: 5 | B198: 2.2.9.99.10-6 | D198: (-) SISTEMA DE COMUNICACAO - EQUIPAMENTOS | E198: -20920.05 | G198: 0 | H198: 134.25 | I198: -21054.3 | K198: =VLOOKUP(B198,#REF!,1,0) -> 
A199: 6 | B199: 2.2.9.99.10.0001-7 | C199: 2110 | D199: (-) DEPREC.ACUMUL.SISTEMA COMUNICAÇÃO-EQUIPAMENTOS | E199: -20920.05 | G199: 0 | H199: 134.25 | I199: -21054.3 | K199: =VLOOKUP(B199,#REF!,1,0) -> 
A200: 5 | B200: 2.2.9.99.30-2 | D200: (-) SISTEMA DE PROCESSAMENTO DE DADOS | E200: -746932.66 | G200: 0 | H200: 6452.88 | I200: -753385.54 | K200: =VLOOKUP(B200,#REF!,1,0) -> 
A201: 6 | B201: 2.2.9.99.30.0001-5 | C201: 2111 | D201: (-) SISTEMA DE PROCESSAMENTO DE DADOS | E201: -746932.66 | G201: 0 | H201: 6452.88 | I201: -753385.54 | K201: =VLOOKUP(B201,#REF!,1,0) -> 
... 812 more rows

Sheet Balancete 11.2019 (hidden)
D1: Sisbr 2.0 - Plataforma Contábill | H1: Data de Emissão:
D2: Relatório Balancete Analítico - Prévio | H2: 2019-12-19T10:11:07.858
A3: 3175 - SICOOB CREDISETE | H3: Hora de Emissão:
H4: 43818.4244
A6: Instituição resp.: | C6: 1003 - SICOOB CENTRAL CREDIMINAS | E6: Período: | G6: 01/11/2019 a 30/11/2019
A7: Instituição: | C7: 3175 - SICOOB CREDISETE | E7: Tipo de Saldo: | G7: Somente Saldos Diferentes de Zero
A8: PA: | C8: TODOS... | E8: Apresentação do Saldo: | G8: Saldo Contábil
A9: Grupo Contábil: | C9: Ativo, Compensação, Passivo, Patrimônio Líquido, Resultado
A10: N | B10: Conta | C10: Cód.Reduzido | D10: Descrição da Conta | E10: Saldo Anterior | G10: Débito | H10: Crédito | I10: Saldo Atual
A11: 1 | B11: 1.0.0.00.00-7 | D11: CIRCULANTE E REALIZAVEL A LONGO PRAZO | E11: 239224439.3 | G11: 1342627887 | H11: 1337398667 | I11: 244453659.1 | J11: =VLOOKUP(B11,#REF!,1,0) ->  | K11: =VLOOKUP(B11,#REF!,1,0) -> 
A12: 2 | B12: 1.1.0.00.00-6 | D12: DISPONIBILIDADES | E12: 2946553.05 | G12: 443456399.2 | H12: 443438697.8 | I12: 2964254.48 | J12: =VLOOKUP(B12,#REF!,1,0) ->  | K12: =VLOOKUP(B12,#REF!,1,0) -> 
A13: 3 | B13: 1.1.1.00.00-9 | D13: CAIXA | E13: 2946553.05 | G13: 166068700.8 | H13: 166050999.4 | I13: 2964254.48 | J13: =VLOOKUP(B13,#REF!,1,0) ->  | K13: =VLOOKUP(B13,#REF!,1,0) -> 
A14: 4 | B14: 1.1.1.10.00-6 | D14: CAIXA | E14: 2946553.05 | G14: 166068700.8 | H14: 166050999.4 | I14: 2964254.48 | J14: =VLOOKUP(B14,#REF!,1,0) ->  | K14: =VLOOKUP(B14,#REF!,1,0) -> 
A15: 6 | B15: 1.1.1.10.00.0001-9 | C15: 11 | D15: CAIXA | E15: 2600950.49 | G15: 156326497.8 | H15: 157068819.8 | I15: 1858628.48 | J15: =VLOOKUP(B15,#REF!,1,0) ->  | K15: =VLOOKUP(B15,#REF!,1,0) -> 
A16: 6 | B16: 1.1.1.10.00.0002-6 | C16: 12 | D16: NUMERÁRIO EM TRÂNSITO | E16: 345602.56 | G16: 9742203 | H16: 8982179.56 | I16: 1105626 | J16: =VLOOKUP(B16,#REF!,1,0) ->  | K16: =VLOOKUP(B16,#REF!,1,0) -> 
A17: 2 | B17: 1.4.0.00.00-3 | D17: RELACOES INTERFINANCEIRAS | E17: 138179709.8 | G17: 27984864.83 | H17: 26720701.71 | I17: 139443872.9 | J17: =VLOOKUP(B17,#REF!,1,0) ->  | K17: =VLOOKUP(B17,#REF!,1,0) -> 
A18: 3 | B18: 1.4.5.00.00-8 | D18: CENTRALIZAÇÃO FINANCEIRA - COOPERATIVAS | E18: 138179709.8 | G18: 27984864.83 | H18: 26720701.71 | I18: 139443872.9 | J18: =VLOOKUP(B18,#REF!,1,0) ->  | K18: =VLOOKUP(B18,#REF!,1,0) -> 
A19: 4 | B19: 1.4.5.10.00-5 | D19: DEPÓSITOS NAS COOPERATIVAS CENTRAIS | E19: 138179709.8 | G19: 27984864.83 | H19: 26720701.71 | I19: 139443872.9 | J19: =VLOOKUP(B19,#REF!,1,0) ->  | K19: =VLOOKUP(B19,#REF!,1,0) -> 
A20: 6 | B20: 1.4.5.10.00.0001-6 | C20: 1620 | D20: CENTRALIZAÇÃO FINANCEIRA - COOPERATIVAS | E20: 138179709.8 | G20: 27984864.83 | H20: 26720701.71 | I20: 139443872.9 | J20: =VLOOKUP(B20,#REF!,1,0) ->  | K20: =VLOOKUP(B20,#REF!,1,0) -> 
A21: 2 | B21: 1.6.0.00.00-1 | D21: OPERACOES DE CREDITO | E21: 88134401.45 | G21: 29360577.36 | H21: 25163406.9 | I21: 92331571.91 | J21: =VLOOKUP(B21,#REF!,1,0) ->  | K21: =VLOOKUP(B21,#REF!,1,0) -> 
A22: 3 | B22: 1.6.1.00.00-4 | D22: EMPRÉSTIMOS E DIREITOS CREDITÓRIOS DESCONTADOS | E22: 69120718.18 | G22: 23926982.29 | H22: 22337726.89 | I22: 70709973.58 | J22: =VLOOKUP(B22,#REF!,1,0) ->  | K22: =VLOOKUP(B22,#REF!,1,0) -> 
A23: 4 | B23: 1.6.1.10.00-1 | D23: ADIANTAMENTOS A DEPOSITANTES | E23: 210542.53 | G23: 2702381.38 | H23: 2589457.46 | I23: 323466.45 | J23: =VLOOKUP(B23,#REF!,1,0) ->  | K23: =VLOOKUP(B23,#REF!,1,0) -> 
A24: 6 | B24: 1.6.1.10.00.0001-4 | C24: 1626 | D24: ADIANTAMENTOS A DEPOSITANTES | E24: 240770.29 | G24: 2697903.92 | H24: 2579886.22 | I24: 358787.99 | J24: =VLOOKUP(B24,#REF!,1,0) ->  | K24: =VLOOKUP(B24,#REF!,1,0) -> 
A25: 6 | B25: 1.6.1.10.00.0002-1 | C25: 1627 | D25: (-) RENDAS APROPRIAR ADIANTAMENTOS A DEPOSITANTES | E25: -30227.76 | G25: 4477.46 | H25: 9571.24 | I25: -35321.54 | J25: =VLOOKUP(B25,#REF!,1,0) ->  | K25: =VLOOKUP(B25,#REF!,1,0) -> 
A26: 4 | B26: 1.6.1.20.00-8 | D26: EMPRESTIMOS | E26: 64064163.46 | G26: 18148151.8 | H26: 16958869.53 | I26: 65253445.73 | J26: =VLOOKUP(B26,#REF!,1,0) ->  | K26: =VLOOKUP(B26,#REF!,1,0) -> 
A27: 5 | B27: 1.6.1.20.99-8 | D27: OUTROS | E27: 64064163.46 | G27: 18148151.8 | H27: 16958869.53 | I27: 65253445.73 | J27: =VLOOKUP(B27,#REF!,1,0) ->  | K27: =VLOOKUP(B27,#REF!,1,0) -> 
A28: 6 | B28: 1.6.1.20.99.0005-3 | C28: 12019 | D28: CRÉDITO PESSOAL | E28: 15050684.09 | G28: 1467537.43 | H28: 1258895.94 | I28: 15259325.58 | J28: =VLOOKUP(B28,#REF!,1,0) ->  | K28: =VLOOKUP(B28,#REF!,1,0) -> 
A29: 6 | B29: 1.6.1.20.99.0006-0 | C29: 12020 | D29: (-) RENDAS A APROPRIAR - CRÉDITO PESSOAL | E29: -2796564.56 | G29: 260460.24 | H29: 431791.37 | I29: -2967895.69 | J29: =VLOOKUP(B29,#REF!,1,0) ->  | K29: =VLOOKUP(B29,#REF!,1,0) -> 
A30: 6 | B30: 1.6.1.20.99.0007-7 | C30: 12021 | D30: (-) JUROS MORA APROP - CRÉDITO PESSOAL | E30: -55529.74 | G30: 4289.22 | H30: 16338.53 | I30: -67579.05 | J30: =VLOOKUP(B30,#REF!,1,0) ->  | K30: =VLOOKUP(B30,#REF!,1,0) -> 
A31: 6 | B31: 1.6.1.20.99.0008-4 | C31: 12022 | D31: (-) RDAS EFET - VENC + 60 D - CRÉDITO PESSOAL | E31: -52734.66 | G31: 4162.3 | H31: 10294.94 | I31: -58867.3 | J31: =VLOOKUP(B31,#REF!,1,0) ->  | K31: =VLOOKUP(B31,#REF!,1,0) -> 
A32: 6 | B32: 1.6.1.20.99.0009-1 | C32: 12023 | D32: (-) GANHOS A AUFERIR - CRÉDITO PESSOAL | E32: -31200.1 | G32: 2452.18 | H32: 7127.1 | I32: -35875.02 | J32: =VLOOKUP(B32,#REF!,1,0) ->  | K32: =VLOOKUP(B32,#REF!,1,0) -> 
A33: 6 | B33: 1.6.1.20.99.0037-6 | C33: 12124 | D33: CHEQUE ESPECIAL | E33: 1234445.79 | G33: 2427777.45 | H33: 2359964.8 | I33: 1302258.44 | J33: =VLOOKUP(B33,#REF!,1,0) ->  | K33: =VLOOKUP(B33,#REF!,1,0) -> 
A34: 6 | B34: 1.6.1.20.99.0038-3 | C34: 12125 | D34: (-) RENDAS A APROPRIAR - CHEQUE ESPECIAL | E34: -10462.41 | G34: 856.15 | H34: 4610.45 | I34: -14216.71 | J34: =VLOOKUP(B34,#REF!,1,0) ->  | K34: =VLOOKUP(B34,#REF!,1,0) -> 
